{"text_format":"1","workbook":"xlsx","n_sheets":14,"sheets":["Hoofdmenu","Toelichting","NAW_gegevens","Voorblad","Kostenverzamelstaat 2021","Kostenverzamelstaat 2020","Kostenverzamelstaat 2019","Specifieke informatie 2021","Specifieke informatie A 2019","Specifieke informatie C","Contractinformatie","Controleoverzicht","Blad1","Parameters"],"not_rendered":{"charts":0,"images":1,"macros":1,"external_links":1,"defined_names":158,"comments":0,"pivot_tables":0},"unopened":[],"bounds":{"document_bytes":16777216,"sheet_cells":100000,"rows_first":2000,"rows_last":500,"rows_between":2000,"halvings":0,"cell_chars":16384,"cell_head_chars":4096},"cells_cut":0,"cells_raw":0,"read":"whole","date_system":"1900"}

{"sheet":"Hoofdmenu","index":0,"n_rows":3,"n_cols":2,"rows_kept":3,"cut":false,"hidden":false,"merged":[[0,0,0,1],[1,0,1,1]]}
["HOOFDMENU"]
[{"$f":"CONCATENATE(\"JAARSTAAT ZVW \",jaar_id)","v":"JAARSTAAT ZVW 2021"}]
["Navigatie","Afdrukken"]

{"sheet":"Toelichting","index":1,"n_rows":3,"n_cols":2,"rows_kept":3,"cut":false,"hidden":false,"merged":[]}
[]
[]
[null,{"$f":"CONCATENATE(\" JAARSTAAT ZVW \",jaar_id,\" (VERSIE: \",document_id,\")\")","v":" JAARSTAAT ZVW 2021 (VERSIE: JS2021ZVW.B)"}]

{"sheet":"NAW_gegevens","index":2,"n_rows":40,"n_cols":5,"rows_kept":40,"cut":false,"hidden":false,"merged":[[2,0,2,1],[3,0,3,1]]}
[]
[]
["NAW-GEGEVENS"]
["JAARSTAAT ZVW 2021"]
[" Selecteer uw nummer:>","0000 KIES UW UZOVI-NUMMER"]
[" Uzovi-nummer:",{"$f":"MID(keuze_uzovi_nummer,1,4)","v":"0000"}]
[" Verzekeraar:"]
[" Plaats:"]
[" Contactpersoon:"]
[" Telefoonnummer:"]
[" E-mail:"]
[]
[]
["Let op dat u het goede UZOVI-nummer invult, zie onderstaand overzicht:"]
[]
["UZOVI","NAAM",null,null,"PLAATS"]
["0101","N.V. UNIVÉ ZORG",null,null,"ARNHEM"]
["0104","CENTRALE ZORGVERZEKERINGEN NZV N.V.",null,null,"TILBURG"]
["0201","OHRA ZORGVERZEKERINGEN N.V.",null,null,"TILBURG"]
["0403","ASR BASIS ZIEKTEKOSTENVERZEKERINGEN N.V.",null,null,"UTRECHT"]
["0699","IZA ZORGVERZEKERAAR N.V.",null,null,"ARNHEM"]
["0736","N.V. ZORGVERZEKERAAR UMC",null,null,"ARNHEM"]
["3311","ZILVEREN KRUIS ACHMEA ZORGVERZEKERINGEN N.V.",null,null,"UTRECHT"]
["3313","INTERPOLIS ZORGVERZEKERINGEN N.V.",null,null,"UTRECHT"]
[3329,"AVÉRO ACHMEA ZORGVERZEKERINGEN N.V.",null,null,"UTRECHT"]
[3332,"MENZIS ZORGVERZEKERAAR NV",null,null,"WAGENINGEN"]
[3333,"ANDERZORG NV",null,null,"WAGENINGEN"]
[3343,"ONVZ ZIEKTEKOSTENVERZEKERAAR N.V.",null,null,"HOUTEN"]
[3347,"ENO ZORGVERZEKERAAR N.V.",null,null,"DEVENTER"]
[3351,"FBTO ZORGVERZEKERINGEN N.V.",null,null,"LEEUWARDEN"]
[3352,"IPTIQ LIFE S.A.",null,null,"AMSTELVEEN"]
[3358,"DE FRIESLAND ZORGVERZEKERAAR N.V.",null,null,"LEEUWARDEN"]
[3359,"EUCARE INSURANCE PCC LTD",null,null,"TA' XBIEX"]
["7029","OWM ZORGVERZEKERAAR 'DSW' U.A.",null,null,"SCHIEDAM"]
["7037","STAD HOLLAND ZORGVERZEKERAAR OWM U.A.",null,null,"SCHIEDAM"]
["7053","OHRA ZORGVERZEKERINGEN  N.V.",null,null,"TILBURG"]
["7085","OWM ZORGVERZEKERAAR ZORG EN ZEKERHEID U.A.",null,null,"LEIDEN"]
["7095","VGZ ZORGVERZEKERAAR N.V.",null,null,"ARNHEM"]
["7119","CZ ZORGVERZEKERINGEN N.V.",null,null,"TILBURG"]
["9015","VGZ VOOR DE ZORG N.V.",null,null,"ARNHEM"]

{"sheet":"Voorblad","index":3,"n_rows":41,"n_cols":4,"rows_kept":41,"cut":false,"hidden":false,"merged":[[13,3,14,11],[15,3,16,11],[19,3,20,11],[21,3,22,11]]}
[null,null,"VOORBLAD"]
[]
[]
[]
[]
["Pagina 1"]
[]
[]
[]
[]
[]
[]
[]
[]
[]
[null,null,null,{"$f":"CONCATENATE(\"JAARSTAAT ZVW \",jaar_id)","v":"JAARSTAAT ZVW 2021"}]
[]
[]
[]
[null,null,null,"SPECIFIEKE INFORMATIE"]
[]
[]
[]
[null,null,null,"  SPECIFIEKE INFORMATIE A (met accountantsverklaring)"]
[null,null,null,"     ● Kostenverzamelstaat 2019 (pagina 1 t/m 3)"]
[null,null,null,"     ● Specificatie informatie A 2019 risicoverevening (pagina 1 t/m 2)"]
[]
[null,null,null," SPECIFIEKE INFORMATIE 2020"]
[null,null,null,"     ● Kostenverzamelstaat 2020 (pagina 1 t/m 4)"]
[]
[null,null,null," SPECIFIEKE INFORMATIE 2021"]
[null,null,null,"     ● Kostenverzamelstaat 2021 (pagina 1 t/m 4)"]
[null,null,null,"     ● Specificatie informatie 2021 risicoverevening (pagina 1 t/m 2)"]
[]
[null,null,null,"  SPECIFIEKE INFORMATIE C (beleidsinformatie zonder accountantsverklaring)"]
[null,null,null,"     ● Specificaties van kosten en productie (pagina 1 t/m 7)"]
[]
[]
[null,null,null,"  CONTRACTINFORMATIE (pagina 1 t/m 2)"]
[]
[null,null,null,"  CONTROLEOVERZICHT (pagina 1 t/m 6)"]

{"sheet":"Kostenverzamelstaat 2021","index":4,"n_rows":191,"n_cols":12,"rows_kept":191,"cut":false,"hidden":false,"merged":[[10,3,13,6],[10,8,11,9],[10,10,11,11],[10,12,14,12],[12,7,13,7],[12,8,13,8],[12,9,13,9],[12,10,13,10],[12,11,13,11],[60,3,60,4],[60,9,60,11],[67,3,70,6],[67,8,68,9],[67,10,68,11],[69,7,70,7],[69,8,70,8],[69,9,70,9],[69,10,70,10],[69,11,70,11],[114,3,114,4],[114,9,114,11],[121,3,124,6],[121,8,122,9],[121,10,122,11],[123,7,124,7],[123,8,124,8],[123,9,124,9],[190,3,190,4],[190,9,190,11],[123,10,124,10],[123,11,124,11],[176,3,176,4],[176,9,176,11],[183,3,184,6],[183,7,184,7],[183,8,184,8],[183,9,184,9],[183,10,184,11],[82,3,82,6],[83,3,83,6],[72,3,72,6],[73,3,73,6],[74,3,74,6],[75,3,75,6],[76,3,76,6],[77,3,77,6],[78,3,78,6],[79,3,79,6],[80,3,80,6],[81,3,81,6]]}
[]
[]
[]
[]
[]
["Pagina 1",null,null,{"$f":"CONCATENATE(\"JAARSTAAT ZVW \", jaar_id)","v":"JAARSTAAT ZVW 2021"}]
[null,null,null,"KOSTENVERZAMELSTAAT (SPECIFIEKE INFORMATIE  2021)"]
[null,null,null,{"$f":"IF(naw_uzovi_zorgverzekeraar<>\"0000\",CONCATENATE(UPPER(naw_naam_zorgverzekeraar),\", \",UPPER(naw_plaats_zorgverzekeraar)),\"\")","v":""},null,null,null,null,null,null,null,{"$f":"CONCATENATE(\"UZOVI: \",naw_uzovi_zorgverzekeraar)","v":"UZOVI: 0000"}]
[null,null,null,"SPECIFICATIES INFORMATIE RISICOVEREVENING"]
[null,null,null,"KOSTENVERZAMELSTAAT"]
[null,null,null," KOSTENRUBRIEK",null,null,null,null,"LASTEN 2021",null,"COVID-kosten (basisverzekering)"]
[]
[null,null,null,null,null,null,null,"Code","Lasten 2021 inclusief balanspost ","Ontvangen en geaccepteerde declaraties m.b.t. 2021","Lasten 2021 inclusief balanspost ","Ontvangen en geaccepteerde declaraties m.b.t. 2021"]
[]
[null,null,null," 01  HUISARTSENZORG en MDZ "]
[null,null,null," Bijzondere betalingen",null,null,null,"503   "]
[null,null,null," Avond-, nacht- en weekenddiensten",null,null,null,"504   "]
[null,null,null," Inschrijftarieven",null,null,null,"505   "]
[null,null,null," Consulttarieven",null,null,null,"506   "]
[null,null,null," Overige tarieven ",null,null,null,"507   "]
[null,null,null," Multidisciplinaire zorg",null,null,null,"510   "]
[null,null,null," Resultaatbeloning en zorgvernieuwing huisartsen",null,null,null,"515   "]
[null,null,null," Resultaatbeloning en zorgvernieuwing MDZ",null,null,null,"516   "]
[null,null,null," Meerkosten Corona, indirect en toeslagen",null,null,null,"801   "]
[null,null,null," Meerkosten Corona, indirect",null,null,null,"801.1"]
[null,null,null," Meerkosten Corona, toeslagen",null,null,null,"801.2"]
[null,null,null," Netto continuïteitsbijdrage Corona (basisverzekering)",null,null,null,"821   "]
[null,null,null," TOTAAL RUBRIEK 01",null,null,null,null,{"$f":"SUM(I16:I27)","v":0},{"$f":"SUM(J16:J27)","v":0},{"$f":"SUM(K16:K27)","v":0},{"$f":"SUM(L16:L27)","v":0}]
[null,null,null," 02 FARMACEUTISCHE ZORG"]
[null,null,null," Farmaceutische zorg",null,null,null,"520   "]
[null,null,null," Meerkosten Corona, indirect en toeslagen",null,null,null,"802   "]
[null,null,null," Meerkosten Corona, indirect",null,null,null,"802.1"]
[null,null,null," Meerkosten Corona, toeslagen",null,null,null,"802.2"]
[null,null,null," Netto continuïteitsbijdrage Corona (basisverzekering)",null,null,null,"822   "]
[null,null,null," TOTAAL RUBRIEK 02",null,null,null,null,{"$f":"SUM(I30:I34)","v":0},{"$f":"SUM(J30:J34)","v":0},{"$f":"SUM(K30:K34)","v":0},{"$f":"SUM(L30:L34)","v":0}]
[null,null,null," 03 VERPLEGING EN VERZORGING "]
[null,null,null," Kosten van verpleging en verzorging ",null,null,null,"530   "]
[null,null,null," Meerkosten Corona, indirect en toeslagen",null,null,null,"803   "]
[null,null,null," Meerkosten Corona, indirect",null,null,null,"803.1"]
[null,null,null," Meerkosten Corona, toeslagen",null,null,null,"803.2"]
[null,null,null," Netto continuïteitsbijdrage Corona (basisverzekering)",null,null,null,"823   "]
[null,null,null," TOTAAL RUBRIEK 03",null,null,null,null,{"$f":"SUM(I37:I41)","v":0},{"$f":"SUM(J37:J41)","v":0},{"$f":"SUM(K37:K41)","v":0},{"$f":"SUM(L37:L41)","v":0}]
[null,null,null," 04  MONDZORG"]
[null,null,null," Kosten mondzorg volwassen verzekerden",null,null,null,"560.1"]
[null,null,null," Kosten mondzorg jeugdige verzekerden",null,null,null,"560.2"]
[null,null,null," Kosten gebitsprothesen",null,null,null,"561   "]
[null,null,null," Meerkosten Corona, indirect en toeslagen",null,null,null,"804   "]
[null,null,null," Meerkosten Corona, indirect",null,null,null,"804.1"]
[null,null,null," Meerkosten Corona, toeslagen",null,null,null,"804.2"]
[null,null,null," Netto continuïteitsbijdrage Corona (basisverzekering)",null,null,null,"824   "]
[null,null,null," TOTAAL RUBRIEK 04",null,null,null,null,{"$f":"SUM(I44:I50)","v":0},{"$f":"SUM(J44:J50)","v":0},{"$f":"SUM(K44:K50)","v":0},{"$f":"SUM(L44:L50)","v":0}]
[null,null,null," 05  VERLOSKUNDIGE ZORG"]
[null,null,null," Kosten verloskundige zorg door verloskundigen",null,null,null,"580   "]
[null,null,null," Kosten Integrale geboortezorg ",null,null,null,"582   "]
[null,null,null," Meerkosten Corona, indirect en toeslagen",null,null,null,"805   "]
[null,null,null," Meerkosten Corona, indirect",null,null,null,"805.1"]
[null,null,null," Meerkosten Corona, toeslagen",null,null,null,"805.2"]
[null,null,null," Netto continuïteitsbijdrage Corona (basisverzekering)",null,null,null,"825   "]
[null,null,null," TOTAAL RUBRIEK 05",null,null,null,null,{"$f":"SUM(I53:I58)","v":0},{"$f":"SUM(J53:J58)","v":0},{"$f":"SUM(K53:K58)","v":0},{"$f":"SUM(L53:L58)","v":0}]
[]
[null,null,null,{"$f":"NOW()","v":"2022-04-04T16:47:18.280"},null,null,null,null,null,{"$f":"CONCATENATE(\"Kostenverzamelstaat 2021, \",LOWER(A6))","v":"Kostenverzamelstaat 2021, pagina 1"}]
[]
["Pagina 2",null,null,{"$f":"CONCATENATE(\"JAARSTAAT ZVW \", jaar_id)","v":"JAARSTAAT ZVW 2021"}]
[null,null,null,"KOSTENVERZAMELSTAAT (SPECIFIEKE INFORMATIE  2021)"]
[null,null,null,{"$f":"IF(naw_uzovi_zorgverzekeraar<>\"0000\",CONCATENATE(UPPER(naw_naam_zorgverzekeraar),\", \",UPPER(naw_plaats_zorgverzekeraar)),\"\")","v":""},null,null,null,null,null,null,null,{"$f":"CONCATENATE(\"UZOVI: \",naw_uzovi_zorgverzekeraar)","v":"UZOVI: 0000"}]
[null,null,null,"SPECIFICATIES INFORMATIE RISICOVEREVENING"]
[null,null,null,"KOSTENVERZAMELSTAAT"]
[null,null,null," KOSTENRUBRIEK",null,null,null,null,"LASTEN 2021",null,"COVID-kosten (basisverzekering)"]
[]
[null,null,null,null,null,null,null,"Code","Lasten 2021 inclusief balanspost ","Ontvangen en geaccepteerde declaraties m.b.t. 2021","Lasten 2021 inclusief balanspost ","Ontvangen en geaccepteerde declaraties m.b.t. 2021"]
[]
[null,null,null," 06  MEDISCH SPECIALISTISCHE ZORG"]
[null,null,null," Kosten specialisten mondziekten en kaakchirurgie",null,null,null,"545   "]
[null,null,null," Overige kosten ziekenhuiszorg en curatieve zorg",null,null,null,"610   "]
[null,null,null," Overige zorgproducten",null,null,null,"611   "]
[null,null,null," Kosten addons - Dure geneesmiddelen",null,null,null,"612.1"]
[null,null,null," Kosten add-ons - IC",null,null,null,"612.2"]
[null,null,null," Integrale kosten van DBC-zorgproduct gereguleerde segment  ",null,null,null,"613.1 "]
[null,null,null," Integrale kosten DBC-zorgproduct vrije segment",null,null,null,"615.1 "]
[null,null,null," Integrale kosten extramuraal werkende specialisten",null,null,null,"619   "]
[null,null,null," Meerkosten Corona, indirect en toeslagen",null,null,null,"806   "]
[null,null,null," Meerkosten Corona, indirect",null,null,null,"806.1"]
[null,null,null," Meerkosten Corona, toeslagen",null,null,null,"806.2"]
[null,null,null," Netto continuïteitsbijdrage Corona (basisverzekering)",null,null,null,"826   "]
[null,null,null," TOTAAL RUBRIEK 06",null,null,null,null,{"$f":"SUM(I73:I84)","v":0},{"$f":"SUM(J73:J84)","v":0},0,0]
[null,null,null," 07  PARAMEDISCHE ZORG"]
[null,null,null," Kosten fysiotherapie",null,null,null,"620   "]
[null,null,null," Kosten oefentherapie Mensendieck/Cesar",null,null,null,"621   "]
[null,null,null," Kosten logopedie",null,null,null,"623   "]
[null,null,null," Kosten ergotherapie",null,null,null,"624   "]
[null,null,null," Kosten dieetadvisering",null,null,null,"625   "]
[null,null,null," Gecombineerde Leefstijl Interventie (GLI)",null,null,null,"626   "]
[null,null,null," Meerkosten Corona, indirect en toeslagen",null,null,null,"807   "]
[null,null,null," Meerkosten Corona, indirect",null,null,null,"807.1"]
[null,null,null," Meerkosten Corona, toeslagen",null,null,null,"807.2"]
[null,null,null," Netto continuïteitsbijdrage Corona (basisverzekering)",null,null,null,"827   "]
[null,null,null," TOTAAL RUBRIEK 07",null,null,null,null,{"$f":"SUM(I87:I96)","v":0},{"$f":"SUM(J87:J96)","v":0},0,0]
[null,null,null," 08  HULPMIDDELENZORG"]
[null,null,null," Hulpmiddelenzorg ",null,null,null,"640   "]
[null,null,null," Meerkosten Corona, indirect en toeslagen",null,null,null,"808   "]
[null,null,null," Meerkosten Corona, indirect",null,null,null,"808.1"]
[null,null,null," Meerkosten Corona, toeslagen",null,null,null,"808.2"]
[null,null,null," Netto continuïteitsbijdrage Corona (basisverzekering)",null,null,null,"828   "]
[null,null,null," TOTAAL RUBRIEK 08",null,null,null,null,{"$f":"SUM(I99:I103)","v":0},{"$f":"SUM(J99:J103)","v":0},0,0]
[null,null,null," 09  ZIEKENVERVOER"]
[null,null,null," Kosten vervoer per ambulance/helikopter",null,null,null,"650   "]
[null,null,null," Opbrengstenverrekeningen regionale ambulance-\n voorzieningen",null,null,null,"650.1"]
[null,null,null," Kosten vervoer per openbaar vervoer, taxi \n en eigen auto",null,null,null,"651   "]
[null,null,null," Meerkosten Corona, indirect en toeslagen",null,null,null,"809   "]
[null,null,null," Meerkosten Corona, indirect",null,null,null,"809.1"]
[null,null,null," Meerkosten Corona, toeslagen",null,null,null,"809.2"]
[null,null,null," Netto continuïteitsbijdrage Corona (basisverzekering)",null,null,null,"829   "]
[null,null,null," TOTAAL RUBRIEK 09",null,null,null,null,{"$f":"SUM(I106:I112)","v":0},{"$f":"SUM(J106:J112)","v":0},0,0]
[]
[null,null,null,{"$f":"NOW()","v":"2022-04-04T16:47:18.280"},null,null,null,null,null,{"$f":"CONCATENATE(\"Kostenverzamelstaat 2021, \",LOWER(A63))","v":"Kostenverzamelstaat 2021, pagina 2"}]
[]
["Pagina 3",null,null,{"$f":"CONCATENATE(\"JAARSTAAT ZVW \", jaar_id)","v":"JAARSTAAT ZVW 2021"}]
[null,null,null,"KOSTENVERZAMELSTAAT (SPECIFIEKE INFORMATIE  2021)"]
[null,null,null,{"$f":"IF(naw_uzovi_zorgverzekeraar<>\"0000\",CONCATENATE(UPPER(naw_naam_zorgverzekeraar),\", \",UPPER(naw_plaats_zorgverzekeraar)),\"\")","v":""},null,null,null,null,null,null,null,{"$f":"CONCATENATE(\"UZOVI: \",naw_uzovi_zorgverzekeraar)","v":"UZOVI: 0000"}]
[null,null,null,"SPECIFICATIES INFORMATIE RISICOVEREVENING"]
[null,null,null,"KOSTENVERZAMELSTAAT"]
[null,null,null," KOSTENRUBRIEK",null,null,null,null,"LASTEN 2021",null,"COVID-kosten (basisverzekering)"]
[]
[null,null,null,null,null,null,null,"Code","Lasten 2021 inclusief balanspost ","Ontvangen en geaccepteerde declaraties m.b.t. 2021","Lasten 2021 inclusief balanspost ","Ontvangen en geaccepteerde declaraties m.b.t. 2021"]
[]
[null,null,null," 10 GENEESKUNDIGE GEESTELIJKE GEZONDHEIDSZORG"]
[null,null,null," Kosten specialistische GGZ met verblijf",null,null,null,"661   "]
[null,null,null," Kosten LGGZ (langdurige GGZ, jaar 2 en 3)",null,null,null,"661.1 "]
[null,null,null," Kosten specialistische GGZ zonder verblijf",null,null,null,"662   "]
[null,null,null," Generalistische basis GGZ",null,null,null,"665   "]
[null,null,null," Meerkosten Corona, indirect en toeslagen",null,null,null,"810   "]
[null,null,null," Meerkosten Corona, indirect",null,null,null,"810.1"]
[null,null,null," Meerkosten Corona, toeslagen",null,null,null,"810.2"]
[null,null,null," Netto continuïteitsbijdrage Corona (basisverzekering)",null,null,null,"830   "]
[null,null,null," TOTAAL RUBRIEK 10",null,null,null,null,{"$f":"SUM(I127:I134)","v":0},{"$f":"SUM(J127:J134)","v":0},{"$f":"SUM(K127:K134)","v":0},{"$f":"SUM(L127:L134)","v":0}]
[null,null,null," 11  GRZ, ELV EN GZSP"]
[null,null,null," Geriatrische Revalidatiezorg (GRZ)",null,null,null,"670   "]
[null,null,null," Meerkosten Corona, indirect en toeslagen",null,null,null,"811.1"]
[null,null,null," Meerkosten Corona, indirect",null,null,null,"811.1.1"]
[null,null,null," Meerkosten Corona, toeslagen",null,null,null,"811.1.2"]
[null,null,null," Netto continuïteitsbijdrage Corona (basisverzekering)",null,null,null,"831.1"]
[null,null,null," Eerstelijnsverblijf (ELV)",null,null,null,"671   "]
[null,null,null," Meerkosten Corona, indirect en toeslagen",null,null,null,"811.2"]
[null,null,null," Meerkosten Corona, indirect",null,null,null,"811.2.1"]
[null,null,null," Meerkosten Corona, toeslagen",null,null,null,"811.2.2"]
[null,null,null," Netto continuïteitsbijdrage Corona (basisverzekering)",null,null,null,"831.2"]
[null,null,null," Generalistische Geneeskundige Zorg Specifieke Patiëntgroepen",null,null,null,"672   "]
[null,null,null," Meerkosten Corona, indirect en toeslagen",null,null,null,"811.3"]
[null,null,null," Meerkosten Corona, indirect",null,null,null,"811.3.1"]
[null,null,null," Meerkosten Corona, toeslagen",null,null,null,"811.3.2"]
[null,null,null," Netto continuïteitsbijdrage Corona (basisverzekering)",null,null,null,"831.3"]
[null,null,null," TOTAAL RUBRIEK 11",null,null,null,null,{"$f":"SUM(I137:I151)","v":0},{"$f":"SUM(J137:J151)","v":0},0,0]
[null,null,null," 12  KRAAMZORG"]
[null,null,null," Kraamzorg",null,null,null,"680   "]
[null,null,null," Meerkosten Corona, indirect en toeslagen",null,null,null,"812   "]
[null,null,null," Meerkosten Corona, indirect",null,null,null,"812.1"]
[null,null,null," Meerkosten Corona, toeslagen",null,null,null,"812.2"]
[null,null,null," Netto continuïteitsbijdrage Corona (basisverzekering)",null,null,null,"832   "]
[null,null,null," TOTAAL RUBRIEK 12",null,null,null,null,{"$f":"SUM(I154:I158)","v":0},{"$f":"SUM(J154:J158)","v":0},0,0]
[null,null,null," 13  DIVERSE OVERIGE KOSTEN"]
[null,null,null," Overige kosten",null,null,null,"700   "]
[null,null,null," Overige geneeskundige zorg",null,null,null,"701   "]
[null,null,null," Kosten van zorg zintuiglijk gehandicapten ",null,null,null,"702   "]
[null,null,null," Meerkosten Corona, indirect en toeslagen",null,null,null,"813   "]
[null,null,null," Meerkosten Corona, indirect",null,null,null,"813.1"]
[null,null,null," Meerkosten Corona, toeslagen",null,null,null,"813.2"]
[null,null,null," Netto continuïteitsbijdrage Corona (basisverzekering)",null,null,null,"833   "]
[null,null,null," TOTAAL RUBRIEK 13",null,null,null,null,{"$f":"SUM(I161:I167)","v":0},{"$f":"SUM(J161:J167)","v":0},0,0]
[null,null,null," 15  GRENSOVERSCHRIJDENDE ZORG"]
[null,null,null," Kosten via verzekeraar",null,null,null,"720   "]
[null,null,null," Kosten via verbindingsorgaan",null,null,null,"721   "]
[null,null,null," TOTAAL RUBRIEK 15",null,null,null,null,{"$f":"SUM(I170:I171)","v":0},{"$f":"SUM(J170:J171)","v":0},0,0]
[null,null,null," 16  KWALITEITSGELDEN"]
[null,null,null," Kwaliteitsgelden",null,null,null,730]
[null,null,null," TOTAAL RUBRIEK 16",null,null,null,null,{"$f":"SUM(I174)","v":0},{"$f":"SUM(J174)","v":0},0,0]
[null,null,null," TOTAAL LASTEN   (bruto-schade, definitie ZIN)",null,null,null,null,{"$f":"SUM(I28,I35,I42,I51,I59,I85,I97,I104,I113,I135,I152,I159,I168,I172,I175)","v":0},{"$f":"SUM(J28,J35,J42,J51,J59,J85,J97,J104,J113,J135,J152,J159,J168,J172,J175)","v":0},{"$f":"SUM(K28,K35,K42,K51,K59,K85,K97,K104,K113,K135,K152,K159,K168,K172,K175)","v":0},{"$f":"SUM(L28,L35,L42,L51,L59,L85,L97,L104,L113,L135,L152,L159,L168,L172,L175)","v":0}]
[null,null,null,{"$f":"NOW()","v":"2022-04-04T16:47:18.280"},null,null,null,null,null,{"$f":"CONCATENATE(\"Kostenverzamelstaat 2021, \",LOWER(A117))","v":"Kostenverzamelstaat 2021, pagina 3"}]
[]
["Pagina 4",null,null,{"$f":"CONCATENATE(\"JAARSTAAT ZVW \", jaar_id)","v":"JAARSTAAT ZVW 2021"}]
[null,null,null,"KOSTENVERZAMELSTAAT (SPECIFIEKE INFORMATIE  2021)"]
[null,null,null,{"$f":"IF(naw_uzovi_zorgverzekeraar<>\"0000\",CONCATENATE(UPPER(naw_naam_zorgverzekeraar),\", \",UPPER(naw_plaats_zorgverzekeraar)),\"\")","v":""},null,null,null,null,null,null,null,{"$f":"CONCATENATE(\"UZOVI: \",naw_uzovi_zorgverzekeraar)","v":"UZOVI: 0000"}]
[null,null,null,"SPECIFICATIES INFORMATIE RISICOVEREVENING"]
[null,null,null,"KOSTENVERZAMELSTAAT"]
[null,null,null,"BATEN ZVW",null,null,null,"Code","Totale baten 2021 inclusief balanspost ","Waarvan ontvangen m.b.t. 2021","Verplicht Eigen Risico m.b.t. directe prestaties voor COVID-patiënten"]
[]
[null,null,null," OPBRENGSTEN VERHAAL",null,null,null,"890.1"]
[null,null,null," SCHADE T.L.V. HET VRIJWILLIG EIGEN RISICO",null,null,null,"910   "]
[null,null,null," SCHADE T.L.V. HET VERPLICHT EIGEN RISICO",null,null,null,"915   "]
[null,null,null," GEBOEKTE NETTO PREMIES",null,null,null,"940   "]
[]
[null,null,null,{"$f":"NOW()","v":"2022-04-04T16:47:18.280"},null,null,null,null,null,{"$f":"CONCATENATE(\"Kostenverzamelstaat 2021, \",LOWER(A179))","v":"Kostenverzamelstaat 2021, pagina 4"}]

{"sheet":"Kostenverzamelstaat 2020","index":5,"n_rows":192,"n_cols":12,"rows_kept":192,"cut":false,"hidden":false,"merged":[[67,3,70,6],[67,8,68,9],[67,10,68,11],[69,7,70,7],[69,8,70,8],[69,9,70,9],[69,10,70,10],[69,11,70,11],[10,8,11,9],[10,10,11,11],[12,7,13,7],[12,8,13,8],[12,9,13,9],[12,10,13,10],[114,9,114,11],[177,9,177,11],[184,3,185,6],[177,3,177,4],[184,10,185,11],[184,7,185,7],[184,8,185,8],[184,9,185,9],[191,9,191,11],[60,3,60,4],[60,9,60,11],[10,3,13,6],[10,12,14,12],[12,11,13,11],[191,3,191,4],[123,9,124,9],[123,10,124,10],[123,11,124,11],[114,3,114,4],[121,3,124,6],[121,8,122,9],[121,10,122,11],[123,7,124,7],[123,8,124,8]]}
[]
[]
[]
[]
[]
["Pagina 1",null,null,{"$f":"CONCATENATE(\"JAARSTAAT ZVW \", jaar_id)","v":"JAARSTAAT ZVW 2021"}]
[null,null,null,"KOSTENVERZAMELSTAAT (SPECIFIEKE INFORMATIE  2020)"]
[null,null,null,{"$f":"IF(naw_uzovi_zorgverzekeraar<>\"0000\",CONCATENATE(UPPER(naw_naam_zorgverzekeraar),\", \",UPPER(naw_plaats_zorgverzekeraar)),\"\")","v":""},null,null,null,null,null,null,null,{"$f":"CONCATENATE(\"UZOVI: \",naw_uzovi_zorgverzekeraar)","v":"UZOVI: 0000"}]
[null,null,null,"SPECIFICATIES INFORMATIE RISICOVEREVENING"]
[null,null,null,"KOSTENVERZAMELSTAAT"]
[null,null,null," KOSTENRUBRIEK",null,null,null,null,"LASTEN 2020",null,"waarvan COVID-kosten (basisverzekering)"]
[]
[null,null,null,null,null,null,null,"Code","Lasten 2020 inclusief balanspost ","Ontvangen en geaccepteerde declaraties m.b.t. 2020","Lasten 2020 inclusief balanspost ","Ontvangen en geaccepteerde declaraties m.b.t. 2020"]
[]
[null,null,null," 01  HUISARTSENZORG en MDZ "]
[null,null,null," Bijzondere betalingen",null,null,null,"503   "]
[null,null,null," Avond-, nacht- en weekenddiensten",null,null,null,"504   "]
[null,null,null," Inschrijftarieven",null,null,null,"505   "]
[null,null,null," Consulttarieven",null,null,null,"506   "]
[null,null,null," Overige tarieven ",null,null,null,"507   "]
[null,null,null," Multidisciplinaire zorg",null,null,null,"510   "]
[null,null,null," Resultaatbeloning en zorgvernieuwing huisartsen",null,null,null,"515   "]
[null,null,null," Resultaatbeloning en zorgvernieuwing MDZ",null,null,null,"516   "]
[null,null,null," Meerkosten Corona, indirect en toeslagen",null,null,null,"801   "]
[null,null,null," Meerkosten Corona, indirect",null,null,null,"801.1",{"$f":"K25","v":0},{"$f":"L25","v":0}]
[null,null,null," Meerkosten Corona, toeslagen",null,null,null,"801.2",{"$f":"K26","v":0},{"$f":"L26","v":0}]
[null,null,null," Netto continuïteitsbijdrage Corona (basisverzekering)",null,null,null,"821   "]
[null,null,null," TOTAAL RUBRIEK 01",null,null,null,null,{"$f":"SUM(I16:I27)","v":0},{"$f":"SUM(J16:J27)","v":0},{"$f":"SUM(K16:K27)","v":0},{"$f":"SUM(L16:L27)","v":0}]
[null,null,null," 02 FARMACEUTISCHE ZORG"]
[null,null,null," Farmaceutische zorg",null,null,null,"520   "]
[null,null,null," Meerkosten Corona, indirect en toeslagen",null,null,null,"802   "]
[null,null,null," Meerkosten Corona, indirect",null,null,null,"802.1",{"$f":"K32","v":0},{"$f":"L32","v":0}]
[null,null,null," Meerkosten Corona, toeslagen",null,null,null,"802.2",{"$f":"K33","v":0},{"$f":"L33","v":0}]
[null,null,null," Netto continuïteitsbijdrage Corona (basisverzekering)",null,null,null,"822   "]
[null,null,null," TOTAAL RUBRIEK 02",null,null,null,null,{"$f":"SUM(I30:I34)","v":0},{"$f":"SUM(J30:J34)","v":0},{"$f":"SUM(K30:K34)","v":0},{"$f":"SUM(L30:L34)","v":0}]
[null,null,null," 03 VERPLEGING EN VERZORGING "]
[null,null,null," Kosten van verpleging en verzorging ",null,null,null,"530   "]
[null,null,null," Meerkosten Corona, indirect en toeslagen",null,null,null,"803   "]
[null,null,null," Meerkosten Corona, indirect",null,null,null,"803.1",{"$f":"K39","v":0},{"$f":"L39","v":0}]
[null,null,null," Meerkosten Corona, toeslagen",null,null,null,"803.2",0,0]
[null,null,null," Netto continuïteitsbijdrage Corona (basisverzekering)",null,null,null,"823   "]
[null,null,null," TOTAAL RUBRIEK 03",null,null,null,null,{"$f":"SUM(I37:I41)","v":0},{"$f":"SUM(J37:J41)","v":0},0,{"$f":"SUM(L37:L41)","v":0}]
[null,null,null," 04  MONDZORG"]
[null,null,null," Kosten mondzorg volwassen verzekerden",null,null,null,"560.1"]
[null,null,null," Kosten mondzorg jeugdige verzekerden",null,null,null,"560.2"]
[null,null,null," Kosten gebitsprothesen",null,null,null,"561   "]
[null,null,null," Meerkosten Corona, indirect en toeslagen",null,null,null,"804   "]
[null,null,null," Meerkosten Corona, indirect",null,null,null,"804.1",{"$f":"K48","v":0},{"$f":"L48","v":0}]
[null,null,null," Meerkosten Corona, toeslagen",null,null,null,"804.2",0,0]
[null,null,null," Netto continuïteitsbijdrage Corona (basisverzekering)",null,null,null,"824   "]
[null,null,null," TOTAAL RUBRIEK 04",null,null,null,null,{"$f":"SUM(I44:I50)","v":0},{"$f":"SUM(J44:J50)","v":0},{"$f":"SUM(K44:K50)","v":0},{"$f":"SUM(L44:L50)","v":0}]
[null,null,null," 05  VERLOSKUNDIGE ZORG"]
[null,null,null," Kosten verloskundige zorg door verloskundigen",null,null,null,"580   "]
[null,null,null," Kosten Integrale geboortezorg ",null,null,null,"582   "]
[null,null,null," Meerkosten Corona, indirect en toeslagen",null,null,null,"805   "]
[null,null,null," Meerkosten Corona, indirect",null,null,null,"805.1",{"$f":"K56","v":0},{"$f":"L56","v":0}]
[null,null,null," Meerkosten Corona, toeslagen",null,null,null,"805.2",0,0]
[null,null,null," Netto continuïteitsbijdrage Corona (basisverzekering)",null,null,null,"825   "]
[null,null,null," TOTAAL RUBRIEK 05",null,null,null,null,{"$f":"SUM(I53:I58)","v":0},{"$f":"SUM(J53:J58)","v":0},0,{"$f":"SUM(L53:L58)","v":0}]
[]
[null,null,null,{"$f":"NOW()","v":"2022-04-04T16:47:18.280"},null,null,null,null,null,{"$f":"CONCATENATE(\"Kostenverzamelstaat 2020, \",LOWER(A6))","v":"Kostenverzamelstaat 2020, pagina 1"}]
[]
["Pagina 2",null,null,{"$f":"CONCATENATE(\"JAARSTAAT ZVW \", jaar_id)","v":"JAARSTAAT ZVW 2021"}]
[null,null,null,"KOSTENVERZAMELSTAAT (SPECIFIEKE INFORMATIE  2020)"]
[null,null,null,{"$f":"IF(naw_uzovi_zorgverzekeraar<>\"0000\",CONCATENATE(UPPER(naw_naam_zorgverzekeraar),\", \",UPPER(naw_plaats_zorgverzekeraar)),\"\")","v":""},null,null,null,null,null,null,null,{"$f":"CONCATENATE(\"UZOVI: \",naw_uzovi_zorgverzekeraar)","v":"UZOVI: 0000"}]
[null,null,null,"SPECIFICATIES INFORMATIE RISICOVEREVENING"]
[null,null,null,"KOSTENVERZAMELSTAAT"]
[null,null,null," KOSTENRUBRIEK",null,null,null,null,"LASTEN 2020",null,"waarvan COVID-kosten (basisverzekering)"]
[]
[null,null,null,null,null,null,null,"Code","Lasten 2020 inclusief balanspost ","Ontvangen en geaccepteerde declaraties m.b.t. 2020","Lasten 2020 inclusief balanspost ","Ontvangen en geaccepteerde declaraties m.b.t. 2020"]
[]
[null,null,null," 06  MEDISCH SPECIALISTISCHE ZORG"]
[null,null,null," Kosten specialisten mondziekten en kaakchirurgie",null,null,null,"545   "]
[null,null,null," Overige kosten ziekenhuiszorg en curatieve zorg",null,null,null,"610   "]
[null,null,null," Overige zorgproducten",null,null,null,"611   "]
[null,null,null," Kosten addons - Dure geneesmiddelen",null,null,null,"612.1"]
[null,null,null," Kosten add-ons - IC",null,null,null,"612.2"]
[null,null,null," Integrale kosten van DBC-zorgproduct \n gereguleerde segment  ",null,null,null,"613.1 "]
[null,null,null," Integrale kosten DBC-zorgproduct vrije segment",null,null,null,"615.1 "]
[null,null,null," Integrale kosten extramuraal werkende specialisten",null,null,null,"619   "]
[null,null,null," Meerkosten Corona, indirect en toeslagen",null,null,null,"806   "]
[null,null,null," Meerkosten Corona, indirect",null,null,null,"806.1",{"$f":"K82","v":0},{"$f":"L82","v":0}]
[null,null,null," Meerkosten Corona, toeslagen",null,null,null,"806.2",0,0]
[null,null,null," Netto continuïteitsbijdrage Corona (basisverzekering)",null,null,null,"826   "]
[null,null,null," TOTAAL RUBRIEK 06",null,null,null,null,{"$f":"SUM(I73:I84)","v":0},{"$f":"SUM(J73:J84)","v":0},0,0]
[null,null,null," 07  PARAMEDISCHE ZORG"]
[null,null,null," Kosten fysiotherapie",null,null,null,"620   "]
[null,null,null," Kosten oefentherapie Mensendieck/Cesar",null,null,null,"621   "]
[null,null,null," Kosten logopedie",null,null,null,"623   "]
[null,null,null," Kosten ergotherapie",null,null,null,"624   "]
[null,null,null," Kosten dieetadvisering",null,null,null,"625   "]
[null,null,null," Gecombineerde Leefstijl Interventie (GLI)",null,null,null,"626   "]
[null,null,null," Meerkosten Corona, indirect en toeslagen",null,null,null,"807   "]
[null,null,null," Meerkosten Corona, indirect",null,null,null,"807.1",{"$f":"K94","v":0},{"$f":"L94","v":0}]
[null,null,null," Meerkosten Corona, toeslagen",null,null,null,"807.2",0,0]
[null,null,null," Netto continuïteitsbijdrage Corona (basisverzekering)",null,null,null,"827   "]
[null,null,null," TOTAAL RUBRIEK 07",null,null,null,null,{"$f":"SUM(I87:I96)","v":0},{"$f":"SUM(J87:J96)","v":0},0,0]
[null,null,null," 08  HULPMIDDELENZORG"]
[null,null,null," Hulpmiddelenzorg ",null,null,null,"640   "]
[null,null,null," Meerkosten Corona, indirect en toeslagen",null,null,null,"808   "]
[null,null,null," Meerkosten Corona, indirect",null,null,null,"808.1",{"$f":"K101","v":0},{"$f":"L101","v":0}]
[null,null,null," Meerkosten Corona, toeslagen",null,null,null,"808.2",0,0]
[null,null,null," Netto continuïteitsbijdrage Corona (basisverzekering)",null,null,null,"828   "]
[null,null,null," TOTAAL RUBRIEK 08",null,null,null,null,{"$f":"SUM(I99:I103)","v":0},{"$f":"SUM(J99:J103)","v":0},0,0]
[null,null,null," 09  ZIEKENVERVOER"]
[null,null,null," Kosten vervoer per ambulance/helikopter",null,null,null,"650   "]
[null,null,null," Opbrengstenverrekeningen regionale ambulance-\n voorzieningen",null,null,null,"650.1"]
[null,null,null," Kosten vervoer per openbaar vervoer, taxi \n en eigen auto",null,null,null,"651   "]
[null,null,null," Meerkosten Corona, indirect en toeslagen",null,null,null,"809   "]
[null,null,null," Meerkosten Corona, indirect",null,null,null,"809.1",{"$f":"K110","v":0},{"$f":"L110","v":0}]
[null,null,null," Meerkosten Corona, toeslagen",null,null,null,"809.2",0,0]
[null,null,null," Netto continuïteitsbijdrage Corona (basisverzekering)",null,null,null,"829   "]
[null,null,null," TOTAAL RUBRIEK 09",null,null,null,null,{"$f":"SUM(I106:I112)","v":0},{"$f":"SUM(J106:J112)","v":0},0,0]
[]
[null,null,null,{"$f":"NOW()","v":"2022-04-04T16:47:18.280"},null,null,null,null,null,{"$f":"CONCATENATE(\"Kostenverzamelstaat 2020, \",LOWER(A63))","v":"Kostenverzamelstaat 2020, pagina 2"}]
[]
["Pagina 3",null,null,{"$f":"CONCATENATE(\"JAARSTAAT ZVW \", jaar_id)","v":"JAARSTAAT ZVW 2021"}]
[null,null,null,"KOSTENVERZAMELSTAAT (SPECIFIEKE INFORMATIE  2020)"]
[null,null,null,{"$f":"IF(naw_uzovi_zorgverzekeraar<>\"0000\",CONCATENATE(UPPER(naw_naam_zorgverzekeraar),\", \",UPPER(naw_plaats_zorgverzekeraar)),\"\")","v":""},null,null,null,null,null,null,null,{"$f":"CONCATENATE(\"UZOVI: \",naw_uzovi_zorgverzekeraar)","v":"UZOVI: 0000"}]
[null,null,null,"SPECIFICATIES INFORMATIE RISICOVEREVENING"]
[null,null,null,"KOSTENVERZAMELSTAAT"]
[null,null,null," KOSTENRUBRIEK",null,null,null,null,"LASTEN 2020",null,"waarvan COVID-kosten (basisverzekering)"]
[]
[null,null,null,null,null,null,null,"Code","Lasten 2020 inclusief balanspost ","Ontvangen en geaccepteerde declaraties m.b.t. 2020","Lasten 2020 inclusief balanspost ","Ontvangen en geaccepteerde declaraties m.b.t. 2020"]
[]
[null,null,null," 10 GENEESKUNDIGE GEESTELIJKE GEZONDHEIDSZORG"]
[null,null,null," Kosten specialistische GGZ met verblijf",null,null,null,"661   "]
[null,null,null," Kosten LGGZ (langdurige GGZ, jaar 2 en 3)",null,null,null,"661.1 "]
[null,null,null," Kosten specialistische GGZ zonder verblijf",null,null,null,"662   "]
[null,null,null," Generalistische basis GGZ",null,null,null,"665   "]
[null,null,null," Meerkosten Corona, indirect en toeslagen",null,null,null,"810   "]
[null,null,null," Meerkosten Corona, indirect",null,null,null,"810.1",{"$f":"K132","v":0},{"$f":"L132","v":0}]
[null,null,null," Meerkosten Corona, toeslagen",null,null,null,"810.2",0,0]
[null,null,null," Netto continuïteitsbijdrage Corona (basisverzekering)",null,null,null,"830   "]
[null,null,null," TOTAAL RUBRIEK 10",null,null,null,null,{"$f":"SUM(I127:I134)","v":0},{"$f":"SUM(J127:J134)","v":0},0,0]
[null,null,null," 11  GRZ, ELV EN GZSP"]
[null,null,null," Geriatrische Revalidatiezorg (GRZ)",null,null,null,"670   "]
[null,null,null," Meerkosten Corona, indirect en toeslagen",null,null,null,"811.1"]
[null,null,null," Meerkosten Corona, indirect",null,null,null,"811.1.1",{"$f":"K139","v":0},{"$f":"L139","v":0}]
[null,null,null," Meerkosten Corona, toeslagen",null,null,null,"811.1.2",0,0]
[null,null,null," Netto continuïteitsbijdrage Corona (basisverzekering)",null,null,null,"831.1"]
[null,null,null," Eerstelijnsverblijf (ELV)",null,null,null,"671   "]
[null,null,null," Meerkosten Corona, indirect en toeslagen",null,null,null,"811.2"]
[null,null,null," Meerkosten Corona, indirect",null,null,null,"811.2.1",{"$f":"K144","v":0},{"$f":"L144","v":0}]
[null,null,null," Meerkosten Corona, toeslagen",null,null,null,"811.2.2",0,0]
[null,null,null," Netto continuïteitsbijdrage Corona (basisverzekering)",null,null,null,"831.2"]
[null,null,null,"  Generalistische Geneeskundige Zorg Specifieke Patiëntgroepen",null,null,null,"672   "]
[null,null,null," Meerkosten Corona, indirect en toeslagen",null,null,null,"811.3"]
[null,null,null," Meerkosten Corona, indirect",null,null,null,"811.3.1",{"$f":"K149","v":0},{"$f":"L149","v":0}]
[null,null,null," Meerkosten Corona, toeslagen",null,null,null,"811.3.2",0,0]
[null,null,null," Netto continuïteitsbijdrage Corona (basisverzekering)",null,null,null,"831.3"]
[null,null,null," TOTAAL RUBRIEK 11",null,null,null,null,{"$f":"SUM(I137:I151)","v":0},{"$f":"SUM(J137:J151)","v":0},0,0]
[null,null,null," 12  KRAAMZORG"]
[null,null,null," Kraamzorg",null,null,null,"680   "]
[null,null,null," Meerkosten Corona, indirect en toeslagen",null,null,null,"812   "]
[null,null,null," Meerkosten Corona, indirect",null,null,null,"812.1",{"$f":"K156","v":0},{"$f":"L156","v":0}]
[null,null,null," Meerkosten Corona, toeslagen",null,null,null,"812.2",0,0]
[null,null,null," Netto continuïteitsbijdrage Corona (basisverzekering)",null,null,null,"832   "]
[null,null,null," TOTAAL RUBRIEK 12",null,null,null,null,{"$f":"SUM(I154:I158)","v":0},{"$f":"SUM(J154:J158)","v":0},0,0]
[null,null,null," 13  DIVERSE OVERIGE KOSTEN"]
[null,null,null," Overige kosten",null,null,null,"700   "]
[null,null,null," Overige geneeskundige zorg",null,null,null,"701   "]
[null,null,null," Kosten van zorg zintuiglijk gehandicapten ",null,null,null,"702   "]
[null,null,null," Meerkosten Corona, indirect en toeslagen",null,null,null,"813   "]
[null,null,null," Meerkosten Corona, indirect",null,null,null,"813.1",{"$f":"K165","v":0},{"$f":"L165","v":0}]
[null,null,null," Meerkosten Corona, toeslagen",null,null,null,"813.2",0,0]
[null,null,null," Netto continuïteitsbijdrage Corona (basisverzekering)",null,null,null,"833   "]
[null,null,null," TOTAAL RUBRIEK 13",null,null,null,null,{"$f":"SUM(I161:I167)","v":0},{"$f":"SUM(J161:J167)","v":0},0,0]
[null,null,null," 15  GRENSOVERSCHRIJDENDE ZORG"]
[null,null,null," Kosten via verzekeraar",null,null,null,"720   "]
[null,null,null," Kosten via verbindingsorgaan",null,null,null,"721   "]
[null,null,null," TOTAAL RUBRIEK 15",null,null,null,null,{"$f":"SUM(I170:I171)","v":0},{"$f":"SUM(J170:J171)","v":0},0,0]
[null,null,null," 16  KWALITEITSGELDEN"]
[null,null,null," Kwaliteitsgelden",null,null,null,730]
[null,null,null," TOTAAL RUBRIEK 16",null,null,null,null,{"$f":"SUM(I174)","v":0},{"$f":"SUM(J174)","v":0},0,0]
[null,null,null," TOTAAL LASTEN   (bruto-schade, definitie ZIN)",null,null,null,null,{"$f":"SUM(I28,I35,I42,I51,I59,I85,I97,I104,I113,I135,I152,I159,I168,I172,I175)","v":0},{"$f":"SUM(J28,J35,J42,J51,J59,J85,J97,J104,J113,J135,J152,J159,J168,J172,J175)","v":0},0,0]
[]
[null,null,null,{"$f":"NOW()","v":"2022-04-04T16:47:18.280"},null,null,null,null,null,{"$f":"CONCATENATE(\"Kostenverzamelstaat 2020, \",LOWER(A117))","v":"Kostenverzamelstaat 2020, pagina 3"}]
[]
["Pagina 4",null,null,{"$f":"CONCATENATE(\"JAARSTAAT ZVW \", jaar_id)","v":"JAARSTAAT ZVW 2021"}]
[null,null,null,"KOSTENVERZAMELSTAAT (SPECIFIEKE INFORMATIE 2020)"]
[null,null,null,{"$f":"IF(naw_uzovi_zorgverzekeraar<>\"0000\",CONCATENATE(UPPER(naw_naam_zorgverzekeraar),\", \",UPPER(naw_plaats_zorgverzekeraar)),\"\")","v":""},null,null,null,null,null,null,null,{"$f":"CONCATENATE(\"UZOVI: \",naw_uzovi_zorgverzekeraar)","v":"UZOVI: 0000"}]
[null,null,null,"SPECIFICATIES INFORMATIE RISICOVEREVENING"]
[null,null,null,"KOSTENVERZAMELSTAAT"]
[null,null,null,"BATEN ZVW",null,null,null,"Code","Totale baten 2020 inclusief balanspost ","Waarvan ontvangen m.b.t. 2020","waarvan verplicht Eigen Risico m.b.t. directe prestaties voor COVID-patiënten"]
[]
[null,null,null," OPBRENGSTEN VERHAAL",null,null,null,"890.1"]
[null,null,null," SCHADE T.L.V. HET VRIJWILLIG EIGEN RISICO",null,null,null,"910   "]
[null,null,null," SCHADE T.L.V. HET VERPLICHT EIGEN RISICO",null,null,null,"915   "]
[null,null,null," GEBOEKTE NETTO PREMIES",null,null,null,"940   "]
[]
[null,null,null,{"$f":"NOW()","v":"2022-04-04T16:47:18.280"},null,null,null,null,null,{"$f":"CONCATENATE(\"Kostenverzamelstaat 2020, \",LOWER(A180))","v":"Kostenverzamelstaat 2020, pagina 4"}]

{"sheet":"Kostenverzamelstaat 2019","index":6,"n_rows":156,"n_cols":16,"rows_kept":156,"cut":false,"hidden":false,"merged":[[155,3,155,4],[148,3,149,6],[151,3,151,6],[150,3,150,6],[105,3,108,6],[146,3,146,7],[148,7,149,7],[107,7,108,7],[117,3,117,7],[105,12,106,12],[148,12,149,12],[107,12,108,12],[107,10,108,10],[105,10,106,11],[107,8,108,8],[105,8,106,9],[107,9,108,9],[107,11,108,11],[148,11,149,11],[148,10,149,10],[148,8,149,8],[148,9,149,9],[12,7,13,7],[70,3,70,6],[74,3,74,6],[78,3,78,6],[79,3,79,6],[76,3,76,6],[77,3,77,6],[75,3,75,6],[10,3,13,6],[69,3,69,6],[66,3,66,6],[67,3,67,6],[68,3,68,6],[10,12,11,12],[10,8,11,9],[10,10,11,11],[12,11,13,11],[12,12,13,12],[12,10,13,10],[12,9,13,9],[12,8,13,8],[60,10,61,10],[60,8,61,8],[60,9,61,9],[19,3,19,6],[20,3,20,6],[21,3,21,6],[22,3,22,6],[51,3,51,4],[58,8,59,9],[58,10,59,11],[58,3,61,6],[51,10,51,12],[60,12,61,12],[60,11,61,11],[60,7,61,7],[58,12,59,12],[98,10,98,12],[93,3,93,6],[94,3,94,6],[71,3,71,6],[72,3,72,6],[81,3,81,6],[80,3,80,6],[92,3,92,6],[90,3,90,6],[84,3,84,6],[91,3,91,6],[82,3,82,6],[89,3,89,6],[98,3,98,4]]}
[" ",null,"INVULSPECIFICATIES SPECIFIEKE INFORMATIE A"]
[]
[]
[]
[]
["Pagina 1",null,null,{"$f":"CONCATENATE(\"JAARSTAAT ZVW \", jaar_id)","v":"JAARSTAAT ZVW 2021"}]
[null,null,null,"KOSTENVERZAMELSTAAT (SPECIFIEKE INFORMATIE A 2019)"]
[null,null,null,{"$f":"IF(naw_uzovi_zorgverzekeraar<>\"0000\",CONCATENATE(UPPER(naw_naam_zorgverzekeraar),\", \",UPPER(naw_plaats_zorgverzekeraar)),\"\")","v":""},null,null,null,null,null,null,null,null,{"$f":"CONCATENATE(\"UZOVI: \",naw_uzovi_zorgverzekeraar)","v":"UZOVI: 0000"}]
[null,null,null,"SPECIFICATIES INFORMATIE RISICOVEREVENING"]
[null,null,null,"KOSTENVERZAMELSTAAT"]
[null,null,null," KOSTENRUBRIEK",null,null,null,null,{"$f":"CONCATENATE(\"LASTEN \",jaar_id,)","v":"LASTEN 2021"},null,{"$f":"CONCATENATE(\"LASTEN \",jaar_id-1,)","v":"LASTEN 2020"},null,{"$f":"CONCATENATE(\"LASTEN \",jaar_id-2,\" \nEN OUDER\")","v":"LASTEN 2019 \nEN OUDER"}]
[]
[null,null,null,null,null,null,null,"Code","Lasten 2021 inclusief balanspost ","Ontvangen en geaccepteerde declaraties m.b.t. 2021","Lasten 2020 inclusief balanspost","Ontvangen en geaccepteerde declaraties m.b.t. 2020","Ontvangen en geaccepteerde declaraties m.b.t. 2019 en ouder"]
[null,null,null,null,null,null,null,null,null,"Ontvangen en geaccepteerde declaraties mbt jaar T","Lasten jaar T-1 inclusief balanspost","Ontvangen en geaccepteerde declaraties mbt jaar T-1","Ontvangen en geaccepteerde declaraties mbt jaar T-1"]
[null,null,null," 01  HUISARTSENZORG en MDZ"]
[null,null,null," Bijzondere betalingen",null,null,null,"503   ",null,null,null,null,null,null,null,{"$f":"IF(OR((I16-J16)/IF(I16=0,1,I16)<-10%,(K16-L16)/IF(K16=0,1,K16)<-10%,(M16-N16)/IF(M16=0,1,M16)<-10%),\"De balans is < -10%, als dit plausibel is dan vragen wij u dit nader toe te lichten bij de opmerkingen, zo niet dan dient u uw raming aan te scherpen.\",\"\")","v":""}]
[null,null,null," Avond-, nacht- en weekenddiensten",null,null,null,"504   ",null,null,null,null,null,null,null,{"$f":"IF(OR((I17-J17)/IF(I17=0,1,I17)<-10%,(K17-L17)/IF(K17=0,1,K17)<-10%,(M17-N17)/IF(M17=0,1,M17)<-10%),\"De balans is < -10%, als dit plausibel is dan vragen wij u dit nader toe te lichten bij de opmerkingen, zo niet dan dient u uw raming aan te scherpen.\",\"\")","v":""}]
[null,null,null," Inschrijftarieven",null,null,null,"505   ",null,null,null,null,null,null,null,""]
[null,null,null," Consulttarieven",null,null,null,"506   ",null,null,null,null,null,null,null,""]
[null,null,null," Overige tarieven",null,null,null,"507   ",null,null,null,null,null,null,null,""]
[null,null,null," Multidisciplinaire zorg",null,null,null,"510   ",null,null,null,null,null,null,null,""]
[null,null,null," Resultaatbeloning en zorgvernieuwing huisartsen",null,null,null,"515   ",null,null,null,null,null,null,null,""]
[null,null,null," Resultaatbeloning en zorgvernieuwing MDZ",null,null,null,"516   ",null,null,null,null,null,null,null,""]
[null,null,null," Meerkosten Corona, indirect en toeslagen",null,null,null,"801   ",null,null,null,null,null,null,null,""]
[null,null,null," Netto continuïteitsbijdrage Corona (basisverzekering)",null,null,null,"821   ",null,null,null,null,null,null,null,""]
[null,null,null," TOTAAL RUBRIEK 01",null,null,null,null,{"$f":"SUM(I16:I25)","v":0},{"$f":"SUM(J16:J25)","v":0},0,0,0]
[null,null,null," 02 FARMACEUTISCHE ZORG"]
[null,null,null," Farmaceutische zorg",null,null,null,"520   "]
[null,null,null," Meerkosten Corona, indirect en toeslagen",null,null,null,"802   "]
[null,null,null," Netto continuïteitsbijdrage Corona (basisverzekering)",null,null,null,"822   "]
[null,null,null," TOTAAL RUBRIEK 02",null,null,null,null,{"$f":"SUM(I28:I30)","v":0},{"$f":"SUM(J28:J30)","v":0},0,0,0,null,null,{"$f":"IF(OR((I31-J31)/IF(I31=0,1,I31)<-10%,(K31-L31)/IF(K31=0,1,K31)<-10%,(M31-N31)/IF(M31=0,1,M31)<-10%),\"De balans is < -10%, als dit plausibel is dan vragen wij u dit nader toe te lichten bij de opmerkingen, zo niet dan dient u uw raming aan te scherpen.\",\"\")","v":""}]
[null,null,null," 03 VERPLEGING EN VERZORGING"]
[null,null,null," Kosten van verpleging en verzorging ",null,null,null,"530   "]
[null,null,null," Meerkosten Corona, indirect en toeslagen",null,null,null,"803   "]
[null,null,null," Netto continuïteitsbijdrage Corona (basisverzekering)",null,null,null,"823   "]
[null,null,null," TOTAAL RUBRIEK 03",null,null,null,null,{"$f":"SUM(I33:I35)","v":0},{"$f":"SUM(J33:J35)","v":0},{"$f":"SUM(K33:K35)","v":0},{"$f":"SUM(L33:L35)","v":0},{"$f":"SUM(M33:M35)","v":0},null,null,{"$f":"IF(OR((I36-J36)/IF(I36=0,1,I36)<-10%,(K36-L36)/IF(K36=0,1,K36)<-10%,(M36-N36)/IF(M36=0,1,M36)<-10%),\"De balans is < -10%, als dit plausibel is dan vragen wij u dit nader toe te lichten bij de opmerkingen, zo niet dan dient u uw raming aan te scherpen.\",\"\")","v":""}]
[null,null,null," 04  MONDZORG"]
[null,null,null," Kosten mondzorg volwassen verzekerden",null,null,null,"560.1",null,null,null,null,null,null,null,{"$f":"IF(OR((I38-J38)/IF(I38=0,1,I38)<-10%,(K38-L38)/IF(K38=0,1,K38)<-10%,(M38-N38)/IF(M38=0,1,M38)<-10%),\"De balans is < -10%, als dit plausibel is dan vragen wij u dit nader toe te lichten bij de opmerkingen, zo niet dan dient u uw raming aan te scherpen.\",\"\")","v":""}]
[null,null,null," Kosten mondzorg jeugdige verzekerden",null,null,null,"560.2",null,null,null,null,null,null,null,""]
[null,null,null," Kosten gebitsprothesen",null,null,null,"561   ",null,null,null,null,null,null,null,""]
[null,null,null," Meerkosten Corona, indirect en toeslagen",null,null,null,"804   "]
[null,null,null," Netto continuïteitsbijdrage Corona (basisverzekering)",null,null,null,"824   "]
[null,null,null," TOTAAL RUBRIEK 04",null,null,null,null,{"$f":"SUM(I38:I42)","v":0},{"$f":"SUM(J38:J42)","v":0},0,0,0]
[null,null,null," 05  VERLOSKUNDIGE ZORG"]
[null,null,null," Kosten verloskundige zorg door verloskundigen",null,null,null,"580   ",null,null,null,null,null,null,null,{"$f":"IF(OR((I45-J45)/IF(I45=0,1,I45)<-10%,(K45-L45)/IF(K45=0,1,K45)<-10%,(M45-N45)/IF(M45=0,1,M45)<-10%),\"De balans is < -10%, als dit plausibel is dan vragen wij u dit nader toe te lichten bij de opmerkingen, zo niet dan dient u uw raming aan te scherpen.\",\"\")","v":""}]
[null,null,null," Kosten Integrale geboortezorg ",null,null,null,"582   "]
[null,null,null," Meerkosten Corona, indirect en toeslagen",null,null,null,"805   "]
[null,null,null," Netto continuïteitsbijdrage Corona (basisverzekering)",null,null,null,"825   "]
[null,null,null," TOTAAL RUBRIEK 05",null,null,null,null,{"$f":"SUM(I45:I48)","v":0},{"$f":"SUM(J45:J48)","v":0},{"$f":"SUM(K45:K48)","v":0},{"$f":"SUM(L45:L48)","v":0},{"$f":"SUM(M45:M48)","v":0}]
[]
[]
[null,null,null,{"$f":"NOW()","v":"2022-04-04T16:47:18.280"},null,null,null,null,null,null,{"$f":"CONCATENATE(\"Kostenverzamelstaat 2019, \",LOWER(A6))","v":"Kostenverzamelstaat 2019, pagina 1"}]
[]
["Pagina 2",null,null,{"$f":"CONCATENATE(\"JAARSTAAT ZVW \", jaar_id)","v":"JAARSTAAT ZVW 2021"}]
[null,null,null,"KOSTENVERZAMELSTAAT (SPECIFIEKE INFORMATIE A 2019)"]
[null,null,null,{"$f":"IF(naw_uzovi_zorgverzekeraar<>\"0000\",CONCATENATE(UPPER(naw_naam_zorgverzekeraar),\", \",UPPER(naw_plaats_zorgverzekeraar)),\"\")","v":""},null,null,null,null,null,null,null,null,{"$f":"CONCATENATE(\"UZOVI: \",naw_uzovi_zorgverzekeraar)","v":"UZOVI: 0000"}]
[null,null,null,"SPECIFICATIES INFORMATIE RISICOVEREVENING"]
[null,null,null,"KOSTENVERZAMELSTAAT - vervolg"]
[null,null,null," KOSTENRUBRIEK",null,null,null,null,{"$f":"CONCATENATE(\"LASTEN \",jaar_id,)","v":"LASTEN 2021"},null,{"$f":"CONCATENATE(\"LASTEN \",jaar_id-1,)","v":"LASTEN 2020"},null,{"$f":"CONCATENATE(\"LASTEN \",jaar_id-2,\" \nEN OUDER\")","v":"LASTEN 2019 \nEN OUDER"}]
[]
[null,null,null,null,null,null,null,"Code",{"$f":"I$13","v":"Lasten 2021 inclusief balanspost "},{"$f":"J$13","v":"Ontvangen en geaccepteerde declaraties m.b.t. 2021"},"Lasten 2020 inclusief balanspost","Ontvangen en geaccepteerde declaraties m.b.t. 2020","Ontvangen en geaccepteerde declaraties m.b.t. 2019 en ouder"]
[]
[null,null,null," 06  MEDISCH SPECIALISTISCHE ZORG"]
[null,null,null," Kosten specialisten mondziekten en kaakchirurgie",null,null,null,"545   ",null,null,null,null,null,null,null,{"$f":"IF(OR((I64-J64)/IF(I64=0,1,I64)<-10%,(K64-L64)/IF(K64=0,1,K64)<-10%,(M64-N64)/IF(M64=0,1,M64)<-10%),\"De balans is < -10%, als dit plausibel is dan vragen wij u dit nader toe te lichten bij de opmerkingen, zo niet dan dient u uw raming aan te scherpen.\",\"\")","v":""}]
[null,null,null," Overige kosten ziekenhuiszorg en curatieve zorg",null,null,null,"610   ",null,null,null,null,null,null,null,""]
[null,null,null," Overige zorgproducten ",null,null,null,"611   ",null,null,null,null,null,null,null,""]
[null,null,null," Kosten add-ons - Dure geneesmiddelen",null,null,null,"  612.1   ",null,null,null,null,null,null,null,""]
[null,null,null," Kosten add-ons - IC",null,null,null,"  612.2   ",null,null,null,null,null,null,null,""]
[null,null,null," Integrale kosten DBC-zorgproduct gereguleerde segment ",null,null,null,"613.1",null,null,null,null,null,null,null,""]
[null,null,null," Integrale kosten DBC-zorgproduct vrije segment ",null,null,null,"615.1",null,null,null,null,null,null,null,""]
[null,null,null," Integrale kosten extramuraal werkende \n specialisten",null,null,null,"619   ",null,null,null,null,null,null,null,""]
[null,null,null," Meerkosten Corona, indirect en toeslagen",null,null,null,"806   "]
[null,null,null," Netto continuïteitsbijdrage Corona (basisverzekering)",null,null,null,"826   "]
[null,null,null," TOTAAL RUBRIEK 06",null,null,null,null,{"$f":"SUM(I64:I73)","v":0},{"$f":"SUM(J64:J73)","v":0},{"$f":"SUM(K64:K73)","v":0},{"$f":"SUM(L64:L73)","v":0},{"$f":"SUM(M64:M73)","v":0}]
[null,null,null," 07  PARAMEDISCHE ZORG"]
[null,null,null," Kosten fysiotherapie",null,null,null,"620   ",null,null,null,null,null,null,null,{"$f":"IF(OR((I76-J76)/IF(I76=0,1,I76)<-10%,(K76-L76)/IF(K76=0,1,K76)<-10%,(M76-N76)/IF(M76=0,1,M76)<-10%),\"De balans is < -10%, als dit plausibel is dan vragen wij u dit nader toe te lichten bij de opmerkingen, zo niet dan dient u uw raming aan te scherpen.\",\"\")","v":""}]
[null,null,null," Kosten oefentherapie Mensendieck/Cesar",null,null,null,"621   ",null,null,null,null,null,null,null,""]
[null,null,null," Kosten logopedie",null,null,null,"623   ",null,null,null,null,null,null,null,""]
[null,null,null," Kosten ergotherapie",null,null,null,"624   ",null,null,null,null,null,null,null,""]
[null,null,null," Kosten dieetadvisering",null,null,null,"625   ",null,null,null,null,null,null,null,""]
[null,null,null," Gecombineerde Leefstijl Interventie (GLI)",null,null,null,"626   "]
[null,null,null," Meerkosten Corona, indirect en toeslagen",null,null,null,"807   "]
[null,null,null," Netto continuïteitsbijdrage Corona (basisverzekering)",null,null,null,"827   "]
[null,null,null," TOTAAL RUBRIEK 07",null,null,null,null,{"$f":"SUM(I76:I83)","v":0},{"$f":"SUM(J76:J83)","v":0},0,0,0]
[null,null,null," 08  HULPMIDDELENZORG"]
[null,null,null," Hulpmiddelenzorg ",null,null,null,"640   "]
[null,null,null," Meerkosten Corona, indirect en toeslagen",null,null,null,"808   "]
[null,null,null," Netto continuïteitsbijdrage Corona (basisverzekering)",null,null,null,"828   "]
[null,null,null," TOTAAL RUBRIEK 08",null,null,null,null,{"$f":"SUM(I86:I88)","v":0},{"$f":"SUM(J86:J88)","v":0},0,0,0,null,null,{"$f":"IF(OR((I89-J89)/IF(I89=0,1,I89)<-10%,(K89-L89)/IF(K89=0,1,K89)<-10%,(M89-N89)/IF(M89=0,1,M89)<-10%),\"De balans is < -10%, als dit plausibel is dan vragen wij u dit nader toe te lichten bij de opmerkingen, zo niet dan dient u uw raming aan te scherpen.\",\"\")","v":""}]
[null,null,null," 09  ZIEKENVERVOER"]
[null,null,null," Kosten vervoer per ambulance/helikopter",null,null,null,"650   ",null,null,null,null,null,null,null,""]
[null,null,null," Opbrengstenverrekeningen regionale ambulancevoorzieningen ",null,null,null,"650.1"]
[null,null,null," Kosten vervoer per openbaar vervoer, taxi \n en eigen auto",null,null,null,"651   ",null,null,null,null,null,null,null,""]
[null,null,null," Meerkosten Corona, indirect en toeslagen",null,null,null,"809   "]
[null,null,null," Netto continuïteitsbijdrage Corona (basisverzekering)",null,null,null,"829   "]
[null,null,null," TOTAAL RUBRIEK 09",null,null,null,null,{"$f":"SUM(I91:I95)","v":0},{"$f":"SUM(J91:J95)","v":0},0,0,0]
[]
[]
[null,null,null,{"$f":"NOW()","v":"2022-04-04T16:47:18.280"},null,null,null,null,null,null,{"$f":"CONCATENATE(\"Kostenverzamelstaat 2019, \",LOWER(A54))","v":"Kostenverzamelstaat 2019, pagina 2"}]
[]
["Pagina 3",null,null,{"$f":"CONCATENATE(\"JAARSTAAT ZVW \", jaar_id)","v":"JAARSTAAT ZVW 2021"}]
[null,null,null,"KOSTENVERZAMELSTAAT (SPECIFIEKE INFORMATIE A 2019)"]
[null,null,null,{"$f":"IF(naw_uzovi_zorgverzekeraar<>\"0000\",CONCATENATE(UPPER(naw_naam_zorgverzekeraar),\", \",UPPER(naw_plaats_zorgverzekeraar)),\"\")","v":""},null,null,null,null,null,null,null,null,{"$f":"CONCATENATE(\"UZOVI: \",naw_uzovi_zorgverzekeraar)","v":"UZOVI: 0000"}]
[null,null,null,"SPECIFICATIES INFORMATIE RISICOVEREVENING"]
[null,null,null,"KOSTENVERZAMELSTAAT - vervolg"]
[null,null,null," KOSTENRUBRIEK",null,null,null,null,{"$f":"CONCATENATE(\"LASTEN \",jaar_id,)","v":"LASTEN 2021"},null,{"$f":"CONCATENATE(\"LASTEN \",jaar_id-1,)","v":"LASTEN 2020"},null,{"$f":"CONCATENATE(\"LASTEN \",jaar_id-2,\" \nEN OUDER\")","v":"LASTEN 2019 \nEN OUDER"}]
[]
[null,null,null,null,null,null,null,"Code",{"$f":"I$13","v":"Lasten 2021 inclusief balanspost "},{"$f":"J$13","v":"Ontvangen en geaccepteerde declaraties m.b.t. 2021"},"Lasten 2020 inclusief balanspost","Ontvangen en geaccepteerde declaraties m.b.t. 2020","Ontvangen en geaccepteerde declaraties m.b.t. 2019 en ouder"]
[]
[null,null,null," 10 GENEESKUNDIGE GEESTELIJKE GEZONDHEIDSZORG  \n     "]
[null,null,null," Kosten specialistische GGZ met verblijf",null,null,null,"661   ",null,null,null,null,null,null,null,{"$f":"IF(OR((I111-J111)/IF(I111=0,1,I111)<-10%,(K111-L111)/IF(K111=0,1,K111)<-10%,(M111-N111)/IF(M111=0,1,M111)<-10%),\"De balans is < -10%, als dit plausibel is dan vragen wij u dit nader toe te lichten bij de opmerkingen, zo niet dan dient u uw raming aan te scherpen.\",\"\")","v":""}]
[null,null,null," Kosten LGGZ (langdurige GGZ, jaar 2 en 3)",null,null,null,"661.1",null,null,null,null,null,null,null,""]
[null,null,null," Kosten specialistische GGZ zonder verblijf",null,null,null,"662   ",null,null,null,null,null,null,null,""]
[null,null,null," Generalistische basis GGZ",null,null,null,"665   ",null,null,null,null,null,null,null,""]
[null,null,null," Meerkosten Corona, indirect en toeslagen",null,null,null,"810   "]
[null,null,null," Netto continuïteitsbijdrage Corona (basisverzekering)",null,null,null,"830   "]
[null,null,null," TOTAAL RUBRIEK 10",null,null,null,null,{"$f":"SUM(I111:I116)","v":0},{"$f":"SUM(J111:J116)","v":0},0,0,0]
[null,null,null," 11 GRZ, ELV EN GZSP"]
[null,null,null," Geriatrische Revalidatie ",null,null,null,"670   ",null,null,null,null,null,null,null,{"$f":"IF(OR((I119-J119)/IF(I119=0,1,I119)<-10%,(K119-L119)/IF(K119=0,1,K119)<-10%,(M119-N119)/IF(M119=0,1,M119)<-10%),\"De balans is < -10%, als dit plausibel is dan vragen wij u dit nader toe te lichten bij de opmerkingen, zo niet dan dient u uw raming aan te scherpen.\",\"\")","v":""}]
[null,null,null," Meerkosten Corona, indirect en toeslagen",null,null,null,"811.1"]
[null,null,null," Netto continuïteitsbijdrage Corona (basisverzekering)",null,null,null,"831.1"]
[null,null,null," Eerstelijnsverblijf ",null,null,null,"671   ",null,null,null,null,null,null,null,""]
[null,null,null," Meerkosten Corona, indirect en toeslagen",null,null,null,"811.2"]
[null,null,null," Netto continuïteitsbijdrage Corona (basisverzekering)",null,null,null,"831.2"]
[null,null,null,"  Generalistische Geneeskundige Zorg Specifieke Patiëntgroepen",null,null,null,"672   "]
[null,null,null," Meerkosten Corona, indirect en toeslagen",null,null,null,"811.3"]
[null,null,null," Netto continuïteitsbijdrage Corona (basisverzekering)",null,null,null,"831.3"]
[null,null,null," TOTAAL RUBRIEK 11",null,null,null,null,{"$f":"SUM(I119:I127)","v":0},0,0,0,{"$f":"SUM(M119:M127)","v":0}]
[null,null,null," 12  KRAAMZORG"]
[null,null,null," Kraamzorg",null,null,null,"680   "]
[null,null,null," Meerkosten Corona, indirect en toeslagen",null,null,null,"812   "]
[null,null,null," Netto continuïteitsbijdrage Corona (basisverzekering)",null,null,null,"832   "]
[null,null,null," TOTAAL RUBRIEK 12",null,null,null,null,{"$f":"SUM(I130:I132)","v":0},{"$f":"SUM(J130:J132)","v":0},0,0,0,null,null,{"$f":"IF(OR((I133-J133)/IF(I133=0,1,I133)<-10%,(K133-L133)/IF(K133=0,1,K133)<-10%,(M133-N133)/IF(M133=0,1,M133)<-10%),\"De balans is < -10%, als dit plausibel is dan vragen wij u dit nader toe te lichten bij de opmerkingen, zo niet dan dient u uw raming aan te scherpen.\",\"\")","v":""}]
[null,null,null," 13  DIVERSE OVERIGE KOSTEN"]
[null,null,null," Overige kosten",null,null,null,"700   ",null,null,null,null,null,null,null,{"$f":"IF(OR((I135-J135)/IF(I135=0,1,I135)<-10%,(K135-L135)/IF(K135=0,1,K135)<-10%,(M135-N135)/IF(M135=0,1,M135)<-10%),\"De balans is < -10%, als dit plausibel is dan vragen wij u dit nader toe te lichten bij de opmerkingen, zo niet dan dient u uw raming aan te scherpen.\",\"\")","v":""}]
[null,null,null," Overige geneeskundige zorg",null,null,null,"701   ",null,null,null,null,null,null,null,""]
[null,null,null," Kosten van zorg zintuiglijk gehandicapten",null,null,null,"702   ",null,null,null,null,null,null,null,""]
[null,null,null," Meerkosten Corona, indirect en toeslagen",null,null,null,"813   "]
[null,null,null," Netto continuïteitsbijdrage Corona (basisverzekering)",null,null,null,"833   "]
[null,null,null," TOTAAL RUBRIEK 13",null,null,null,null,{"$f":"SUM(I135:I139)","v":0},{"$f":"SUM(J135:J139)","v":0},0,0,0]
[null,null,null," 15  GRENSOVERSCHRIJDENDE ZORG"]
[null,null,null," Kosten via verzekeraar",null,null,null,"720   ",null,null,null,null,null,null,null,{"$f":"IF(OR((I142-J142)/IF(I142=0,1,I142)<-10%,(K142-L142)/IF(K142=0,1,K142)<-10%,(M142-N142)/IF(M142=0,1,M142)<-10%),\"De balans is < -10%, als dit plausibel is dan vragen wij u dit nader toe te lichten bij de opmerkingen, zo niet dan dient u uw raming aan te scherpen.\",\"\")","v":""}]
[null,null,null," Kosten via verbindingsorgaan",null,null,null,"721   ",null,null,null,null,null,null,null,""]
[null,null,null," TOTAAL RUBRIEK 15",null,null,null,null,{"$f":"SUM(I142:I143)","v":0},{"$f":"SUM(J142:J143)","v":0},0,0,0]
[null,null,null," 16  KWALITEITSGELDEN",null,null,null,"   "]
[null,null,null," TOTAAL RUBRIEK 16",null,null,null,"730   ",null,null,null,null,null,null,null,{"$f":"IF(OR((I146-J146)/IF(I146=0,1,I146)<-10%,(K146-L146)/IF(K146=0,1,K146)<-10%,(M146-N146)/IF(M146=0,1,M146)<-10%),\"De balans is < -10%, als dit plausibel is dan vragen wij u dit nader toe te lichten bij de opmerkingen, zo niet dan dient u uw raming aan te scherpen.\",\"\")","v":""}]
[null,null,null," TOTAAL LASTEN  (bruto-schade, definitie ZIN)",null,null,null,null,{"$f":"SUM(I26,I31,I36,I43,I49,I74,I84,I89,I96,I117,I128,I133,I140,I144,I146)","v":0},{"$f":"SUM(J26,J31,J36,J43,J49,J74,J84,J89,J96,J117,J128,J133,J140,J144,J146)","v":0},{"$f":"SUM(K26,K31,K36,K43,K49,K74,K84,K89,K96,K117,K128,K133,K140,K144,K146)","v":0},{"$f":"SUM(L26,L31,L36,L43,L49,L74,L84,L89,L96,L117,L128,L133,L140,L144,L146)","v":0},{"$f":"SUM(M26,M31,M36,M43,M49,M74,M84,M89,M96,M117,M128,M133,M140,M144,M146)","v":0}]
[]
[null,null,null," BATEN ZVW",null,null,null,"Code","Totale baten 2021 inclusief balanspost ","waarvan ontvangen  m.b.t. 2021","Totale baten 2020 inclusief balanspost ","waarvan ontvangen m.b.t. 2020","Totale baten ontvangen m.b.t. 2019 en ouder"]
[null,null,null,null,null,null,null,null,null,"waarvan ontvangen  t/m 3e Kwartaal 2019"]
[null,null,null," OPBRENGSTEN VERHAAL",null,null,null,"890.1",null,null,null,null,null,null,null,{"$f":"IF(AND(OR(I151<0,J151<0,K151<0,L151<0,M151<0),OR((I151-J151)/IF(I151=0,1,I151)<-10%,(K151-L151)/IF(K151=0,1,K151)<-10%)), \"U rapporteert een bedrag <0. Kunt u dit vooraf toelichten bij de mededelingen? En De balans is < -10%, als dit plausibel is dan vragen wij u dit nader toe te lichten bij de opmerkingen, zo niet dan dient u uw raming aan te scherpen.\",IF(OR(I151<0,J151<0,K151<0,L151<0,M151<0),\"U rapporteert een bedrag <0. Kunt u dit vooraf toelichten bij de mededelingen?\",IF(OR((I151-J151)/IF(I151=0,1,I151)<-10%,(K151-L151)/IF(K151=0,1,K151)<-10%),\"De balans is < -10%, als dit plausibel is dan vragen wij u dit nader toe te lichten bij de opmerkingen, zo niet dan dient u uw raming aan te scherpen.\",\"\")))","v":""}]
[null,null,null," SCHADE T.L.V. HET VRIJWILLIG EIGEN RISICO",null,null,null,"910   ",null,null,null,null,null,null,null,{"$f":"IF(AND(OR(I152<0,J152<0,K152<0,L152<0,M152<0),OR((I152-J152)/IF(I152=0,1,I152)<-10%,(K152-L152)/IF(K152=0,1,K152)<-10%)), \"U rapporteert een bedrag <0. Kunt u dit vooraf toelichten bij de mededelingen? En De balans is < -10%, als dit plausibel is dan vragen wij u dit nader toe te lichten bij de opmerkingen, zo niet dan dient u uw raming aan te scherpen.\",IF(OR(I152<0,J152<0,K152<0,L152<0,M152<0),\"U rapporteert een bedrag <0. Kunt u dit vooraf toelichten bij de mededelingen?\",IF(OR((I152-J152)/IF(I152=0,1,I152)<-10%,(K152-L152)/IF(K152=0,1,K152)<-10%),\"De balans is < -10%, als dit plausibel is dan vragen wij u dit nader toe te lichten bij de opmerkingen, zo niet dan dient u uw raming aan te scherpen.\",\"\")))","v":""}]
[null,null,null," SCHADE T.L.V. HET VERPLICHT EIGEN RISICO",null,null,null,"915   ",null,null,null,null,null,null,null,""]
[null,null,null," NETTO PREMIEOPBRENGSTEN",null,null,null,"940   ",null,null,null,null,null,null,null,""]
[]
[null,null,null,{"$f":"NOW()","v":"2022-04-04T16:47:18.280"},null,null,null,null,null,null,null,null,{"$f":"CONCATENATE(\"Kostenverzamelstaat 2019, \",LOWER(A101))","v":"Kostenverzamelstaat 2019, pagina 3"}]

{"sheet":"Specifieke informatie 2021","index":7,"n_rows":62,"n_cols":12,"rows_kept":62,"cut":false,"hidden":false,"merged":[[16,3,16,9],[19,3,20,9],[19,10,20,10],[21,3,21,9],[22,3,22,9],[11,3,12,9],[11,10,12,10],[13,3,13,9],[14,3,14,9],[15,3,15,9],[43,3,43,9],[25,3,26,9],[25,10,26,10],[27,3,27,9],[29,3,29,4],[41,3,42,9],[41,10,42,10],[36,3,37,9],[36,10,37,10],[38,3,38,9],[61,3,61,4],[61,10,61,11],[57,3,57,9],[58,3,58,9],[44,3,44,9],[45,3,45,9],[47,3,48,9],[47,10,48,10],[49,3,51,4],[49,5,49,9],[50,5,50,9],[51,5,51,9],[52,3,52,9]]}
[null,null,"INVULSPECIFICATIES SPECIFIEKE INFORMATIE A"]
[]
[]
[]
[]
["Pagina 1",null,null,{"$f":"CONCATENATE(\"JAARSTAAT ZVW \", jaar_id)","v":"JAARSTAAT ZVW 2021"}]
[null,null,null,"SPECIFIEKE INFORMATIE 2021"]
[null,null,null,{"$f":"IF(naw_uzovi_zorgverzekeraar<>\"0000\",CONCATENATE(UPPER(naw_naam_zorgverzekeraar),\", \",UPPER(naw_plaats_zorgverzekeraar)),\"\")","v":""},null,null,null,null,null,null,null,{"$f":"CONCATENATE(\"UZOVI: \",naw_uzovi_zorgverzekeraar)","v":"UZOVI: 0000"}]
[]
[null,null,null,"SPECIFICATIES INFORMATIE RISICOVEREVENING"]
[null,null,null,"KOSTEN NAAR DEELBIJDRAGE"]
[null,null,null," KOSTEN NAAR DEELBIJDRAGE",null,null,null,null,null,null,"Lasten 2021 inclusief balanspost"]
[]
[null,null,null," Variabele zorgkosten"]
[null,null,null," Vaste zorgkosten "]
[null,null,null," Kosten geneeskundige geestelijke gezondheidszorg"]
[null,null,null," TOTAAL kosten ",null,null,null,null,null,null,{"$f":"SUM(K14:K16)","v":0}]
[]
[null,null,null,"RUBRIEK 06 MEDISCH SPECIALISTISCHE ZORG"]
[null,null,null," CODE 610  - OVERIGE KOSTEN ZIEKENHUISZORG EN CURATIEVE ZORG",null,null,null,null,null,null,{"$f":"K$12","v":"Lasten 2021 inclusief balanspost"}]
[]
[null,null,null," Kosten SKION (deel code 610) "]
[null,null,null," Kosten SKION en NTS (deel code 610) "]
[]
[]
[null,null,null," CODE 612.1  - KOSTEN ADD-ONS DURE GENEESMIDDELEN",null,null,null,null,null,null,{"$f":"K$12","v":"Lasten 2021 inclusief balanspost"}]
[]
[null,null,null," Kosten add-ons - Dure intramurale geneesmiddelen en ozp-stollingsfactoren (artikel 1, regeling risicoverevening)"]
[]
[null,null,null,{"$f":"NOW()","v":"2022-04-04T16:47:18.280"},null,null,null,null,null,null,{"$f":"CONCATENATE(\"Specifieke informatie 2021, \",LOWER(A6))","v":"Specifieke informatie 2021, pagina 1"}]
[]
["Pagina 2",null,null,{"$f":"CONCATENATE(\"JAARSTAAT ZVW \", jaar_id)","v":"JAARSTAAT ZVW 2021"}]
[null,null,null,"SPECIFIEKE INFORMATIE 2021"]
[null,null,null,{"$f":"IF(naw_uzovi_zorgverzekeraar<>\"0000\",CONCATENATE(UPPER(naw_naam_zorgverzekeraar),\", \",UPPER(naw_plaats_zorgverzekeraar)),\"\")","v":""},null,null,null,null,null,null,null,{"$f":"CONCATENATE(\"UZOVI: \",naw_uzovi_zorgverzekeraar)","v":"UZOVI: 0000"}]
[null,null,null,"SPECIFICATIES INFORMATIE RISICOVEREVENING"]
[null,null,null,"RUBRIEK 10 GENEESKUNDIGE GEESTELIJKE GEZONDHEIDSZORG  "]
[null,null,null," CODE 662 - KOSTEN VAN SPECIALISTISCHE GGZ ZONDER VERBLIJF",null,null,null,null,null,null,{"$f":"K$12","v":"Lasten 2021 inclusief balanspost"}]
[]
[null,null,null," Kosten van dure intramurale geneesmiddelen (artikel 1, regeling risicoverevening)"]
[]
[null,null,null,"RUBRIEK 15 GRENSOVERSCHRIJDENDE ZORG"]
[null,null,null," CODE 720 - KOSTEN GRENSOVERSCHRIJDENDE ZORG VIA VERZEKERAAR",null,null,null,null,null,null,{"$f":"K$12","v":"Lasten 2021 inclusief balanspost"}]
[]
[null,null,null," Variabele zorgkosten"]
[null,null,null," Kosten van geneeskundige geestelijke gezondheidszorg"]
[null,null,null," TOTAAL CODE 720 kosten gemaakt in het buitenland, via verzekeraar",null,null,null,null,null,null,{"$f":"SUM(K44:K45)","v":0}]
[]
[null,null,null," CODE 721 - KOSTEN GRENSOVERSCHRIJDENDE ZORG VIA VERBINDINGSORGAAN",null,null,null,null,null,null,{"$f":"K$12","v":"Lasten 2021 inclusief balanspost"}]
[]
[null,null,null," Toepassing verordening  \n of verdrag inzake sociale  \n zekerheid, via CAK ",null," Behandeling in het buitenland met toepassing van artikel 20. \n EG-verordening 883/2004 of overeenkomstige verdragsbepaling"]
[null,null,null,null,null," Kosten gemaakt bij tijdelijk verblijf in het buitenland van Zvw \n verzekerden die wonen in Nederland"]
[null,null,null,null,null," Kosten gemaakt in het buitenland van Zvw verzekerden die wonen\n in het buitenland"]
[null,null,null," TOTAAL CODE 721 kosten gemaakt in het buitenland, via verbindingsorgaan",null,null,null,null,null,null,{"$f":"SUM(K50:K52)","v":0}]
[]
[]
[]
[null,null,null,"BEREKENDE NOMINALE REKENPREMIES GEDETINEERDEN"]
[null,null,null,null,null,null,null,null,null,null,"BEDRAG"]
[null,null,null," Totaal berekende nominale rekenpremies 2021 tijdens de detentieperiode van verzekerden van 18 jaar en ouder                                                                                                                                                                                                                                                                                                                                                                                                                                                                                                                                                                                         "]
[]
[]
[null,null,null,{"$f":"NOW()","v":"2022-04-04T16:47:18.280"},null,null,null,null,null,null,{"$f":"CONCATENATE(\"Specifieke informatie 2021, \",LOWER(A32))","v":"Specifieke informatie 2021, pagina 2"}]

{"sheet":"Specifieke informatie A 2019","index":8,"n_rows":70,"n_cols":12,"rows_kept":70,"cut":false,"hidden":false,"merged":[[69,3,69,4],[54,3,54,9],[65,3,65,9],[60,3,60,9],[61,3,61,9],[62,3,62,9],[63,3,63,9],[64,3,64,9],[66,3,66,9],[58,3,59,9],[19,10,20,10],[19,3,20,9],[16,3,16,9],[15,3,15,9],[11,11,12,11],[13,3,13,9],[11,10,12,10],[11,3,12,9],[14,3,14,9],[19,11,20,11],[21,3,21,9],[22,3,22,9],[43,3,44,9],[43,10,44,10],[58,11,59,11],[49,3,50,9],[49,10,50,10],[49,11,50,11],[51,3,53,4],[51,5,51,9],[52,5,52,9],[53,5,53,9],[43,11,44,11],[45,3,45,9],[46,3,46,9],[47,3,47,9],[58,10,59,10],[35,3,35,4],[25,3,26,9],[25,10,26,10],[25,11,26,11],[27,3,27,9],[28,3,28,9]]}
[null,null,"INVULSPECIFICATIES SPECIFIEKE INFORMATIE A"]
[]
[]
[]
[]
["Pagina 1",null,null,{"$f":"CONCATENATE(\"JAARSTAAT ZVW \", jaar_id)","v":"JAARSTAAT ZVW 2021"}]
[null,null,null,"SPECIFIEKE INFORMATIE A 2019"]
[null,null,null,{"$f":"IF(naw_uzovi_zorgverzekeraar<>\"0000\",CONCATENATE(UPPER(naw_naam_zorgverzekeraar),\", \",UPPER(naw_plaats_zorgverzekeraar)),\"\")","v":""},null,null,null,null,null,null,null,{"$f":"CONCATENATE(\"UZOVI: \",naw_uzovi_zorgverzekeraar)","v":"UZOVI: 0000"}]
[]
[null,null,null,"SPECIFICATIES INFORMATIE RISICOVEREVENING"]
[null,null,null,"KOSTEN NAAR DEELBIJDRAGE"]
[null,null,null," KOSTEN NAAR DEELBIJDRAGE",null,null,null,null,null,null,"Lasten 2021 inclusief balanspost","Ontvangen en geaccepteerde declaraties m.b.t. 2019 en ouder"]
[]
[null,null,null," Variabele zorgkosten"]
[null,null,null," Vaste zorgkosten "]
[null,null,null," Kosten geneeskundige geestelijke gezondheidszorg"]
[null,null,null," TOTAAL kosten ",null,null,null,null,null,null,{"$f":"SUM(K14:K16)","v":0},{"$f":"SUM(L14:L16)","v":0}]
[]
[null,null,null,"RUBRIEK 06 MEDISCH SPECIALISTISCHE ZORG"]
[null,null,null," CODE 610  - OVERIGE KOSTEN ZIEKENHUISZORG EN CURATIEVE ZORG",null,null,null,null,null,null,{"$f":"K$12","v":"Lasten 2021 inclusief balanspost"},{"$f":"L$12","v":"Ontvangen en geaccepteerde declaraties m.b.t. 2019 en ouder"}]
[]
[null,null,null," Kosten SKION (deel code 610) "]
[null,null,null," Kosten SKION en NTS (deel code 610) "]
[]
[]
[null,null,null," CODE 612.1  - KOSTEN ADD-ONS DURE GENEESMIDDELEN",null,null,null,null,null,null,{"$f":"K$12","v":"Lasten 2021 inclusief balanspost"},{"$f":"L$12","v":"Ontvangen en geaccepteerde declaraties m.b.t. 2019 en ouder"}]
[]
[null,null,null," Add-ons dure intramurale geneesmiddelen (artikel 1, regeling risicoverevening)"]
[]
[]
[]
[]
[]
[]
[]
[null,null,null,{"$f":"NOW()","v":"2022-04-04T16:47:18.280"},null,null,null,null,null,null,null,{"$f":"CONCATENATE(\"Specifieke informatie A 2019, \",LOWER(A6))","v":"Specifieke informatie A 2019, pagina 1"}]
[]
["Pagina 2",null,null,{"$f":"CONCATENATE(\"JAARSTAAT ZVW \", jaar_id)","v":"JAARSTAAT ZVW 2021"}]
[null,null,null,"SPECIFIEKE INFORMATIE A 2019"]
[null,null,null,{"$f":"IF(naw_uzovi_zorgverzekeraar<>\"0000\",CONCATENATE(UPPER(naw_naam_zorgverzekeraar),\", \",UPPER(naw_plaats_zorgverzekeraar)),\"\")","v":""},null,null,null,null,null,null,null,{"$f":"CONCATENATE(\"UZOVI: \",naw_uzovi_zorgverzekeraar)","v":"UZOVI: 0000"}]
[]
[null,null,null,"SPECIFICATIES INFORMATIE RISICOVEREVENING"]
[null,null,null,"RUBRIEK 15 GRENSOVERSCHRIJDENDE ZORG"]
[null,null,null," CODE 720 - KOSTEN GRENSOVERSCHRIJDENDE ZORG VIA VERZEKERAAR",null,null,null,null,null,null,{"$f":"K$12","v":"Lasten 2021 inclusief balanspost"},{"$f":"L$12","v":"Ontvangen en geaccepteerde declaraties m.b.t. 2019 en ouder"}]
[]
[null,null,null," Variabele zorgkosten"]
[null,null,null," Kosten van geneeskundige geestelijke gezondheidszorg"]
[null,null,null," TOTAAL CODE 720 kosten gemaakt in het buitenland, via verzekeraar",null,null,null,null,null,null,{"$f":"SUM(K46:K47)","v":0},{"$f":"SUM(L46:L47)","v":0}]
[]
[null,null,null," CODE 721 - KOSTEN GRENSOVERSCHRIJDENDE ZORG VIA VERBINDINGSORGAAN",null,null,null,null,null,null,{"$f":"K$12","v":"Lasten 2021 inclusief balanspost"},{"$f":"L$12","v":"Ontvangen en geaccepteerde declaraties m.b.t. 2019 en ouder"}]
[]
[null,null,null," Toepassing verordening  \n of verdrag inzake sociale  \n zekerheid, via CAK ",null," Behandeling in het buitenland met toepassing van artikel 20. \n EG-verordening 883/2004 of overeenkomstige verdragsbepaling"]
[null,null,null,null,null," Kosten gemaakt bij tijdelijk verblijf in het buitenland van Zvw \n verzekerden die wonen in Nederland"]
[null,null,null,null,null," Kosten gemaakt in het buitenland van Zvw verzekerden die wonen\n in het buitenland"]
[null,null,null," TOTAAL CODE 721 kosten gemaakt in het buitenland, via verbindingsorgaan",null,null,null,null,null,null,{"$f":"SUM(K52:K54)","v":0},{"$f":"SUM(L52:L54)","v":0}]
[]
[]
[null,null,null,"RUBRIEK 16 KWALITEITSGELDEN"]
[null,null,null," CODE 730 - KWALITEITSGELDEN",null,null,null,null,null,null,{"$f":"K$12","v":"Lasten 2021 inclusief balanspost"},{"$f":"L$12","v":"Ontvangen en geaccepteerde declaraties m.b.t. 2019 en ouder"}]
[]
[null,null,null," Kosten Stichting Kwaliteitsontwikkeling GGZ"]
[null,null,null," Kosten regionale ondersteuning en eerstelijnszorg"]
[null,null,null," Kosten Stichting Kwaliteitsgelden Medisch Specialisten "]
[null,null,null," Kosten Stichting Kwaliteitsgelden Patiënten Consumenten  "]
[null,null,null," Kosten Projectgelden kwaliteitsbeleid eerstelijnszorg"]
[null,null,null," Kosten Stichting Kwaliteitsgelden wijkverpleging"]
[null,null,null," TOTAAL code 730",null,null,null,null,null,null,{"$f":"SUM(K61:K66)","v":0},{"$f":"SUM(L61:L66)","v":0}]
[]
[]
[null,null,null,{"$f":"NOW()","v":"2022-04-04T16:47:18.280"},null,null,null,null,null,null,null,{"$f":"CONCATENATE(\"Specifieke informatie A 2019, \",LOWER(A38))","v":"Specifieke informatie A 2019, pagina 2"}]

{"sheet":"Specifieke informatie C","index":9,"n_rows":245,"n_cols":15,"rows_kept":245,"cut":false,"hidden":false,"merged":[[105,11,106,11],[131,5,131,9],[76,3,76,6],[125,11,126,11],[105,10,106,10],[105,3,106,9],[91,3,91,6],[92,3,92,6],[100,3,100,6],[101,3,101,6],[90,7,90,11],[99,3,99,6],[93,3,93,6],[94,3,94,6],[98,3,98,6],[96,7,96,11],[88,11,89,11],[97,3,97,6],[88,7,89,7],[87,9,87,10],[87,3,89,4],[127,5,127,9],[128,5,128,9],[133,5,133,9],[130,5,130,9],[130,3,132,4],[111,3,112,9],[111,11,112,11],[113,3,114,4],[113,5,113,9],[244,3,244,4],[164,3,164,4],[136,5,136,9],[134,5,134,9],[154,3,155,9],[146,5,146,9],[141,5,141,9],[139,5,139,9],[135,5,135,9],[140,5,140,9],[136,3,138,4],[137,5,137,9],[133,3,135,4],[219,3,219,9],[220,3,220,9],[193,3,193,9],[191,3,191,9],[192,3,192,9],[189,3,190,9],[171,3,172,8],[174,3,174,8],[201,3,201,4],[186,3,186,9],[175,3,175,8],[17,11,18,11],[10,11,11,11],[14,3,14,10],[34,7,34,8],[34,3,36,6],[35,8,36,8],[27,3,27,4],[20,3,20,10],[21,3,21,10],[10,3,11,10],[12,3,12,10],[13,3,13,10],[15,3,15,10],[35,9,36,9],[34,9,34,10],[19,3,19,10],[17,3,18,10],[217,3,218,4],[217,5,217,9],[218,5,218,9],[208,3,209,9],[208,10,209,10],[213,3,213,9],[215,3,216,9],[215,10,216,10],[208,11,209,11],[210,3,211,4],[210,5,210,9],[211,5,211,9],[212,3,212,9],[35,11,36,11],[45,5,45,6],[50,3,50,6],[47,3,47,6],[35,10,36,10],[35,7,36,7],[43,8,44,8],[43,11,44,11],[215,11,216,11],[154,10,155,10],[147,5,147,9],[42,9,42,10],[42,5,44,6],[37,3,37,6],[42,3,44,4],[43,9,44,9],[38,3,38,6],[39,3,39,6],[43,7,44,7],[80,3,80,4],[69,7,70,7],[69,8,70,8],[69,10,70,10],[88,9,89,9],[60,9,61,9],[60,7,61,7],[145,3,147,4],[145,5,145,9],[152,3,152,9],[49,3,49,6],[45,3,45,4],[42,7,42,8],[43,10,44,10],[52,3,52,4],[90,5,90,6],[69,9,70,9],[87,7,87,8],[108,3,108,9],[109,3,109,9],[111,10,112,10],[132,5,132,9],[127,3,129,4],[129,5,129,9],[114,5,114,9],[115,3,115,9],[148,5,148,9],[149,5,149,9],[150,5,150,9],[62,3,62,6],[63,3,63,6],[64,3,64,6],[65,3,65,6],[171,10,172,10],[107,3,107,9],[87,5,89,6],[88,8,89,8],[45,7,45,11],[90,3,90,4],[156,3,156,8],[66,3,66,6],[88,10,89,10],[68,3,70,6],[68,7,68,8],[68,9,68,10],[60,11,61,11],[48,3,48,6],[60,10,61,10],[46,3,46,6],[59,9,59,10],[59,3,61,6],[59,7,59,8],[60,8,61,8],[173,3,173,8],[171,9,172,9],[69,11,70,11],[75,3,75,6],[74,3,74,6],[73,3,73,6],[72,3,72,6],[71,3,71,6],[96,5,96,6],[95,3,95,6],[96,3,96,4],[148,3,150,4],[171,11,172,11],[154,11,155,11],[151,3,151,9],[125,3,126,9],[118,3,118,4],[125,10,126,10],[138,5,138,9],[142,3,144,4],[142,5,142,9],[143,5,143,9],[144,5,144,9],[139,3,141,4],[189,11,190,11],[189,10,190,10],[187,3,187,9],[178,11,179,11],[180,3,180,9],[185,3,185,9],[182,3,182,9],[181,3,181,9],[184,3,184,9],[183,3,183,9],[178,10,179,10],[178,3,179,9]]}
[null,null,"INVULSPECIFICATIES SPECIFIEKE INFORMATIE C"]
[]
[]
[]
[]
["Pagina 1",null,null,{"$f":"CONCATENATE(\"JAARSTAAT ZVW \", jaar_id)","v":"JAARSTAAT ZVW 2021"}]
[null,null,null,"SPECIFIEKE INFORMATIE C (BELEIDSINFORMATIE)"]
[null,null,null,{"$f":"IF(naw_uzovi_zorgverzekeraar<>\"0000\",CONCATENATE(UPPER(naw_naam_zorgverzekeraar),\", \",UPPER(naw_plaats_zorgverzekeraar)),\"\")","v":""},null,null,null,null,null,null,null,{"$f":"CONCATENATE(\"UZOVI: \",naw_uzovi_zorgverzekeraar)","v":"UZOVI: 0000"}]
[null,null,null,"SPECIFICATIES VAN KOSTEN EN PRODUCTIE"]
[null,null,null,"RUBRIEK 02 FARMACEUTISCHE ZORG "]
[null,null,null," CODE 520 - FARMACEUTISCHE ZORG",null,null,null,null,null,null,null,"Ontvangen en geaccepteerde declaraties mbt 2021"]
[null,null,null,null,null,null,null,null,null,null,null,"Ontvangen en geaccepteerde declaraties mbt jaar T-1"]
[null,null,null," Kosten geneesmiddel "]
[null,null,null," Kosten i.v.m terhandstelling"]
[null,null,null," Kosten overige zorgprestaties"]
[null,null,null," TOTAAL code 520",null,null,null,null,null,null,null,{"$f":"SUM(L13:L15)","v":0}]
[]
[null,null,null,"  CODE 520 - FARMACEUTISCHE ZORG",null,null,null,null,null,null,null,"Aantal prestaties mbt 2021"]
[]
[null,null,null," Aantallen prestaties geneesmiddel"]
[null,null,null," Aantallen overige zorgprestaties"]
[null,null,null," TOTAAL prestaties",null,null,null,null,null,null,null,{"$f":"SUM(L20:L21)","v":0}]
[]
[]
[]
[]
[null,null,null,{"$f":"IF(naw_uzovi_zorgverzekeraar<>\"0000\",CONCATENATE(UPPER(naw_naam_zorgverzekeraar),\", \",UPPER(naw_plaats_zorgverzekeraar)),\"\")","v":""}]
[null,null,null,{"$f":"NOW()","v":"2022-04-04T16:47:18.280"},null,null,null,null,null,null,null,{"$f":"CONCATENATE(\"Specifieke informatie C, \",LOWER(A6))","v":"Specifieke informatie C, pagina 1"}]
[]
["Pagina 2",null,null,{"$f":"CONCATENATE(\"JAARSTAAT ZVW \", jaar_id)","v":"JAARSTAAT ZVW 2021"}]
[null,null,null,"SPECIFIEKE INFORMATIE C (BELEIDSINFORMATIE)"]
[null,null,null,"",null,null,null,null,null,null,null,{"$f":"CONCATENATE(\"UZOVI: \",naw_uzovi_zorgverzekeraar)","v":"UZOVI: 0000"}]
[null,null,null,"SPECIFICATIES VAN KOSTEN EN PRODUCTIE"]
[]
[null,null,null," CODE 610 - OVERIGE KOSTEN \n ZIEKENHUISZORG EN CURATIEVE ZORG",null,null,null,"Lasten 2021",null,"Lasten 2020",null,"Lasten 2019\nen ouder",null,null,{"$f":"IF(OR((H38-I38)/IF(H38=0,1,H38)<-10%,(J38-K38)/IF(J38=0,1,J38)<-10%,(L38-M38)/IF(L38=0,1,L38)<-10%),\"De balans is < -10%, als dit plausibel is dan vragen wij u dit nader toe te lichten bij de opmerkingen, zo niet dan dient u uw raming aan te scherpen.\",\"\")","v":""}]
[null,null,null,null,null,null,null,"Lasten 2021 inclusief balanspost","Ontvangen en geaccepteerde declaraties mbt 2021","Lasten 2020 inclusief balanspost","Ontvangen en geaccepteerde declaraties mbt 2020","Ontvangen en geaccepteerde declaraties mbt 2019 en ouder",null,null,{"$f":"IF(OR((H39-I39)/IF(H39=0,1,H39)<-10%,(J39-K39)/IF(J39=0,1,J39)<-10%,(L39-M39)/IF(L39=0,1,L39)<-10%),\"De balans is < -10%, als dit plausibel is dan vragen wij u dit nader toe te lichten bij de opmerkingen, zo niet dan dient u uw raming aan te scherpen.\",\"\")","v":""}]
[null,null,null,null,null,null,null,null,"Ontvangen en geaccepteerde declaraties mbt jaar T-1",null,null,"Ontvangen en geaccepteerde declaraties mbt jaar T-1",null,null,""]
[null,null,null," Kosten van eerstelijnsdiagnostiek aangevraagd \n door eerstelijns zorgaanbieders, geleverd door \n huisartsenlaboratoria"]
[null,null,null," Trombosediensten"]
[null,null,null," SKION en NTS"]
[null,null,null," TOTAAL code 610",null,null,null,{"$f":"SUM(H38:H40)","v":0},{"$f":"SUM(I38:I40)","v":0},0,0,0]
[]
[null,null,null," CODE 611 - NAAR INSTELLINGEN",null," ",null,"Lasten 2021",null,"Lasten 2020",null,"Lasten 2019\nen ouder"]
[null,null,null,null,null,null,null,"Lasten 2021 inclusief balanspost","Ontvangen en geaccepteerde declaraties mbt 2021","Lasten 2020 inclusief balanspost","Ontvangen en geaccepteerde declaraties mbt 2020","Ontvangen en geaccepteerde declaraties mbt 2019 en ouder",null,null,{"$f":"IF(OR((H47-I47)/IF(H47=0,1,H47)<-10%,(J47-K47)/IF(J47=0,1,J47)<-10%,(L47-M47)/IF(L47=0,1,L47)<-10%),\"De balans is < -10%, als dit plausibel is dan vragen wij u dit nader toe te lichten bij de opmerkingen, zo niet dan dient u uw raming aan te scherpen.\",\"\")","v":""}]
[null,null,null,null,null,null,null,null,"Ontvangen en geaccepteerde declaraties mbt jaar T-1",null,"Ontvangen en geaccepteerde declaraties mbt jaar T-1","Ontvangen en geaccepteerde declaraties mbt jaar T-1",null,null,""]
[null,null,null," Overige zorgproducten",null," ",null,null,null,null,null,null,null,null,""]
[null,null,null," Academische ziekenhuizen",null,null,null,null,null,null,null,null,null,null,""]
[null,null,null," Algemene ziekenhuizen"]
[null,null,null," Zelfstandige behandelcentra"]
[null,null,null," Overige zorgaanbieders "]
[null,null,null," TOTAAL code 611",null,null,null,{"$f":"SUM(H47:H50)","v":0},{"$f":"SUM(I47:I50)","v":0},{"$f":"SUM(J47:J50)","v":0},{"$f":"SUM(K47:K50)","v":0},{"$f":"SUM(L47:L50)","v":0}]
[]
[null,null,null,{"$f":"NOW()","v":"2022-04-04T16:47:18.280"},null,null,null,null,null,null,null,{"$f":"CONCATENATE(\"Specifieke informatie C, \",LOWER(A30))","v":"Specifieke informatie C, pagina 2"}]
[]
["Pagina 3",null,null,{"$f":"CONCATENATE(\"JAARSTAAT ZVW \", jaar_id)","v":"JAARSTAAT ZVW 2021"}]
[null,null,null,"SPECIFIEKE INFORMATIE C (BELEIDSINFORMATIE)"]
[null,null,null,{"$f":"IF(naw_uzovi_zorgverzekeraar<>\"0000\",CONCATENATE(UPPER(naw_naam_zorgverzekeraar),\", \",UPPER(naw_plaats_zorgverzekeraar)),\"\")","v":""},null,null,null,null,null,null,null,{"$f":"CONCATENATE(\"UZOVI: \",naw_uzovi_zorgverzekeraar)","v":"UZOVI: 0000"}]
[null,null,null,"RUBRIEK 06 MEDISCH SPECIALISTISCHE ZORG - vervolg"]
[]
[null,null,null,"CODE 612.1 - KOSTEN ADD-ONS                                      DURE GENEESMIDDELEN",null,null,null,"Lasten 2021",null,"Lasten 2020",null,"Lasten 2019\nen ouder",null,null,{"$f":"IF(OR((H63-I63)/IF(H63=0,1,H63)<-10%,(J63-K63)/IF(J63=0,1,J63)<-10%,(L63-M63)/IF(L63=0,1,L63)<-10%),\"De balans is < -10%, als dit plausibel is dan vragen wij u dit nader toe te lichten bij de opmerkingen, zo niet dan dient u uw raming aan te scherpen.\",\"\")","v":""}]
[null,null,null,null,null,null,null,"Lasten 2021 inclusief balanspost","Ontvangen en geaccepteerde declaraties mbt 2021","Lasten 2020 inclusief balanspost","Ontvangen en geaccepteerde declaraties mbt 2020","Ontvangen en geaccepteerde declaraties mbt 2019 en ouder",null,null,""]
[null,null,null,null,null,null,null,null,"Ontvangen en geaccepteerde declaraties mbt jaar T-1",null,"Ontvangen en geaccepteerde declaraties mbt jaar T-1","Ontvangen en geaccepteerde declaraties mbt jaar T-1",null,null,""]
[null,null,null," Academische ziekenhuizen",null,null,null,null,null,null,null,null,null,null,""]
[null,null,null," Algemene ziekenhuizen"]
[null,null,null," Zelfstandige behandelcentra"]
[null,null,null," Overige zorgaanbieders "]
[null,null,null," TOTAAL code 612.1",null,null,null,{"$f":"SUM(H63:H66)","v":0},{"$f":"SUM(I63:I66)","v":0},{"$f":"SUM(J63:J66)","v":0},{"$f":"SUM(K63:K66)","v":0},{"$f":"SUM(L63:L66)","v":0}]
[]
[null,null,null,"CODE 612.2 - KOSTEN ADD-ONS  IC",null,null,null,"Lasten 2021",null,"Lasten 2020",null,"Lasten 2019\nen ouder",null,null,{"$f":"IF(OR((H72-I72)/IF(H72=0,1,H72)<-10%,(J72-K72)/IF(J72=0,1,J72)<-10%,(L72-M72)/IF(L72=0,1,L72)<-10%),\"De balans is < -10%, als dit plausibel is dan vragen wij u dit nader toe te lichten bij de opmerkingen, zo niet dan dient u uw raming aan te scherpen.\",\"\")","v":""}]
[null,null,null,null,null,null,null,"Lasten 2021 inclusief balanspost","Ontvangen en geaccepteerde declaraties mbt 2021","Lasten 2020 inclusief balanspost","Ontvangen en geaccepteerde declaraties mbt 2020","Ontvangen en geaccepteerde declaraties mbt 2019 en ouder",null,null,""]
[null,null,null,null,null,null,null,null,"Ontvangen en geaccepteerde declaraties mbt jaar T-1",null,"Ontvangen en geaccepteerde declaraties mbt jaar T-1","Ontvangen en geaccepteerde declaraties mbt jaar T-1",null,null,""]
[null,null,null," Academische ziekenhuizen",null,null,null,null,null,null,null,null,null,null,""]
[null,null,null," Algemene ziekenhuizen"]
[null,null,null," Zelfstandige behandelcentra"]
[null,null,null," Overige zorgaanbieders "]
[null,null,null," TOTAAL code 612.2",null,null,null,{"$f":"SUM(H72:H75)","v":0},{"$f":"SUM(I72:I75)","v":0},{"$f":"SUM(J72:J75)","v":0},{"$f":"SUM(K72:K75)","v":0},{"$f":"SUM(L72:L75)","v":0}]
[null,null,null," TOTAAL code 612",null,null,null,{"$f":"SUM(H72:H75)+SUM(H63:H66)","v":0},0,{"$f":"SUM(J72:J75)+SUM(J63:J66)","v":0},{"$f":"SUM(K72:K75)+SUM(K63:K66)","v":0},0]
[]
[]
[]
[null,null,null,{"$f":"NOW()","v":"2022-04-04T16:47:18.280"},null,null,null,null,null,null,null,{"$f":"CONCATENATE(\"Specifieke informatie C, \",LOWER(A55))","v":"Specifieke informatie C, pagina 3"}]
[]
["Pagina 4",null,null,{"$f":"CONCATENATE(\"JAARSTAAT ZVW \", jaar_id)","v":"JAARSTAAT ZVW 2021"}]
[null,null,null,"SPECIFIEKE INFORMATIE C (BELEIDSINFORMATIE)"]
[null,null,null,{"$f":"IF(naw_uzovi_zorgverzekeraar<>\"0000\",CONCATENATE(UPPER(naw_naam_zorgverzekeraar),\", \",UPPER(naw_plaats_zorgverzekeraar)),\"\")","v":""},null,null,null,null,null,null,null,{"$f":"CONCATENATE(\"UZOVI: \",naw_uzovi_zorgverzekeraar)","v":"UZOVI: 0000"}]
[]
[null,null,null,"RUBRIEK 06 MEDISCH SPECIALISTISCHE ZORG - vervolg"]
[null,null,null,"DBC-zorgproducten NAAR INSTELLING",null,"Code",null,"Lasten 2021",null,"Lasten 2020",null,"Lasten 2019 \nen ouder"]
[null,null,null,null,null,null,null,"Lasten 2021 inclusief balanspost","Ontvangen en geaccepteerde declaraties mbt 2021","Lasten 2020 inclusief balanspost","Ontvangen en geaccepteerde declaraties mbt 2020","Ontvangen en geaccepteerde declaraties mbt 2019 en ouder"]
[null,null,null,null,null,null,null,null,"Ontvangen en geaccepteerde declaraties mbt jaar T-1",null,null,"Ontvangen en geaccepteerde declaraties mbt jaar T-1"]
[null,null,null," Integrale kosten DBC-zorgproduct \n gereguleerde segment",null,"613.1",null,null,null,null,null,null,null,null,{"$f":"IF(OR((H92-I92)/IF(H92=0,1,H92)<-10%,(J92-K92)/IF(J92=0,1,J92)<-10%,(L92-M92)/IF(L92=0,1,L92)<-10%),\"De balans is < -10%, als dit plausibel is dan vragen wij u dit nader toe te lichten bij de opmerkingen, zo niet dan dient u uw raming aan te scherpen.\",\"\")","v":""}]
[null,null,null," Academische ziekenhuizen",null,null,null,null,null,null,null,null,null,null,""]
[null,null,null," Algemene ziekenhuizen",null,null,null,null,null,null,null,null,null,null,""]
[null,null,null," Zelfstandige behandelcentra",null,null,null,null,null,null,null,null,null,null,""]
[null,null,null," Overige zorgaanbieders "]
[null,null,null," TOTAAL code 613.1",null,null,null,{"$f":"SUM(H92:H95)","v":0},{"$f":"SUM(I92:I95)","v":0},{"$f":"SUM(J92:J95)","v":0},{"$f":"SUM(K92:K95)","v":0},{"$f":"SUM(L92:L95)","v":0}]
[null,null,null," Integrale kosten DBC-zorgproduct \n vrije segment",null,"615.1",null,null,null,null,null,null,null,null,{"$f":"IF(OR((H98-I98)/IF(H98=0,1,H98)<-10%,(J98-K98)/IF(J98=0,1,J98)<-10%,(L98-M98)/IF(L98=0,1,L98)<-10%),\"De balans is < -10%, als dit plausibel is dan vragen wij u dit nader toe te lichten bij de opmerkingen, zo niet dan dient u uw raming aan te scherpen.\",\"\")","v":""}]
[null,null,null," Academische ziekenhuizen",null,null,null,null,null,null,null,null,null,null,""]
[null,null,null," Algemene ziekenhuizen",null,null,null,null,null,null,null,null,null,null,""]
[null,null,null," Zelfstandige behandelcentra",null,null,null,null,null,null,null,null,null,null,""]
[null,null,null," Overige zorgaanbieders "]
[null,null,null," TOTAAL code 615.1",null,null,null,{"$f":"SUM(H98:H101)","v":0},{"$f":"SUM(I98:I101)","v":0},{"$f":"SUM(J98:J101)","v":0},0,{"$f":"SUM(L98:L101)","v":0}]
[]
[null,null,null,"SPECIFICATIES VAN KOSTEN EN PRODUCTIE"]
[null,null,null,"RUBRIEK 09 ZIEKENVERVOER"]
[null,null,null,"  CODE 650 - VERVOER PER AMBULANCE/HELIKOPTER",null,null,null,null,null,null,"Ontvangen en geaccepteerde declaraties mbt jaar 2021","Ontvangen en geaccepteerde declaraties mbt jaar 2020"]
[null,null,null,null,null,null,null,null,null,null,"Ontvangen en geaccepteerde declaraties mbt jaar T","Ontvangen en geaccepteerde declaraties mbt jaar T-1"]
[null,null,null," Ambulanceritten"]
[null,null,null," Helikoptervluchten"]
[null,null,null," TOTAAL code 650",null,null,null,null,null,null,{"$f":"SUM(K108:K109)","v":0},{"$f":"SUM(L108:L109)","v":0}]
[]
[null,null,null,"  CODE 650 - VERVOER PER AMBULANCE/HELIKOPTER - vervolg",null,null,null,null,null,null,"Aantal mbt 2021","Aantal mbt 2020"]
[null,null,null,null,null,null,null,null,null,null,"Ontvangen en geaccepteerde declaraties mbt jaar T","Ontvangen en geaccepteerde declaraties mbt jaar T"]
[null,null,null," Ambulanceritten",null," Spoed (code I010)"]
[null,null,null,null,null," Besteld (code I002)"]
[null,null,null," Helikoptervluchten"]
[]
[]
[null,null,null,{"$f":"NOW()","v":"2022-04-04T16:47:18.280"},null,null,null,null,null,null,null,{"$f":"CONCATENATE(\"Specifieke informatie C, \",LOWER(A83))","v":"Specifieke informatie C, pagina 4"}]
[]
["Pagina 5",null,null,{"$f":"CONCATENATE(\"JAARSTAAT ZVW \", jaar_id)","v":"JAARSTAAT ZVW 2021"}]
[null,null,null,"SPECIFIEKE INFORMATIE C (BELEIDSINFORMATIE)"]
[null,null,null,{"$f":"IF(naw_uzovi_zorgverzekeraar<>\"0000\",CONCATENATE(UPPER(naw_naam_zorgverzekeraar),\", \",UPPER(naw_plaats_zorgverzekeraar)),\"\")","v":""},null,null,null,null,null,null,null,{"$f":"CONCATENATE(\"UZOVI: \",naw_uzovi_zorgverzekeraar)","v":"UZOVI: 0000"}]
[]
[null,null,null,"RUBRIEK 09 ZIEKENVERVOER"]
[null,null,null,"  CODE 651 - VERVOER PER OPENBAAR VERVOER, TAXI EN EIGEN AUTO",null,null,null,null,null,null,"Ontvangen en geaccepteerde declaraties mbt jaar 2021","Ontvangen en geaccepteerde declaraties mbt jaar 2020"]
[null,null,null,null,null,null,null,null,null,null,"Ontvangen en geaccepteerde declaraties mbt jaar T","Ontvangen en geaccepteerde declaraties mbt jaar T-1"]
[null,null,null," Nierdialysepatiënten",null," Openbaar vervoer"]
[null,null,null,null,null," Taxi"]
[null,null,null,null,null," Eigen auto"]
[null,null,null," Chemokuur- en radiotherapie \n patiënten + immuuntherapie",null," Openbaar vervoer"]
[null,null,null,null,null," Taxi"]
[null,null,null,null,null," Eigen auto"]
[null,null,null," Rolstoelgebruikers",null," Openbaar vervoer"]
[null,null,null,null,null," Taxi"]
[null,null,null,null,null," Eigen auto"]
[null,null,null," Visueel gehandicapten",null," Openbaar vervoer"]
[null,null,null,null,null," Taxi"]
[null,null,null,null,null," Eigen auto"]
[null,null,null," Overige patiënten met toestemming\n o.g.v. hardheidsclausule",null," Openbaar vervoer"]
[null,null,null,null,null," Taxi"]
[null,null,null,null,null," Eigen auto"]
[null,null,null," Geneeskundige zorg specifieke patiëntgroepen",null," Openbaar vervoer"]
[null,null,null,null,null," Taxi"]
[null,null,null,null,null," Eigen auto"]
[null,null,null," Intensieve kindzorg",null," Openbaar vervoer"]
[null,null,null,null,null," Taxi"]
[null,null,null,null,null," Eigen auto"]
[null,null,null," Geriatrische revalidatiezorg ",null," Openbaar vervoer"]
[null,null,null,null,null," Taxi"]
[null,null,null,null,null," Eigen auto"]
[null,null,null," Logeervergoeding"]
[null,null,null," TOTAAL code 651",null,null,null,null,null,null,{"$f":"SUM(K128:K152)","v":0},{"$f":"SUM(L128:L152)","v":0}]
[]
[null,null,null,"  CODE 651 - VERVOER PER OPENBAAR VERVOER, TAXI EN EIGEN AUTO - vervolg",null,null,null,null,null,null,"Aantal mbt 2021","Aantal mbt 2020"]
[null,null,null,null,null,null,null,null,null,null,"Ontvangen en geaccepteerde declaraties mbt jaar T","Ontvangen en geaccepteerde declaraties mbt jaar T"]
[null,null,null," Totaal verzekerden met kosten hoger dan de wettelijke eigen bijdrage"]
[]
[]
[]
[]
[]
[]
[]
[null,null,null,{"$f":"NOW()","v":"2022-04-04T16:47:18.280"},null,null,null,null,null,null,null,{"$f":"CONCATENATE(\"Specifieke informatie C, \",LOWER(A121))","v":"Specifieke informatie C, pagina 5"}]
[]
["Pagina 6",null,null,{"$f":"CONCATENATE(\"JAARSTAAT ZVW \", jaar_id)","v":"JAARSTAAT ZVW 2021"}]
[null,null,null,"SPECIFIEKE INFORMATIE C (BELEIDSINFORMATIE)"]
[null,null,null,{"$f":"IF(naw_uzovi_zorgverzekeraar<>\"0000\",CONCATENATE(UPPER(naw_naam_zorgverzekeraar),\", \",UPPER(naw_plaats_zorgverzekeraar)),\"\")","v":""},null,null,null,null,null,null,null,{"$f":"CONCATENATE(\"UZOVI: \",naw_uzovi_zorgverzekeraar)","v":"UZOVI: 0000"}]
[null,null,null,"SPECIFICATIES VAN KOSTEN EN PRODUCTIE"]
[null,null,null,"RUBRIEK 13 DIVERSE OVERIGE KOSTEN"]
[null,null,null," CODE 700 - OVERIGE KOSTEN",null,null,null,null,null,"Ontvangen en geaccepteerde declaraties mbt 2021","Ontvangen en geaccepteerde declaraties mbt 2020","Ontvangen en geaccepteerde declaraties mbt 2019 en ouder"]
[]
[null,null,null," Kosten i.v.m. beleidsregel innovatie t.b.v. nieuwe zorgprestaties "]
[null,null,null," Kosten Integrale geboortezorg "]
[null,null,null," Kosten Gecombineerde Leefstijl Interventie "]
[null,null,null," TOTAAL code 700",null,null,null,null,null,{"$f":"SUM(J174:J176)","v":0},{"$f":"SUM(K174:K176)","v":0},{"$f":"SUM(L174:L176)","v":0}]
[]
[null,null,null," CODE 701 - OVERIGE GENEESKUNDIGE ZORG",null,null,null,null,null,null,"Ontvangen en geaccepteerde declaraties mbt jaar 2021","Ontvangen en geaccepteerde declaraties mbt jaar 2020"]
[null,null,null,null,null,null,null,null,null,null,"Ontvangen en geaccepteerde declaraties mbt jaar T","Ontvangen en geaccepteerde declaraties mbt jaar T-1"]
[null,null,null," Geneeskundige individuele zorg bij tuberculose en infectieziekten door GGD'en"]
[null,null,null," Huidtherapie"]
[null,null,null," Orthoptie"]
[null,null,null," Optometrie"]
[null,null,null," Kosten voetzorg bij Diabetes Mellitus type 2"]
[null,null,null," Koemelkallergietest (niet horend bij Multidisciplinaire Zorg) "]
[null,null,null," Regiefunctie complexe wondzorg"]
[null,null,null," TOTAAL code 701",null,null,null,null,null,null,{"$f":"SUM(K181:K187)","v":0},{"$f":"SUM(L181:L187)","v":0}]
[]
[null,null,null," CODE 702 - ZINTUIGLIJK GEHANDICAPTEN",null,null,null,null,null,null,"Ontvangen en geaccepteerde declaraties mbt jaar 2021","Ontvangen en geaccepteerde declaraties mbt jaar 2020"]
[null,null,null,null,null,null,null,null,null,null,"Ontvangen en geaccepteerde declaraties mbt jaar T","Ontvangen en geaccepteerde declaraties mbt jaar T-1"]
[null,null,null," Kosten van zorg ivm visuele beperking "]
[null,null,null," Kosten van zorg ivm auditieve en communicatieve beperking"]
[null,null,null," TOTAAL code 702",null,null,null,null,null,null,{"$f":"SUM(K192:K193)","v":0},{"$f":"SUM(L192:L193)","v":0}]
[]
[]
[]
[]
[]
[]
[]
[null,null,null,{"$f":"NOW()","v":"2022-04-04T16:47:18.280"},null,null,null,null,null,null,null,{"$f":"CONCATENATE(\"Specifieke informatie C, \",LOWER(A167))","v":"Specifieke informatie C, pagina 6"}]
[]
["Pagina 7",null,null,{"$f":"CONCATENATE(\"JAARSTAAT ZVW \", jaar_id)","v":"JAARSTAAT ZVW 2021"}]
[null,null,null,"SPECIFIEKE INFORMATIE C (BELEIDSINFORMATIE)"]
[null,null,null,{"$f":"IF(naw_uzovi_zorgverzekeraar<>\"0000\",CONCATENATE(UPPER(naw_naam_zorgverzekeraar),\", \",UPPER(naw_plaats_zorgverzekeraar)),\"\")","v":""},null,null,null,null,null,null,null,{"$f":"CONCATENATE(\"UZOVI: \",naw_uzovi_zorgverzekeraar)","v":"UZOVI: 0000"}]
[null,null,null,"SPECIFICATIES VAN KOSTEN EN PRODUCTIE"]
[null,null,null,"RUBRIEK 15 GRENSOVERSCHRIJDENDE ZORG"]
[null,null,null,"  CODE 720 - KOSTEN GRENSOVERSCHRIJDENDE ZORG VIA VERZEKERAAR",null,null,null,null,null,null,"Ontvangen en geaccepteerde declaraties mbt jaar 2021","Ontvangen en geaccepteerde declaraties mbt jaar 2020"]
[null,null,null,null,null,null,null,null,null,null,"Ontvangen en geaccepteerde declaraties mbt jaar T","Ontvangen en geaccepteerde declaraties mbt jaar T-1"]
[null,null,null," Kosten gemaakt in het buitenland \n van Zvw verzekerden die wonen in \n Nederland",null," Op basis van een contract "]
[null,null,null,null,null," Niet op basis van een contract "]
[null,null,null," Kosten gemaakt in het buitenland van Zvw verzekerden die wonen in het buitenland"]
[null,null,null," TOTAAL code 720",null,null,null,null,null,null,{"$f":"SUM(K211:K213)","v":0},{"$f":"SUM(L211:L213)","v":0}]
[]
[null,null,null,"  CODE 720 - GRENSOVERSCHRIJDENDE ZORG VIA VERZEKERAAR",null,null,null,null,null,null,"Aantal verzekerden mbt 2021","Aantal verzekerden mbt 2020"]
[null,null,null,null,null,null,null,null,null,null,"Ontvangen en geaccepteerde declaraties mbt jaar T","Ontvangen en geaccepteerde declaraties mbt jaar T"]
[null,null,null," Kosten gemaakt in het buitenland \n van Zvw verzekerden die wonen in \n Nederland",null," Op basis van een contract"]
[null,null,null,null,null," Niet op basis van een contract"]
[null,null,null," Kosten gemaakt in het buitenland van Zvw verzekerden die wonen in het buitenland"]
[null,null,null," TOTAAL code 720",null,null,null,null,null,null,{"$f":"SUM(K218:K220)","v":0},{"$f":"SUM(L218:L220)","v":0}]
[]
[]
[]
[]
[]
[]
[]
[]
[]
[]
[]
[]
[]
[]
[]
[]
[]
[]
[]
[]
[]
[]
[]
[null,null,null,{"$f":"NOW()","v":"2022-04-04T16:47:18.280"},null,null,null,null,null,null,null,{"$f":"CONCATENATE(\"Specifieke informatie C, \",LOWER(A204))","v":"Specifieke informatie C, pagina 7"}]

{"sheet":"Contractinformatie","index":10,"n_rows":106,"n_cols":12,"rows_kept":106,"cut":false,"hidden":false,"merged":[[66,3,66,8],[65,3,65,8],[105,3,105,4],[89,3,89,11],[72,11,73,11],[72,10,73,10],[79,5,79,9],[79,3,79,4],[81,10,82,10],[81,11,82,11],[83,3,83,11],[81,9,82,9],[72,9,73,9],[72,3,73,8],[81,3,82,8],[84,3,84,8],[56,9,57,9],[41,3,41,8],[42,3,42,8],[47,3,47,8],[45,3,45,8],[35,9,36,9],[35,3,36,8],[39,3,39,8],[40,3,40,8],[49,3,49,4],[48,3,48,8],[56,11,57,11],[25,10,26,10],[56,10,57,10],[35,11,36,11],[25,11,26,11],[35,10,36,10],[25,9,26,9],[10,11,11,11],[16,3,16,11],[12,3,12,11],[10,10,11,10],[10,9,11,9],[14,3,14,8],[15,3,15,8],[25,3,26,8],[17,3,17,8],[18,3,18,8],[19,3,19,8],[22,3,22,8],[20,3,20,8],[21,3,21,8],[30,3,30,8],[31,3,31,8],[43,3,43,8],[44,3,44,8],[64,3,64,8],[56,3,57,8],[58,3,58,8],[59,3,59,8],[60,3,60,8],[61,3,61,8],[62,3,62,8],[63,3,63,8],[95,3,95,11],[99,3,99,8],[76,3,76,8],[77,3,77,8],[86,3,86,8],[87,3,87,8],[92,3,92,8],[85,3,85,8],[88,3,88,8],[93,3,93,8],[98,3,98,8],[80,3,80,10]]}
[null,null,"INVULSPECIFICATIES SPECIFIEKE INFORMATIE C"]
[]
[]
[]
[]
["Pagina 1",null,null,{"$f":"CONCATENATE(\"JAARSTAAT ZVW \", jaar_id)","v":"JAARSTAAT ZVW 2021"}]
[null,null,null,"SPECIFIEKE INFORMATIE C (CONTRACTINFORMATIE)"]
[null,null,null,{"$f":"IF(naw_uzovi_zorgverzekeraar<>\"0000\",CONCATENATE(UPPER(naw_naam_zorgverzekeraar),\", \",UPPER(naw_plaats_zorgverzekeraar)),\"\")","v":""},null,null,null,null,null,null,null,{"$f":"CONCATENATE(\"UZOVI: \",naw_uzovi_zorgverzekeraar)","v":"UZOVI: 0000"}]
[]
[null,null,null,"CONTRACTINFORMATIE HUISARTSENZORG EN MULTIDISCIPLINAIRE ZORG, rubriek 01"]
[null,null,null,null,null,null,null,null,null,"Lasten inclusief balanspost 2021","Lasten inclusief balanspost 2020","Lasten inclusief balanspost 2019"]
[null,null,null,null,null,null,null,null,null,"Ontvangen en geaccepteerde declaraties mbt jaar T","Ontvangen en geaccepteerde declaraties mbt jaar T","Ontvangen en geaccepteerde declaraties mbt jaar T"]
[null,null,null," Huisartsenzorg, codes 503, 504, 505, 506,507, 515"]
[null,null,null," Gecontracteerde zorg"]
[null,null,null," Niet gecontracteerde zorg"]
[null,null,null," Subtotaal huisartsenzorg",null,null,null,null,null,{"$f":"SUM(J14:J15)","v":0},0,{"$f":"SUM(L14:L15)","v":0}]
[null,null,null," Multidisciplinaire zorg, codes 510 en 516"]
[null,null,null," Gecontracteerde zorg"]
[null,null,null," Niet gecontracteerde zorg"]
[null,null,null," Subtotaal multidisciplinaire zorg",null,null,null,null,null,{"$f":"SUM(J18:J19)","v":0},{"$f":"SUM(K18:K19)","v":0},{"$f":"SUM(L18:L19)","v":0}]
[null,null,null," Meerkosten Corona, indirect en toeslagen, gecontracteerd, niet gecontracteerd"]
[null,null,null," Netto continuïteitsbijdrage Corona, gecontracteerd, niet gecontracteerd"]
[null,null,null," TOTAAL RUBRIEK 01",null,null,null,null,null,{"$f":"SUM(J16,J20,J21,J22)","v":0},{"$f":"SUM(K16,K20,K21,K22)","v":0},0]
[]
[null,null,null,"CONTRACTINFORMATIE VERPLEGING EN VERZORGING, rubriek 03"]
[null,null,null,null,null,null,null,null,null,"Lasten inclusief balanspost 2021","Lasten inclusief balanspost 2020","Lasten inclusief balanspost 2019"]
[null,null,null,null,null,null,null,null,null,"Ontvangen en geaccepteerde declaraties mbt jaar T","Ontvangen en geaccepteerde declaraties mbt jaar T","Ontvangen en geaccepteerde declaraties mbt jaar T"]
[null,null,null," Gecontracteerde zorg"]
[null,null,null," Niet gecontracteerde zorg"]
[null,null,null," PGB"]
[null,null,null," Meerkosten Corona, indirect en toeslagen, gecontracteerd, niet gecontracteerd"]
[null,null,null," Netto continuïteitsbijdrage Corona, gecontracteerd, niet gecontracteerd"]
[null,null,null," TOTAAL RUBRIEK 03",null,null,null,null,null,{"$f":"SUM(J28:J32)","v":0},{"$f":"SUM(K28:K32)","v":0},0]
[]
[null,null,null,"CONTRACTINFORMATIE MEDISCH SPECIALISTISCHE ZORG, rubriek 06"]
[null,null,null,null,null,null,null,null,null,"Lasten inclusief balanspost 2021","Lasten inclusief balanspost 2020","Lasten inclusief balanspost 2019"]
[null,null,null,null,null,null,null,null,null,"Ontvangen en geaccepteerde declaraties mbt jaar T","Ontvangen en geaccepteerde declaraties mbt jaar T","Ontvangen en geaccepteerde declaraties mbt jaar T"]
[null,null,null," Gecontracteerde zorg: aanneemsom"]
[null,null,null," Gecontracteerde zorg: plafond"]
[null,null,null," Gecontracteerde zorg: nacalculatie bij aanneemsommen en plafondcontracten"]
[null,null,null," Gecontracteerde zorg: open einde contract"]
[null,null,null," Subtotaal gecontracteerde zorg",null,null,null,null,null,{"$f":"SUM(J38:J41)","v":0},{"$f":"SUM(K38:K41)","v":0},{"$f":"SUM(L38:L41)","v":0}]
[null,null,null," Niet gecontracteerde zorg"]
[null,null,null," Meerkosten Corona, indirect en toeslagen, gecontracteerd, niet gecontracteerd"]
[null,null,null," Netto continuïteitsbijdrage Corona, gecontracteerd, niet gecontracteerd"]
[null,null,null," TOTAAL RUBRIEK 06",null,null,null,null,null,{"$f":"SUM(J42:J45)","v":0},{"$f":"SUM(K42:K45)","v":0},0]
[]
[null,null,null,null,null,null,null,null,null,2021,2020,2019]
[null,null,null," Totaal afgesproken maximum omzet plafondcontracten"]
[null,null,null,{"$f":"NOW()","v":"2022-04-04T16:47:18.280"},null,null,null,null,null,null,null,{"$f":"CONCATENATE(\"Contractinformatie, \",LOWER(A6))","v":"Contractinformatie, pagina 1"}]
[]
["Pagina 2",null,null,{"$f":"CONCATENATE(\"JAARSTAAT ZVW \", jaar_id)","v":"JAARSTAAT ZVW 2021"}]
[null,null,null,"SPECIFIEKE INFORMATIE C (CONTRACTINFORMATIE)"]
[null,null,null,{"$f":"IF(naw_uzovi_zorgverzekeraar<>\"0000\",CONCATENATE(UPPER(naw_naam_zorgverzekeraar),\", \",UPPER(naw_plaats_zorgverzekeraar)),\"\")","v":""},null,null,null,null,null,null,null,{"$f":"CONCATENATE(\"UZOVI: \",naw_uzovi_zorgverzekeraar)","v":"UZOVI: 0000"}]
[]
[null,null,null,"CONTRACTINFORMATIE GGZ, rubriek 10"]
[null,null,null,null,null,null,null,null,null,"Lasten inclusief balanspost 2021","Lasten inclusief balanspost 2020","Lasten inclusief balanspost 2019"]
[null,null,null,null,null,null,null,null,null,"Ontvangen en geaccepteerde declaraties mbt jaar T","Ontvangen en geaccepteerde declaraties mbt jaar T","Ontvangen en geaccepteerde declaraties mbt jaar T"]
[null,null,null," Gecontracteerde zorg: aanneemsom"]
[null,null,null," Gecontracteerde zorg: plafond"]
[null,null,null," Gecontracteerde zorg: nacalculatie bij aanneemsommen en plafondcontracten"]
[null,null,null," Gecontracteerde zorg: open einde contract"]
[null,null,null," Subtotaal gecontracteerde zorg",null,null,null,null,null,{"$f":"SUM(J59:J62)","v":0},{"$f":"SUM(K59:K62)","v":0},{"$f":"SUM(L59:L62)","v":0}]
[null,null,null," Niet gecontracteerde zorg"]
[null,null,null," Meerkosten Corona, indirect en toeslagen, gecontracteerd, niet gecontracteerd"]
[null,null,null," Netto continuïteitsbijdrage Corona, gecontracteerd, niet gecontracteerd"]
[null,null,null," TOTAAL RUBRIEK 10",null,null,null,null,null,{"$f":"SUM(J63:J66)","v":0},{"$f":"SUM(K63:K66)","v":0},0]
[]
[null,null,null,null,null,null,null,null,null,2021,2020,2019]
[null,null,null," Totaal afgesproken maximum omzet plafondcontracten"]
[]
[null,null,null,"CONTRACTINFORMATIE ZINTUIGLIJK GEHANDICAPTEN, code 702"]
[null,null,null,null,null,null,null,null,null,"Lasten inclusief balanspost 2021","Lasten inclusief balanspost 2020","Lasten inclusief balanspost 2019"]
[null,null,null,null,null,null,null,null,null,"Ontvangen en geaccepteerde declaraties mbt jaar T","Ontvangen en geaccepteerde declaraties mbt jaar T","Ontvangen en geaccepteerde declaraties mbt jaar T"]
[null,null,null," Gecontracteerde zorg"]
[null,null,null," Niet gecontracteerde zorg"]
[null,null,null," Meerkosten Corona, indirect en toeslagen, gecontracteerd, niet gecontracteerd"]
[null,null,null," Netto continuïteitsbijdrage Corona, gecontracteerd, niet gecontracteerd"]
[null,null,null," TOTAAL CODE 702",null,null,null,null,null,{"$f":"SUM(J75:J78)","v":0},{"$f":"SUM(K75:K78)","v":0},0]
[]
[null,null,null,"CONTRACTINFORMATIE GERIATRISCHE REVALIDATIE, EERSTELIJNSVERBLIJF EN GENEESKUNDIGE ZORG SPECIFIEKE PATIENTGROEPEN, rubriek 11"]
[null,null,null,null,null,null,null,null,null,"Lasten inclusief balanspost 2021","Lasten inclusief balanspost 2020","Lasten inclusief balanspost 2019"]
[null,null,null,null,null,null,null,null,null,"Ontvangen en geaccepteerde declaraties mbt jaar T","Ontvangen en geaccepteerde declaraties mbt jaar T","Ontvangen en geaccepteerde declaraties mbt jaar T"]
[null,null,null," Geriatrische Revalidatie, code 670"]
[null,null,null," Gecontracteerde zorg"]
[null,null,null," Niet gecontracteerde zorg"]
[null,null,null," Meerkosten Corona, indirect en toeslagen, gecontracteerd, niet gecontracteerd"]
[null,null,null," Netto continuïteitsbijdrage Corona, gecontracteerd, niet gecontracteerd"]
[null,null,null," Subtotaal Geriatrische Revalidatie ",null,null,null,null,null,{"$f":"SUM(J85:J88)","v":0},{"$f":"SUM(K85:K88)","v":0},0]
[null,null,null," Eerstelijnsverblijf, code 671"]
[null,null,null," Gecontracteerde zorg"]
[null,null,null," Niet gecontracteerde zorg"]
[null,null,null," Meerkosten Corona, indirect en toeslagen, gecontracteerd, niet gecontracteerd"]
[null,null,null," Netto continuïteitsbijdrage Corona, gecontracteerd, niet gecontracteerd"]
[null,null,null," Subtotaal Eerstelijnsverblijf ",null,null,null,null,null,{"$f":"SUM(J91:J94)","v":0},{"$f":"SUM(K91:K94)","v":0},0]
[null,null,null," Geneeskundige Zorg Specifieke Patiëntgroepen, code 672"]
[null,null,null," Gecontracteerde zorg"]
[null,null,null," Niet gecontracteerde zorg"]
[null,null,null," Meerkosten Corona, indirect en toeslagen, gecontracteerd, niet gecontracteerd"]
[null,null,null," Netto continuïteitsbijdrage Corona, gecontracteerd, niet gecontracteerd"]
[null,null,null," Subtotaal Geneeskundige Zorg Specifieke Patiëntgroepen",null,null,null,null,null,{"$f":"SUM(J97:J100)","v":0},{"$f":"SUM(K97:K100)","v":0},0]
[null,null,null," TOTAAL RUBRIEK 11",null,null,null,null,null,{"$f":"SUM(J89,J95,J101)","v":0},{"$f":"SUM(K89,K95,K101)","v":0},{"$f":"SUM(L89,L95,L101)","v":0}]
[]
[]
[]
[null,null,null,{"$f":"NOW()","v":"2022-04-04T16:47:18.280"},null,null,null,null,null,null,null,{"$f":"CONCATENATE(\"Contractinformatie, \",LOWER(A52))","v":"Contractinformatie, pagina 2"}]

{"sheet":"Controleoverzicht","index":11,"n_rows":261,"n_cols":12,"rows_kept":261,"cut":false,"hidden":false,"merged":[[197,11,198,11],[197,3,198,8],[191,3,191,8],[197,10,198,10],[197,9,198,9],[194,3,194,8],[188,11,189,11],[188,10,189,10],[195,3,195,8],[193,3,193,8],[188,3,189,8],[188,9,189,9],[190,3,190,8],[220,11,221,11],[220,3,221,8],[203,3,203,8],[204,3,204,8],[220,9,221,9],[220,10,221,10],[207,3,207,8],[205,3,205,8],[208,3,208,8],[209,3,209,8],[149,3,149,8],[145,3,146,8],[148,3,148,8],[147,3,147,8],[81,3,81,9],[138,3,138,8],[82,3,82,9],[102,3,102,9],[136,3,136,9],[140,3,140,8],[84,3,84,9],[137,3,137,9],[100,3,100,9],[99,3,99,9],[130,3,130,9],[85,3,85,9],[122,3,122,9],[95,3,95,9],[126,3,126,9],[142,3,142,9],[141,3,141,8],[145,9,146,9],[83,3,83,9],[89,3,89,9],[76,3,76,9],[75,3,75,9],[29,10,30,10],[71,3,71,9],[74,3,74,9],[53,3,53,9],[35,3,35,9],[31,3,31,9],[33,3,33,9],[63,10,64,10],[32,3,32,9],[45,3,45,9],[47,3,47,9],[48,3,48,9],[49,3,49,9],[54,3,54,9],[55,3,55,9],[56,3,56,9],[63,3,64,9],[139,3,139,8],[114,3,114,9],[101,3,101,9],[72,3,72,9],[145,10,146,10],[63,11,64,11],[93,3,93,9],[67,3,67,9],[68,3,68,9],[69,3,69,9],[77,3,77,9],[78,3,78,9],[79,3,79,9],[86,3,86,9],[87,3,87,9],[88,3,88,9],[90,3,90,9],[91,3,91,9],[92,3,92,9],[96,3,96,9],[97,3,97,9],[66,3,66,9],[98,3,98,9],[73,3,73,9],[10,11,11,11],[10,9,11,9],[14,9,15,9],[10,3,11,8],[10,10,11,10],[18,10,19,10],[18,9,19,9],[20,3,20,8],[14,3,15,8],[18,11,19,11],[14,11,15,11],[25,3,25,8],[12,3,12,8],[16,3,16,8],[18,3,19,8],[14,10,15,10],[23,11,24,11],[23,10,24,10],[23,9,24,9],[23,3,24,8],[21,3,21,8],[29,11,30,11],[231,11,232,11],[248,3,248,8],[238,3,238,8],[231,9,232,9],[231,10,232,10],[242,10,243,10],[242,11,243,11],[246,3,246,8],[235,3,235,8],[231,3,232,8],[242,9,243,9],[236,3,236,8],[237,3,237,8],[239,3,239,8],[159,11,160,11],[159,9,160,9],[159,10,160,10],[159,3,160,8],[171,3,171,8],[226,3,226,8],[247,3,247,8],[242,3,243,8],[145,11,146,11],[26,3,26,8],[150,3,150,8],[94,3,94,9],[118,3,118,9],[70,3,70,9],[80,3,80,9],[131,3,131,9],[27,3,27,8],[42,3,42,9],[37,3,37,9],[52,3,52,9],[46,3,46,9],[65,3,65,9],[36,3,36,9],[51,3,51,9],[29,3,30,9],[50,3,50,9],[34,3,34,9],[38,3,38,9],[39,3,39,9],[40,3,40,9],[41,3,41,9],[43,3,43,9],[44,3,44,9],[152,3,152,8],[206,3,206,8],[161,3,161,8],[225,3,225,8],[222,3,222,8],[201,3,201,8],[199,3,199,8],[169,3,169,8],[200,3,200,8],[168,3,168,8],[170,3,170,8],[103,3,103,9],[104,3,104,9],[105,3,105,9],[127,3,127,9],[128,3,128,9],[250,3,250,8],[244,3,244,8],[245,3,245,8],[233,3,233,8],[234,3,234,8],[227,3,227,8],[164,3,164,8],[162,3,162,8],[163,3,163,8],[192,3,192,8],[202,3,202,8],[165,3,165,8],[167,3,167,8],[166,3,166,8],[249,3,249,8],[223,3,223,8],[224,3,224,8],[151,3,151,8],[133,3,133,9],[112,3,113,9],[112,10,113,10],[112,11,113,11],[134,3,134,9],[135,3,135,9],[129,3,129,9],[115,3,115,9],[116,3,116,9],[117,3,117,9],[119,3,119,9],[120,3,120,9],[121,3,121,9],[123,3,123,9],[124,3,124,9],[125,3,125,9],[132,3,132,9]]}
[null,null,"SPECIFICATIES CONTROLEOVERZICHT"]
[]
[]
[]
[]
["Pagina 1",null,null,{"$f":"CONCATENATE(\"JAARSTAAT ZVW \", jaar_id)","v":"JAARSTAAT ZVW 2021"}]
[null,null,null,"CONTROLEOVERZICHT"]
[null,null,null,{"$f":"IF(naw_uzovi_zorgverzekeraar<>\"0000\",CONCATENATE(UPPER(naw_naam_zorgverzekeraar),\", \",UPPER(naw_plaats_zorgverzekeraar)),\"\")","v":""},null,null,null,null,null,null,null,{"$f":"CONCATENATE(\"UZOVI: \",naw_uzovi_zorgverzekeraar)","v":"UZOVI: 0000"}]
[null,null,null,"SPECIFIEKE INFORMATIE 2021 EN A"]
[null,null,null,"(EXCLUSIEF COVID-KOSTEN)"]
[null,null,null," SPECIFICATIES KOSTEN NAAR DEELBIJDRAGE",null,null,null,null,null,"Lasten 2021 inclusief balanspost","Kosten naar deelbijdrage","Verschil"]
[]
[null,null,null," Totaal kosten naar deelbijdrage (totaal lasten t/m rubriek 16) - \n inclusief balanspost",null,null,null,null,null,{"$f":"'Kostenverzamelstaat 2021'!I176","v":0},{"$f":"'Specifieke informatie 2021'!K17","v":0},{"$f":"IF(J13<>K13,J13-K13,\"\")","v":""}]
[]
[null,null,null," SPECIFICATIES KOSTEN NAAR DEELBIJDRAGE",null,null,null,null,null,"Ontvangen en \ngeaccepteerde \ndeclaraties mbt \n2019 en ouder","Kosten naar deelbijdrage","Verschil"]
[]
[null,null,null," Totaal kosten naar deelbijdrage (totaal lasten t/m rubriek 16)",null,null,null,null,null,{"$f":"'Kostenverzamelstaat 2019'!M147","v":0},{"$f":"'Specifieke informatie A 2019'!L17","v":0},{"$f":"IF(J17<>K17,J17-K17,\"\")","v":""}]
[]
[null,null,null," KOSTEN PER CODENUMMER - LASTEN 2021 INCLUSIEF BALANSPOST",null,null,null,null,null,"Volgens\nkostenver- \nzamelstaat","Volgens\ndetail- \nspecificatie ","Verschil"]
[]
[null,null,null," 720 Grensoverschrijdende zorg -Kosten via verzekeraar",null,null,null,null,null,{"$f":"'Kostenverzamelstaat 2021'!I170","v":0},{"$f":"'Specifieke informatie 2021'!K46","v":0},{"$f":"IF(J21<>K21,J21-K21,\"\")","v":""}]
[null,null,null," 721 Grensoverschrijdende zorg - Kosten via verbindingsorgaan",null,null,null,null,null,{"$f":"'Kostenverzamelstaat 2021'!I171","v":0},{"$f":"'Specifieke informatie 2021'!K53","v":0},{"$f":"IF(J22<>K22,J22-K22,\"\")","v":""}]
[]
[null,null,null," KOSTEN PER CODENUMMER - ONTVANGEN EN GEACCEPTEERDE \n                                            DECLARATIES MBT 2019 EN OUDER",null,null,null,null,null,"Volgens\nkostenver- \nzamelstaat","Volgens\ndetail- \nspecificatie ","Verschil"]
[]
[null,null,null," 720 Grensoverschrijdende zorg -Kosten via verzekeraar",null,null,null,null,null,{"$f":"'Kostenverzamelstaat 2019'!M142","v":0},{"$f":"'Specifieke informatie A 2019'!L48","v":0},{"$f":"IF(J26<>K26,J26-K26,\"\")","v":""}]
[null,null,null," 721 Grensoverschrijdende zorg - Kosten via verbindingsorgaan",null,null,null,null,null,{"$f":"'Kostenverzamelstaat 2019'!M143","v":0},{"$f":"'Specifieke informatie A 2019'!L55","v":0},{"$f":"IF(J27<>K27,J27-K27,\"\")","v":""}]
[null,null,null," 730 Kwaliteitsgelden ",null,null,null,null,null,{"$f":"'Kostenverzamelstaat 2019'!M146","v":0},{"$f":"'Specifieke informatie A 2019'!L67","v":0},{"$f":"IF(J28<>K28,J28-K28,\"\")","v":""}]
[]
[null,null,null," KOSTENVERZAMELSTAAT",null,null,null,null,null,null,"Kosten balanspost mbt 2021","Kosten balanspost mbt 2020"]
[]
[null,null,null," 503 Bijzondere betalingen",null,null,null,null,null,null,{"$f":"'Kostenverzamelstaat 2021'!I16-'Kostenverzamelstaat 2021'!J16","v":0},{"$f":"'Kostenverzamelstaat 2020'!I16-'Kostenverzamelstaat 2020'!J16","v":0}]
[null,null,null," 504 Avond-, nacht- en weekenddiensten",null,null,null,null,null,null,{"$f":"('Kostenverzamelstaat 2021'!I17+'Kostenverzamelstaat 2021'!K17)-('Kostenverzamelstaat 2021'!J17+'Kostenverzamelstaat 2021'!L17)","v":0},{"$f":"'Kostenverzamelstaat 2020'!I17-'Kostenverzamelstaat 2020'!J17","v":0}]
[null,null,null," 505 Inschrijftarieven",null,null,null,null,null,null,{"$f":"'Kostenverzamelstaat 2021'!I18-'Kostenverzamelstaat 2021'!J18","v":0},{"$f":"'Kostenverzamelstaat 2020'!I18-'Kostenverzamelstaat 2020'!J18","v":0}]
[null,null,null," 506 Consulttarieven",null,null,null,null,null,null,{"$f":"('Kostenverzamelstaat 2021'!I19+'Kostenverzamelstaat 2021'!K19)-('Kostenverzamelstaat 2021'!J19+'Kostenverzamelstaat 2021'!L19)","v":0},{"$f":"'Kostenverzamelstaat 2020'!I19-'Kostenverzamelstaat 2020'!J19","v":0}]
[null,null,null," 507 Overige tarieven",null,null,null,null,null,null,{"$f":"('Kostenverzamelstaat 2021'!I20+'Kostenverzamelstaat 2021'!K20)-('Kostenverzamelstaat 2021'!J20+'Kostenverzamelstaat 2021'!L20)","v":0},{"$f":"'Kostenverzamelstaat 2020'!I20-'Kostenverzamelstaat 2020'!J20","v":0}]
[null,null,null," 510 Multidisciplinaire zorg ",null,null,null,null,null,null,{"$f":"'Kostenverzamelstaat 2021'!I21-'Kostenverzamelstaat 2021'!J21","v":0},{"$f":"'Kostenverzamelstaat 2020'!I21-'Kostenverzamelstaat 2020'!J21","v":0}]
[null,null,null," 515 Resultaatbeloning en zorgvernieuwing huisartsen",null,null,null,null,null,null,{"$f":"('Kostenverzamelstaat 2021'!I22+'Kostenverzamelstaat 2021'!K22)-('Kostenverzamelstaat 2021'!J22+'Kostenverzamelstaat 2021'!L22)","v":0},{"$f":"'Kostenverzamelstaat 2020'!I22-'Kostenverzamelstaat 2020'!J22","v":0}]
[null,null,null," 516 Resultaatbeloning en zorgvernieuwing MDZ",null,null,null,null,null,null,{"$f":"'Kostenverzamelstaat 2021'!I23-'Kostenverzamelstaat 2021'!J23","v":0},{"$f":"'Kostenverzamelstaat 2020'!I23-'Kostenverzamelstaat 2020'!J23","v":0}]
[null,null,null," 801.1 Meerkosten Corona, indirect",null,null,null,null,null,null,null,{"$f":"'Kostenverzamelstaat 2020'!I25-'Kostenverzamelstaat 2020'!J25","v":0}]
[null,null,null," 801.2 Meerkosten Corona,  toeslagen",null,null,null,null,null,null,null,{"$f":"'Kostenverzamelstaat 2020'!I26-'Kostenverzamelstaat 2020'!J26","v":0}]
[null,null,null," 821 Netto continuïteitsbijdrage Corona (basisverzekering)",null,null,null,null,null,null,{"$f":"'Kostenverzamelstaat 2021'!I27-'Kostenverzamelstaat 2021'!J27","v":0},{"$f":"'Kostenverzamelstaat 2020'!I27-'Kostenverzamelstaat 2020'!J27","v":0}]
[null,null,null," 520 Farmaceutische hulp",null,null,null,null,null,null,{"$f":"'Kostenverzamelstaat 2021'!I30-'Kostenverzamelstaat 2021'!J30","v":0},{"$f":"'Kostenverzamelstaat 2020'!I30-'Kostenverzamelstaat 2020'!J30","v":0}]
[null,null,null," 802.1 Meerkosten Corona, indirect ",null,null,null,null,null,null,null,{"$f":"'Kostenverzamelstaat 2020'!I32-'Kostenverzamelstaat 2020'!J32","v":0}]
[null,null,null," 802.2 Meerkosten Corona, toeslagen",null,null,null,null,null,null,null,{"$f":"'Kostenverzamelstaat 2020'!I33-'Kostenverzamelstaat 2020'!J33","v":0}]
[null,null,null," 822 Netto continuïteitsbijdrage Corona (basisverzekering)",null,null,null,null,null,null,{"$f":"'Kostenverzamelstaat 2021'!I34-'Kostenverzamelstaat 2021'!J34","v":0},{"$f":"'Kostenverzamelstaat 2020'!I34-'Kostenverzamelstaat 2020'!J34","v":0}]
[null,null,null," 530 Kosten van verpleging en verzorging",null,null,null,null,null,null,{"$f":"'Kostenverzamelstaat 2021'!I37-'Kostenverzamelstaat 2021'!J37","v":0},{"$f":"'Kostenverzamelstaat 2020'!I37-'Kostenverzamelstaat 2020'!J37","v":0}]
[null,null,null," 803.1 Meerkosten Corona, indirect",null,null,null,null,null,null,null,{"$f":"'Kostenverzamelstaat 2020'!I39-'Kostenverzamelstaat 2020'!J39","v":0}]
[null,null,null," 803.2 Meerkosten Corona, toeslagen",null,null,null,null,null,null,null,{"$f":"'Kostenverzamelstaat 2020'!I40-'Kostenverzamelstaat 2020'!J40","v":0}]
[null,null,null," 823 Netto continuïteitsbijdrage Corona (basisverzekering)",null,null,null,null,null,null,{"$f":"'Kostenverzamelstaat 2021'!I41-'Kostenverzamelstaat 2021'!J41","v":0},{"$f":"'Kostenverzamelstaat 2020'!I41-'Kostenverzamelstaat 2020'!J41","v":0}]
[null,null,null," 545 Kosten specialisten mondziekten en kaakchirurgie",null,null,null,null,null,null,{"$f":"'Kostenverzamelstaat 2021'!I73-'Kostenverzamelstaat 2021'!J73","v":0},{"$f":"'Kostenverzamelstaat 2020'!I73-'Kostenverzamelstaat 2020'!J73","v":0}]
[null,null,null," 560.1 Kosten mondzorg volwassen verzekerden",null,null,null,null,null,null,{"$f":"'Kostenverzamelstaat 2021'!I44-'Kostenverzamelstaat 2021'!J44","v":0},{"$f":"'Kostenverzamelstaat 2020'!I44-'Kostenverzamelstaat 2020'!J44","v":0}]
[null,null,null," 560.2 Kosten mondzorg jeugdige verzekerden",null,null,null,null,null,null,{"$f":"'Kostenverzamelstaat 2021'!I45-'Kostenverzamelstaat 2021'!J45","v":0},{"$f":"'Kostenverzamelstaat 2020'!I45-'Kostenverzamelstaat 2020'!J45","v":0}]
[null,null,null," 561 Kosten gebitsprothesen",null,null,null,null,null,null,{"$f":"'Kostenverzamelstaat 2021'!I46-'Kostenverzamelstaat 2021'!J46","v":0},{"$f":"'Kostenverzamelstaat 2020'!I46-'Kostenverzamelstaat 2020'!J46","v":0}]
[null,null,null," 804.1 Meerkosten Corona, indirect ",null,null,null,null,null,null,null,{"$f":"'Kostenverzamelstaat 2020'!I48-'Kostenverzamelstaat 2020'!J48","v":0}]
[null,null,null," 804.2 Meerkosten Corona, toeslagen",null,null,null,null,null,null,null,{"$f":"'Kostenverzamelstaat 2020'!I49-'Kostenverzamelstaat 2020'!J49","v":0}]
[null,null,null," 824 Netto continuïteitsbijdrage Corona (basisverzekering)",null,null,null,null,null,null,{"$f":"'Kostenverzamelstaat 2021'!I50-'Kostenverzamelstaat 2021'!J50","v":0},{"$f":"'Kostenverzamelstaat 2020'!I50-'Kostenverzamelstaat 2020'!J50","v":0}]
[null,null,null,{"$f":"NOW()","v":"2022-04-04T16:47:18.280"},null,null,null,null,null,null,null,{"$f":"CONCATENATE(\"Controleoverzicht \",LOWER(A6))","v":"Controleoverzicht pagina 1"}]
[]
["Pagina 2",null,null,{"$f":"CONCATENATE(\"JAARSTAAT ZVW \", jaar_id)","v":"JAARSTAAT ZVW 2021"}]
[null,null,null,"CONTROLEOVERZICHT"]
[null,null,null,{"$f":"IF(naw_uzovi_zorgverzekeraar<>\"0000\",CONCATENATE(UPPER(naw_naam_zorgverzekeraar),\", \",UPPER(naw_plaats_zorgverzekeraar)),\"\")","v":""},null,null,null,null,null,null,null,{"$f":"CONCATENATE(\"UZOVI: \",naw_uzovi_zorgverzekeraar)","v":"UZOVI: 0000"}]
[null,null,null,"SPECIFIEKE INFORMATIE 2021 EN A - vervolg"]
[null,null,null," KOSTENVERZAMELSTAAT",null,null,null,null,null,null,"Kosten balanspost mbt 2021","Kosten balanspost mbt 2020"]
[]
[null,null,null," 580 Kosten verloskundige hulp door verloskundigen",null,null,null,null,null,null,{"$f":"'Kostenverzamelstaat 2021'!I53-'Kostenverzamelstaat 2021'!J53","v":0},{"$f":"'Kostenverzamelstaat 2020'!I53-'Kostenverzamelstaat 2020'!J53","v":0}]
[null,null,null," 582 Kosten Integrale geboortezorg ",null,null,null,null,null,null,{"$f":"'Kostenverzamelstaat 2021'!I54-'Kostenverzamelstaat 2021'!J54","v":0},{"$f":"'Kostenverzamelstaat 2020'!I54-'Kostenverzamelstaat 2020'!J54","v":0}]
[null,null,null," 805.1 Meerkosten Corona, indirect ",null,null,null,null,null,null,null,{"$f":"'Kostenverzamelstaat 2020'!I56-'Kostenverzamelstaat 2020'!J56","v":0}]
[null,null,null," 805.2 Meerkosten Corona, toeslagen",null,null,null,null,null,null,null,{"$f":"'Kostenverzamelstaat 2020'!I57-'Kostenverzamelstaat 2020'!J57","v":0}]
[null,null,null," 825 Netto continuïteitsbijdrage Corona (basisverzekering)",null,null,null,null,null,null,{"$f":"'Kostenverzamelstaat 2021'!I58-'Kostenverzamelstaat 2021'!J58","v":0},{"$f":"'Kostenverzamelstaat 2020'!I58-'Kostenverzamelstaat 2020'!J58","v":0}]
[null,null,null," 610 Overige kosten ziekenhuiszorg en curatieve zorg",null,null,null,null,null,null,{"$f":"'Kostenverzamelstaat 2021'!I74-'Kostenverzamelstaat 2021'!J74","v":0},{"$f":"'Kostenverzamelstaat 2020'!I74-'Kostenverzamelstaat 2020'!J74","v":0}]
[null,null,null," 611 Overige zorgproducten",null,null,null,null,null,null,{"$f":"'Kostenverzamelstaat 2021'!I75-'Kostenverzamelstaat 2021'!J75","v":0},{"$f":"'Kostenverzamelstaat 2020'!I75-'Kostenverzamelstaat 2020'!J75","v":0}]
[null,null,null," 612.1 Kosten addons - Dure geneesmiddelen",null,null,null,null,null,null,{"$f":"'Kostenverzamelstaat 2021'!I76-'Kostenverzamelstaat 2021'!J76","v":0},{"$f":"'Kostenverzamelstaat 2020'!I76-'Kostenverzamelstaat 2020'!J76","v":0}]
[null,null,null," 612.2  Kosten add-ons - IC",null,null,null,null,null,null,{"$f":"('Kostenverzamelstaat 2021'!I77+'Kostenverzamelstaat 2021'!K77)-('Kostenverzamelstaat 2021'!J77+'Kostenverzamelstaat 2021'!L77)","v":0},{"$f":"'Kostenverzamelstaat 2020'!I77-'Kostenverzamelstaat 2020'!J77","v":0}]
[null,null,null," 613.1 Integrale kosten DBC-zorgproduct gereguleerde segment",null,null,null,null,null,null,{"$f":"('Kostenverzamelstaat 2021'!I78+'Kostenverzamelstaat 2021'!K78)-('Kostenverzamelstaat 2021'!J78+'Kostenverzamelstaat 2021'!L78)","v":0},{"$f":"'Kostenverzamelstaat 2020'!I78-'Kostenverzamelstaat 2020'!J78","v":0}]
[null,null,null," 615.1 Integrale kosten DBC-zorgproduct vrije segment",null,null,null,null,null,null,{"$f":"('Kostenverzamelstaat 2021'!I79+'Kostenverzamelstaat 2021'!K79)-('Kostenverzamelstaat 2021'!J79+'Kostenverzamelstaat 2021'!L79)","v":0},{"$f":"'Kostenverzamelstaat 2020'!I79-'Kostenverzamelstaat 2020'!J79","v":0}]
[null,null,null," 619 Kosten en honoraria extramuraal werkende specialisten",null,null,null,null,null,null,{"$f":"'Kostenverzamelstaat 2021'!I80-'Kostenverzamelstaat 2021'!J80","v":0},{"$f":"'Kostenverzamelstaat 2020'!I80-'Kostenverzamelstaat 2020'!J80","v":0}]
[null,null,null," 806.1 Meerkosten Corona, indirect ",null,null,null,null,null,null,null,{"$f":"'Kostenverzamelstaat 2020'!I82-'Kostenverzamelstaat 2020'!J82","v":0}]
[null,null,null," 806.2 Meerkosten Corona,toeslagen",null,null,null,null,null,null,null,{"$f":"'Kostenverzamelstaat 2020'!I83-'Kostenverzamelstaat 2020'!J83","v":0}]
[null,null,null," 826 Netto continuïteitsbijdrage Corona (basisverzekering)",null,null,null,null,null,null,{"$f":"'Kostenverzamelstaat 2021'!I84-'Kostenverzamelstaat 2021'!J84","v":0},{"$f":"'Kostenverzamelstaat 2020'!I84-'Kostenverzamelstaat 2020'!J84","v":0}]
[null,null,null," 620 Kosten fysiotherapie",null,null,null,null,null,null,{"$f":"('Kostenverzamelstaat 2021'!I87+'Kostenverzamelstaat 2021'!K87)-('Kostenverzamelstaat 2021'!J87+'Kostenverzamelstaat 2021'!L87)","v":0},{"$f":"'Kostenverzamelstaat 2020'!I87-'Kostenverzamelstaat 2020'!J87","v":0}]
[null,null,null," 621 Kosten oefentherapie Mensendieck/Cesar",null,null,null,null,null,null,{"$f":"('Kostenverzamelstaat 2021'!I88+'Kostenverzamelstaat 2021'!K88)-('Kostenverzamelstaat 2021'!J88+'Kostenverzamelstaat 2021'!L88)","v":0},{"$f":"'Kostenverzamelstaat 2020'!I88-'Kostenverzamelstaat 2020'!J88","v":0}]
[null,null,null," 623 Kosten logopedie",null,null,null,null,null,null,{"$f":"('Kostenverzamelstaat 2021'!I89+'Kostenverzamelstaat 2021'!K89)-('Kostenverzamelstaat 2021'!J89+'Kostenverzamelstaat 2021'!L89)","v":0},{"$f":"'Kostenverzamelstaat 2020'!I89-'Kostenverzamelstaat 2020'!J89","v":0}]
[null,null,null," 624 Kosten ergotherapie",null,null,null,null,null,null,{"$f":"('Kostenverzamelstaat 2021'!I90+'Kostenverzamelstaat 2021'!K90)-('Kostenverzamelstaat 2021'!J90+'Kostenverzamelstaat 2021'!L90)","v":0},{"$f":"'Kostenverzamelstaat 2020'!I90-'Kostenverzamelstaat 2020'!J90","v":0}]
[null,null,null," 625 Kosten dieetadvisering",null,null,null,null,null,null,{"$f":"('Kostenverzamelstaat 2021'!I91+'Kostenverzamelstaat 2021'!K91)-('Kostenverzamelstaat 2021'!J91+'Kostenverzamelstaat 2021'!L91)","v":0},{"$f":"'Kostenverzamelstaat 2020'!I91-'Kostenverzamelstaat 2020'!J91","v":0}]
[null,null,null," 626  Gecombineerde Leefstijl Interventie (GLI)",null,null,null,null,null,null,{"$f":"'Kostenverzamelstaat 2021'!I92-'Kostenverzamelstaat 2021'!J92","v":0},{"$f":"'Kostenverzamelstaat 2020'!I92-'Kostenverzamelstaat 2020'!J92","v":0}]
[null,null,null," 807.1 Meerkosten Corona, indirect ",null,null,null,null,null,null,null,{"$f":"'Kostenverzamelstaat 2020'!I94-'Kostenverzamelstaat 2020'!J94","v":0}]
[null,null,null," 807.2 Meerkosten Corona, toeslagen",null,null,null,null,null,null,null,{"$f":"'Kostenverzamelstaat 2020'!I95-'Kostenverzamelstaat 2020'!J95","v":0}]
[null,null,null," 827 Netto continuïteitsbijdrage Corona (basisverzekering)",null,null,null,null,null,null,{"$f":"'Kostenverzamelstaat 2021'!I96-'Kostenverzamelstaat 2021'!J96","v":0},{"$f":"'Kostenverzamelstaat 2020'!I96-'Kostenverzamelstaat 2020'!J96","v":0}]
[null,null,null," 640 Hulpmiddelen",null,null,null,null,null,null,{"$f":"'Kostenverzamelstaat 2021'!I99-'Kostenverzamelstaat 2021'!J99","v":0},{"$f":"'Kostenverzamelstaat 2020'!I99-'Kostenverzamelstaat 2020'!J99","v":0}]
[null,null,null," 808.1 Meerkosten Corona, indirect ",null,null,null,null,null,null,null,{"$f":"'Kostenverzamelstaat 2020'!I101-'Kostenverzamelstaat 2020'!J101","v":0}]
[null,null,null," 808.2 Meerkosten Corona, toeslagen",null,null,null,null,null,null,null,{"$f":"'Kostenverzamelstaat 2020'!I102-'Kostenverzamelstaat 2020'!J102","v":0}]
[null,null,null," 828 Netto continuïteitsbijdrage Corona (basisverzekering)",null,null,null,null,null,null,{"$f":"'Kostenverzamelstaat 2021'!I103-'Kostenverzamelstaat 2021'!J103","v":0},{"$f":"'Kostenverzamelstaat 2020'!I103-'Kostenverzamelstaat 2020'!J103","v":0}]
[null,null,null," 650 Kosten vervoer per ambulance/helikopter",null,null,null,null,null,null,{"$f":"('Kostenverzamelstaat 2021'!I106+'Kostenverzamelstaat 2021'!K106)-('Kostenverzamelstaat 2021'!J106+'Kostenverzamelstaat 2021'!L106)","v":0},{"$f":"'Kostenverzamelstaat 2020'!I106-'Kostenverzamelstaat 2020'!J106","v":0}]
[null,null,null," 650.1 Opbrengstenverrekeningen regionale ambulancevoorzieningen ",null,null,null,null,null,null,{"$f":"'Kostenverzamelstaat 2021'!I107-'Kostenverzamelstaat 2021'!J107","v":0},{"$f":"'Kostenverzamelstaat 2020'!I107-'Kostenverzamelstaat 2020'!J107","v":0}]
[null,null,null," 651 Kosten vervoer per openbaar vervoer, taxi en eigen auto",null,null,null,null,null,null,{"$f":"'Kostenverzamelstaat 2021'!I108-'Kostenverzamelstaat 2021'!J108","v":0},{"$f":"'Kostenverzamelstaat 2020'!I108-'Kostenverzamelstaat 2020'!J108","v":0}]
[null,null,null," 809.1 Meerkosten Corona, indirect ",null,null,null,null,null,null,null,{"$f":"'Kostenverzamelstaat 2020'!I110-'Kostenverzamelstaat 2020'!J110","v":0}]
[null,null,null," 809.2 Meerkosten Corona, toeslagen",null,null,null,null,null,null,null,{"$f":"'Kostenverzamelstaat 2020'!I111-'Kostenverzamelstaat 2020'!J111","v":0}]
[null,null,null," 829 Netto continuïteitsbijdrage Corona (basisverzekering)",null,null,null,null,null,null,{"$f":"'Kostenverzamelstaat 2021'!I112-'Kostenverzamelstaat 2021'!J112","v":0},{"$f":"'Kostenverzamelstaat 2020'!I112-'Kostenverzamelstaat 2020'!J112","v":0}]
[null,null,null," 661 Kosten specialistische GGZ met verblijf",null,null,null,null,null,null,{"$f":"'Kostenverzamelstaat 2021'!I127-'Kostenverzamelstaat 2021'!J127","v":0},{"$f":"'Kostenverzamelstaat 2020'!I127-'Kostenverzamelstaat 2020'!J127","v":0}]
[null,null,null," 661.1 Kosten LGGZ (langdurige GGZ, jaar 2 en 3)",null,null,null,null,null,null,{"$f":"'Kostenverzamelstaat 2021'!I128-'Kostenverzamelstaat 2021'!J128","v":0},{"$f":"'Kostenverzamelstaat 2020'!I128-'Kostenverzamelstaat 2020'!J128","v":0}]
[null,null,null," 662 Kosten specialistische GGZ zonder verblijf",null,null,null,null,null,null,{"$f":"'Kostenverzamelstaat 2021'!I129-'Kostenverzamelstaat 2021'!J129","v":0},{"$f":"'Kostenverzamelstaat 2020'!I129-'Kostenverzamelstaat 2020'!J129","v":0}]
[null,null,null," 665 Generalistische basis GGZ",null,null,null,null,null,null,{"$f":"'Kostenverzamelstaat 2021'!I130-'Kostenverzamelstaat 2021'!J130","v":0},{"$f":"'Kostenverzamelstaat 2020'!I130-'Kostenverzamelstaat 2020'!J130","v":0}]
[null,null,null," 810.1 Meerkosten Corona, indirect ",null,null,null,null,null,null,null,{"$f":"'Kostenverzamelstaat 2020'!I132-'Kostenverzamelstaat 2020'!J132","v":0}]
[null,null,null," 810.2 Meerkosten Corona, toeslagen",null,null,null,null,null,null,null,{"$f":"'Kostenverzamelstaat 2020'!I133-'Kostenverzamelstaat 2020'!J133","v":0}]
[null,null,null," 830 Netto continuïteitsbijdrage Corona (basisverzekering)",null,null,null,null,null,null,{"$f":"'Kostenverzamelstaat 2021'!I134-'Kostenverzamelstaat 2021'!J134","v":0},{"$f":"'Kostenverzamelstaat 2020'!I134-'Kostenverzamelstaat 2020'!J134","v":0}]
[null,null,null,{"$f":"NOW()","v":"2022-04-04T16:47:18.280"},null,null,null,null,null,null,null,{"$f":"CONCATENATE(\"Controleoverzicht \",LOWER(A60))","v":"Controleoverzicht pagina 2"}]
[]
["Pagina 3",null,null,{"$f":"CONCATENATE(\"JAARSTAAT ZVW \", jaar_id)","v":"JAARSTAAT ZVW 2021"}]
[null,null,null,"CONTROLEOVERZICHT"]
[null,null,null,{"$f":"IF(naw_uzovi_zorgverzekeraar<>\"0000\",CONCATENATE(UPPER(naw_naam_zorgverzekeraar),\", \",UPPER(naw_plaats_zorgverzekeraar)),\"\")","v":""},null,null,null,null,null,null,null,{"$f":"CONCATENATE(\"UZOVI: \",naw_uzovi_zorgverzekeraar)","v":"UZOVI: 0000"}]
[null,null,null,"SPECIFIEKE INFORMATIE 2021 EN A - vervolg"]
[null,null,null," KOSTENVERZAMELSTAAT",null,null,null,null,null,null,"Kosten balanspost mbt 2021","Kosten balanspost mbt 2020"]
[]
[null,null,null," 670 Geriatische revalidatiezorg",null,null,null,null,null,null,{"$f":"('Kostenverzamelstaat 2021'!I137+'Kostenverzamelstaat 2021'!K137)-('Kostenverzamelstaat 2021'!J137+'Kostenverzamelstaat 2021'!L137)","v":0},{"$f":"'Kostenverzamelstaat 2020'!I137-'Kostenverzamelstaat 2020'!J137","v":0}]
[null,null,null," 811.1.1 Meerkosten Corona, indirect ",null,null,null,null,null,null,null,{"$f":"'Kostenverzamelstaat 2020'!I139-'Kostenverzamelstaat 2020'!J139","v":0}]
[null,null,null," 811.1.2 Meerkosten Corona, toeslagen",null,null,null,null,null,null,null,{"$f":"'Kostenverzamelstaat 2020'!I140-'Kostenverzamelstaat 2020'!J140","v":0}]
[null,null,null," 831.1 Netto continuïteitsbijdrage Corona (basisverzekering)",null,null,null,null,null,null,{"$f":"'Kostenverzamelstaat 2021'!I141-'Kostenverzamelstaat 2021'!J141","v":0},{"$f":"'Kostenverzamelstaat 2020'!I141-'Kostenverzamelstaat 2020'!J141","v":0}]
[null,null,null," 671 Eerstelijnsverblijf ",null,null,null,null,null,null,{"$f":"('Kostenverzamelstaat 2021'!I142+'Kostenverzamelstaat 2021'!K142)-('Kostenverzamelstaat 2021'!J142+'Kostenverzamelstaat 2021'!L142)","v":0},{"$f":"'Kostenverzamelstaat 2020'!I142-'Kostenverzamelstaat 2020'!J142","v":0}]
[null,null,null," 811.2.1 Meerkosten Corona, indirect ",null,null,null,null,null,null,null,{"$f":"'Kostenverzamelstaat 2020'!I144-'Kostenverzamelstaat 2020'!J144","v":0}]
[null,null,null," 811.2.2 Meerkosten Corona, toeslagen",null,null,null,null,null,null,null,{"$f":"'Kostenverzamelstaat 2020'!I145-'Kostenverzamelstaat 2020'!J145","v":0}]
[null,null,null," 831.2 Netto continuïteitsbijdrage Corona (basisverzekering)",null,null,null,null,null,null,{"$f":"'Kostenverzamelstaat 2021'!I146-'Kostenverzamelstaat 2021'!J146","v":0},{"$f":"'Kostenverzamelstaat 2020'!I146-'Kostenverzamelstaat 2020'!J146","v":0}]
[null,null,null," 672  Generalistische Geneeskundige Zorg Specifieke Patiëntgroepen",null,null,null,null,null,null,{"$f":"'Kostenverzamelstaat 2021'!I147-'Kostenverzamelstaat 2021'!J147","v":0},{"$f":"'Kostenverzamelstaat 2020'!I147-'Kostenverzamelstaat 2020'!J147","v":0}]
[null,null,null," 811.3.1 Meerkosten Corona, indirect ",null,null,null,null,null,null,null,{"$f":"'Kostenverzamelstaat 2020'!I149-'Kostenverzamelstaat 2020'!J149","v":0}]
[null,null,null," 811.3.2 Meerkosten Corona, toeslagen",null,null,null,null,null,null,null,{"$f":"'Kostenverzamelstaat 2020'!I150-'Kostenverzamelstaat 2020'!J150","v":0}]
[null,null,null," 831.3 Netto continuïteitsbijdrage Corona (basisverzekering)",null,null,null,null,null,null,{"$f":"'Kostenverzamelstaat 2021'!I151-'Kostenverzamelstaat 2021'!J151","v":0},{"$f":"'Kostenverzamelstaat 2020'!I151-'Kostenverzamelstaat 2020'!J151","v":0}]
[null,null,null," 680 Kraamzorg",null,null,null,null,null,null,{"$f":"'Kostenverzamelstaat 2021'!I154-'Kostenverzamelstaat 2021'!J154","v":0},{"$f":"'Kostenverzamelstaat 2020'!I154-'Kostenverzamelstaat 2020'!J154","v":0}]
[null,null,null," 812.1 Meerkosten Corona, indirect ",null,null,null,null,null,null,null,{"$f":"'Kostenverzamelstaat 2020'!I156-'Kostenverzamelstaat 2020'!J156","v":0}]
[null,null,null," 812.2 Meerkosten Corona, toeslagen",null,null,null,null,null,null,null,{"$f":"'Kostenverzamelstaat 2020'!I157-'Kostenverzamelstaat 2020'!J157","v":0}]
[null,null,null," 832 Netto continuïteitsbijdrage Corona (basisverzekering)",null,null,null,null,null,null,{"$f":"'Kostenverzamelstaat 2021'!I158-'Kostenverzamelstaat 2021'!J158","v":0},{"$f":"'Kostenverzamelstaat 2020'!I158-'Kostenverzamelstaat 2020'!J158","v":0}]
[null,null,null," 700 Overige kosten",null,null,null,null,null,null,{"$f":"'Kostenverzamelstaat 2021'!I161-'Kostenverzamelstaat 2021'!J161","v":0},{"$f":"'Kostenverzamelstaat 2020'!I161-'Kostenverzamelstaat 2020'!J161","v":0}]
[null,null,null," 701 Overige geneeskundige zorg ",null,null,null,null,null,null,{"$f":"'Kostenverzamelstaat 2021'!I162-'Kostenverzamelstaat 2021'!J162","v":0},{"$f":"'Kostenverzamelstaat 2020'!I162-'Kostenverzamelstaat 2020'!J162","v":0}]
[null,null,null," 702 Kosten van zorg zintuiglijk gehandicapten",null,null,null,null,null,null,{"$f":"'Kostenverzamelstaat 2021'!I163-'Kostenverzamelstaat 2021'!J163","v":0},{"$f":"'Kostenverzamelstaat 2020'!I163-'Kostenverzamelstaat 2020'!J163","v":0}]
[null,null,null," 813.1 Meerkosten Corona, indirect ",null,null,null,null,null,null,null,{"$f":"'Kostenverzamelstaat 2020'!I165-'Kostenverzamelstaat 2020'!J165","v":0}]
[null,null,null," 813.2 Meerkosten Corona, toeslagen",null,null,null,null,null,null,null,{"$f":"'Kostenverzamelstaat 2020'!I166-'Kostenverzamelstaat 2020'!J166","v":0}]
[null,null,null," 833 Netto continuïteitsbijdrage Corona (basisverzekering)",null,null,null,null,null,null,{"$f":"'Kostenverzamelstaat 2021'!I167-'Kostenverzamelstaat 2021'!J167","v":0},{"$f":"'Kostenverzamelstaat 2020'!I167-'Kostenverzamelstaat 2020'!J167","v":0}]
[null,null,null," 720 Grensoverschrijdende zorg, kosten gemaakt in het buitenland, via verzekeraar ",null,null,null,null,null,null,{"$f":"'Kostenverzamelstaat 2021'!I170-'Kostenverzamelstaat 2021'!J170","v":0},{"$f":"'Kostenverzamelstaat 2020'!I170-'Kostenverzamelstaat 2020'!J170","v":0}]
[null,null,null," 721 Grensoverschrijdende zorg, kosten gemaakt in het buitenland, via verbingsorgaan",null,null,null,null,null,null,{"$f":"'Kostenverzamelstaat 2021'!I171-'Kostenverzamelstaat 2021'!J171","v":0},{"$f":"'Kostenverzamelstaat 2020'!I171-'Kostenverzamelstaat 2020'!J171","v":0}]
[null,null,null," 730 Kwaliteitsgelden",null,null,null,null,null,null,{"$f":"'Kostenverzamelstaat 2021'!I174-'Kostenverzamelstaat 2021'!J174","v":0},{"$f":"'Kostenverzamelstaat 2020'!I174-'Kostenverzamelstaat 2020'!J174","v":0}]
[null,null,null," 890.1 Opbrengsten verhaal",null,null,null,null,null,null,{"$f":"'Kostenverzamelstaat 2021'!I186-'Kostenverzamelstaat 2021'!J186","v":0},{"$f":"'Kostenverzamelstaat 2020'!I187-'Kostenverzamelstaat 2020'!J187","v":0}]
[null,null,null," 910 Schade t.l.v. het vrijwillig eigen risico",null,null,null,null,null,null,{"$f":"'Kostenverzamelstaat 2021'!I187-'Kostenverzamelstaat 2021'!J187","v":0},{"$f":"'Kostenverzamelstaat 2020'!I188-'Kostenverzamelstaat 2020'!J188","v":0}]
[null,null,null," 915 Schade t.l.v. het verplicht eigen risico",null,null,null,null,null,null,{"$f":"('Kostenverzamelstaat 2021'!I188+'Kostenverzamelstaat 2021'!K188)-('Kostenverzamelstaat 2021'!J188+'Kostenverzamelstaat 2021'!L188)","v":0},{"$f":"'Kostenverzamelstaat 2020'!I189-'Kostenverzamelstaat 2020'!J189","v":0}]
[null,null,null," 940 Netto premieopbrengsten",null,null,null,null,null,null,{"$f":"'Kostenverzamelstaat 2021'!I189-'Kostenverzamelstaat 2021'!J189","v":0},{"$f":"'Kostenverzamelstaat 2020'!I190-'Kostenverzamelstaat 2020'!J190","v":0}]
[]
[null,null,null,"VERGELIJKING SPECIFIEKE INFORMATIE 2021 EN C"]
[null,null,null," LASTEN 2021 INCLUSIEF BALANSPOST",null,null,null,null,null,"Kosten- verzamelstaat","Spec. inform. C\ndetailinformatie","Verschil"]
[]
[null,null,null," 610 Overige kosten ziekenhuiszorg en curatieve zorg",null,null,null,null,null,{"$f":"'Kostenverzamelstaat 2021'!I74","v":0},{"$f":"'Specifieke informatie C'!H41","v":0},{"$f":"IF(J148<>K148,J148-K148,\"\")","v":""}]
[null,null,null," 611 Overige zorgproducten (Instellingen)",null,null,null,null,null,{"$f":"'Kostenverzamelstaat 2021'!I75","v":0},{"$f":"'Specifieke informatie C'!H51","v":0},""]
[null,null,null," 612.1 Kosten add ons Dure geneesmiddelen",null,null,null,null,null,{"$f":"'Kostenverzamelstaat 2021'!I76","v":0},{"$f":"'Specifieke informatie C'!H67","v":0},""]
[null,null,null," 612.2 Kosten add-ons - IC",null,null,null,null,null,{"$f":"('Kostenverzamelstaat 2021'!I77+'Kostenverzamelstaat 2021'!K77)","v":0},{"$f":"'Specifieke informatie C'!H76","v":0},""]
[null,null,null," 613.1 Integrale kosten DBC-zorgproduct gereguleerde segment",null,null,null,null,null,{"$f":"('Kostenverzamelstaat 2021'!I78+'Kostenverzamelstaat 2021'!K78)","v":0},{"$f":"'Specifieke informatie C'!H96","v":0},""]
[null,null,null," 615.1 Integrale kosten DBC-zorgproduct vrije segment",null,null,null,null,null,{"$f":"('Kostenverzamelstaat 2021'!I79+'Kostenverzamelstaat 2021'!K79)","v":0},{"$f":"'Specifieke informatie C'!H102","v":0},""]
[null,null,null,{"$f":"NOW()","v":"2022-04-04T16:47:18.280"},null,null,null,null,null,null,null,{"$f":"CONCATENATE(\"Controleoverzicht \",LOWER(A109))","v":"Controleoverzicht pagina 3"}]
[]
["Pagina 4",null,null,{"$f":"CONCATENATE(\"JAARSTAAT ZVW \", jaar_id)","v":"JAARSTAAT ZVW 2021"}]
[null,null,null,"CONTROLEOVERZICHT"]
[null,null,null,{"$f":"IF(naw_uzovi_zorgverzekeraar<>\"0000\",CONCATENATE(UPPER(naw_naam_zorgverzekeraar),\", \",UPPER(naw_plaats_zorgverzekeraar)),\"\")","v":""},null,null,null,null,null,null,null,{"$f":"CONCATENATE(\"UZOVI: \",naw_uzovi_zorgverzekeraar)","v":"UZOVI: 0000"}]
[null,null,null,"VERGELIJKING SPECIFIEKE INFORMATIE A EN C"]
[null,null,null," ONTVANGEN EN GEACCEPTEERDE DECLARATIES mbt 2021",null,null,null,null,null,"Kosten- verzamelstaat","Spec. inform. C\ndetailinformatie","Verschil"]
[]
[null,null,null," 610 Overige kosten ziekenhuiszorg en curatieve zorg",null,null,null,null,null,{"$f":"'Kostenverzamelstaat 2021'!J74","v":0},{"$f":"'Specifieke informatie C'!I41","v":0},{"$f":"IF(J162<>K162,J162-K162,\"\")","v":""}]
[null,null,null," 611 Overige zorgproducten (Instellingen)",null,null,null,null,null,{"$f":"'Kostenverzamelstaat 2021'!J75","v":0},{"$f":"'Specifieke informatie C'!I51","v":0},""]
[null,null,null," 612.1 Kosten add-ons - Dure geneesmiddelen ",null,null,null,null,null,{"$f":"'Kostenverzamelstaat 2021'!J76","v":0},{"$f":"'Specifieke informatie C'!I67","v":0},""]
[null,null,null," 612.2 Kosten add-ons - IC",null,null,null,null,null,{"$f":"('Kostenverzamelstaat 2021'!J77+'Kostenverzamelstaat 2021'!L77)","v":0},{"$f":"'Specifieke informatie C'!I76","v":0},""]
[null,null,null," 613.1 Integrale kosten DBC-zorgproduct gereguleerde segment",null,null,null,null,null,{"$f":"('Kostenverzamelstaat 2021'!J78+'Kostenverzamelstaat 2021'!L78)","v":0},{"$f":"'Specifieke informatie C'!I96","v":0},""]
[null,null,null," 615.1 Integrale kosten DBC-zorgproduct vrije segment",null,null,null,null,null,{"$f":"('Kostenverzamelstaat 2021'!J79+'Kostenverzamelstaat 2021'!L79)","v":0},{"$f":"'Specifieke informatie C'!I102","v":0},""]
[null,null,null," 651 Vervoer per openbaar vervoer, taxi en eigen auto",null,null,null,null,null,{"$f":"'Kostenverzamelstaat 2021'!J108","v":0},{"$f":"'Specifieke informatie C'!K153","v":0},""]
[null,null,null," 700 Overige kosten",null,null,null,null,null,{"$f":"'Kostenverzamelstaat 2021'!J161","v":0},{"$f":"'Specifieke informatie C'!J177","v":0},""]
[null,null,null," 701 Overige geneeskundige zorg",null,null,null,null,null,{"$f":"'Kostenverzamelstaat 2021'!J162","v":0},{"$f":"'Specifieke informatie C'!K188","v":0},""]
[null,null,null," 702 Kosten van zorg zintuiglijk gehandicapten",null,null,null,null,null,{"$f":"'Kostenverzamelstaat 2021'!J163","v":0},{"$f":"'Specifieke informatie C'!K194","v":0},""]
[null,null,null," 720 Kosten grensoverschrijdende zorg, via verzekeraar",null,null,null,null,null,{"$f":"'Kostenverzamelstaat 2021'!J170","v":0},{"$f":"'Specifieke informatie C'!K214","v":0},""]
[]
[]
[]
[]
[]
[]
[]
[]
[]
[]
[null,null,null,{"$f":"NOW()","v":"2022-04-04T16:47:18.280"},null,null,null,null,null,null,null,{"$f":"CONCATENATE(\"Controleoverzicht \",LOWER(A156))","v":"Controleoverzicht pagina 4"}]
[]
["Pagina 5",null,null,{"$f":"CONCATENATE(\"JAARSTAAT ZVW \", jaar_id)","v":"JAARSTAAT ZVW 2021"}]
[null,null,null,"CONTROLEOVERZICHT"]
[null,null,null,{"$f":"IF(naw_uzovi_zorgverzekeraar<>\"0000\",CONCATENATE(UPPER(naw_naam_zorgverzekeraar),\", \",UPPER(naw_plaats_zorgverzekeraar)),\"\")","v":""},null,null,null,null,null,null,null,{"$f":"CONCATENATE(\"UZOVI: \",naw_uzovi_zorgverzekeraar)","v":"UZOVI: 0000"}]
[null,null,null,"VERGELIJKING SPECIFIEKE INFORMATIE A EN C"]
[null,null,null," LASTEN 2020 INCLUSIEF BALANSPOST",null,null,null,null,null,"Kosten- verzamelstaat","Spec. inform. C\ndetailinformatie","Verschil "]
[]
[null,null,null," 610 Overige kosten ziekenhuiszorg en curatieve zorg",null,null,null,null,null,{"$f":"'Kostenverzamelstaat 2020'!I74","v":0},{"$f":"'Specifieke informatie C'!J41","v":0},{"$f":"IF(J191<>K191,J191-K191,\"\")","v":""}]
[null,null,null," 611 Overige zorgproducten (Instellingen)",null,null,null,null,null,{"$f":"'Kostenverzamelstaat 2020'!I75","v":0},{"$f":"'Specifieke informatie C'!J51","v":0},""]
[null,null,null," 612.1  Kosten add ons",null,null,null,null,null,{"$f":"'Kostenverzamelstaat 2020'!I76","v":0},{"$f":"'Specifieke informatie C'!J67","v":0},""]
[null,null,null," 612.2 Kosten add ons",null,null,null,null,null,{"$f":"'Kostenverzamelstaat 2020'!I77","v":0},{"$f":"'Specifieke informatie C'!J76","v":0},""]
[null,null,null," 613.1 Integrale kosten DBC-zorgproduct gereguleerde segment ",null,null,null,null,null,{"$f":"'Kostenverzamelstaat 2020'!I78","v":0},{"$f":"'Specifieke informatie C'!J96","v":0},""]
[null,null,null," 615.1 Integrale kosten DBC-zorgproduct vrije segment ",null,null,null,null,null,{"$f":"'Kostenverzamelstaat 2020'!I79","v":0},{"$f":"'Specifieke informatie C'!J102","v":0},""]
[]
[null,null,null," ONTVANGEN EN GEACCEPTEERDE DECLARATIES mbt 2020",null,null,null,null,null,"Kosten- verzamelstaat","Spec. inform. C\ndetailinformatie","Verschil"]
[]
[null,null,null," 610 Overige kosten ziekenhuiszorg en curatieve zorg ",null,null,null,null,null,{"$f":"'Kostenverzamelstaat 2020'!J74","v":0},{"$f":"'Specifieke informatie C'!K41","v":0},{"$f":"IF(J200<>K200,J200-K200,\"\")","v":""}]
[null,null,null," 611 Overige zorgproducten (Instellingen)",null,null,null,null,null,{"$f":"'Kostenverzamelstaat 2020'!J75","v":0},{"$f":"'Specifieke informatie C'!K51","v":0},""]
[null,null,null," 612.1  Kosten add-ons - Dure geneesmiddelen",null,null,null,null,null,{"$f":"'Kostenverzamelstaat 2020'!J76","v":0},{"$f":"'Specifieke informatie C'!K67","v":0},""]
[null,null,null," 612.2 Kosten add-ons - IC",null,null,null,null,null,{"$f":"'Kostenverzamelstaat 2020'!J77","v":0},{"$f":"'Specifieke informatie C'!K76","v":0},{"$f":"IF(J203<>K203,J203-K203,\"\")","v":""}]
[null,null,null," 613.1 Integrale kosten DBC-zorgproduct gereguleerde segment",null,null,null,null,null,{"$f":"'Kostenverzamelstaat 2020'!J78","v":0},{"$f":"'Specifieke informatie C'!K96","v":0},""]
[null,null,null," 615.1 Integrale kosten DBC-zorgproduct vrije segment",null,null,null,null,null,{"$f":"'Kostenverzamelstaat 2020'!J79","v":0},{"$f":"'Specifieke informatie C'!K102","v":0},""]
[null,null,null," 651 Vervoer per openbaar vervoer, taxi en eigen auto",null,null,null,null,null,{"$f":"'Kostenverzamelstaat 2020'!J108","v":0},{"$f":"'Specifieke informatie C'!L153","v":0},""]
[null,null,null," 700 Overige kosten",null,null,null,null,null,{"$f":"'Kostenverzamelstaat 2020'!J161","v":0},{"$f":"'Specifieke informatie C'!K177","v":0},""]
[null,null,null," 701 Overige geneeskundige zorg",null,null,null,null,null,{"$f":"'Kostenverzamelstaat 2020'!J162","v":0},{"$f":"'Specifieke informatie C'!L188","v":0},""]
[null,null,null," 702 Kosten van zorg zintuiglijk gehandicapten",null,null,null,null,null,{"$f":"'Kostenverzamelstaat 2020'!J163","v":0},{"$f":"'Specifieke informatie C'!L194","v":0},""]
[null,null,null," 720 Kosten grensoverschrijdende zorg, via verzekeraar",null,null,null,null,null,{"$f":"'Kostenverzamelstaat 2020'!J170","v":0},{"$f":"'Specifieke informatie C'!L214","v":0},{"$f":"IF(J210<>K210,J210-K210,\"\")","v":""}]
[]
[]
[]
[null,null,null,{"$f":"NOW()","v":"2022-04-04T16:47:18.280"},null,null,null,null,null,null,null,{"$f":"CONCATENATE(\"Controleoverzicht \",LOWER(A185))","v":"Controleoverzicht pagina 5"}]
[]
["Pagina 6",null,null,{"$f":"CONCATENATE(\"JAARSTAAT ZVW \", jaar_id)","v":"JAARSTAAT ZVW 2021"}]
[null,null,null,"CONTROLEOVERZICHT"]
[null,null,null,{"$f":"IF(naw_uzovi_zorgverzekeraar<>\"0000\",CONCATENATE(UPPER(naw_naam_zorgverzekeraar),\", \",UPPER(naw_plaats_zorgverzekeraar)),\"\")","v":""},null,null,null,null,null,null,null,{"$f":"CONCATENATE(\"UZOVI: \",naw_uzovi_zorgverzekeraar)","v":"UZOVI: 0000"}]
[]
[null,null,null,"VERGELIJKING SPECIFIEKE INFORMATIE A EN C"]
[null,null,null," ONTVANGEN EN GEACCEPTEERDE DECLARATIES mbt 2019 en ouder",null,null,null,null,null,"Kosten- verzamelstaat","Spec. inform. C\ndetailinformatie","Verschil "]
[]
[null,null,null," 610 Overige kosten ziekenhuiszorg en curatieve zorg ",null,null,null,null,null,{"$f":"'Kostenverzamelstaat 2019'!M65","v":0},{"$f":"'Specifieke informatie C'!L41","v":0},{"$f":"IF(J223<>K223,J223-K223,\"\")","v":""}]
[null,null,null," 611 Overige zorgproducten (Instellingen)",null,null,null,null,null,{"$f":"'Kostenverzamelstaat 2019'!M66","v":0},{"$f":"'Specifieke informatie C'!L51","v":0},""]
[null,null,null," 612 Kosten add-ons",null,null,null,null,null,{"$f":"'Kostenverzamelstaat 2019'!M67+'Kostenverzamelstaat 2019'!M68","v":0},{"$f":"'Specifieke informatie C'!L77","v":0},""]
[null,null,null," 613.1 Integrale kosten DBC-zorgproduct gereguleerde segment",null,null,null,null,null,{"$f":"'Kostenverzamelstaat 2019'!M69","v":0},{"$f":"'Specifieke informatie C'!L96","v":0},""]
[null,null,null," 615.1 Integrale kosten DBC-zorgproduct vrije segment",null,null,null,null,null,{"$f":"'Kostenverzamelstaat 2019'!M70","v":0},{"$f":"'Specifieke informatie C'!L102","v":0},""]
[null,null,null," 700 Overige kosten",null,null,null,null,null,{"$f":"'Kostenverzamelstaat 2019'!M135","v":0},{"$f":"'Specifieke informatie C'!L177","v":0},""]
[]
[null,null,null,"VERGELIJKING SPECIFIEKE INFORMATIE 2021 EN CONTRACTINFORMATIE"]
[null,null,null,"(INCLUSIEF COVID-KOSTEN)"]
[null,null,null," LASTEN 2021 INCLUSIEF BALANSPOST",null,null,null,null,null,"Kosten- verzamelstaat","Spec. inform. C\ncontract inform.","Verschil "]
[]
[null,null,null," Totaal code 503, 504, 505, 506, 507, 515 *",null,null,null,null,null,{"$f":"SUM('Kostenverzamelstaat 2021'!I16,'Kostenverzamelstaat 2021'!I17,'Kostenverzamelstaat 2021'!I18,'Kostenverzamelstaat 2021'!I19,'Kostenverzamelstaat 2021'!I20,'Kostenverzamelstaat 2021'!I22)+SUM('Kostenverzamelstaat 2021'!IK17,'Kostenverzamelstaat 2021'!K19,'Kostenverzamelstaat 2021'!K20,'Kostenverzamelstaat 2021'!K22)","v":0},{"$f":"Contractinformatie!J16","v":0},{"$f":"IF(J234<>K234,J234-K234,\"\")","v":""}]
[null,null,null," Totaal code 510, 516 *",null,null,null,null,null,{"$f":"SUM('Kostenverzamelstaat 2021'!I21,'Kostenverzamelstaat 2021'!I23)","v":0},{"$f":"Contractinformatie!J20","v":0},""]
[null,null,null," Totaal Rubriek 01",null,null,null,null,null,{"$f":"'Kostenverzamelstaat 2021'!I28 + 'Kostenverzamelstaat 2021'!K28","v":0},{"$f":"Contractinformatie!J23","v":0},""]
[null,null,null," Totaal Rubriek 03",null,null,null,null,null,{"$f":"'Kostenverzamelstaat 2021'!I42+'Kostenverzamelstaat 2021'!K42","v":0},{"$f":"Contractinformatie!J33","v":0},""]
[null,null,null," Totaal Rubriek 06",null,null,null,null,null,{"$f":"'Kostenverzamelstaat 2021'!I85+'Kostenverzamelstaat 2021'!K85","v":0},{"$f":"Contractinformatie!J46","v":0},""]
[null,null,null," Totaal Rubriek 10",null,null,null,null,null,{"$f":"'Kostenverzamelstaat 2021'!I135+'Kostenverzamelstaat 2021'!K135","v":0},{"$f":"Contractinformatie!J67","v":0},{"$f":"IF(J239<>K239,J239-K239,\"\")","v":""}]
[null,null,null," Totaal Code 702",null,null,null,null,null,{"$f":"'Kostenverzamelstaat 2021'!I163","v":0},{"$f":"Contractinformatie!J79","v":0},{"$f":"IF(J240<>K240,J240-K240,\"\")","v":""}]
[null,null,null,"*  exclusief meerkosten indirect en toeslagen"]
[null,null,null,"VERGELIJKING SPECIFIEKE INFORMATIE A EN CONTRACTINFORMATIE"]
[null,null,null," LASTEN 2020 INCLUSIEF BALANSPOST",null,null,null,null,null,"Kosten- verzamelstaat","Spec. inform. C\ncontract inform.","Verschil "]
[]
[null,null,null," Totaal code 503, 504, 505, 506, 507, 515 ",null,null,null,null,null,{"$f":"SUM('Kostenverzamelstaat 2020'!I16,'Kostenverzamelstaat 2020'!I17,'Kostenverzamelstaat 2020'!I18,'Kostenverzamelstaat 2020'!I19,'Kostenverzamelstaat 2020'!I20,'Kostenverzamelstaat 2020'!I22)","v":0},{"$f":"Contractinformatie!K16","v":0},{"$f":"IF(J245<>K245,J245-K245,\"\")","v":""}]
[null,null,null," Totaal code 510, 516 ",null,null,null,null,null,{"$f":"'Kostenverzamelstaat 2020'!I21+'Kostenverzamelstaat 2020'!I23","v":0},{"$f":"Contractinformatie!K20","v":0},""]
[null,null,null," Totaal Rubriek 01 ",null,null,null,null,null,{"$f":"'Kostenverzamelstaat 2020'!I28","v":0},{"$f":"Contractinformatie!K23","v":0},""]
[null,null,null," Totaal Rubriek 03",null,null,null,null,null,{"$f":"'Kostenverzamelstaat 2020'!I42","v":0},{"$f":"Contractinformatie!K33","v":0},""]
[null,null,null," Totaal Rubriek 06",null,null,null,null,null,{"$f":"'Kostenverzamelstaat 2020'!I85","v":0},{"$f":"Contractinformatie!K46","v":0},""]
[null,null,null," Totaal Rubriek 10",null,null,null,null,null,{"$f":"'Kostenverzamelstaat 2020'!I135","v":0},{"$f":"Contractinformatie!K67","v":0},""]
[null,null,null," Totaal Code 702",null,null,null,null,null,{"$f":"'Kostenverzamelstaat 2020'!I163","v":0},{"$f":"Contractinformatie!K79","v":0},{"$f":"IF(J251<>K251,J251-K251,\"\")","v":""}]
[]
[]
[]
[]
[]
[]
[]
[]
[]
[null,null,null,{"$f":"NOW()","v":"2022-04-04T16:47:18.280"},null,null,null,null,null,null,null,{"$f":"CONCATENATE(\"Controleoverzicht \",LOWER(A216))","v":"Controleoverzicht pagina 6"}]

{"sheet":"Blad1","index":12,"n_rows":1055,"n_cols":12,"rows_kept":1055,"cut":false,"hidden":true,"merged":[]}
[]
[]
[]
[]
[]
[]
[]
[]
[]
[]
[]
[null,null,null,null,"vcd_spec_idvar","vcd_waarde_flt","vcd_waarde_txt","vcd_toelichting_txt","vcd_spec1_idvar","vcd_spec2_idvar","vcd_spec3_idvar","vcd_attrib_idvar"]
[null,null,null,null,"xstaat_kdrwet_id_","*=0","ZVWY","Excel numeriek om te zetten sleutel kdrwet via waarden","xstaat","kdrwet","id",""]
[null,null,null,null,"xstaat_kdrwet_idjmd_","*=0","20201231","Excel numeriek om te zetten sleutel kdrwet periode","xstaat","kdrwet","idjmd",""]
[null,null,null,null,"xstaat_uzovi_filename_","*=0","*=CEL(\"bestandsnaam\")","Excel numeriek filenaam bevat ook sleutels","xstaat","uzovi","filename",""]
[null,null,null,null,"xstaat_uzovi_id_","*=0","*=NUMERIEKE.WAARDE(NAW_gegevens!$B$6)","Excel numeriek om te zetten sleutel uzovi","xstaat","uzovi","id",""]
[null,null,null,null,"xstaat_uzovi_idvrs_","*=0","01","Excel numeriek om te zetten sleutel uzovi versie levering","xstaat","uzovi","idvrs",""]
[null,null,null,null,"zvkx_a__TY0V01","*='Kostenverzamelstaat 2020'!$J$149"]
[null,null,null,null,"zvkx_a__TY1V01","*='Kostenverzamelstaat 2019 2018'!$L$149"]
[null,null,null,null,"zvkx_a__TY2V01","*='Kostenverzamelstaat 2019 2018'!$M$149"]
[null,null,null,null,"zvkx_c__TY0V01","*='Kostenverzamelstaat 2020'!$I$149"]
[null,null,null,null,"zvkx_c__TY1V01","*='Kostenverzamelstaat 2019 2018'!$K$149"]
[null,null,null,null,"zvkx01_a__TY0V01","*='Kostenverzamelstaat 2020'!$J$26"]
[null,null,null,null,"zvkx01_a__TY1V01","*='Kostenverzamelstaat 2019 2018'!$L$26"]
[null,null,null,null,"zvkx01_a__TY2V01","*='Kostenverzamelstaat 2019 2018'!$M$26"]
[null,null,null,null,"zvkx01_c__TY0V01","*='Kostenverzamelstaat 2020'!$I$26"]
[null,null,null,null,"zvkx01_c__TY1V01","*='Kostenverzamelstaat 2019 2018'!$K$26"]
[null,null,null,null,"zvkx02_a__TY0V01","*='Kostenverzamelstaat 2020'!$J$31"]
[null,null,null,null,"zvkx02_a__TY1V01","*='Kostenverzamelstaat 2019 2018'!$L$31"]
[null,null,null,null,"zvkx02_a__TY2V01","*='Kostenverzamelstaat 2019 2018'!$M$31"]
[null,null,null,null,"zvkx02_c__TY0V01","*='Kostenverzamelstaat 2020'!$I$31"]
[null,null,null,null,"zvkx02_c__TY1V01","*='Kostenverzamelstaat 2019 2018'!$K$31"]
[null,null,null,null,"zvkx03_a__TY0V01","*='Kostenverzamelstaat 2020'!$J$36"]
[null,null,null,null,"zvkx03_a__TY1V01","*='Kostenverzamelstaat 2019 2018'!$L$36"]
[null,null,null,null,"zvkx03_a__TY2V01","*='Kostenverzamelstaat 2019 2018'!$M$36"]
[null,null,null,null,"zvkx03_c__TY0V01","*='Kostenverzamelstaat 2020'!$I$36"]
[null,null,null,null,"zvkx03_c__TY1V01","*='Kostenverzamelstaat 2019 2018'!$K$36"]
[null,null,null,null,"zvkx04_a__TY0V01","*='Kostenverzamelstaat 2020'!$J$43"]
[null,null,null,null,"zvkx04_a__TY1V01","*='Kostenverzamelstaat 2019 2018'!$L$43"]
[null,null,null,null,"zvkx04_a__TY2V01","*='Kostenverzamelstaat 2019 2018'!$M$43"]
[null,null,null,null,"zvkx04_c__TY0V01","*='Kostenverzamelstaat 2020'!$I$43"]
[null,null,null,null,"zvkx04_c__TY1V01","*='Kostenverzamelstaat 2019 2018'!$K$43"]
[null,null,null,null,"zvkx05_a__TY0V01","*='Kostenverzamelstaat 2020'!$J$49"]
[null,null,null,null,"zvkx05_a__TY1V01","*='Kostenverzamelstaat 2019 2018'!$L$50"]
[null,null,null,null,"zvkx05_a__TY2V01","*='Kostenverzamelstaat 2019 2018'!$M$50"]
[null,null,null,null,"zvkx05_c__TY0V01","*='Kostenverzamelstaat 2020'!$I$49"]
[null,null,null,null,"zvkx05_c__TY1V01","*='Kostenverzamelstaat 2019 2018'!$K$50"]
[null,null,null,null,"zvkx06_a__TY0V01","*='Kostenverzamelstaat 2020'!$J$73"]
[null,null,null,null,"zvkx06_a__TY1V01","*='Kostenverzamelstaat 2019 2018'!$L$76"]
[null,null,null,null,"zvkx06_a__TY2V01","*='Kostenverzamelstaat 2019 2018'!$M$76"]
[null,null,null,null,"zvkx06_c__TY0V01","*='Kostenverzamelstaat 2020'!$I$73"]
[null,null,null,null,"zvkx06_c__TY1V01","*='Kostenverzamelstaat 2019 2018'!$K$76"]
[null,null,null,null,"zvkx07_a__TY0V01","*='Kostenverzamelstaat 2020'!$J$83"]
[null,null,null,null,"zvkx07_a__TY1V01","*='Kostenverzamelstaat 2019 2018'!$L$86"]
[null,null,null,null,"zvkx07_a__TY2V01","*='Kostenverzamelstaat 2019 2018'!$M$86"]
[null,null,null,null,"zvkx07_c__TY0V01","*='Kostenverzamelstaat 2020'!$I$83"]
[null,null,null,null,"zvkx07_c__TY1V01","*='Kostenverzamelstaat 2019 2018'!$K$86"]
[null,null,null,null,"zvkx08_a__TY0V01","*='Kostenverzamelstaat 2020'!$J$88"]
[null,null,null,null,"zvkx08_a__TY1V01","*='Kostenverzamelstaat 2019 2018'!$L$91"]
[null,null,null,null,"zvkx08_a__TY2V01","*='Kostenverzamelstaat 2019 2018'!$M$91"]
[null,null,null,null,"zvkx08_c__TY0V01","*='Kostenverzamelstaat 2020'!$I$88"]
[null,null,null,null,"zvkx08_c__TY1V01","*='Kostenverzamelstaat 2019 2018'!$K$91"]
[null,null,null,null,"zvkx09_a__TY0V01","*='Kostenverzamelstaat 2020'!$J$95"]
[null,null,null,null,"zvkx09_a__TY1V01","*='Kostenverzamelstaat 2019 2018'!$L$98"]
[null,null,null,null,"zvkx09_a__TY2V01","*='Kostenverzamelstaat 2019 2018'!$M$98"]
[null,null,null,null,"zvkx09_c__TY0V01","*='Kostenverzamelstaat 2020'!$I$95"]
[null,null,null,null,"zvkx09_c__TY1V01","*='Kostenverzamelstaat 2019 2018'!$K$98"]
[null,null,null,null,"zvkx10_a__TY0V01","*='Kostenverzamelstaat 2020'!$J$115"]
[null,null,null,null,"zvkx10_a__TY1V01","*='Kostenverzamelstaat 2019 2018'!$L$119"]
[null,null,null,null,"zvkx10_a__TY2V01","*='Kostenverzamelstaat 2019 2018'!$M$119"]
[null,null,null,null,"zvkx10_c__TY0V01","*='Kostenverzamelstaat 2020'!$I$115"]
[null,null,null,null,"zvkx10_c__TY1V01","*='Kostenverzamelstaat 2019 2018'!$K$119"]
[null,null,null,null,"zvkx11_a__TY0V01","*='Kostenverzamelstaat 2020'!$J$126"]
[null,null,null,null,"zvkx11_a__TY1V01","*='Kostenverzamelstaat 2019 2018'!$L$130"]
[null,null,null,null,"zvkx11_a__TY2V01","*='Kostenverzamelstaat 2019 2018'!$M$130"]
[null,null,null,null,"zvkx11_c__TY0V01","*='Kostenverzamelstaat 2020'!$I$126"]
[null,null,null,null,"zvkx11_c__TY1V01","*='Kostenverzamelstaat 2019 2018'!$K$130"]
[null,null,null,null,"zvkx12_a__TY0V01","*='Kostenverzamelstaat 2020'!$J$131"]
[null,null,null,null,"zvkx12_a__TY1V01","*='Kostenverzamelstaat 2019 2018'!$L$135"]
[null,null,null,null,"zvkx12_a__TY2V01","*='Kostenverzamelstaat 2019 2018'!$M$135"]
[null,null,null,null,"zvkx12_c__TY0V01","*='Kostenverzamelstaat 2020'!$I$131"]
[null,null,null,null,"zvkx12_c__TY1V01","*='Kostenverzamelstaat 2019 2018'!$K$135"]
[null,null,null,null,"zvkx13_a__TY0V01","*='Kostenverzamelstaat 2020'!$J$138"]
[null,null,null,null,"zvkx13_a__TY1V01","*='Kostenverzamelstaat 2019 2018'!$L$142"]
[null,null,null,null,"zvkx13_a__TY2V01","*='Kostenverzamelstaat 2019 2018'!$M$142"]
[null,null,null,null,"zvkx13_c__TY0V01","*='Kostenverzamelstaat 2020'!$I$138"]
[null,null,null,null,"zvkx13_c__TY1V01","*='Kostenverzamelstaat 2019 2018'!$K$142"]
[null,null,null,null,"zvkx15_a__TY0V01","*='Kostenverzamelstaat 2020'!$J$142"]
[null,null,null,null,"zvkx15_a__TY1V01","*='Kostenverzamelstaat 2019 2018'!$L$146"]
[null,null,null,null,"zvkx15_a__TY2V01","*='Kostenverzamelstaat 2019 2018'!$M$146"]
[null,null,null,null,"zvkx15_c__TY0V01","*='Kostenverzamelstaat 2020'!$I$142"]
[null,null,null,null,"zvkx15_c__TY1V01","*='Kostenverzamelstaat 2019 2018'!$K$146"]
[null,null,null,null,"zvkx16_a__TY0V01","*='Kostenverzamelstaat 2020'!$J$145"]
[null,null,null,null,"zvkx16_a__TY1V01","*='Kostenverzamelstaat 2019 2018'!$L$149"]
[null,null,null,null,"zvkx16_a__TY2V01","*='Kostenverzamelstaat 2019 2018'!$M$149"]
[null,null,null,null,"zvkx16_c__TY0V01","*='Kostenverzamelstaat 2020'!$I$145"]
[null,null,null,null,"zvkx16_c__TY1V01","*='Kostenverzamelstaat 2019 2018'!$K$149"]
[null,null,null,null,"zvkx01_a503__TY0V01","*='Kostenverzamelstaat 2020'!$J$16","","Huisartsen- bijz betalingen- geaccepteerd","zvkx01","a503","","TY0V01"]
[null,null,null,null,"zvkx01_a503__TY1V01","*='Kostenverzamelstaat 2019 2018'!$L$16","","Huisartsen- bijz betalingen- geaccepteerd","zvkx01","a503","","TY1V01"]
[null,null,null,null,"zvkx01_a503__TY2V01","*='Kostenverzamelstaat 2019 2018'!$M$16","","Huisartsen- bijz betalingen- geaccepteerd","zvkx01","a503","","TY2V01"]
[null,null,null,null,"zvkx01_a504__TY0V01","*='Kostenverzamelstaat 2020'!$J$17","","Huisartsen- bijz diensttijden- geaccepteerd","zvkx01","a504","","TY0V01"]
[null,null,null,null,"zvkx01_a504__TY1V01","*='Kostenverzamelstaat 2019 2018'!$L$17","","Huisartsen- bijz diensttijden- geaccepteerd","zvkx01","a504","","TY1V01"]
[null,null,null,null,"zvkx01_a504__TY2V01","*='Kostenverzamelstaat 2019 2018'!$M$17","","Huisartsen- bijz diensttijden- geaccepteerd","zvkx01","a504","","TY2V01"]
[null,null,null,null,"zvkx01_a505__TY0V01","*='Kostenverzamelstaat 2020'!$J$18","","Huisartsen- Inschrijvingen- geaccepteerd","zvkx01","a505","","TY0V01"]
[null,null,null,null,"zvkx01_a505__TY1V01","*='Kostenverzamelstaat 2019 2018'!$L$18","","Huisartsen- Inschrijvingen- geaccepteerd","zvkx01","a505","","TY1V01"]
[null,null,null,null,"zvkx01_a505__TY2V01","*='Kostenverzamelstaat 2019 2018'!$M$18","","Huisartsen- Inschrijvingen- geaccepteerd","zvkx01","a505","","TY2V01"]
[null,null,null,null,"zvkx01_a506__TY0V01","*='Kostenverzamelstaat 2020'!$J$19","","Huisartsen- Consult- geaccepteerd","zvkx01","a506","","TY0V01"]
[null,null,null,null,"zvkx01_a506__TY1V01","*='Kostenverzamelstaat 2019 2018'!$L$19","","Huisartsen- Consult- geaccepteerd","zvkx01","a506","","TY1V01"]
[null,null,null,null,"zvkx01_a506__TY2V01","*='Kostenverzamelstaat 2019 2018'!$M$19","","Huisartsen- Consult- geaccepteerd","zvkx01","a506","","TY2V01"]
[null,null,null,null,"zvkx01_a507__TY0V01","*='Kostenverzamelstaat 2020'!$J$20","","Huisartsen- Overige- geaccepteerd","zvkx01","a507","","TY0V01"]
[null,null,null,null,"zvkx01_a507__TY1V01","*='Kostenverzamelstaat 2019 2018'!$L$20","","Huisartsen- Overige- geaccepteerd","zvkx01","a507","","TY1V01"]
[null,null,null,null,"zvkx01_a507__TY2V01","*='Kostenverzamelstaat 2019 2018'!$M$20","","Huisartsen- Overige- geaccepteerd","zvkx01","a507","","TY2V01"]
[null,null,null,null,"zvkx01_a510__TY0V01","*='Kostenverzamelstaat 2020'!$J$21","","Huisartsen- MDZ- geaccepteerd","zvkx01","a510","","TY0V01"]
[null,null,null,null,"zvkx01_a510__TY1V01","*='Kostenverzamelstaat 2019 2018'!$L$21","","Huisartsen- MDZ- geaccepteerd","zvkx01","a510","","TY1V01"]
[null,null,null,null,"zvkx01_a510__TY2V01","*='Kostenverzamelstaat 2019 2018'!$M$21","","Huisartsen- MDZ- geaccepteerd","zvkx01","a510","","TY2V01"]
[null,null,null,null,"zvkx01_a515__TY0V01","*='Kostenverzamelstaat 2020'!$J$22","","Huisartsen- Resultaatbel. huisartsen- geaccepteerd","zvkx01","a515","","TY0V01"]
[null,null,null,null,"zvkx01_a515__TY1V01","*='Kostenverzamelstaat 2019 2018'!$L$22","","Huisartsen- Resultaatbel. huisartsen- geaccepteerd","zvkx01","a515","","TY1V01"]
[null,null,null,null,"zvkx01_a515__TY2V01","*='Kostenverzamelstaat 2019 2018'!$M$22","","Huisartsen- Resultaatbel. huisartsen- geaccepteerd","zvkx01","a515","","TY2V01"]
[null,null,null,null,"zvkx01_a516__TY0V01","*='Kostenverzamelstaat 2020'!$J$23","","Huisartsen- Resultaatbel. MDZ- geaccepteerd","zvkx01","a516","","TY0V01"]
[null,null,null,null,"zvkx01_a516__TY1V01","*='Kostenverzamelstaat 2019 2018'!$L$23","","Huisartsen- Resultaatbel. MDZ- geaccepteerd","zvkx01","a516","","TY1V01"]
[null,null,null,null,"zvkx01_a516__TY2V01","*='Kostenverzamelstaat 2019 2018'!$M$23","","Huisartsen- Resultaatbel. MDZ- geaccepteerd","zvkx01","a516","","TY2V01"]
[null,null,null,null,"zvkx01_c801__TY0V01","*='Kostenverzamelstaat 2020'!$I$24",null,"Huisartsen- Meerkosten Corona, indirect en toeslagen- incl balans","zvkx01","c801",null,"TY0V01"]
[null,null,null,null,"zvkx01_c821__TY0V01","*='Kostenverzamelstaat 2020'!$I$25",null,"Huisartsen- Netto continuïteitsbijdrage Corona (basisverzekering)- incl balans","zvkx01","c821",null,"TY0V01"]
[null,null,null,null,"zvkx01_a801__TY0V01","*='Kostenverzamelstaat 2020'!$J$24",null,"Huisartsen- Meerkosten Corona, indirect en toeslagen- geaccepteerd","zvkx01","a801",null,"TY0V01"]
[null,null,null,null,"zvkx01_ac801__TY0V01","*='Kostenverzamelstaat 2020'!$L$24",null,"Huisartsen- Meerkosten Corona, indirect en toeslagen- kst Corona- geaccepteerd","zvkx01","ac801",null,"TY0V01"]
[null,null,null,null,"zvkx01_a821__TY0V01","*='Kostenverzamelstaat 2020'!$J$25",null,"Huisartsen- Netto continuïteitsbijdrage Corona (basisverzekering)- geaccepteerd","zvkx01","a821",null,"TY0V01"]
[null,null,null,null,"zvkx01_cc801__TY0V01","*='Kostenverzamelstaat 2020'!$K$24",null,"Huisartsen- Meerkosten Corona, indirect en toeslagen-kst Corona- incl balans","zvkx01","cc801",null,"TY0V01"]
[null,null,null,null,"zvkx01_ac503__TY0V01","*='Kostenverzamelstaat 2020'!$L$16","","Huisartsen- bijz betalingen- kst Corona- geaccepteerd","zvkx01","a503","","TY0V01"]
[null,null,null,null,"zvkx01_ac504__TY0V01","*='Kostenverzamelstaat 2020'!$L$17","","Huisartsen- bijz diensttijden-kst Corona-  geaccepteerd","zvkx01","a504","","TY0V01"]
[null,null,null,null,"zvkx01_ac505__TY0V01","*='Kostenverzamelstaat 2020'!$L$18","","Huisartsen- Inschrijvingen-kst Corona-  geaccepteerd","zvkx01","a505","","TY0V01"]
[null,null,null,null,"zvkx01_ac506__TY0V01","*='Kostenverzamelstaat 2020'!$L$19","","Huisartsen- Consult-kst Corona-  geaccepteerd","zvkx01","a506","","TY0V01"]
[null,null,null,null,"zvkx01_ac507__TY0V01","*='Kostenverzamelstaat 2020'!$L$20","","Huisartsen- Overige-kst Corona- geaccepteerd","zvkx01","a507","","TY0V01"]
[null,null,null,null,"zvkx01_ac510__TY0V01","*='Kostenverzamelstaat 2020'!$L$21","","Huisartsen- MDZ-kst Corona- geaccepteerd","zvkx01","a510","","TY0V01"]
[null,null,null,null,"zvkx01_ac515__TY0V01","*='Kostenverzamelstaat 2020'!$L$22","","Huisartsen- Resultaatbel. huisartsen-kst Corona-  geaccepteerd","zvkx01","a515","","TY0V01"]
[null,null,null,null,"zvkx01_ac516__TY0V01","*='Kostenverzamelstaat 2020'!$L$23","","Huisartsen- Resultaatbel. MDZ-kst Corona-  geaccepteerd","zvkx01","a516","","TY0V01"]
[null,null,null,null,"zvkx01_c503__TY0V01","*='Kostenverzamelstaat 2020'!$I$16","","Huisartsen- bijz betalingen- incl balans","zvkx01","c503","","TY0V01"]
[null,null,null,null,"zvkx01_c503__TY1V01","*='Kostenverzamelstaat 2019 2018'!$K$16","","Huisartsen- bijz betalingen- incl balans","zvkx01","c503","","TY1V01"]
[null,null,null,null,"zvkx01_c504__TY0V01","*='Kostenverzamelstaat 2020'!$I$17","","Huisartsen- bijz diensttijden- incl balans","zvkx01","c504","","TY0V01"]
[null,null,null,null,"zvkx01_c504__TY1V01","*='Kostenverzamelstaat 2019 2018'!$K$17","","Huisartsen- bijz diensttijden- incl balans","zvkx01","c504","","TY1V01"]
[null,null,null,null,"zvkx01_c505__TY0V01","*='Kostenverzamelstaat 2020'!$I$18","","Huisartsen- Inschrijvingen- incl balans","zvkx01","c505","","TY0V01"]
[null,null,null,null,"zvkx01_c505__TY1V01","*='Kostenverzamelstaat 2019 2018'!$K$18","","Huisartsen- Inschrijvingen- incl balans","zvkx01","c505","","TY1V01"]
[null,null,null,null,"zvkx01_c506__TY0V01","*='Kostenverzamelstaat 2020'!$I$19","","Huisartsen- Consult- incl balans","zvkx01","c506","","TY0V01"]
[null,null,null,null,"zvkx01_c506__TY1V01","*='Kostenverzamelstaat 2019 2018'!$K$19","","Huisartsen- Consult- incl balans","zvkx01","c506","","TY1V01"]
[null,null,null,null,"zvkx01_c507__TY0V01","*='Kostenverzamelstaat 2020'!$I$20","","Huisartsen- Overige- incl balans","zvkx01","c507","","TY0V01"]
[null,null,null,null,"zvkx01_c507__TY1V01","*='Kostenverzamelstaat 2019 2018'!$K$20","","Huisartsen- Overige- incl balans","zvkx01","c507","","TY1V01"]
[null,null,null,null,"zvkx01_c510__TY0V01","*='Kostenverzamelstaat 2020'!$I$21","","Huisartsen- MDZ- incl balans","zvkx01","c510","","TY0V01"]
[null,null,null,null,"zvkx01_c510__TY1V01","*='Kostenverzamelstaat 2019 2018'!$K$21","","Huisartsen- MDZ- incl balans","zvkx01","c510","","TY1V01"]
[null,null,null,null,"zvkx01_c515__TY0V01","*='Kostenverzamelstaat 2020'!$I$22","","Huisartsen- Resultaatbel. huisartsen- incl balans","zvkx01","c515","","TY0V01"]
[null,null,null,null,"zvkx01_c515__TY1V01","*='Kostenverzamelstaat 2019 2018'!$K$22","","Huisartsen- Resultaatbel. huisartsen- incl balans","zvkx01","c515","","TY1V01"]
[null,null,null,null,"zvkx01_c516__TY0V01","*='Kostenverzamelstaat 2020'!$I$23","","Huisartsen- Resultaatbel. MDZ- incl balans","zvkx01","c516","","TY0V01"]
[null,null,null,null,"zvkx01_c516__TY1V01","*='Kostenverzamelstaat 2019 2018'!$K$23","","Huisartsen- Resultaatbel. MDZ- incl balans","zvkx01","c516","","TY1V01"]
[null,null,null,null,"zvkx01_cc503__TY0V01","*='Kostenverzamelstaat 2020'!$K$16","","Huisartsen- bijz betalingen-kst Corona- incl balans","zvkx01","c503","","TY0V01"]
[null,null,null,null,"zvkx01_cc504__TY0V01","*='Kostenverzamelstaat 2020'!$K$17","","Huisartsen- bijz diensttijden-kst Corona- incl balans","zvkx01","c504","","TY0V01"]
[null,null,null,null,"zvkx01_cc505__TY0V01","*='Kostenverzamelstaat 2020'!$K$18","","Huisartsen- Inschrijvingen-kst Corona- incl balans","zvkx01","c505","","TY0V01"]
[null,null,null,null,"zvkx01_cc506__TY0V01","*='Kostenverzamelstaat 2020'!$K$19","","Huisartsen- Consult-kst Corona- incl balans","zvkx01","c506","","TY0V01"]
[null,null,null,null,"zvkx01_cc507__TY0V01","*='Kostenverzamelstaat 2020'!$K$20","","Huisartsen- Overige-kst Corona- incl balans","zvkx01","c507","","TY0V01"]
[null,null,null,null,"zvkx01_cc510__TY0V01","*='Kostenverzamelstaat 2020'!$K$21","","Huisartsen- MDZ-kst Corona- incl balans","zvkx01","c510","","TY0V01"]
[null,null,null,null,"zvkx01_cc515__TY0V01","*='Kostenverzamelstaat 2020'!$K$22","","Huisartsen- Resultaatbel. huisartsen-kst Corona- incl balans","zvkx01","c515","","TY0V01"]
[null,null,null,null,"zvkx01_cc516__TY0V01","*='Kostenverzamelstaat 2020'!$K$23","","Huisartsen- Resultaatbel. MDZ-kst Corona- incl balans","zvkx01","c516","","TY0V01"]
[null,null,null,null,"zvkx02_a520__TY0V01","*='Kostenverzamelstaat 2020'!$J$28","","Farmaceutische hulp- geaccepteerd","zvkx02","a520","","TY0V01"]
[null,null,null,null,"zvkx02_a520__TY1V01","*='Kostenverzamelstaat 2019 2018'!$L$28","","Farmaceutische hulp- geaccepteerd","zvkx02","a520","","TY1V01"]
[null,null,null,null,"zvkx02_a520__TY2V01","*='Kostenverzamelstaat 2019 2018'!$M$28","","Farmaceutische hulp- geaccepteerd","zvkx02","a520","","TY2V01"]
[null,null,null,null,"zvkx02_ac520__TY0V01","*='Kostenverzamelstaat 2020'!$L$28","","Farmaceutische hulp-kst Corona- geaccepteerd","zvkx02","a520","","TY0V01"]
[null,null,null,null,"zvkx02_c520__TY0V01","*='Kostenverzamelstaat 2020'!$I$28","","Farmaceutische hulp- incl balans","zvkx02","c520","","TY0V01"]
[null,null,null,null,"zvkx02_c520__TY1V01","*='Kostenverzamelstaat 2019 2018'!$K$28","","Farmaceutische hulp- incl balans","zvkx02","c520","","TY1V01"]
[null,null,null,null,"zvkx02_cc520__TY0V01","*='Kostenverzamelstaat 2020'!$K$28","","Farmaceutische hulp-kst Corona- incl balans","zvkx02","c520","","TY0V01"]
[null,null,null,null,"zvkx02_c802__TY0V01","*='Kostenverzamelstaat 2020'!$I$29",null,"Farmaceutische hulp- Meerkosten Corona, indirect en toeslagen- incl balans","zvkx02","c802",null,"TY0V01"]
[null,null,null,null,"zvkx02_c822__TY0V01","*='Kostenverzamelstaat 2020'!$I$30",null,"Farmaceutische hulp- Netto continuïteitsbijdrage Corona (basisverzekering)- incl balans","zvkx02","c822",null,"TY0V01"]
[null,null,null,null,"zvkx02_a802__TY0V01","*='Kostenverzamelstaat 2020'!$J$29",null,"Farmaceutische hulp- Meerkosten Corona, indirect en toeslagen- geaccepteerd","zvkx02","a802",null,"TY0V01"]
[null,null,null,null,"zvkx02_ac802__TY0V01","*='Kostenverzamelstaat 2020'!$L$29",null,"Farmaceutische hulp- Meerkosten Corona, indirect en toeslagen-kst Corona- geaccepteerd","zvkx02","ac822",null,"TY0V01"]
[null,null,null,null,"zvkx02_a822__TY0V01","*='Kostenverzamelstaat 2020'!$J$30",null,"Farmaceutische hulp- Netto continuïteitsbijdrage Corona (basisverzekering)- geaccepteerd","zvkx02","a822",null,"TY0V01"]
[null,null,null,null,"zvkx02_cc802__TY0V01","*='Kostenverzamelstaat 2020'!$K$29",null,"Farmaceutische hulp- Meerkosten Corona, indirect en toeslagen-kst Corona- geaccepteerd","zvkx02","cc802",null,"TY0V01"]
[null,null,null,null,"zvkx03_a530__TY0V01","*='Kostenverzamelstaat 2020'!$J$33","","Verpleging en verzorging- geaccepteerd","zvkx03","a530","","TY0V01"]
[null,null,null,null,"zvkx03_a530__TY1V01","*='Kostenverzamelstaat 2019 2018'!$L$36","","Verpleging en verzorging- geaccepteerd","zvkx03","a530","","TY1V01"]
[null,null,null,null,"zvkx03_a530__TY2V01","*='Kostenverzamelstaat 2019 2018'!$M$36","","Verpleging en verzorging- geaccepteerd","zvkx03","a530","","TY2V01"]
[null,null,null,null,"zvkx03_ac530__TY0V01","*='Kostenverzamelstaat 2020'!$L$33","","Verpleging en verzorging-kst Corona- geaccepteerd","zvkx03","a530","","TY0V01"]
[null,null,null,null,"zvkx03_c530__TY0V01","*='Kostenverzamelstaat 2020'!$I$33","","Verpleging en verzorging- incl balans","zvkx03","c530","","TY0V01"]
[null,null,null,null,"zvkx03_c530__TY1V01","*='Kostenverzamelstaat 2019 2018'!$K$36","","Verpleging en verzorging- incl balans","zvkx03","c530","","TY1V01"]
[null,null,null,null,"zvkx03_cc530__TY0V01","*='Kostenverzamelstaat 2020'!$K$33","","Verpleging en verzorging-kst Corona- incl balans","zvkx03","c530","","TY0V01"]
[null,null,null,null,"zvkx03_c803__TY0V01","*='Kostenverzamelstaat 2020'!$I$34",null,"Verpleging en verzorging- Meerkosten Corona, indirect en toeslagen- incl balans","zvkx03","c803",null,"TY0V01"]
[null,null,null,null,"zvkx03_c823__TY0V01","*='Kostenverzamelstaat 2020'!$I$35",null,"Verpleging en verzorging- Netto continuïteitsbijdrage Corona (basisverzekering)- incl balans","zvkx03","c823",null,"TY0V01"]
[null,null,null,null,"zvkx03_a803__TY0V01","*='Kostenverzamelstaat 2020'!$J$34",null,"Verpleging en verzorging- Meerkosten Corona, indirect en toeslagen- geaccepteerd","zvkx03","a803",null,"TY0V01"]
[null,null,null,null,"zvkx03_ac803__TY0V01","*='Kostenverzamelstaat 2020'!$L$34",null,"Verpleging en verzorging- Meerkosten Corona, indirect en toeslagen-kst Corona- geaccepteerd","zvkx03","ac803",null,"TY0V01"]
[null,null,null,null,"zvkx03_a823__TY0V01","*='Kostenverzamelstaat 2020'!$J$35",null,"Verpleging en verzorging- Netto continuïteitsbijdrage Corona (basisverzekering)- geaccepteerd","zvkx03","a823",null,"TY0V01"]
[null,null,null,null,"zvkx03_cc803__TY0V01","*='Kostenverzamelstaat 2020'!$K$34",null,"Verpleging en verzorging- Meerkosten Corona, indirect en toeslagen-kst Corona- geaccepteerd","zvkx03","cc803",null,"TY0V01"]
[null,null,null,null,"zvkx04_a5601__TY0V01","*='Kostenverzamelstaat 2020'!$J$38","","Mondzorg- volwassen verzekerden- geaccepteerd","zvkx04","a5601","","TY0V01"]
[null,null,null,null,"zvkx04_a5601__TY1V01","*='Kostenverzamelstaat 2019 2018'!$L$38","","Mondzorg- volwassen verzekerden- geaccepteerd","zvkx04","a5601","","TY1V01"]
[null,null,null,null,"zvkx04_a5601__TY2V01","*='Kostenverzamelstaat 2019 2018'!$M$38","","Mondzorg- volwassen verzekerden- geaccepteerd","zvkx04","a5601","","TY2V01"]
[null,null,null,null,"zvkx04_a5602__TY0V01","*='Kostenverzamelstaat 2020'!$J$39","","Mondzorg- jeugdige verzekerden- geaccepteerd","zvkx04","a5602","","TY0V01"]
[null,null,null,null,"zvkx04_a5602__TY1V01","*='Kostenverzamelstaat 2019 2018'!$L$39","","Mondzorg- jeugdige verzekerden- geaccepteerd","zvkx04","a5602","","TY1V01"]
[null,null,null,null,"zvkx04_a5602__TY2V01","*='Kostenverzamelstaat 2019 2018'!$M$39","","Mondzorg- jeugdige verzekerden- geaccepteerd","zvkx04","a5602","","TY2V01"]
[null,null,null,null,"zvkx04_a561__TY0V01","*='Kostenverzamelstaat 2020'!$J$40","","Mondzorg- gebitsprothesen- geaccepteerd","zvkx04","a561","","TY0V01"]
[null,null,null,null,"zvkx04_a561__TY1V01","*='Kostenverzamelstaat 2019 2018'!$L$40","","Mondzorg- gebitsprothesen- geaccepteerd","zvkx04","a561","","TY1V01"]
[null,null,null,null,"zvkx04_a561__TY2V01","*='Kostenverzamelstaat 2019 2018'!$M$40","","Mondzorg- gebitsprothesen- geaccepteerd","zvkx04","a561","","TY2V01"]
[null,null,null,null,"zvkx04_ac5601__TY0V01","*='Kostenverzamelstaat 2020'!$L$38","","Mondzorg- volwassen verzekerden-kst Corona- geaccepteerd","zvkx04","a5601","","TY0V01"]
[null,null,null,null,"zvkx04_ac5602__TY0V01","*='Kostenverzamelstaat 2020'!$L$39","","Mondzorg- jeugdige verzekerden-kst Corona- geaccepteerd","zvkx04","a5602","","TY0V01"]
[null,null,null,null,"zvkx04_ac561__TY0V01","*='Kostenverzamelstaat 2020'!$L$40","","Mondzorg- gebitsprothesen-kst Corona- geaccepteerd","zvkx04","a561","","TY0V01"]
[null,null,null,null,"zvkx04_c5601__TY0V01","*='Kostenverzamelstaat 2020'!$I$38","","Mondzorg- volwassen verzekerden- incl balans","zvkx04","c5601","","TY0V01"]
[null,null,null,null,"zvkx04_c5601__TY1V01","*='Kostenverzamelstaat 2019 2018'!$K$38","","Mondzorg- volwassen verzekerden- incl balans","zvkx04","c5601","","TY1V01"]
[null,null,null,null,"zvkx04_c5602__TY0V01","*='Kostenverzamelstaat 2020'!$I$39","","Mondzorg- jeugdige verzekerden- incl balans","zvkx04","c5602","","TY0V01"]
[null,null,null,null,"zvkx04_c5602__TY1V01","*='Kostenverzamelstaat 2019 2018'!$K$39","","Mondzorg- jeugdige verzekerden- incl balans","zvkx04","c5602","","TY1V01"]
[null,null,null,null,"zvkx04_c561__TY0V01","*='Kostenverzamelstaat 2020'!$I$40","","Mondzorg- gebitsprothesen- incl balans","zvkx04","c561","","TY0V01"]
[null,null,null,null,"zvkx04_c561__TY1V01","*='Kostenverzamelstaat 2019 2018'!$K$40","","Mondzorg- gebitsprothesen- incl balans","zvkx04","c561","","TY1V01"]
[null,null,null,null,"zvkx04_cc5601__TY0V01","*='Kostenverzamelstaat 2020'!$K$38","","Mondzorg- volwassen verzekerden-kst Corona- incl balans","zvkx04","c5601","","TY0V01"]
[null,null,null,null,"zvkx04_cc5602__TY0V01","*='Kostenverzamelstaat 2020'!$K$39","","Mondzorg- jeugdige verzekerden-kst Corona- incl balans","zvkx04","c5602","","TY0V01"]
[null,null,null,null,"zvkx04_cc561__TY0V01","*='Kostenverzamelstaat 2020'!$K$40","","Mondzorg- gebitsprothesen-kst Corona- incl balans","zvkx04","c561","","TY0V01"]
[null,null,null,null,"zvkx04_c804__TY0V01","*='Kostenverzamelstaat 2020'!$I$41",null,"Mondzorg- Meerkosten Corona, indirect en toeslagen- incl balans","zvkx04","c804",null,"TY0V01"]
[null,null,null,null,"zvkx04_c824__TY0V01","*='Kostenverzamelstaat 2020'!$I$42",null,"Mondzorg- Netto continuïteitsbijdrage Corona (basisverzekering)- incl balans","zvkx04","c824",null,"TY0V01"]
[null,null,null,null,"zvkx04_a804__TY0V01","*='Kostenverzamelstaat 2020'!$J$41",null,"Mondzorg- Meerkosten Corona, indirect en toeslagen- geaccepteerd","zvkx04","a804",null,"TY0V01"]
[null,null,null,null,"zvkx04_ac804__TY0V01","*='Kostenverzamelstaat 2020'!$L$41",null,"Mondzorg- Meerkosten Corona, indirect en toeslagen-kst Corona- geaccepteerd","zvkx04","ac804",null,"TY0V01"]
[null,null,null,null,"zvkx04_a824__TY0V01","*='Kostenverzamelstaat 2020'!$J$42",null,"Mondzorg- Netto continuïteitsbijdrage Corona (basisverzekering)- geaccepteerd","zvkx04","a824",null,"TY0V01"]
[null,null,null,null,"zvkx04_cc804__TY0V01","*='Kostenverzamelstaat 2020'!$K$41",null,"Mondzorg- Meerkosten Corona, indirect en toeslagen-kst Corona- geaccepteerd","zvkx04","cc804",null,"TY0V01"]
[null,null,null,null,"zvkx05_a580__TY0V01","*='Kostenverzamelstaat 2020'!$J$45","","Verloskundige hulp- door verloskundigen- geaccepteerd","zvkx05","a580","","TY0V01"]
[null,null,null,null,"zvkx05_a582__TY0V01","*='Kostenverzamelstaat 2020'!$J$46","","Verloskundige hulp- Integrale geboortezorg- geaccepteerd","zvkx05","a582","","TY0V01"]
[null,null,null,null,"zvkx05_a580__TY1V01","*='Kostenverzamelstaat 2019 2018'!$L$45","","Verloskundige hulp- door verloskundigen- geaccepteerd","zvkx05","a580","","TY1V01"]
[null,null,null,null,"zvkx05_a580__TY2V01","*='Kostenverzamelstaat 2019 2018'!$M$45","","Verloskundige hulp- door verloskundigen- geaccepteerd","zvkx05","a580","","TY2V01"]
[null,null,null,null,"zvkx05_a581__TY2V01","*='Kostenverzamelstaat 2019 2018'!$M$46","","Verloskundige hulp- door huisartsen- geaccepteerd","zvkx05","a581","","TY2V01"]
[null,null,null,null,"zvkx05_ac580__TY0V01","*='Kostenverzamelstaat 2020'!$L$45","","Verloskundige hulp- door verloskundigen-kst Corona- geaccepteerd","zvkx05","a580","","TY0V01"]
[null,null,null,null,"zvkx05_ac582__TY0V01","*='Kostenverzamelstaat 2020'!$L$46","","Verloskundige hulp- Integrale geboortezorg- kst Corona-geaccepteerd","zvkx05","ac582","","TY0V01"]
[null,null,null,null,"zvkx05_c580__TY0V01","*='Kostenverzamelstaat 2020'!$I$45","","Verloskundige hulp- door verloskundigen- incl balans","zvkx05","c580","","TY0V01"]
[null,null,null,null,"zvkx05_c580__TY1V01","*='Kostenverzamelstaat 2019 2018'!$K$45","","Verloskundige hulp- door verloskundigen- incl balans","zvkx05","c580","","TY1V01"]
[null,null,null,null,"zvkx05_cc582__TY0V01","*='Kostenverzamelstaat 2020'!$K$46","","Verloskundige hulp- Integrale geboortezorg- kst Corona- incl balans","zvkx05","cc582","","TY0V01"]
[null,null,null,null,"zvkx05_cc580__TY0V01","*='Kostenverzamelstaat 2020'!$K$45","","Verloskundige hulp- door verloskundigen-kst Corona- incl balans","zvkx05","c580","","TY0V01"]
[null,null,null,null,"zvkx05_c582__TY0V01","*='Kostenverzamelstaat 2020'!$J$46","","Verloskundige hulp- Integrale geboortezorg- incl balans","zvkx05","c582","","TY0V01"]
[null,null,null,null,"zvkx05_c805__TY0V01","*='Kostenverzamelstaat 2020'!$I$47",null,"Verloskundige hulp- Meerkosten Corona, indirect en toeslagen- incl balans","zvkx05","c805",null,"TY0V01"]
[null,null,null,null,"zvkx05_c825__TY0V01","*='Kostenverzamelstaat 2020'!$I$48",null,"Verloskundige hulp- Netto continuïteitsbijdrage Corona (basisverzekering)- incl balans","zvkx05","c825",null,"TY0V01"]
[null,null,null,null,"zvkx04_a805__TY0V01","*='Kostenverzamelstaat 2020'!$J$47",null,"Verloskundige hulp- Meerkosten Corona, indirect en toeslagen- geaccepteerd","zvkx05","a805",null,"TY0V01"]
[null,null,null,null,"zvkx05_ac805__TY0V01","*='Kostenverzamelstaat 2020'!$L$47",null,"Verloskundige hulp- Meerkosten Corona, indirect en toeslagen-kst Corona- geaccepteerd","zvkx05","ac805",null,"TY0V01"]
[null,null,null,null,"zvkx05_a825__TY0V01","*='Kostenverzamelstaat 2020'!$J$48",null,"Verloskundige hulp- Netto continuïteitsbijdrage Corona (basisverzekering)- geaccepteerd","zvkx05","a825",null,"TY0V01"]
[null,null,null,null,"zvkx05_cc825__TY0V01","*='Kostenverzamelstaat 2020'!$K$47",null,"Verloskundige hulp- Meerkosten Corona, indirect en toeslagen-kst Corona- geaccepteerd","zvkx05","cc805",null,"TY0V01"]
[null,null,null,null,"zvkx06_a545__TY0V01","*='Kostenverzamelstaat 2020'!$J$63","","Medisch specialistische hulp- mondziekten en kaakchirurgie- geaccepteerd","zvkx06","a545","","TY0V01"]
[null,null,null,null,"zvkx06_a545__TY1V01","*='Kostenverzamelstaat 2019 2018'!$L$65","","Medisch specialistische hulp- mondziekten en kaakchirurgie- geaccepteerd","zvkx06","a545","","TY1V01"]
[null,null,null,null,"zvkx06_a545__TY2V01","*='Kostenverzamelstaat 2019 2018'!$M$65","","Medisch specialistische hulp- mondziekten en kaakchirurgie- geaccepteerd","zvkx06","a545","","TY2V01"]
[null,null,null,null,"zvkx06_a610__TY0V01","*='Kostenverzamelstaat 2020'!$J$64","","Medisch specialistische hulp- Overige ziekenhuiszorg,curatief- geaccepteerd","zvkx06","a610","","TY0V01"]
[null,null,null,null,"zvkx06_a610__TY1V01","*='Kostenverzamelstaat 2019 2018'!$L$66","","Medisch specialistische hulp- Overige ziekenhuiszorg,curatief- geaccepteerd","zvkx06","a610","","TY1V01"]
[null,null,null,null,"zvkx06_a610__TY2V01","*='Kostenverzamelstaat 2019 2018'!$M$66","","Medisch specialistische hulp- Overige ziekenhuiszorg,curatief- geaccepteerd","zvkx06","a610","","TY2V01"]
[null,null,null,null,"zvkx06_a611__TY0V01","*='Kostenverzamelstaat 2020'!$J$65","","Medisch specialistische hulp- Overige zorg- geaccepteerd","zvkx06","a611","","TY0V01"]
[null,null,null,null,"zvkx06_a611__TY1V01","*='Kostenverzamelstaat 2019 2018'!$L$67","","Medisch specialistische hulp- Overige zorg- geaccepteerd","zvkx06","a611","","TY1V01"]
[null,null,null,null,"zvkx06_a611__TY2V01","*='Kostenverzamelstaat 2019 2018'!$M$67","","Medisch specialistische hulp- Overige zorg- geaccepteerd","zvkx06","a611","","TY2V01"]
[null,null,null,null,"zvkx06_a612__TY2V01","*='Kostenverzamelstaat 2019 2018'!$M$68","","Medisch specialistische hulp- add-on's- geaccepteerd","zvkx06","a612","","TY2V01"]
[null,null,null,null,"zvkx06_c6121__TY0V01","*='Kostenverzamelstaat 2020'!$I$66","","Medisch specialistische hulp- add-on's Dure geneesmiddelen- incl balans","zvkx06","c6121","","TY0V01"]
[null,null,null,null,"zvkx06_a6121__TY0V01","*='Kostenverzamelstaat 2020'!$J$66","","Medisch specialistische hulp- add-on's Dure geneesmiddelen- geaccepteerd","zvkx06","a6121","","TY0V01"]
[null,null,null,null,"zvkx06_c6122__TY0V01","*='Kostenverzamelstaat 2020'!$I$67","","Medisch specialistische hulp- IC- incl balans","zvkx06","c6122","","TY0V01"]
[null,null,null,null,"zvkx06_a6122__TY0V01","*='Kostenverzamelstaat 2020'!$J$67","","Medisch specialistische hulp- IC- geaccepteerd","zvkx06","a6122","","TY0V01"]
[null,null,null,null,"zvkx06_a6131__TY0V01","*='Kostenverzamelstaat 2020'!$J$68","","Medisch specialistische hulp- Integraal DBC-zorgproduct gereguleerd- geaccepteerd","zvkx06","a6131","","TY0V01"]
[null,null,null,null,"zvkx06_a6151__TY0V01","*='Kostenverzamelstaat 2020'!$J$69","","Medisch specialistische hulp- Integraal DBC-zorgproduct vrije segment- geaccepteerd","zvkx06","a6151","","TY0V01"]
[null,null,null,null,"zvkx06_a619__TY0V01","*='Kostenverzamelstaat 2020'!$J$70","","Medisch specialistische hulp- honoraria extramuraal- geaccepteerd","zvkx06","a619","","TY0V01"]
[null,null,null,null,"zvkx06_a619__TY1V01","*='Kostenverzamelstaat 2019 2018'!$L$73","","Medisch specialistische hulp- honoraria extramuraal- geaccepteerd","zvkx06","a619","","TY1V01"]
[null,null,null,null,"zvkx06_a619__TY2V01","*='Kostenverzamelstaat 2019 2018'!$M$73","","Medisch specialistische hulp- honoraria extramuraal- geaccepteerd","zvkx06","a619","","TY2V01"]
[null,null,null,null,"zvkx06_ac545__TY0V01","*='Kostenverzamelstaat 2020'!$L$63","","Medisch specialistische hulp- mondziekten en kaakchirurgie-kst Corona- geaccepteerd","zvkx06","ac545","","TY0V01"]
[null,null,null,null,"zvkx06_ac610__TY0V01","*='Kostenverzamelstaat 2020'!$L$64","","Medisch specialistische hulp- Overige ziekenhuiszorg,curatief-kst Corona- geaccepteerd","zvkx06","ac610","","TY0V01"]
[null,null,null,null,"zvkx06_ac611__TY0V01","*='Kostenverzamelstaat 2020'!$L$65","","Medisch specialistische hulp- Overige zorg-kst Corona- geaccepteerd","zvkx06","ac611","","TY0V01"]
[null,null,null,null,"zvkx06_ac6121__TY0V01","*='Kostenverzamelstaat 2020'!$L$66","","Medisch specialistische hulp- add-on's Dure geneesmiddelen-kst Corona- geaccepteerd","zvkx06","ac6121","","TY0V01"]
[null,null,null,null,"zvkx06_cc6121__TY0V01","*='Kostenverzamelstaat 2020'!$K$66","","Medisch specialistische hulp- add-on's Dure geneesmiddelen-kst Corona-  incl balans","zvkx06","cc6121","","TY0V01"]
[null,null,null,null,"zvkx06_ac6122__TY0V01","*='Kostenverzamelstaat 2020'!$L$67","","Medisch specialistische hulp- IC-kst Corona- geaccepteerd","zvkx06","ac6122","","TY0V01"]
[null,null,null,null,"zvkx06_cc6122__TY0V01","*='Kostenverzamelstaat 2020'!$K$67","","Medisch specialistische hulp- IC-kst Corona- incl balans","zvkx06","cc6122","","TY0V01"]
[null,null,null,null,"zvkx06_ac6131__TY0V01","*='Kostenverzamelstaat 2020'!$L$68","","Medisch specialistische hulp- Integraal DBC-zorgproduct gereguleerd-kst Corona- geaccepteerd","zvkx06","ac6131","","TY0V01"]
[null,null,null,null,"zvkx06_ac6151__TY0V01","*='Kostenverzamelstaat 2020'!$L$69","","Medisch specialistische hulp- Integraal DBC-zorgproduct vrije segment-kst Corona-  geaccepteerd","zvkx06","ac6151","","TY0V01"]
[null,null,null,null,"zvkx06_ac619__TY0V01","*='Kostenverzamelstaat 2020'!$L$70","","Medisch specialistische hulp- honoraria extramuraal-kst Corona- geaccepteerd","zvkx06","ac619","","TY0V01"]
[null,null,null,null,"zvkx06_c545__TY0V01","*='Kostenverzamelstaat 2020'!$I$63","","Medisch specialistische hulp- mondziekten en kaakchirurgie- incl balans","zvkx06","c545","","TY0V01"]
[null,null,null,null,"zvkx06_c545__TY1V01","*='Kostenverzamelstaat 2019 2018'!$K$65","","Medisch specialistische hulp- mondziekten en kaakchirurgie- incl balans","zvkx06","c545","","TY1V01"]
[null,null,null,null,"zvkx06_c610__TY0V01","*='Kostenverzamelstaat 2020'!$I$64","","Medisch specialistische hulp- Overige ziekenhuiszorg,curatief- incl balans","zvkx06","c610","","TY0V01"]
[null,null,null,null,"zvkx06_c610__TY1V01","*='Kostenverzamelstaat 2019 2018'!$K$66","","Medisch specialistische hulp- Overige ziekenhuiszorg,curatief- incl balans","zvkx06","c610","","TY1V01"]
[null,null,null,null,"zvkx06_c611__TY0V01","*='Kostenverzamelstaat 2020'!$I$65","","Medisch specialistische hulp- Overige zorg- incl balans","zvkx06","c611","","TY0V01"]
[null,null,null,null,"zvkx06_c611__TY1V01","*='Kostenverzamelstaat 2019 2018'!$K$67","","Medisch specialistische hulp- Overige zorg- incl balans","zvkx06","c611","","TY1V01"]
[null,null,null,null,"zvkx06_c6131__TY0V01","*='Kostenverzamelstaat 2020'!$I$68","","Medisch specialistische hulp- Integraal DBC-zorgproduct gereguleerd- incl balans","zvkx06","c6131","","TY0V01"]
[null,null,null,null,"zvkx06_c6151__TY0V01","*='Kostenverzamelstaat 2020'!$I$69","","Medisch specialistische hulp- Integraal DBC-zorgproduct vrije segment- incl balans","zvkx06","c6151","","TY0V01"]
[null,null,null,null,"zvkx06_c619__TY0V01","*='Kostenverzamelstaat 2020'!$I$70","","Medisch specialistische hulp- honoraria extramuraal- incl balans","zvkx06","c619","","TY0V01"]
[null,null,null,null,"zvkx06_c619__TY1V01","*='Kostenverzamelstaat 2019 2018'!$K$73","","Medisch specialistische hulp- honoraria extramuraal- incl balans","zvkx06","c619","","TY1V01"]
[null,null,null,null,"zvkx06_cc545__TY0V01","*='Kostenverzamelstaat 2020'!$K$63","","Medisch specialistische hulp- mondziekten en kaakchirurgie-kst Corona- incl balans","zvkx06","cc545","","TY0V01"]
[null,null,null,null,"zvkx06_cc610__TY0V01","*='Kostenverzamelstaat 2020'!$K$64","","Medisch specialistische hulp- Overige ziekenhuiszorg,curatief-kst Corona- incl balans","zvkx06","cc610","","TY0V01"]
[null,null,null,null,"zvkx06_cc611__TY0V01","*='Kostenverzamelstaat 2020'!$K$65","","Medisch specialistische hulp- Overige zorg-kst Corona- incl balans","zvkx06","cc611","","TY0V01"]
[null,null,null,null,"zvkx06_cc6131__TY0V01","*='Kostenverzamelstaat 2020'!$K$68","","Medisch specialistische hulp- Integraal DBC-zorgproduct gereguleerd-kst Corona- incl balans","zvkx06","cc6131","","TY0V01"]
[null,null,null,null,"zvkx06_cc6151__TY0V01","*='Kostenverzamelstaat 2020'!$K$69","","Medisch specialistische hulp- Integraal DBC-zorgproduct vrije segment-kst Corona- incl balans","zvkx06","cc6151","","TY0V01"]
[null,null,null,null,"zvkx06_cc619__TY0V01","*='Kostenverzamelstaat 2020'!$K$70","","Medisch specialistische hulp- honoraria extramuraal-kst Corona- incl balans","zvkx06","cc619","","TY0V01"]
[null,null,null,null,"zvkx06_c806__TY0V01","*='Kostenverzamelstaat 2020'!$I$71",null,"Medisch specialistische hulp- Meerkosten Corona, indirect en toeslagen- incl balans","zvkx06","c806",null,"TY0V01"]
[null,null,null,null,"zvkx06_c826__TY0V01","*='Kostenverzamelstaat 2020'!$I$72",null,"Medisch specialistische hulp- Netto continuïteitsbijdrage Corona (basisverzekering)- incl balans","zvkx06","c826",null,"TY0V01"]
[null,null,null,null,"zvkx06_a806__TY0V01","*='Kostenverzamelstaat 2020'!$J$71",null,"Medisch specialistische hulp- Meerkosten Corona, indirect en toeslagen- geaccepteerd","zvkx06","a806",null,"TY0V01"]
[null,null,null,null,"zvkx06_ac806__TY0V01","*='Kostenverzamelstaat 2020'!$L$71",null,"Medisch specialistische hulp- Meerkosten Corona, indirect en toeslagen-kst Corona- geaccepteerd","zvkx06","ac806",null,"TY0V01"]
[null,null,null,null,"zvkx06_a826__TY0V01","*='Kostenverzamelstaat 2020'!$J$72",null,"Medisch specialistische hulp- Netto continuïteitsbijdrage Corona (basisverzekering)- geaccepteerd","zvkx06","a826",null,"TY0V01"]
[null,null,null,null,"zvkx06_cc826__TY0V01","*='Kostenverzamelstaat 2020'!$K$71",null,"Medisch specialistische hulp- Meerkosten Corona, indirect en toeslagen-kst Corona- geaccepteerd","zvkx06","cc806",null,"TY0V01"]
[null,null,null,null,"zvkx07_a620__TY0V01","*='Kostenverzamelstaat 2020'!$J$75","","Paramedische hulp- fysiotherapie- geaccepteerd","zvkx07","a620","","TY0V01"]
[null,null,null,null,"zvkx07_a620__TY1V01","*='Kostenverzamelstaat 2019 2018'!$L$78","","Paramedische hulp- fysiotherapie- geaccepteerd","zvkx07","a620","","TY1V01"]
[null,null,null,null,"zvkx07_a620__TY2V01","*='Kostenverzamelstaat 2019 2018'!$M$78","","Paramedische hulp- fysiotherapie- geaccepteerd","zvkx07","a620","","TY2V01"]
[null,null,null,null,"zvkx07_a621__TY0V01","*='Kostenverzamelstaat 2020'!$J$76","","Paramedische hulp- Mensendieck/Cesar- geaccepteerd","zvkx07","a621","","TY0V01"]
[null,null,null,null,"zvkx07_a621__TY1V01","*='Kostenverzamelstaat 2019 2018'!$L$79","","Paramedische hulp- Mensendieck/Cesar- geaccepteerd","zvkx07","a621","","TY1V01"]
[null,null,null,null,"zvkx07_a621__TY2V01","*='Kostenverzamelstaat 2019 2018'!$M$79","","Paramedische hulp- Mensendieck/Cesar- geaccepteerd","zvkx07","a621","","TY2V01"]
[null,null,null,null,"zvkx07_a623__TY0V01","*='Kostenverzamelstaat 2020'!$J$77","","Paramedische hulp- logopedie- geaccepteerd","zvkx07","a623","","TY0V01"]
[null,null,null,null,"zvkx07_a623__TY1V01","*='Kostenverzamelstaat 2019 2018'!$L$80","","Paramedische hulp- logopedie- geaccepteerd","zvkx07","a623","","TY1V01"]
[null,null,null,null,"zvkx07_a623__TY2V01","*='Kostenverzamelstaat 2019 2018'!$M$80","","Paramedische hulp- logopedie- geaccepteerd","zvkx07","a623","","TY2V01"]
[null,null,null,null,"zvkx07_a624__TY0V01","*='Kostenverzamelstaat 2020'!$J$78","","Paramedische hulp- ergotherapie- geaccepteerd","zvkx07","a624","","TY0V01"]
[null,null,null,null,"zvkx07_a624__TY1V01","*='Kostenverzamelstaat 2019 2018'!$L$81","","Paramedische hulp- ergotherapie- geaccepteerd","zvkx07","a624","","TY1V01"]
[null,null,null,null,"zvkx07_a624__TY2V01","*='Kostenverzamelstaat 2019 2018'!$M$81","","Paramedische hulp- ergotherapie- geaccepteerd","zvkx07","a624","","TY2V01"]
[null,null,null,null,"zvkx07_a625__TY0V01","*='Kostenverzamelstaat 2020'!$J$79","","Paramedische hulp- dieetadvisering- geaccepteerd","zvkx07","a625","","TY0V01"]
[null,null,null,null,"zvkx07_a625__TY1V01","*='Kostenverzamelstaat 2019 2018'!$L$82","","Paramedische hulp- dieetadvisering- geaccepteerd","zvkx07","a625","","TY1V01"]
[null,null,null,null,"zvkx07_a625__TY2V01","*='Kostenverzamelstaat 2019 2018'!$M$82","","Paramedische hulp- dieetadvisering- geaccepteerd","zvkx07","a625","","TY2V01"]
[null,null,null,null,"zvkx07_ac620__TY0V01","*='Kostenverzamelstaat 2020'!$L$75","","Paramedische hulp- fysiotherapie-kst Corona- geaccepteerd","zvkx07","ac620","","TY0V01"]
[null,null,null,null,"zvkx07_ac621__TY0V01","*='Kostenverzamelstaat 2020'!$L$76","","Paramedische hulp- Mensendieck/Cesar-kst Corona- geaccepteerd","zvkx07","ac621","","TY0V01"]
[null,null,null,null,"zvkx07_ac623__TY0V01","*='Kostenverzamelstaat 2020'!$L$77","","Paramedische hulp- logopedie-kst Corona- geaccepteerd","zvkx07","ac623","","TY0V01"]
[null,null,null,null,"zvkx07_ac624__TY0V01","*='Kostenverzamelstaat 2020'!$L$78","","Paramedische hulp- ergotherapie-kst Corona- geaccepteerd","zvkx07","ac624","","TY0V01"]
[null,null,null,null,"zvkx07_ac625__TY0V01","*='Kostenverzamelstaat 2020'!$L$79","","Paramedische hulp- dieetadvisering-kst Corona- geaccepteerd","zvkx07","ac625","","TY0V01"]
[null,null,null,null,"zvkx07_c620__TY0V01","*='Kostenverzamelstaat 2020'!$I$75","","Paramedische hulp- fysiotherapie- incl balans","zvkx07","c620","","TY0V01"]
[null,null,null,null,"zvkx07_c620__TY1V01","*='Kostenverzamelstaat 2019 2018'!$K$78","","Paramedische hulp- fysiotherapie- incl balans","zvkx07","c620","","TY1V01"]
[null,null,null,null,"zvkx07_c621__TY0V01","*='Kostenverzamelstaat 2020'!$I$76","","Paramedische hulp- Mensendieck/Cesar- incl balans","zvkx07","c621","","TY0V01"]
[null,null,null,null,"zvkx07_c621__TY1V01","*='Kostenverzamelstaat 2019 2018'!$K$79","","Paramedische hulp- Mensendieck/Cesar- incl balans","zvkx07","c621","","TY1V01"]
[null,null,null,null,"zvkx07_c623__TY0V01","*='Kostenverzamelstaat 2020'!$I$77","","Paramedische hulp- logopedie- incl balans","zvkx07","c623","","TY0V01"]
[null,null,null,null,"zvkx07_c623__TY1V01","*='Kostenverzamelstaat 2019 2018'!$K$80","","Paramedische hulp- logopedie- incl balans","zvkx07","c623","","TY1V01"]
[null,null,null,null,"zvkx07_c624__TY0V01","*='Kostenverzamelstaat 2020'!$I$78","","Paramedische hulp- ergotherapie- incl balans","zvkx07","c624","","TY0V01"]
[null,null,null,null,"zvkx07_c624__TY1V01","*='Kostenverzamelstaat 2019 2018'!$K$81","","Paramedische hulp- ergotherapie- incl balans","zvkx07","c624","","TY1V01"]
[null,null,null,null,"zvkx07_c625__TY0V01","*='Kostenverzamelstaat 2020'!$I$79","","Paramedische hulp- dieetadvisering- incl balans","zvkx07","c625","","TY0V01"]
[null,null,null,null,"zvkx07_c625__TY1V01","*='Kostenverzamelstaat 2019 2018'!$K$82","","Paramedische hulp- dieetadvisering- incl balans","zvkx07","c625","","TY1V01"]
[null,null,null,null,"zvkx07_cc620__TY0V01","*='Kostenverzamelstaat 2020'!$K$75","","Paramedische hulp- fysiotherapie-kst Corona- incl balans","zvkx07","cc620","","TY0V01"]
[null,null,null,null,"zvkx07_cc621__TY0V01","*='Kostenverzamelstaat 2020'!$K$76","","Paramedische hulp- Mensendieck/Cesar-kst Corona- incl balans","zvkx07","cc621","","TY0V01"]
[null,null,null,null,"zvkx07_cc623__TY0V01","*='Kostenverzamelstaat 2020'!$K$77","","Paramedische hulp- logopedie-kst Corona- incl balans","zvkx07","cc623","","TY0V01"]
[null,null,null,null,"zvkx07_cc624__TY0V01","*='Kostenverzamelstaat 2020'!$K$78","","Paramedische hulp- ergotherapie-kst Corona- incl balans","zvkx07","cc624","","TY0V01"]
[null,null,null,null,"zvkx07_cc625__TY0V01","*='Kostenverzamelstaat 2020'!$K$79","","Paramedische hulp- dieetadvisering-kst Corona- incl balans","zvkx07","cc625","","TY0V01"]
[null,null,null,null,"zvkx07_c626__TY0V01","*='Kostenverzamelstaat 2020'!$I$80","","Paramedische hulp- gecombineerde leefstijl interventie- incl balans","zvkx07","c626","","TY0V01"]
[null,null,null,null,"zvkx07_a626__TY0V01","*='Kostenverzamelstaat 2020'!$J$80","","Paramedische hulp- gecombineerde leefstijl interventie- geaccepteerd","zvkx07","a626","","TY0V01"]
[null,null,null,null,"zvkx07_cc626__TY0V01","*='Kostenverzamelstaat 2020'!$K$80","","Paramedische hulp- gecombineerde leefstijl interventie-kst Corona- incl balans","zvkx07","cc626","","TY0V01"]
[null,null,null,null,"zvkx07_ac626__TY0V01","*='Kostenverzamelstaat 2020'!$L$80","","Paramedische hulp- gecombineerde leefstijl interventie-kst Corona- geaccepteerd","zvkx07","ac626","","TY0V01"]
[null,null,null,null,"zvkx07_c807__TY0V01","*='Kostenverzamelstaat 2020'!$I$81",null,"Paramedische hulp- Meerkosten Corona, indirect en toeslagen- incl balans","zvkx07","c807",null,"TY0V01"]
[null,null,null,null,"zvkx07_c827__TY0V01","*='Kostenverzamelstaat 2020'!$I$82",null,"Paramedische hulp- Netto continuïteitsbijdrage Corona (basisverzekering)- incl balans","zvkx07","c827",null,"TY0V01"]
[null,null,null,null,"zvkx07_a807__TY0V01","*='Kostenverzamelstaat 2020'!$J$81",null,"Paramedische hulp- Meerkosten Corona, indirect en toeslagen- geaccepteerd","zvkx07","a807",null,"TY0V01"]
[null,null,null,null,"zvkx07_ac807__TY0V01","*='Kostenverzamelstaat 2020'!$L$81",null,"Paramedische hulp- Meerkosten Corona, indirect en toeslagen-kst Corona- geaccepteerd","zvkx07","ac807",null,"TY0V01"]
[null,null,null,null,"zvkx07_a827__TY0V01","*='Kostenverzamelstaat 2020'!$J$82",null,"Paramedische hulp- Netto continuïteitsbijdrage Corona (basisverzekering)- geaccepteerd","zvkx07","a827",null,"TY0V01"]
[null,null,null,null,"zvkx07_cc827__TY0V01","*='Kostenverzamelstaat 2020'!$K$81",null,"Paramedische hulp- Meerkosten Corona, indirect en toeslagen-kst Corona- geaccepteerd","zvkx07","cc807",null,"TY0V01"]
[null,null,null,null,"zvkx08_a640__TY0V01","*='Kostenverzamelstaat 2020'!$J$85","","Hulpmiddelen-- geaccepteerd","zvkx08","a640","","TY0V01"]
[null,null,null,null,"zvkx08_a640__TY1V01","*='Kostenverzamelstaat 2019 2018'!$L$88","","Hulpmiddelen-- geaccepteerd","zvkx08","a640","","TY1V01"]
[null,null,null,null,"zvkx08_a640__TY2V01","*='Kostenverzamelstaat 2019 2018'!$M$88","","Hulpmiddelen-- geaccepteerd","zvkx08","a640","","TY2V01"]
[null,null,null,null,"zvkx08_ac640__TY0V01","*='Kostenverzamelstaat 2020'!$L$85","","Hulpmiddelen-- kst Corona- geaccepteerd","zvkx08","a640","","TY0V01"]
[null,null,null,null,"zvkx08_c640__TY0V01","*='Kostenverzamelstaat 2020'!$I$85","","Hulpmiddelen-- incl balans","zvkx08","c640","","TY0V01"]
[null,null,null,null,"zvkx08_c640__TY1V01","*='Kostenverzamelstaat 2019 2018'!$K$88","","Hulpmiddelen-- incl balans","zvkx08","c640","","TY1V01"]
[null,null,null,null,"zvkx08_cc640__TY0V01","*='Kostenverzamelstaat 2020'!$K$85","","Hulpmiddelen-- kst Corona- incl balans","zvkx08","c640","","TY0V01"]
[null,null,null,null,"zvkx08_c808__TY0V01","*='Kostenverzamelstaat 2020'!$I$86",null,"Hulpmiddelen-- Meerkosten Corona, indirect en toeslagen- incl balans","zvkx08","c808",null,"TY0V01"]
[null,null,null,null,"zvkx08_c828__TY0V01","*='Kostenverzamelstaat 2020'!$I$87",null,"Hulpmiddelen-- Netto continuïteitsbijdrage Corona (basisverzekering)- incl balans","zvkx08","c828",null,"TY0V01"]
[null,null,null,null,"zvkx08_a808__TY0V01","*='Kostenverzamelstaat 2020'!$J$86",null,"Hulpmiddelen-- Meerkosten Corona, indirect en toeslagen- geaccepteerd","zvkx08","a808",null,"TY0V01"]
[null,null,null,null,"zvkx08_ac808__TY0V01","*='Kostenverzamelstaat 2020'!$L$86",null,"Hulpmiddelen-- Meerkosten Corona, indirect en toeslagen-kst Corona- geaccepteerd","zvkx08","ac808",null,"TY0V01"]
[null,null,null,null,"zvkx08_a828__TY0V01","*='Kostenverzamelstaat 2020'!$J$87",null,"Hulpmiddelen-- Netto continuïteitsbijdrage Corona (basisverzekering)- geaccepteerd","zvkx08","a828",null,"TY0V01"]
[null,null,null,null,"zvkx08_cc828__TY0V01","*='Kostenverzamelstaat 2020'!$K$86",null,"Hulpmiddelen-- Meerkosten Corona, indirect en toeslagen-kst Corona- geaccepteerd","zvkx08","cc808",null,"TY0V01"]
[null,null,null,null,"zvkx09_a650__TY0V01","*='Kostenverzamelstaat 2020'!$J$90","","Ziekenvervoer- ambulance/helicopter- geaccepteerd","zvkx09","a650","","TY0V01"]
[null,null,null,null,"zvkx09_a650__TY1V01","*='Kostenverzamelstaat 2019 2018'!$L$93","","Ziekenvervoer- ambulance/helicopter- geaccepteerd","zvkx09","a650","","TY1V01"]
[null,null,null,null,"zvkx09_a650__TY2V01","*='Kostenverzamelstaat 2019 2018'!$M$93","","Ziekenvervoer- ambulance/helicopter- geaccepteerd","zvkx09","a650","","TY2V01"]
[null,null,null,null,"zvkx09_a6501__TY0V01","*='Kostenverzamelstaat 2020'!$J$91","","Ziekenvervoer- regionale ambulance- geaccepteerd","zvkx09","a6501","","TY0V01"]
[null,null,null,null,"zvkx09_a6501__TY1V01","*='Kostenverzamelstaat 2019 2018'!$L$94","","Ziekenvervoer- regionale ambulance- geaccepteerd","zvkx09","a6501","","TY1V01"]
[null,null,null,null,"zvkx09_a6501__TY2V01","*='Kostenverzamelstaat 2019 2018'!$M$94","","Ziekenvervoer- regionale ambulance- geaccepteerd","zvkx09","a6501","","TY2V01"]
[null,null,null,null,"zvkx09_a651__TY0V01","*='Kostenverzamelstaat 2020'!$J$92","","Ziekenvervoer- ov, taxi en eigen auto- geaccepteerd","zvkx09","a651","","TY0V01"]
[null,null,null,null,"zvkx09_a651__TY1V01","*='Kostenverzamelstaat 2019 2018'!$L$95","","Ziekenvervoer- ov, taxi en eigen auto- geaccepteerd","zvkx09","a651","","TY1V01"]
[null,null,null,null,"zvkx09_a651__TY2V01","*='Kostenverzamelstaat 2019 2018'!$M$95","","Ziekenvervoer- ov, taxi en eigen auto- geaccepteerd","zvkx09","a651","","TY2V01"]
[null,null,null,null,"zvkx09_ac650__TY0V01","*='Kostenverzamelstaat 2020'!$L$90","","Ziekenvervoer- ambulance/helicopter-kst Corona- geaccepteerd","zvkx09","a650","","TY0V01"]
[null,null,null,null,"zvkx09_ac6501__TY0V01","*='Kostenverzamelstaat 2020'!$L$91","","Ziekenvervoer- regionale ambulance-kst Corona- geaccepteerd","zvkx09","a6501","","TY0V01"]
[null,null,null,null,"zvkx09_ac651__TY0V01","*='Kostenverzamelstaat 2020'!$L$92","","Ziekenvervoer- ov, taxi en eigen auto-kst Corona- geaccepteerd","zvkx09","a651","","TY0V01"]
[null,null,null,null,"zvkx09_c650__TY0V01","*='Kostenverzamelstaat 2020'!$I$90","","Ziekenvervoer- ambulance/helicopter- incl balans","zvkx09","c650","","TY0V01"]
[null,null,null,null,"zvkx09_c650__TY1V01","*='Kostenverzamelstaat 2019 2018'!$K$93","","Ziekenvervoer- ambulance/helicopter- incl balans","zvkx09","c650","","TY1V01"]
[null,null,null,null,"zvkx09_c6501__TY0V01","*='Kostenverzamelstaat 2020'!$I$91","","Ziekenvervoer- regionale ambulance- incl balans","zvkx09","c6501","","TY0V01"]
[null,null,null,null,"zvkx09_c6501__TY1V01","*='Kostenverzamelstaat 2019 2018'!$K$94","","Ziekenvervoer- regionale ambulance- incl balans","zvkx09","c6501","","TY1V01"]
[null,null,null,null,"zvkx09_c651__TY0V01","*='Kostenverzamelstaat 2020'!$I$92","","Ziekenvervoer- ov, taxi en eigen auto- incl balans","zvkx09","c651","","TY0V01"]
[null,null,null,null,"zvkx09_c651__TY1V01","*='Kostenverzamelstaat 2019 2018'!$K$95","","Ziekenvervoer- ov, taxi en eigen auto- incl balans","zvkx09","c651","","TY1V01"]
[null,null,null,null,"zvkx09_cc650__TY0V01","*='Kostenverzamelstaat 2020'!$K$90","","Ziekenvervoer- ambulance/helicopter-kst Corona- incl balans","zvkx09","c650","","TY0V01"]
[null,null,null,null,"zvkx09_cc6501__TY0V01","*='Kostenverzamelstaat 2020'!$K$91","","Ziekenvervoer- regionale ambulance-kst Corona- incl balans","zvkx09","c6501","","TY0V01"]
[null,null,null,null,"zvkx09_cc651__TY0V01","*='Kostenverzamelstaat 2020'!$K$92","","Ziekenvervoer- ov, taxi en eigen auto-kst Corona- incl balans","zvkx09","c651","","TY0V01"]
[null,null,null,null,"zvkx09_c809__TY0V01","*='Kostenverzamelstaat 2020'!$I$93",null,"Ziekenvervoer- Meerkosten Corona, indirect en toeslagen- incl balans","zvkx09","c809",null,"TY0V01"]
[null,null,null,null,"zvkx09_c829__TY0V01","*='Kostenverzamelstaat 2020'!$I$94",null,"Ziekenvervoer- Netto continuïteitsbijdrage Corona (basisverzekering)- incl balans","zvkx09","c829",null,"TY0V01"]
[null,null,null,null,"zvkx09_a809__TY0V01","*='Kostenverzamelstaat 2020'!$J$93",null,"Ziekenvervoer- Meerkosten Corona, indirect en toeslagen- geaccepteerd","zvkx09","a809",null,"TY0V01"]
[null,null,null,null,"zvkx09_ac809__TY0V01","*='Kostenverzamelstaat 2020'!$L$93",null,"Ziekenvervoer- Meerkosten Corona, indirect en toeslagen-kst Corona- geaccepteerd","zvkx09","ac809",null,"TY0V01"]
[null,null,null,null,"zvkx09_a829__TY0V01","*='Kostenverzamelstaat 2020'!$J$94",null,"Ziekenvervoer- Netto continuïteitsbijdrage Corona (basisverzekering)- geaccepteerd","zvkx09","a829",null,"TY0V01"]
[null,null,null,null,"zvkx09_cc829__TY0V01","*='Kostenverzamelstaat 2020'!$K$93",null,"Ziekenvervoer- Meerkosten Corona, indirect en toeslagen-kst Corona- geaccepteerd","zvkx09","cc809",null,"TY0V01"]
[null,null,null,null,"zvkx10_a661__TY0V01","*='Kostenverzamelstaat 2020'!$J$109","","Geneeskundige GGZ- GGZ met verblijf- geaccepteerd","zvkx10","a661","","TY0V01"]
[null,null,null,null,"zvkx10_a661__TY1V01","*='Kostenverzamelstaat 2019 2018'!$L$113","","Geneeskundige GGZ- GGZ met verblijf- geaccepteerd","zvkx10","a661","","TY1V01"]
[null,null,null,null,"zvkx10_a661__TY2V01","*='Kostenverzamelstaat 2019 2018'!$M$113","","Geneeskundige GGZ- GGZ met verblijf- geaccepteerd","zvkx10","a661","","TY2V01"]
[null,null,null,null,"zvkx10_a6611__TY0V01","*='Kostenverzamelstaat 2020'!$J$110","","Geneeskundige GGZ- GGZ jaar 2 en 3- geaccepteerd","zvkx10","a6611","","TY0V01"]
[null,null,null,null,"zvkx10_a6611__TY1V01","*='Kostenverzamelstaat 2019 2018'!$L$114","","Geneeskundige GGZ- GGZ jaar 2 en 3- geaccepteerd","zvkx10","a6611","","TY1V01"]
[null,null,null,null,"zvkx10_a6611__TY2V01","*='Kostenverzamelstaat 2019 2018'!$M$114","","Geneeskundige GGZ- GGZ jaar 2 en 3- geaccepteerd","zvkx10","a6611","","TY2V01"]
[null,null,null,null,"zvkx10_a662__TY0V01","*='Kostenverzamelstaat 2020'!$J$111","","Geneeskundige GGZ- GGZ zonder verblijf- geaccepteerd","zvkx10","a662","","TY0V01"]
[null,null,null,null,"zvkx10_a662__TY1V01","*='Kostenverzamelstaat 2019 2018'!$L$115","","Geneeskundige GGZ- GGZ zonder verblijf- geaccepteerd","zvkx10","a662","","TY1V01"]
[null,null,null,null,"zvkx10_a662__TY2V01","*='Kostenverzamelstaat 2019 2018'!$M$115","","Geneeskundige GGZ- GGZ zonder verblijf- geaccepteerd","zvkx10","a662","","TY2V01"]
[null,null,null,null,"zvkx10_a665__TY0V01","*='Kostenverzamelstaat 2020'!$J$112","","Geneeskundige GGZ- basis GGZ- geaccepteerd","zvkx10","a665","","TY0V01"]
[null,null,null,null,"zvkx10_a665__TY1V01","*='Kostenverzamelstaat 2019 2018'!$L$116","","Geneeskundige GGZ- basis GGZ- geaccepteerd","zvkx10","a665","","TY1V01"]
[null,null,null,null,"zvkx10_a665__TY2V01","*='Kostenverzamelstaat 2019 2018'!$M$116","","Geneeskundige GGZ- basis GGZ- geaccepteerd","zvkx10","a665","","TY2V01"]
[null,null,null,null,"zvkx10_ac661__TY0V01","*='Kostenverzamelstaat 2020'!$L$109","","Geneeskundige GGZ- GGZ met verblijf-kst Corona- geaccepteerd","zvkx10","a661","","TY0V01"]
[null,null,null,null,"zvkx10_ac6611__TY0V01","*='Kostenverzamelstaat 2020'!$L$110","","Geneeskundige GGZ- GGZ jaar 2 en 3-kst Corona- geaccepteerd","zvkx10","a6611","","TY0V01"]
[null,null,null,null,"zvkx10_ac662__TY0V01","*='Kostenverzamelstaat 2020'!$L$111","","Geneeskundige GGZ- GGZ zonder verblijf-kst Corona- geaccepteerd","zvkx10","a662","","TY0V01"]
[null,null,null,null,"zvkx10_ac665__TY0V01","*='Kostenverzamelstaat 2020'!$L$112","","Geneeskundige GGZ- basis GGZ-kst Corona- geaccepteerd","zvkx10","a665","","TY0V01"]
[null,null,null,null,"zvkx10_c661__TY0V01","*='Kostenverzamelstaat 2020'!$I$109","","Geneeskundige GGZ- GGZ met verblijf- incl balans","zvkx10","c661","","TY0V01"]
[null,null,null,null,"zvkx10_c661__TY1V01","*='Kostenverzamelstaat 2019 2018'!$K$113","","Geneeskundige GGZ- GGZ met verblijf- incl balans","zvkx10","c661","","TY1V01"]
[null,null,null,null,"zvkx10_c6611__TY0V01","*='Kostenverzamelstaat 2020'!$I$110","","Geneeskundige GGZ- GGZ jaar 2 en 3- incl balans","zvkx10","c6611","","TY0V01"]
[null,null,null,null,"zvkx10_c6611__TY1V01","*='Kostenverzamelstaat 2019 2018'!$K$114","","Geneeskundige GGZ- GGZ jaar 2 en 3- incl balans","zvkx10","c6611","","TY1V01"]
[null,null,null,null,"zvkx10_c662__TY0V01","*='Kostenverzamelstaat 2020'!$I$111","","Geneeskundige GGZ- GGZ zonder verblijf- incl balans","zvkx10","c662","","TY0V01"]
[null,null,null,null,"zvkx10_c662__TY1V01","*='Kostenverzamelstaat 2019 2018'!$K$115","","Geneeskundige GGZ- GGZ zonder verblijf- incl balans","zvkx10","c662","","TY1V01"]
[null,null,null,null,"zvkx10_c665__TY0V01","*='Kostenverzamelstaat 2020'!$I$112","","Geneeskundige GGZ- basis GGZ- incl balans","zvkx10","c665","","TY0V01"]
[null,null,null,null,"zvkx10_c665__TY1V01","*='Kostenverzamelstaat 2019 2018'!$K$116","","Geneeskundige GGZ- basis GGZ- incl balans","zvkx10","c665","","TY1V01"]
[null,null,null,null,"zvkx10_cc661__TY0V01","*='Kostenverzamelstaat 2020'!$K$109","","Geneeskundige GGZ- GGZ met verblijf-kst Corona- incl balans","zvkx10","cc661","","TY0V01"]
[null,null,null,null,"zvkx10_cc6611__TY0V01","*='Kostenverzamelstaat 2020'!$K$110","","Geneeskundige GGZ- GGZ jaar 2 en 3-kst Corona- incl balans","zvkx10","cc6611","","TY0V01"]
[null,null,null,null,"zvkx10_cc662__TY0V01","*='Kostenverzamelstaat 2020'!$K$111","","Geneeskundige GGZ- GGZ zonder verblijf-kst Corona- incl balans","zvkx10","cc662","","TY0V01"]
[null,null,null,null,"zvkx10_cc665__TY0V01","*='Kostenverzamelstaat 2020'!$K$112","","Geneeskundige GGZ- basis GGZ-kst Corona- incl balans","zvkx10","cc665","","TY0V01"]
[null,null,null,null,"zvkx10_c810__TY0V01","*='Kostenverzamelstaat 2020'!$I$113",null,"Geneeskundige GGZ- Meerkosten Corona, indirect en toeslagen- incl balans","zvkx10","c810",null,"TY0V01"]
[null,null,null,null,"zvkx10_c830__TY0V01","*='Kostenverzamelstaat 2020'!$I$114",null,"Geneeskundige GGZ- Netto continuïteitsbijdrage Corona (basisverzekering)- incl balans","zvkx10","c830",null,"TY0V01"]
[null,null,null,null,"zvkx10_c830__TY1V01","*='Kostenverzamelstaat 2019 2018'!$K$118",null,"Geneeskundige GGZ- Netto continuïteitsbijdrage Corona (basisverzekering)- incl balans","zvkx10","c830",null,"TY1V01"]
[null,null,null,null,"zvkx10_a810__TY0V01","*='Kostenverzamelstaat 2020'!$J$113",null,"Geneeskundige GGZ- Meerkosten Corona, indirect en toeslagen- geaccepteerd","zvkx10","a810",null,"TY0V01"]
[null,null,null,null,"zvkx10_ac810__TY0V01","*='Kostenverzamelstaat 2020'!$L$113",null,"Geneeskundige GGZ- Meerkosten Corona, indirect en toeslagen-kst Corona- geaccepteerd","zvkx10","ac810",null,"TY0V01"]
[null,null,null,null,"zvkx10_a830__TY0V01","*='Kostenverzamelstaat 2020'!$J$114",null,"Geneeskundige GGZ- Netto continuïteitsbijdrage Corona (basisverzekering)- geaccepteerd","zvkx10","a830",null,"TY0V01"]
[null,null,null,null,"zvkx10_a830__TY1V01","*='Kostenverzamelstaat 2019 2018'!$L$118",null,"Geneeskundige GGZ- Netto continuïteitsbijdrage Corona (basisverzekering)- geaccepteerd","zvkx10","a830",null,"TY1V01"]
[null,null,null,null,"zvkx10_cc810__TY0V01","*='Kostenverzamelstaat 2020'!$K$113",null,"Geneeskundige GGZ- Meerkosten Corona, indirect en toeslagen-kst Corona- geaccepteerd","zvkx10","cc810",null,"TY0V01"]
[null,null,null,null,"zvkx11_c670__TY0V01","*='Kostenverzamelstaat 2020'!$I$117","","GRZ, ELV en GZSP- Geriatische revalidatiezorg- incl balans","zvkx11","c670","","TY0V01"]
[null,null,null,null,"zvkx11_c670__TY1V01","*='Kostenverzamelstaat 2019 2018'!$K$121","","GRZ, ELV en GZSP- Geriatische revalidatiezorg-- incl balans","zvkx11","c670","","TY1V01"]
[null,null,null,null,"zvkx11_a670__TY0V01","*='Kostenverzamelstaat 2020'!$J$117","","GRZ, ELV en GZSP- Geriatische revalidatiezorg-- geaccepteerd","zvkx11","a670","","TY0V01"]
[null,null,null,null,"zvkx11_a670__TY1V01","*='Kostenverzamelstaat 2019 2018'!$L$121","","GRZ, ELV en GZSP- Geriatische revalidatiezorg-- geaccepteerd","zvkx11","a670","","TY1V01"]
[null,null,null,null,"zvkx11_a670__TY2V01","*='Kostenverzamelstaat 2019 2018'!$M$121","","GRZ, ELV en GZSP- Geriatische revalidatiezorg-- geaccepteerd","zvkx11","a670","","TY2V01"]
[null,null,null,null,"zvkx11_cc670__TY0V01","*='Kostenverzamelstaat 2020'!$K$117","","GRZ, ELV en GZSP- Geriatische revalidatiezorg--kst Corona- incl balans","zvkx11","cc670","","TY0V01"]
[null,null,null,null,"zvkx11_ac670__TY0V01","*='Kostenverzamelstaat 2020'!$L$117","","GRZ, ELV en GZSP- Geriatische revalidatiezorg--kst Corona- geaccepteerd","zvkx11","ac670","","TY0V01"]
[null,null,null,null,"zvkx11_c8111__TY0V01","*='Kostenverzamelstaat 2020'!$I$118",null,"GRZ, ELV en GZSP- Meerkosten Corona, indirect en toeslagen- incl balans","zvkx11","c8111",null,"TY0V01"]
[null,null,null,null,"zvkx11_c8311__TY0V01","*='Kostenverzamelstaat 2020'!$I$119",null,"GRZ, ELV en GZSP- Netto continuïteitsbijdrage Corona (basisverzekering)- incl balans","zvkx11","c8311",null,"TY0V01"]
[null,null,null,null,"zvkx11_a8111__TY0V01","*='Kostenverzamelstaat 2020'!$J$118",null,"GRZ, ELV en GZSP- Meerkosten Corona, indirect en toeslagen- geaccepteerd","zvkx11","a8111",null,"TY0V01"]
[null,null,null,null,"zvkx11_ac8111__TY0V01","*='Kostenverzamelstaat 2020'!$L$118",null,"GRZ, ELV en GZSP- Meerkosten Corona, indirect en toeslagen-kst Corona- geaccepteerd","zvkx11","ac8111",null,"TY0V01"]
[null,null,null,null,"zvkx11_a8311__TY0V01","*='Kostenverzamelstaat 2020'!$J$119",null,"GRZ, ELV en GZSP- Netto continuïteitsbijdrage Corona (basisverzekering)- geaccepteerd","zvkx11","a8311",null,"TY0V01"]
[null,null,null,null,"zvkx11_cc8111__TY0V01","*='Kostenverzamelstaat 2020'!$K$118",null,"GRZ, ELV en GZSP- Meerkosten Corona, indirect en toeslagen-kst Corona- geaccepteerd","zvkx11","cc8111",null,"TY0V01"]
[null,null,null,null,"zvkx11_a671__TY0V01","*='Kostenverzamelstaat 2020'!$J$120","","GRZ, ELV en GZSP- Eerstelijnsverblijf- geaccepteerd","zvkx11","a671","","TY0V01"]
[null,null,null,null,"zvkx11_a671__TY1V01","*='Kostenverzamelstaat 2019 2018'!$L$124","","GRZ, ELV en GZSP- Eerstelijnsverblijf- geaccepteerd","zvkx11","a671","","TY1V01"]
[null,null,null,null,"zvkx11_a671__TY2V01","*='Kostenverzamelstaat 2019 2018'!$M$124","","GRZ, ELV en GZSP- Eerstelijnsverblijf- geaccepteerd","zvkx11","a671","","TY2V01"]
[null,null,null,null,"zvkx11_ac671__TY0V01","*='Kostenverzamelstaat 2020'!$L$120","","GRZ, ELV en GZSP- Eerstelijnsverblijf-kst Corona- geaccepteerd","zvkx11","a671","","TY0V01"]
[null,null,null,null,"zvkx11_c671__TY0V01","*='Kostenverzamelstaat 2020'!$I$120","","GRZ, ELV en GZSP- Eerstelijnsverblijf- incl balans","zvkx11","c671","","TY0V01"]
[null,null,null,null,"zvkx11_c671__TY1V01","*='Kostenverzamelstaat 2019 2018'!$K$124","","GRZ, ELV en GZSP- Eerstelijnsverblijf- incl balans","zvkx11","c671","","TY0V01"]
[null,null,null,null,"zvkx11_cc671__TY0V01","*='Kostenverzamelstaat 2020'!$K$120","","GRZ, ELV en GZSP- Eerstelijnsverblijf-kst Corona- incl balans","zvkx11","c671","","TY0V01"]
[null,null,null,null,"zvkx11_c8112__TY0V01","*='Kostenverzamelstaat 2020'!$I$121",null,"GRZ, ELV en GZSP- Meerkosten Corona, indirect en toeslagen- incl balans","zvkx11","c8112",null,"TY0V01"]
[null,null,null,null,"zvkx11_c8312__TY0V01","*='Kostenverzamelstaat 2020'!$I$122",null,"GRZ, ELV en GZSP- Netto continuïteitsbijdrage Corona (basisverzekering)- incl balans","zvkx11","c8312",null,"TY0V01"]
[null,null,null,null,"zvkx11_a8112__TY0V01","*='Kostenverzamelstaat 2020'!$J$121",null,"GRZ, ELV en GZSP- Meerkosten Corona, indirect en toeslagen- geaccepteerd","zvkx11","a8112",null,"TY0V01"]
[null,null,null,null,"zvkx11_ac8112__TY0V01","*='Kostenverzamelstaat 2020'!$L$121",null,"GRZ, ELV en GZSP- Meerkosten Corona, indirect en toeslagen-kst Corona- geaccepteerd","zvkx11","ac8112",null,"TY0V01"]
[null,null,null,null,"zvkx11_a8312__TY0V01","*='Kostenverzamelstaat 2020'!$J$122",null,"GRZ, ELV en GZSP- Netto continuïteitsbijdrage Corona (basisverzekering)- geaccepteerd","zvkx11","a8312",null,"TY0V01"]
[null,null,null,null,"zvkx11_cc8112__TY0V01","*='Kostenverzamelstaat 2020'!$K$121",null,"GRZ, ELV en GZSP- Meerkosten Corona, indirect en toeslagen-kst Corona- geaccepteerd","zvkx11","cc8112",null,"TY0V01"]
[null,null,null,null,"zvkx11_c672__TY0V01","*='Kostenverzamelstaat 2020'!$I$123","","GRZ, ELV en GZSP- GZSP- incl balans","zvkx11","c672","","TY0V01"]
[null,null,null,null,"zvkx11_a672__TY0V01","*='Kostenverzamelstaat 2020'!$J$123","","GRZ, ELV en GZSP-  GZSP- geaccepteerd","zvkx11","a672","","TY0V01"]
[null,null,null,null,"zvkx11_cc672__TY0V01","*='Kostenverzamelstaat 2020'!$K$123","","GRZ, ELV en GZSP-  GZSP-kst Corona- incl balans","zvkx11","cc672","","TY0V01"]
[null,null,null,null,"zvkx11_ac672__TY0V01","*='Kostenverzamelstaat 2020'!$L$123","","GRZ, ELV en GZSP-  GZSP-kst Corona- geaccepteerd","zvkx11","ac672","","TY0V01"]
[null,null,null,null,"zvkx11_c8113__TY0V01","*='Kostenverzamelstaat 2020'!$I$124",null,"GRZ, ELV en GZSP- Meerkosten Corona, indirect en toeslagen- incl balans","zvkx11","c8113",null,"TY0V01"]
[null,null,null,null,"zvkx11_c8313__TY0V01","*='Kostenverzamelstaat 2020'!$I$125",null,"GRZ, ELV en GZSP- Netto continuïteitsbijdrage Corona (basisverzekering)- incl balans","zvkx11","c8313",null,"TY0V01"]
[null,null,null,null,"zvkx11_a8113__TY0V01","*='Kostenverzamelstaat 2020'!$J$124",null,"GRZ, ELV en GZSP- Meerkosten Corona, indirect en toeslagen- geaccepteerd","zvkx11","a8113",null,"TY0V01"]
[null,null,null,null,"zvkx11_ac8113__TY0V01","*='Kostenverzamelstaat 2020'!$L$124",null,"GRZ, ELV en GZSP- Meerkosten Corona, indirect en toeslagen-kst Corona- geaccepteerd","zvkx11","ac8113",null,"TY0V01"]
[null,null,null,null,"zvkx11_a8313__TY0V01","*='Kostenverzamelstaat 2020'!$J$125",null,"GRZ, ELV en GZSP- Netto continuïteitsbijdrage Corona (basisverzekering)- geaccepteerd","zvkx11","a8313",null,"TY0V01"]
[null,null,null,null,"zvkx11_cc8113__TY0V01","*='Kostenverzamelstaat 2020'!$K$124",null,"GRZ, ELV en GZSP- Meerkosten Corona, indirect en toeslagen-kst Corona- geaccepteerd","zvkx11","cc8113",null,"TY0V01"]
[null,null,null,null,"zvkx12_a680__TY0V01","*='Kostenverzamelstaat 2020'!$J$128","","Kraamzorg-- geaccepteerd","zvkx12","a680","","TY0V01"]
[null,null,null,null,"zvkx12_a680__TY1V01","*='Kostenverzamelstaat 2019 2018'!$L$132","","Kraamzorg-- geaccepteerd","zvkx12","a680","","TY1V01"]
[null,null,null,null,"zvkx12_a680__TY2V01","*='Kostenverzamelstaat 2019 2018'!$M$132","","Kraamzorg-- geaccepteerd","zvkx12","a680","","TY2V01"]
[null,null,null,null,"zvkx12_ac680__TY0V01","*='Kostenverzamelstaat 2020'!$L$128","","Kraamzorg--kst Corona- geaccepteerd","zvkx12","ac680","","TY0V01"]
[null,null,null,null,"zvkx12_c680__TY0V01","*='Kostenverzamelstaat 2020'!$I$128","","Kraamzorg-- incl balans","zvkx12","c680","","TY0V01"]
[null,null,null,null,"zvkx12_c680__TY1V01","*='Kostenverzamelstaat 2019 2018'!$K$132","","Kraamzorg-- incl balans","zvkx12","c680","","TY1V01"]
[null,null,null,null,"zvkx12_cc680__TY0V01","*='Kostenverzamelstaat 2020'!$K$128","","Kraamzorg--kst Corona- incl balans","zvkx12","cc680","","TY0V01"]
[null,null,null,null,"zvkx12_c812__TY0V01","*='Kostenverzamelstaat 2020'!$I$129",null,"Kraamzorg-- Meerkosten Corona, indirect en toeslagen- incl balans","zvkx12","c812",null,"TY0V01"]
[null,null,null,null,"zvkx12_c832__TY0V01","*='Kostenverzamelstaat 2020'!$I$130",null,"Kraamzorg-- Netto continuïteitsbijdrage Corona (basisverzekering)- incl balans","zvkx12","c832",null,"TY0V01"]
[null,null,null,null,"zvkx12_a812__TY0V01","*='Kostenverzamelstaat 2020'!$J$129",null,"Kraamzorg-- Meerkosten Corona, indirect en toeslagen- geaccepteerd","zvkx12","a812",null,"TY0V01"]
[null,null,null,null,"zvkx12_ac812__TY0V01","*='Kostenverzamelstaat 2020'!$L$129",null,"Kraamzorg-- Meerkosten Corona, indirect en toeslagen-kst Corona- geaccepteerd","zvkx12","ac812",null,"TY0V01"]
[null,null,null,null,"zvkx12_a812__TY0V01","*='Kostenverzamelstaat 2020'!$J$130",null,"Kraamzorg-- Netto continuïteitsbijdrage Corona (basisverzekering)- geaccepteerd","zvkx12","a832",null,"TY0V01"]
[null,null,null,null,"zvkx12_cc812__TY0V01","*='Kostenverzamelstaat 2020'!$K$129",null,"Kraamzorg-- Meerkosten Corona, indirect en toeslagen-kst Corona- geaccepteerd","zvkx12","cc812",null,"TY0V01"]
[null,null,null,null,"zvkx13_c700__TY0V01","*='Kostenverzamelstaat 2020'!$I$133","","Overige kosten-- incl balans","zvkx13","c700","","TY0V01"]
[null,null,null,null,"zvkx13_a700__TY0V01","*='Kostenverzamelstaat 2020'!$J$133","","Overige kosten-- geaccepteerd","zvkx13","a700","","TY0V01"]
[null,null,null,null,"zvkx13_a700__TY1V01","*='Kostenverzamelstaat 2019 2018'!$L$137","","Overige kosten-- geaccepteerd","zvkx13","a700","","TY1V01"]
[null,null,null,null,"zvkx13_c700__TY1V01","*='Kostenverzamelstaat 2019 2018'!$K$137","","Overige kosten-- incl balans","zvkx13","c700","","TY1V01"]
[null,null,null,null,"zvkx13_a700__TY0V01","*='Kostenverzamelstaat 2020'!$I$133","","Overige kosten-- geaccepteerd","zvkx13","a700","","TY0V01"]
[null,null,null,null,"zvkx13_a700__TY1V01","*='Kostenverzamelstaat 2019 2018'!$L$137","","Overige kosten-- geaccepteerd","zvkx13","a700","","TY1V01"]
[null,null,null,null,"zvkx13_a700__TY2V01","*='Kostenverzamelstaat 2019 2018'!$M$137","","Overige kosten-- geaccepteerd","zvkx13","a700","","TY2V01"]
[null,null,null,null,"zvkx13_c701__TY0V01","*='Kostenverzamelstaat 2020'!$I$134","","Overige kosten- geneeskundige zorg- incl balans","zvkx13","c701","","TY0V01"]
[null,null,null,null,"zvkx13_c701__TY1V01","*='Kostenverzamelstaat 2019 2018'!$K$138","","Overige kosten- geneeskundige zorg- incl balans","zvkx13","c701","","TY1V01"]
[null,null,null,null,"zvkx13_a701__TY0V01","*='Kostenverzamelstaat 2020'!$J$134","","Overige kosten- geneeskundige zorg- geaccepteerd","zvkx13","a701","","TY0V01"]
[null,null,null,null,"zvkx13_a701__TY1V01","*='Kostenverzamelstaat 2019 2018'!$L$138","","Overige kosten- geneeskundige zorg- geaccepteerd","zvkx13","a701","","TY1V01"]
[null,null,null,null,"zvkx13_a701__TY2V01","*='Kostenverzamelstaat 2019 2018'!$M$138","","Overige kosten- geneeskundige zorg- geaccepteerd","zvkx13","a701","","TY2V01"]
[null,null,null,null,"zvkx13_c702__TY0V01","*='Kostenverzamelstaat 2020'!$I$135","","Overige kosten- zintuiglijk gehandicapten- incl balans","zvkx13","c702","","TY0V01"]
[null,null,null,null,"zvkx13_c702__TY1V01","*='Kostenverzamelstaat 2019 2018'!$K$139","","Overige kosten- zintuiglijk gehandicapten- incl balans","zvkx13","c702","","TY1V01"]
[null,null,null,null,"zvkx13_a702__TY0V01","*='Kostenverzamelstaat 2020'!$J$135","","Overige kosten- zintuiglijk gehandicapten- geaccepteerd","zvkx13","a702","","TY0V01"]
[null,null,null,null,"zvkx13_a702__TY1V01","*='Kostenverzamelstaat 2019 2018'!$L$139","","Overige kosten- zintuiglijk gehandicapten- geaccepteerd","zvkx13","a702","","TY1V01"]
[null,null,null,null,"zvkx13_a702__TY2V01","*='Kostenverzamelstaat 2019 2018'!$M$139","","Overige kosten- zintuiglijk gehandicapten- geaccepteerd","zvkx13","a702","","TY2V01"]
[null,null,null,null,"zvkx13_cc700__TY0V01","*='Kostenverzamelstaat 2020'!$K$133","","Overige kosten--kst Corona- incl balans","zvkx13","cc700","","TY0V01"]
[null,null,null,null,"zvkx13_cc701__TY0V01","*='Kostenverzamelstaat 2020'!$K$134","","Overige kosten- geneeskundige zorg-kst Corona- incl balans","zvkx13","cc701","","TY0V01"]
[null,null,null,null,"zvkx13_cc702__TY0V01","*='Kostenverzamelstaat 2020'!$K$135","","Overige kosten- zintuiglijk gehandicapten-kst Corona- incl balans","zvkx13","cc702","","TY0V01"]
[null,null,null,null,"zvkx13_ac700__TY0V01","*='Kostenverzamelstaat 2020'!$L$133","","Overige kosten- kst Corona- geaccepteerd","zvkx13","ac700","","TY0V01"]
[null,null,null,null,"zvkx13_ac701__TY0V01","*='Kostenverzamelstaat 2020'!$L$134","","Overige kosten- geneeskundige zorg-kst Corona- geaccepteerd","zvkx13","ac701","","TY0V01"]
[null,null,null,null,"zvkx13_ac702__TY0V01","*='Kostenverzamelstaat 2020'!$L$135","","Overige kosten- zintuiglijk gehandicapten-kst Corona- geaccepteerd","zvkx13","ac702","","TY0V01"]
[null,null,null,null,"zvkx13_c813__TY0V01","*='Kostenverzamelstaat 2020'!$I$136",null,"Overige kosten-- Meerkosten Corona, indirect en toeslagen- incl balans","zvkx13","c813",null,"TY0V01"]
[null,null,null,null,"zvkx13_c833__TY0V01","*='Kostenverzamelstaat 2020'!$I$137",null,"Overige kosten-- Netto continuïteitsbijdrage Corona (basisverzekering)- incl balans","zvkx13","c833",null,"TY0V01"]
[null,null,null,null,"zvkx13_a813__TY0V01","*='Kostenverzamelstaat 2020'!$J$136",null,"Overige kosten-- Meerkosten Corona, indirect en toeslagen- geaccepteerd","zvkx13","a813",null,"TY0V01"]
[null,null,null,null,"zvkx13_ac813__TY0V01","*='Kostenverzamelstaat 2020'!$L$136",null,"Overige kosten-- Meerkosten Corona, indirect en toeslagen-kst Corona- geaccepteerd","zvkx13","ac813",null,"TY0V01"]
[null,null,null,null,"zvkx13_a833__TY0V01","*='Kostenverzamelstaat 2020'!$J$137",null,"Overige kosten-- Netto continuïteitsbijdrage Corona (basisverzekering)- geaccepteerd","zvkx13","a833",null,"TY0V01"]
[null,null,null,null,"zvkx13_cc813__TY0V01","*='Kostenverzamelstaat 2020'!$K$136",null,"Overige kosten-- Meerkosten Corona, indirect en toeslagen-kst Corona- geaccepteerd","zvkx13","cc813",null,"TY0V01"]
[null,null,null,null,"zvkx15_a720__TY0V01","*='Kostenverzamelstaat 2020'!$J$140","","Grensoverschrijdende zorg- Kosten via verzekeraar- geaccepteerd","zvkx15","a720","","TY0V01"]
[null,null,null,null,"zvkx15_a720__TY1V01","*='Kostenverzamelstaat 2019 2018'!$L$144","","Grensoverschrijdende zorg- Kosten via verzekeraar- geaccepteerd","zvkx15","a720","","TY1V01"]
[null,null,null,null,"zvkx15_a720__TY2V01","*='Kostenverzamelstaat 2019 2018'!$M$144","","Grensoverschrijdende zorg- Kosten via verzekeraar- geaccepteerd","zvkx15","a720","","TY2V01"]
[null,null,null,null,"zvkx15_a721__TY0V01","*='Kostenverzamelstaat 2020'!$J$141","","Grensoverschrijdende zorg- Kosten via verbindingsorgaan- geaccepteerd","zvkx15","a720","","TY0V01"]
[null,null,null,null,"zvkx15_a721__TY1V01","*='Kostenverzamelstaat 2019 2018'!$L$145","","Grensoverschrijdende zorg- Kosten via verbindingsorgaan- geaccepteerd","zvkx15","a720","","TY1V01"]
[null,null,null,null,"zvkx15_a721__TY2V01","*='Kostenverzamelstaat 2019 2018'!$M$145","","Grensoverschrijdende zorg- Kosten via verbindingsorgaan- geaccepteerd","zvkx15","a720","","TY2V01"]
[null,null,null,null,"zvkx15_ac720__TY0V01","*='Kostenverzamelstaat 2020'!$L$140","","Grensoverschrijdende zorg- Kosten via verzekeraar-kst Corona- geaccepteerd","zvkx15","a720","","TY0V01"]
[null,null,null,null,"zvkx15_ac721__TY0V01","*='Kostenverzamelstaat 2020'!$L$141","","Grensoverschrijdende zorg- Kosten via verbindingsorgaan-kst Corona- geaccepteerd","zvkx15","a720","","TY0V01"]
[null,null,null,null,"zvkx15_c720__TY0V01","*='Kostenverzamelstaat 2020'!$I$140","","Grensoverschrijdende zorg- Kosten via verzekeraar-- incl balans","zvkx15","c720","","TY0V01"]
[null,null,null,null,"zvkx15_c720__TY1V01","*='Kostenverzamelstaat 2019 2018'!$K$144","","Grensoverschrijdende zorg- Kosten via verzekeraar-- incl balans","zvkx15","c720","","TY1V01"]
[null,null,null,null,"zvkx15_c721__TY0V01","*='Kostenverzamelstaat 2020'!$I$141","","Grensoverschrijdende zorg-Kosten via verbindingsorgaan- incl balans","zvkx15","c720","","TY0V01"]
[null,null,null,null,"zvkx15_c721__TY1V01","*='Kostenverzamelstaat 2019 2018'!$K$145","","Grensoverschrijdende zorg-Kosten via verbindingsorgaan- incl balans","zvkx15","c720","","TY1V01"]
[null,null,null,null,"zvkx15_cc720__TY0V01","*='Kostenverzamelstaat 2020'!$K$140","","Grensoverschrijdende zorg- Kosten via verzekeraar--kst Corona- incl balans","zvkx15","c720","","TY0V01"]
[null,null,null,null,"zvkx15_cc721__TY0V01","*='Kostenverzamelstaat 2020'!$K$141","","Grensoverschrijdende zorg-Kosten via verbindingsorgaan-kst Corona- incl balans","zvkx15","c720","","TY0V01"]
[null,null,null,null,"zvkx16_a730__TY0V01","*='Kostenverzamelstaat 2020'!$J$144","","Kwaliteitsgelden-- geaccepteerd","zvkx16","a730","","TY0V01"]
[null,null,null,null,"zvkx16_a730__TY1V01","*='Kostenverzamelstaat 2019 2018'!$L$148","","Kwaliteitsgelden-- geaccepteerd","zvkx16","a730","","TY1V01"]
[null,null,null,null,"zvkx16_a730__TY2V01","*='Kostenverzamelstaat 2019 2018'!$M$148","","Kwaliteitsgelden-- geaccepteerd","zvkx16","a730","","TY2V01"]
[null,null,null,null,"zvkx16_ac730__TY0V01","*='Kostenverzamelstaat 2020'!$L$144","","Kwaliteitsgelden--kst Corona- geaccepteerd","zvkx16","a730","","TY0V01"]
[null,null,null,null,"zvkx16_c730__TY0V01","*='Kostenverzamelstaat 2020'!$I$144","","Kwaliteitsgelden-- incl balans","zvkx16","c730","","TY0V01"]
[null,null,null,null,"zvkx16_c730__TY1V01","*='Kostenverzamelstaat 2019 2018'!$K$148","","Kwaliteitsgelden-- incl balans","zvkx16","c730","","TY1V01"]
[null,null,null,null,"zvkx16_cc730__TY0V01","*='Kostenverzamelstaat 2020'!$K$144","","Kwaliteitsgelden--kst Corona- incl balans","zvkx16","c730","","TY0V01"]
[null,null,null,null,"zvkxdnb_a8901__TY0V01","*='Kostenverzamelstaat 2020'!$J$157","","Verschilposten DNB- Opbrengsten verhaal- geaccepteerd","zvkxdnb","c8901","","TY0V01"]
[null,null,null,null,"zvkxdnb_a8901__TY1V01","*='Kostenverzamelstaat 2019 2018'!$L$153","","Verschilposten DNB- Opbrengsten verhaal- geaccepteerd","zvkxdnb","c8901","","TY0V01"]
[null,null,null,null,"zvkxdnb_a8901__TY2V01","*='Kostenverzamelstaat 2019 2018'!$M$153","","Verschilposten DNB- Opbrengsten verhaal- geaccepteerd","zvkxdnb","c8901","","TY0V01"]
[null,null,null,null,"zvkxdnb_a910__TY0V01","*='Kostenverzamelstaat 2020'!$J$158","","Verschilposten DNB- Schade tlv het vrijwillig eigen risico- geaccepteerd","zvkxdnb","a910","","TY0V01"]
[null,null,null,null,"zvkxdnb_a910__TY1V01","*='Kostenverzamelstaat 2019 2018'!$L$154","","Verschilposten DNB- Schade tlv het vrijwillig eigen risico- geaccepteerd","zvkxdnb","a910","","TY1V01"]
[null,null,null,null,"zvkxdnb_a910__TY2V01","*='Kostenverzamelstaat 2019 2018'!$M$154","","Verschilposten DNB- Schade tlv het vrijwillig eigen risico- geaccepteerd","zvkxdnb","a910","","TY2V01"]
[null,null,null,null,"zvkxdnb_a915__TY0V01","*='Kostenverzamelstaat 2020'!$J$159","","Verschilposten DNB- Schade tlv het verplicht eigen risico- geaccepteerd","zvkxdnb","a915","","TY0V01"]
[null,null,null,null,"zvkxdnb_a915__TY1V01","*='Kostenverzamelstaat 2019 2018'!$L$155","","Verschilposten DNB- Schade tlv het verplicht eigen risico- geaccepteerd","zvkxdnb","a915","","TY1V01"]
[null,null,null,null,"zvkxdnb_a915__TY2V01","*='Kostenverzamelstaat 2019 2018'!$M$155","","Verschilposten DNB- Schade tlv het verplicht eigen risico- geaccepteerd","zvkxdnb","a915","","TY2V01"]
[null,null,null,null,"zvkxdnb_a940__TY0V01","*='Kostenverzamelstaat 2020'!$J$160","","Verschilposten DNB- Netto Premieopbrengsten- geaccepteerd","zvkxdnb","a940","","TY0V01"]
[null,null,null,null,"zvkxdnb_a940__TY1V01","*='Kostenverzamelstaat 2019 2018'!$L$156","","Verschilposten DNB- Netto Premieopbrengsten- geaccepteerd","zvkxdnb","a940","","TY1V01"]
[null,null,null,null,"zvkxdnb_a940__TY2V01","*='Kostenverzamelstaat 2019 2018'!$M$156","","Verschilposten DNB- Netto Premieopbrengsten- geaccepteerd","zvkxdnb","a940","","TY2V01"]
[null,null,null,null,"zvkxdnb_ac915__TY0V01","*='Kostenverzamelstaat 2020'!$L$159","","Verschilposten DNB- Schade tlv het verplicht eigen risico- geaccepteerd","zvkxdnb","a915","","TY0V01"]
[null,null,null,null,"zvkxdnb_c8901__TY0V01","*='Kostenverzamelstaat 2020'!$I$157","","Verschilposten DNB- Opbrengsten verhaal- incl balans","zvkxdnb","c8901","","TY0V01"]
[null,null,null,null,"zvkxdnb_c8901__TY1V01","*='Kostenverzamelstaat 2019 2018'!$K$153","","Verschilposten DNB- Opbrengsten verhaal- incl balans","zvkxdnb","c8901","","TY0V01"]
[null,null,null,null,"zvkxdnb_c910__TY0V01","*='Kostenverzamelstaat 2020'!$I$158","","Verschilposten DNB- Schade tlv het vrijwillig eigen risico- incl balans","zvkxdnb","c910","","TY0V01"]
[null,null,null,null,"zvkxdnb_c910__TY1V01","*='Kostenverzamelstaat 2019 2018'!$K$154","","Verschilposten DNB- Schade tlv het vrijwillig eigen risico- incl balans","zvkxdnb","c910","","TY1V01"]
[null,null,null,null,"zvkxdnb_c915__TY0V01","*='Kostenverzamelstaat 2020'!$I$159","","Verschilposten DNB- Schade tlv het verplicht eigen risico- incl balans","zvkxdnb","c915","","TY0V01"]
[null,null,null,null,"zvkxdnb_c915__TY1V01","*='Kostenverzamelstaat 2019 2018'!$K$155","","Verschilposten DNB- Schade tlv het verplicht eigen risico- incl balans","zvkxdnb","c915","","TY1V01"]
[null,null,null,null,"zvkxdnb_c940__TY0V01","*='Kostenverzamelstaat 2020'!$I$160","","Verschilposten DNB- Netto Premieopbrengsten- incl balans","zvkxdnb","c940","","TY0V01"]
[null,null,null,null,"zvkxdnb_c940__TY1V01","*='Kostenverzamelstaat 2019 2018'!$K$156","","Verschilposten DNB- Netto Premieopbrengsten- incl balans","zvkxdnb","c940","","TY1V01"]
[null,null,null,null,"zvkxdnb_cc915__TY0V01","*='Kostenverzamelstaat 2020'!$K$159","","Verschilposten DNB- Schade tlv het verplicht eigen risico- incl balans","zvkxdnb","c915","","TY0V01"]
[null,null,null,null,"zvox01_c97101_o01mdz_TY0V01","*=Contractinformatie!$J$18","","Huisartsenzorg en Multidisciplinaire zorg, (code 510 en 516)- Gecontracteerd 510,516- incl balans","zvox01","c97101","o01mdz","TY0V01"]
[null,null,null,null,"zvox01_c97101_o01mdz_TY1V01","*=Contractinformatie!$K$18","","Huisartsenzorg en Multidisciplinaire zorg, (code 510 en 516)- Gecontracteerd 510,516- incl balans","zvox01","c97101","o01mdz","TY1V01"]
[null,null,null,null,"zvox01_c97101_o01mdz_TY2V01","*=Contractinformatie!$L$18","","Huisartsenzorg en Multidisciplinaire zorg, (code 510 en 516)- Gecontracteerd 510,516- incl balans","zvox01","c97101","o01mdz","TY1V01"]
[null,null,null,null,"zvox01_c97101_o01trf_TY0V01","*=Contractinformatie!$J$14","","Huisartsenzorg en Multidisciplinaire zorg, (code 503,504,505,506,507,515)- Gecontracteerd 503,504,505,506,507,515- incl balans","zvox01","c97101","o01trf","TY0V01"]
[null,null,null,null,"zvox01_c97101_o01trf_TY1V01","*=Contractinformatie!$K$14","","Huisartsenzorg en Multidisciplinaire zorg, (code 503,504,505,506,507,515)- Gecontracteerd 503,504,505,506,507,515- incl balans","zvox01","c97101","o01trf","TY1V01"]
[null,null,null,null,"zvox01_c97101_o01trf_TY2V01","*=Contractinformatie!$L$14","","Huisartsenzorg en Multidisciplinaire zorg, (code 503,504,505,506,507,515)- Gecontracteerd 503,504,505,506,507,515- incl balans","zvox01","c97101","o01trf","TY0V01"]
[null,null,null,null,"zvox01_c97101_o52mdz_TY0V01","*=Contractinformatie!$J$19","","Huisartsenzorg en Multidisciplinaire zorg, (code 510 en 516)- Niet gecontracteerd  510,516- incl balans","zvox01","c97101","o52mdz","TY0V01"]
[null,null,null,null,"zvox01_c97101_o52mdz_TY1V01","*=Contractinformatie!$K$19","","Huisartsenzorg en Multidisciplinaire zorg, (code 510 en 516)- Niet gecontracteerd  510,516- incl balans","zvox01","c97101","o52mdz","TY1V01"]
[null,null,null,null,"zvox01_c97101_o52mdz_TY2V01","*=Contractinformatie!$L$19","","Huisartsenzorg en Multidisciplinaire zorg, (code 510 en 516)- Niet gecontracteerd  510,516- incl balans","zvox01","c97101","o52mdz","TY0V01"]
[null,null,null,null,"zvox01_c97101_o52trf_TY0V01","*=Contractinformatie!$J$15","","Huisartsenzorg en Multidisciplinaire zorg, (code 503,504,505,506,507,515)- Niet gecontracteerd 503,504,505,506,507,515- incl balans","zvox01","c97101","o52trf","TY0V01"]
[null,null,null,null,"zvox01_c97101_o52trf_TY1V01","*=Contractinformatie!$K$15","","Huisartsenzorg en Multidisciplinaire zorg, (code 503,504,505,506,507,515)- Niet gecontracteerd 503,504,505,506,507,515- incl balans","zvox01","c97101","o52trf","TY1V01"]
[null,null,null,null,"zvox01_c97101_o52trf_TY2V01","*=Contractinformatie!$L$15","","Huisartsenzorg en Multidisciplinaire zorg, (code 503,504,505,506,507,515)- Niet gecontracteerd 503,504,505,506,507,515- incl balans","zvox01","c97101","o52trf","TY0V01"]
[null,null,null,null,"zvox01_c97101_o01mkstC_TY0V01","*=Contractinformatie!$J$21",null,"Huisartsenzorg en Multidisciplinaire zorg- Meerkosten (toeslagen en lumpsum), gecontracteerd en niet gecontracteerd- incl balans","zvox01","c97101","o01mkstC","TF1V01"]
[null,null,null,null,"zvox01_c97101_o01ncc_TY0V01","*=Contractinformatie!$J$22",null,"Huisartsenzorg en Multidisciplinaire zorg- Netto Continuïteitsbijdrage Corona, gecontracteerd en niet gecontracteerd- incl balans","zvox01","c97101","o01ncc","TF1V01"]
[null,null,null,null,"zvox03_c97103_o01_TY0V01","*=Contractinformatie!$J$28","","Contractinformatie Verpleging en Verzorging- Gecontracteerd- incl balans","zvox03","c97103","o01","TY0V01"]
[null,null,null,null,"zvox03_c97103_o01_TY1V01","*=Contractinformatie!$K$28","","Contractinformatie Verpleging en Verzorging- Gecontracteerd- incl balans","zvox03","c97103","o01","TY1V01"]
[null,null,null,null,"zvox03_c97103_o01_TY2V01","*=Contractinformatie!$L$28","","Contractinformatie Verpleging en Verzorging- Gecontracteerd- incl balans","zvox03","c97103","o01","TY2V01"]
[null,null,null,null,"zvox03_c97103_o08_TY0V01","*=Contractinformatie!$J$30",null,"Contractinformatie Verpleging en Verzorging- PGB- incl balans","zvox03","c97103","o08","TY0V01"]
[null,null,null,null,"zvox03_c97103_o08_TY1V01","*=Contractinformatie!$K$30",null,"Contractinformatie Verpleging en Verzorging- PGB- incl balans","zvox03","c97103","o08","TY1V01"]
[null,null,null,null,"zvox03_c97103_o08_TY2V01","*=Contractinformatie!$L$30",null,"Contractinformatie Verpleging en Verzorging- PGB- incl balans","zvox03","c97103","o08","TY2V01"]
[null,null,null,null,"zvox03_c97103_o52_TY0V01","*=Contractinformatie!$J$29","","Contractinformatie Verpleging en Verzorging- Niet gecontracteerd- incl balans","zvox03","c97103","o52","TY0V01"]
[null,null,null,null,"zvox03_c97103_o52_TY1V01","*=Contractinformatie!$K$29","","Contractinformatie Verpleging en Verzorging- Niet gecontracteerd- incl balans","zvox03","c97103","o52","TY1V01"]
[null,null,null,null,"zvox03_c97103_o52_TY2V01","*=Contractinformatie!$L$29","","Contractinformatie Verpleging en Verzorging- Niet gecontracteerd- incl balans","zvox03","c97103","o52","TY2V01"]
[null,null,null,null,"zvox03_c97103_o01mkstC_TY0V01","*=Contractinformatie!$J$31",null,"Contractinformatie Verpleging en Verzorging- Meerkosten (toeslagen en lumpsum), gecontracteerd en niet gecontracteerd- incl balans","zvox03","c97101","o01mkstC","TY0V01"]
[null,null,null,null,"zvox03_c97103_o01ncc_TY0V01","*=Contractinformatie!$J$32",null,"Contractinformatie Verpleging en Verzorging- Netto Continuïteitsbijdrage Corona, gecontracteerd en niet gecontracteerd- incl balans","zvox03","c97101","o01ncc","TY0V01"]
[null,null,null,null,"zvox06_c97106_o02_TY0V01","*=Contractinformatie!$J$38","","Medisch Specialistische Zorg- aanneemsom- incl balans","zvox06","c97106","o02","TY0V01"]
[null,null,null,null,"zvox06_c97106_o02_TY1V01","*=Contractinformatie!$K$38","","Medisch Specialistische Zorg- aanneemsom- incl balans","zvox06","c97106","o02","TY1V01"]
[null,null,null,null,"zvox06_c97106_o02_TY2V01","*=Contractinformatie!$L$38","","Medisch Specialistische Zorg- aanneemsom- incl balans","zvox06","c97106","o02","TY2V01"]
[null,null,null,null,"zvox06_c97106_o03_TY0V01","*=Contractinformatie!$J$39","","Medisch Specialistische Zorg- plafond- incl balans","zvox06","c97106","o03","TY0V01"]
[null,null,null,null,"zvox06_c97106_o03_TY1V01","*=Contractinformatie!$K$39","","Medisch Specialistische Zorg- plafond- incl balans","zvox06","c97106","o03","TY1V01"]
[null,null,null,null,"zvox06_c97106_o03_TY2V01","*=Contractinformatie!$L$39","","Medisch Specialistische Zorg- plafond- incl balans","zvox06","c97106","o03","TY2V01"]
[null,null,null,null,"zvox06_c97106_o04_TY0V01","*=Contractinformatie!$J$40","","Medisch Specialistische Zorg- nacalculatie- incl balans","zvox06","c97106","o04","TY0V01"]
[null,null,null,null,"zvox06_c97106_o04_TY1V01","*=Contractinformatie!$K$40","","Medisch Specialistische Zorg- nacalculatie- incl balans","zvox06","c97106","o04","TY1V01"]
[null,null,null,null,"zvox06_c97106_o04_TY2V01","*=Contractinformatie!$L$40","","Medisch Specialistische Zorg- nacalculatie- incl balans","zvox06","c97106","o04","TY2V01"]
[null,null,null,null,"zvox06_c97106_o05_TY0V01","*=Contractinformatie!$J$41","","Medisch Specialistische Zorg- open einde contract- incl balans","zvox06","c97106","o05","TY0V01"]
[null,null,null,null,"zvox06_c97106_o05_TY1V01","*=Contractinformatie!$K$41","","Medisch Specialistische Zorg- open einde contract- incl balans","zvox06","c97106","o05","TY1V01"]
[null,null,null,null,"zvox06_c97106_o05_TY2V01","*=Contractinformatie!$L$41","","Medisch Specialistische Zorg- open einde contract- incl balans","zvox06","c97106","o05","TY2V01"]
[null,null,null,null,"zvox06_c97106_o52_TY0V01","*=Contractinformatie!$J$43","","Medisch Specialistische Zorg- Niet gecontracteerd- incl balans","zvox06","c97106","o52","TY0V01"]
[null,null,null,null,"zvox06_c97106_o52_TY1V01","*=Contractinformatie!$K$43","","Medisch Specialistische Zorg- Niet gecontracteerd- incl balans","zvox06","c97106","o52","TY1V01"]
[null,null,null,null,"zvox06_c97106_o52_TY2V01","*=Contractinformatie!$L$43","","Medisch Specialistische Zorg- Niet gecontracteerd- incl balans","zvox06","c97106","o52","TY2V01"]
[null,null,null,null,"zvox06_c97106_o91_TY0V01","*=Contractinformatie!$J$49",null,"Medisch Specialistische Zorg- Totaal afgesproken maximum omzet plafondcontracten- incl balans","zvox06","c97106","o91","TY0V01"]
[null,null,null,null,"zvox06_c97106_o91_TY1V01","*=Contractinformatie!$K$49",null,"Medisch Specialistische Zorg- Totaal afgesproken maximum omzet plafondcontracten- incl balans","zvox06","c97106","o91","TY1V01"]
[null,null,null,null,"zvox06_c97106_o91_TY2V01","*=Contractinformatie!$L$49",null,"Medisch Specialistische Zorg- Totaal afgesproken maximum omzet plafondcontracten- incl balans","zvox06","c97106","o91","TY2V01"]
[null,null,null,null,"zvox06_c97106_o01mkstC_TY0V01","*=Contractinformatie!$J$44",null,"Medisch Specialistische Zorg- Meerkosten (toeslagen en lumpsum), gecontracteerd en niet gecontracteerd- incl balans","zvox06","c97106","o01mkstC","TY0V01"]
[null,null,null,null,"zvox06_c97106_o01ncc_TY0V01","*=Contractinformatie!$J$45",null,"Medisch Specialistische Zorg- Netto Continuïteitsbijdrage Corona, gecontracteerd en niet gecontracteerd- incl balans","zvox06","c97106","o01ncc","TY0V01"]
[null,null,null,null,"zvox10_c97110_o02_TY0V01","*=Contractinformatie!$J$63","","Geneeskundige GGZ- aanneemsom- incl balans","zvox10","c97110","o02","TY0V01"]
[null,null,null,null,"zvox10_c97110_o02_TY1V01","*=Contractinformatie!$K$63","","Geneeskundige GGZ- aanneemsom- incl balans","zvox10","c97110","o02","TY1V01"]
[null,null,null,null,"zvox10_c97110_o02_TY2V01","*=Contractinformatie!$L$63","","Geneeskundige GGZ- aanneemsom- incl balans","zvox10","c97110","o02","TY2V01"]
[null,null,null,null,"zvox10_c97110_o03_TY0V01","*=Contractinformatie!$J$64","","Geneeskundige GGZ- plafond- incl balans","zvox10","c97110","o03","TY0V01"]
[null,null,null,null,"zvox10_c97110_o03_TY1V01","*=Contractinformatie!$K$64","","Geneeskundige GGZ- plafond- incl balans","zvox10","c97110","o03","TY1V01"]
[null,null,null,null,"zvox10_c97110_o03_TY2V01","*=Contractinformatie!$L$64","","Geneeskundige GGZ- plafond- incl balans","zvox10","c97110","o03","TY2V01"]
[null,null,null,null,"zvox10_c97110_o04_TY0V01","*=Contractinformatie!$J$65","","Geneeskundige GGZ- nacalculatie- incl balans","zvox10","c97110","o04","TY0V01"]
[null,null,null,null,"zvox10_c97110_o04_TY1V01","*=Contractinformatie!$K$65","","Geneeskundige GGZ- nacalculatie- incl balans","zvox10","c97110","o04","TY1V01"]
[null,null,null,null,"zvox10_c97110_o04_TY2V01","*=Contractinformatie!$L$65","","Geneeskundige GGZ- nacalculatie- incl balans","zvox10","c97110","o04","TY2V01"]
[null,null,null,null,"zvox10_c97110_o05_TY0V01","*=Contractinformatie!$J$66","","Geneeskundige GGZ- open einde contract- incl balans","zvox10","c97110","o05","TY0V01"]
[null,null,null,null,"zvox10_c97110_o05_TY1V01","*=Contractinformatie!$K$66","","Geneeskundige GGZ- open einde contract- incl balans","zvox10","c97110","o05","TY1V01"]
[null,null,null,null,"zvox10_c97110_o05_TY2V01","*=Contractinformatie!$L$66","","Geneeskundige GGZ- open einde contract- incl balans","zvox10","c97110","o05","TY2V01"]
[null,null,null,null,"zvox10_c97110_o52_TY0V01","*=Contractinformatie!$J$68","","Geneeskundige GGZ- Niet gecontracteerd- incl balans","zvox10","c97110","o52","TY0V01"]
[null,null,null,null,"zvox10_c97110_o52_TY1V01","*=Contractinformatie!$K$68","","Geneeskundige GGZ- Niet gecontracteerd- incl balans","zvox10","c97110","o52","TY1V01"]
[null,null,null,null,"zvox10_c97110_o52_TY2V01","*=Contractinformatie!$L$68","","Geneeskundige GGZ- Niet gecontracteerd- incl balans","zvox10","c97110","o52","TY2V01"]
[null,null,null,null,"zvox10_c97110_o91_TY0V01","*=Contractinformatie!$J$74",null,"Geneeskundige GGZ- Totaal afgesproken maximum omzet plafondcontracten- incl balans","zvox10","c97110","o91","TY0V01"]
[null,null,null,null,"zvox10_c97110_o91_TY1V01","*=Contractinformatie!$K$74",null,"Geneeskundige GGZ- Totaal afgesproken maximum omzet plafondcontracten- incl balans","zvox10","c97110","o91","TY1V01"]
[null,null,null,null,"zvox10_c97110_o91_TY2V01","*=Contractinformatie!$L$74",null,"Geneeskundige GGZ- Totaal afgesproken maximum omzet plafondcontracten- incl balans","zvox10","c97110","o91","TY2V01"]
[null,null,null,null,"zvox10_c97110_o01mkstC_TY0V01","*=Contractinformatie!$J$69",null,"Geneeskundige GGZ- Meerkosten (toeslagen en lumpsum), gecontracteerd en niet gecontracteerd- incl balans","zvox10","c97110","o01mkstC","TY0V01"]
[null,null,null,null,"zvox10_c97110_o01ncc_TY0V01","*=Contractinformatie!$J$70",null,"Geneeskundige GGZ- Netto Continuïteitsbijdrage Corona, gecontracteerd en niet gecontracteerd- incl balans","zvox10","c97110","o01ncc","TY0V01"]
[null,null,null,null,"zvox10_c97110_o01ncc_TY1V01","*=Contractinformatie!$K$70",null,"Geneeskundige GGZ- Netto Continuïteitsbijdrage Corona, gecontracteerd en niet gecontracteerd- incl balans","zvox10","c97110","o01ncc","TY1V01"]
[null,null,null,null,"zvox13_c97113_bo01_TY0V01","*=Contractinformatie!$J$79","","Zintuiglijk gehandicapten- Gecontracteerd- incl balans","zvox13","c97113","bo01","TY0V01"]
[null,null,null,null,"zvox13_c97113_bo01_TY1V01","*=Contractinformatie!$K$79","","Zintuiglijk gehandicapten- Gecontracteerd- incl balans","zvox13","c97113","bo01","TY1V01"]
[null,null,null,null,"zvox13_c97113_bo01_TY2V01","*=Contractinformatie!$L$79","","Zintuiglijk gehandicapten- Gecontracteerd- incl balans","zvox13","c97113","bo01","TY2V01"]
[null,null,null,null,"zvox13_c97113_bo52_TY0V01","*=Contractinformatie!$J$80","","Zintuiglijk gehandicapten- Niet gecontracteerd- incl balans","zvox13","c97113","bo52","TY0V01"]
[null,null,null,null,"zvox13_c97113_bo52_TY1V01","*=Contractinformatie!$K$80","","Zintuiglijk gehandicapten- Niet gecontracteerd- incl balans","zvox13","c97113","bo52","TY1V01"]
[null,null,null,null,"zvox13_c97113_bo52_TY2V01","*=Contractinformatie!$L$80","","Zintuiglijk gehandicapten- Niet gecontracteerd- incl balans","zvox13","c97113","bo52","TY2V01"]
[null,null,null,null,"zvox13_c97113_o01mkstC_TY0V01","*=Contractinformatie!$J$81",null,"Zintuiglijk gehandicapten- Meerkosten (toeslagen en lumpsum), gecontracteerd en niet gecontracteerd- incl balans","zvox13","c97113","o01mkstC","TY0V01"]
[null,null,null,null,"zvox13_c97113_o01ncc_TY0V01","*=Contractinformatie!$J$82",null,"Zintuiglijk gehandicapten- Netto Continuïteitsbijdrage Corona, gecontracteerd en niet gecontracteerd- incl balans","zvox13","c97113","o01ncc","TY0V01"]
[null,null,null,null,"zvox11_c97111_o01rvl_TY0V01","*=Contractinformatie!$J$89","","Geriatrische Revalidatiezorg 670 en Eerstelijnsverblijf 671,  Geneeskundige Zorg Specifieke Patiëntgroepen (code 672)- Gecontracteerd  670- incl balans","zvox11","c97111","o01rvl","TY0V01"]
[null,null,null,null,"zvox11_c97111_o01rvl_TY1V01","*=Contractinformatie!$K$89","","Geriatrische Revalidatiezorg 670 en Eerstelijnsverblijf 671,  Geneeskundige Zorg Specifieke Patiëntgroepen (code 672))- Gecontracteerd  670- incl balans","zvox11","c97111","o01rvl","TY1V01"]
[null,null,null,null,"zvox11_c97111_o52rvl_TY0V01","*=Contractinformatie!$J$90","","Geriatrische Revalidatiezorg 670 en Eerstelijnsverblijf 671,  Geneeskundige Zorg Specifieke Patiëntgroepen (code 672)- Niet gecontracteerd 670- incl balans","zvox11","c97111","o52rvl","TY0V01"]
[null,null,null,null,"zvox11_c97111_o52rvl_TY1V01","*=Contractinformatie!$K$90","","Geriatrische Revalidatiezorg 670 en Eerstelijnsverblijf 671,  Geneeskundige Zorg Specifieke Patiëntgroepen (code 672)- Niet gecontracteerd 670- incl balans","zvox11","c97111","o52rvl","TY1V01"]
[null,null,null,null,"zvox11_c97111_o52rvlmkstC_TY0V01","*=Contractinformatie!$J$91",null,"Geriatrische Revalidatiezorg 670 en Eerstelijnsverblijf 671, Geneeskundige Zorg Specifieke Patiëntgroepen (code 672)- Meerkosten (toeslagen en lumpsum), gecontracteerd en niet gecontracteerd- incl balans","zvox11","c97111","o52rvlmkstC","TY0V01"]
[null,null,null,null,"zvox11_c97111_o52rvlncc_TY0V01","*=Contractinformatie!$J$92",null,"Geriatrische Revalidatiezorg 670 en Eerstelijnsverblijf 671, Geneeskundige Zorg Specifieke Patiëntgroepen (code 672)- Netto Continuïteitsbijdrage Corona, gecontracteerd en niet gecontracteerd- incl balans","zvox11","c97111","o52rvlncc","TY0V01"]
[null,null,null,null,"zvox11_c97111_o01ln1_TY0V01","*=Contractinformatie!$J$95","","Geriatrische Revalidatiezorg 670 en Eerstelijnsverblijf 671,  Geneeskundige Zorg Specifieke Patiëntgroepen (code 672)- Gecontracteerd 671- incl balans","zvox11","c97111","o01ln1","TY0V01"]
[null,null,null,null,"zvox11_c97111_o01ln1_TY1V01","*=Contractinformatie!$K$95","","Geriatrische Revalidatiezorg 670 en Eerstelijnsverblijf 671,  Geneeskundige Zorg Specifieke Patiëntgroepen (code 672)- Gecontracteerd 671- incl balans","zvox11","c97111","o01ln1","TY1V01"]
[null,null,null,null,"zvox11_c97111_o52ln1_TY0V01","*=Contractinformatie!$J$96","","Geriatrische Revalidatiezorg 670 en Eerstelijnsverblijf 671,  Geneeskundige Zorg Specifieke Patiëntgroepen (code 672)- Niet gecontracteerd 671- incl balans","zvox11","c97111","o52ln1","TY0V01"]
[null,null,null,null,"zvox11_c97111_o52ln1_TY1V01","*=Contractinformatie!$K$96","","Geriatrische Revalidatiezorg 670 en Eerstelijnsverblijf 671,  Geneeskundige Zorg Specifieke Patiëntgroepen (code 672)- Niet gecontracteerd 671- incl balans","zvox11","c97111","o52ln1","TY1V01"]
[null,null,null,null,"zvox11_c97111_o52ln1mkstC_TY0V01","*=Contractinformatie!$J$97",null,"Geriatrische Revalidatiezorg 670 en Eerstelijnsverblijf 671, Geneeskundige Zorg Specifieke Patiëntgroepen (code 672)- Meerkosten (toeslagen en lumpsum), gecontracteerd en niet gecontracteerd- incl balans","zvox11","c97111","o52ln1mkstC","TY0V01"]
[null,null,null,null,"zvox11_c97111_o52ln1ncc_TY0V01","*=Contractinformatie!$J$98",null,"Geriatrische Revalidatiezorg 670 en Eerstelijnsverblijf 671, Geneeskundige Zorg Specifieke Patiëntgroepen (code 672)- Netto Continuïteitsbijdrage Corona, gecontracteerd en niet gecontracteerd- incl balans","zvox11","c97111","o52ln1ncc","TY0V01"]
[null,null,null,null,"zvox11_c97111_o01gzsp_TY0V01","*=Contractinformatie!$J$101",null,"Geriatrische Revalidatiezorg 670 en Eerstelijnsverblijf 671,  Geneeskundige Zorg Specifieke Patiëntgroepen (code 672)- Gecontracteerd 672- incl balans","zvox11","c97111","o01gzsp","TY0V01"]
[null,null,null,null,"zvox11_c97111_o52gzsp_TY0V01","*=Contractinformatie!$J$102",null,"Geriatrische Revalidatiezorg 670 en Eerstelijnsverblijf 671, Geneeskundige Zorg Specifieke Patiëntgroepen (code 672)- Niet gecontracteerd 672- incl balans","zvox11","c97111","o52gzsp","TY0V01"]
[null,null,null,null,"zvox11_c97111_o52gzspmkstC_TY0V01","*=Contractinformatie!$J$103",null,"Geriatrische Revalidatiezorg 670 en Eerstelijnsverblijf 671, Geneeskundige Zorg Specifieke Patiëntgroepen (code 672)- Meerkosten (toeslagen en lumpsum), gecontracteerd en niet gecontracteerd- incl balans","zvox11","c97111","o52gzspmkstC","TY0V01"]
[null,null,null,null,"zvox11_c97111_o52gzspncc_TY0V01","*=Contractinformatie!$J$104",null,"Geriatrische Revalidatiezorg 670 en Eerstelijnsverblijf 671, Geneeskundige Zorg Specifieke Patiëntgroepen (code 672)- Netto Continuïteitsbijdrage Corona, gecontracteerd en niet gecontracteerd- incl balans","zvox11","c97111","o52gzspncc","TY0V01"]
[null,null,null,null,"zvrxsg_c978_dl101_TY0V01",{"$f":"#REF!","v":{"$error":"#REF!"}},"","Kosten naar deelbijdrage- Variabele zorgkosten- incl balans","zvrxsg","c978","dl101","TY0V01"]
[null,null,null,null,"zvrxsg_c978_dl102_TY0V01",{"$f":"#REF!","v":{"$error":"#REF!"}},"","Kosten naar deelbijdrage- Vaste zorgkosten- incl balans","zvrxsg","c978","dl102","TY0V01"]
[null,null,null,null,"zvrxsg_c978_dl152_TY0V01",{"$f":"#REF!","v":{"$error":"#REF!"}},"","Kosten naar deelbijdrage- Geneeskundige GGZ- incl balans","zvrxsg","c978","dl152","TY0V01"]
[null,null,null,null,"zvrx06_c610_sknt_TY0V01",{"$f":"#REF!","v":{"$error":"#REF!"}},"","C610 Overige kosten ziekenhuiszorg en curatieve zorg- SKION en NTS- incl balans","zvrx06","c610","sknt","TY0V01"]
[null,null,null,null,"zvrx06_c611_ozp_TY0V01",{"$f":"#REF!","v":{"$error":"#REF!"}},"","C611 Overige Zorgproducten- ozp- incl balans","zvrx06","c611","ozp","TY0V01"]
[null,null,null,null,"zvrx06_c6121_e08_TY0V01",{"$f":"#REF!","v":{"$error":"#REF!"}},"","C612.1 Kosten ADD-ON'S- dure intramurale geneesmiddelen- incl balans","zvrx06","a6121","e08","TY0V01"]
[null,null,null,null,"zvrx15_c720v_m69_TY0V01",{"$f":"#REF!","v":{"$error":"#REF!"}},"","C720 Buitenland, Via Verzekeraar- variabele zorgkosten- incl balans","zvrx15","c720v","m69","TY0V01"]
[null,null,null,null,"zvrx15_a720v_m51_TY0V01",{"$f":"#REF!","v":{"$error":"#REF!"}},"","C720 Buitenland, Via Verzekeraar- geestelijke gezondheidszorgg- incl balans","zvrx15","a720v","m51","TY0V01"]
[null,null,null,null,"zvrx15_c721o_i01_TY0V01",{"$f":"#REF!","v":{"$error":"#REF!"}},"","C721 buitenland, opgave ZIN- verordening of verdrag, via internationaal verbindingsorgaan- incl balans","zvrx15","c721o","i01","TY0V01"]
[null,null,null,null,"zvrx15_c721o_i11_TY0V01",{"$f":"#REF!","v":{"$error":"#REF!"}},"","C721 buitenland, opgave ZIN- Zvw verzekerden die wonen in Nederland- incl balans","zvrx15","c721o","i11","TY0V01"]
[null,null,null,null,"zvrx15_c721o_i02_TY0V01",{"$f":"#REF!","v":{"$error":"#REF!"}},"","C721 buitenland, opgave ZIN- Zvw verzekerden die wonen in het buitenland- incl balans","zvrx15","c721o","i02","TY0V01"]
[null,null,null,null,"zvrx16_a730_q11_TY0V01",{"$f":"#REF!","v":{"$error":"#REF!"}},"","C730 Kwaliteitsgelden- Kosten regionale ondersteuning en eerstelijnszorg- geaccepteerd","zvrx16","a730","q11","TY0V01"]
[null,null,null,null,"zvrx19_s999_inbw_TY0V01",{"$f":"#REF!","v":{"$error":"#REF!"}},"","C999 rekenpremies gedetineerden","zvrx19","s999","inbw","TY0V01"]
[null,null,null,null,"zvrxsg_a978_dl101_TY2V01",{"$f":"'Specifieke informatie A 2019'!$L$14","v":0},"","Kosten naar deelbijdrage- Variabele zorgkosten- geaccepteerd","zvrxsg","a978","dl101","TY2V01"]
[null,null,null,null,"zvrxsg_a978_dl102_TY2V01",{"$f":"'Specifieke informatie A 2019'!$L$15","v":0},"","Kosten naar deelbijdrage- Vaste zorgkosten- geaccepteerd","zvrxsg","a978","dl102","TY2V01"]
[null,null,null,null,"zvrxsg_a978_dl152_TY2V01",{"$f":"'Specifieke informatie A 2019'!$L$16","v":0},"","Kosten naar deelbijdrage- Geneeskundige GGZ- geaccepteerd","zvrxsg","a978","dl152","TY2V01"]
[null,null,null,null,"zvrx06_a610_sknt_TY2V01",{"$f":"'Specifieke informatie A 2019'!$L$22","v":0},"","C610 Overige kosten ziekenhuiszorg en curatieve zorg- SKION en NTS- geaccepteerd","zvrx06","a610","sknt","TY2V01"]
[null,null,null,null,"zvrx06_a612_e08_TY2V01",{"$f":"'Specifieke informatie A 2019'!#REF!","v":{"$error":"#REF!"}},"","C612 Kosten ADD-ON'S- dure intramurale geneesmiddelen- geaccepteerd","zvrx06","a612","e08","TY2V01"]
[null,null,null,null,"zvrx15_a720v_m69_TY2V01",{"$f":"'Specifieke informatie A 2019'!$L$46","v":0},"","C720 Buitenland, Via Verzekeraar- variabele zorgkosten- geaccepteerd","zvrx15","a720v","m69","TY2V01"]
[null,null,null,null,"zvrx15_a720v_m51_TY2V01",{"$f":"'Specifieke informatie A 2019'!$L$47","v":0},"","C720 Buitenland, Via Verzekeraar- geestelijke gezondheidszorgg- geaccepteerd","zvrx15","a720v","m51","TY2V01"]
[null,null,null,null,"zvrx15_a720o_i01_TY2V01",{"$f":"'Specifieke informatie A 2019'!$L$52","v":0},"","C721 buitenland, opgave ZIN- verordening of verdrag, via internationaal verbindingsorgaan- geaccepteerd","zvrx15","a720o","i01","TY2V01"]
[null,null,null,null,"zvrx15_a720o_i11_TY2V01",{"$f":"'Specifieke informatie A 2019'!$L$53","v":0},"","C721 buitenland, opgave ZIN- Zvw verzekerden die wonen in Nederland- geaccepteerd","zvrx15","a720o","i11","TY2V01"]
[null,null,null,null,"zvrx15_a720o_i02_TY2V01",{"$f":"'Specifieke informatie A 2019'!$L$54","v":0},"","C721 buitenland, opgave ZIN- Zvw verzekerden die wonen in het buitenland- geaccepteerd","zvrx15","a720o","i02","TY2V01"]
[null,null,null,null,"zvrx16_a730_q02_TY2V01",{"$f":"'Specifieke informatie A 2019'!$L$61","v":0},"","C730 Kwaliteitsgelden- KSK GGZ- geaccepteerd","zvrx16","a730","q02","TY2V01"]
[null,null,null,null,"zvrx16_a730_q11_TY2V01",{"$f":"'Specifieke informatie A 2019'!$L$62","v":0},"","C730 Kwaliteitsgelden- Kosten regionale ondersteuning en eerstelijnszorg- geaccepteerd","zvrx16","a730","q11","TY2V01"]
[null,null,null,null,"zvrx16_a730_q01_TY2V01",{"$f":"'Specifieke informatie A 2019'!$L$63","v":0},"","C730 Kwaliteitsgelden- KSK Medisch Specialisten- geaccepteerd","zvrx16","a730","q01","TY2V01"]
[null,null,null,null,"zvrx16_a730_q41_TY2V01",{"$f":"'Specifieke informatie A 2019'!$L$64","v":0},"","C730 Kwaliteitsgelden- KSK Patiënten Consumenten- geaccepteerd","zvrx16","a730","q41","TY2V01"]
[null,null,null,null,"zvrx16_a730_q12_TY2V01",{"$f":"'Specifieke informatie A 2019'!$L$65","v":0},"","C730 Kwaliteitsgelden- Projectgelden kwaliteitsbeleid eerstelijnszorg- geaccepteerd","zvrx16","a730","q12","TY2V01"]
[null,null,null,null,"zvrx16_a730_q03_TY2V01",{"$f":"'Specifieke informatie A 2019'!$L$66","v":0},"","C730 Kwaliteitsgelden- Projectgelden kwaliteitsbeleid eerstelijnszorg- geaccepteerd","zvrx16","a730","q03","TY2V01"]
[null,null,null,null,"zvrxwnb_e981_premcak_TY0V01","*=Wanbetalersbijdrage!$L$21",null,"Wanbetalersbijdrage- nog te ontvangen te verreken met CAK"]
[null,null,null,null,"zvrxwnb_e981_premnd_TY0V01","*=Wanbetalersbijdrage!$G$16",null,"Wanbetalersbijdrage- premiemaanden- premie"]
[null,null,null,null,"zvrxwnb_e981_premnd_TY1V01","*=Wanbetalersbijdrage!$H$16",null,"Wanbetalersbijdrage- premiemaanden- premie"]
[null,null,null,null,"zvrxwnb_e981_premnd_TY2V01","*=Wanbetalersbijdrage!$J$16",null,"Wanbetalersbijdrage- premiemaanden- premie"]
[null,null,null,null,"zvrxwnb_e981_premvrs_TY0V01","*=Wanbetalersbijdrage!$L$19",null,"Wanbetalersbijdrage- Ontvangen voorschot jaar T"]
[null,null,null,null,"zvrxwnb_n981_premnd_TY0V01","*=Wanbetalersbijdrage!$G$14",null,"Wanbetalersbijdrage- premiemaanden- aantal"]
[null,null,null,null,"zvrxwnb_n981_premnd_TY1V01","*=Wanbetalersbijdrage!$H$14",null,"Wanbetalersbijdrage- premiemaanden- aantal"]
[null,null,null,null,"zvrxwnb_n981_premnd_TY2V01","*=Wanbetalersbijdrage!$J$14",null,"Wanbetalersbijdrage- premiemaanden- aantal"]
[null,null,null,null,"zvsx01k_a503_ma_TY0V01","*='Specifieke informatie C'!$K$13","","C503 Huisartsen zorg- achterstandsfonds- geaccepteerd","zvsx01k","a503","ma","TY0V01"]
[null,null,null,null,"zvsx01k_a503_ma_TY1V01","*='Specifieke informatie C'!$L$13","","C503 Huisartsen zorg- achterstandsfonds- geaccepteerd","zvsx01k","a503","ma","TY1V01"]
[null,null,null,null,"zvsx01k_a503_mi_TY0V01","*='Specifieke informatie C'!$K$14","","C503 Huisartsen zorg- modernisering en innovatie- geaccepteerd","zvsx01k","a503","mi","TY0V01"]
[null,null,null,null,"zvsx01k_a503_mi_TY1V01","*='Specifieke informatie C'!$L$14","","C503 Huisartsen zorg- modernisering en innovatie- geaccepteerd","zvsx01k","a503","mi","TY1V01"]
[null,null,null,null,"zvsx01k_a503_o_TY0V01","*='Specifieke informatie C'!$K$15","","C503 Huisartsen zorg- Overige kosten- geaccepteerd","zvsx01k","a503","o","TY0V01"]
[null,null,null,null,"zvsx01k_a503_o_TY1V01","*='Specifieke informatie C'!$L$15","","C503 Huisartsen zorg- Overige kosten- geaccepteerd","zvsx01k","a503","o","TY1V01"]
[null,null,null,null,"zvsx01k_a506_ck05_TY0V01","*='Specifieke informatie C'!$K$20","","C506 Huisartsen consult- consulten - korter dan 5 m- geaccepteerd","zvsx01k","a506","ck05","TY0V01"]
[null,null,null,null,"zvsx01k_a506_ck05_TY1V01","*='Specifieke informatie C'!$L$20","","C506 Huisartsen consult- consulten - korter dan 5 m- geaccepteerd","zvsx01k","a506","ck05","TY0V01"]
[null,null,null,null,"zvsx01k_a506_c520_TY0V01","*='Specifieke informatie C'!$K$21","","C506 Huisartsen consult- consulten - van 5 tot 20 m- geaccepteerd","zvsx01k","a506","c520","TY0V01"]
[null,null,null,null,"zvsx01k_a506_c520_TY1V01","*='Specifieke informatie C'!$L$21","","C506 Huisartsen consult- consulten - van 5 tot 20 m- geaccepteerd","zvsx01k","a506","c520","TY0V01"]
[null,null,null,null,"zvsx01k_a506_cl20_TY0V01","*='Specifieke informatie C'!$K$22","","C506 Huisartsen consult- consulten - 20 m en langer- geaccepteerd","zvsx01k","a506","cl20","TY0V01"]
[null,null,null,null,"zvsx01k_a506_cl20_TY1V01","*='Specifieke informatie C'!$L$22","","C506 Huisartsen consult- consulten - 20 m en langer- geaccepteerd","zvsx01k","a506","cl20","TY0V01"]
[null,null,null,null,"zvsx01k_a506_vk20_TY0V01","*='Specifieke informatie C'!$K$23","","C506 Huisartsen consult- visite minder of gelijk aan 20 m- geaccepteerd","zvsx01k","a506","vk20","TY0V01"]
[null,null,null,null,"zvsx01k_a506_vk20_TY1V01","*='Specifieke informatie C'!$L$23","","C506 Huisartsen consult- visite minder of gelijk aan 20 m- geaccepteerd","zvsx01k","a506","vk20","TY1V01"]
[null,null,null,null,"zvsx01k_a506_vl20_TY0V01","*='Specifieke informatie C'!$K$24","","C506 Huisartsen consult- visite langer dan 20 m- geaccepteerd","zvsx01k","a506","vl20","TY0V01"]
[null,null,null,null,"zvsx01k_a506_vl20_TY1V01","*='Specifieke informatie C'!$L$24","","C506 Huisartsen consult- visite langer dan 20 m- geaccepteerd","zvsx01k","a506","vl20","TY1V01"]
[null,null,null,null,"zvsx01k_a506_pggz_TY0V01","*='Specifieke informatie C'!$K$25","","C506 Huisartsen consult- POH GGZ- geaccepteerd","zvsx01k","a506","pggz","TY0V01"]
[null,null,null,null,"zvsx01k_a506_pggz_TY1V01","*='Specifieke informatie C'!$L$25","","C506 Huisartsen consult- POH GGZ- geaccepteerd","zvsx01k","a506","pggz","TY1V01"]
[null,null,null,null,"zvsx01k_a506_ei_TY0V01","*='Specifieke informatie C'!$K$26","","C506 Huisartsen consult- ELV en Intensieve- geaccepteerd","zvsx01k","a506","ei","TY0V01"]
[null,null,null,null,"zvsx01k_a506_ei_TY1V01","*='Specifieke informatie C'!$L$26","","C506 Huisartsen consult- ELV en Intensieve- geaccepteerd","zvsx01k","a506","ei","TY1V01"]
[null,null,null,null,"zvsx01k_a507_pggz_TY0V01","*='Specifieke informatie C'!$K$31","","C507 Huisartsen overig- Module POH GGZ- geaccepteerd","zvsx01k","a507","pggz","TY0V01"]
[null,null,null,null,"zvsx01k_a507_pggz_TY1V01","*='Specifieke informatie C'!$L$31","","C507 Huisartsen overig- Module POH GGZ- geaccepteerd","zvsx01k","a507","pggz","TY1V01"]
[null,null,null,null,"zvsx01k_a507_s1vr_TY0V01","*='Specifieke informatie C'!$K$32","","C507 Huisartsen overig- S1 Verrichtingen- geaccepteerd","zvsx01k","a507","s1vr","TY0V01"]
[null,null,null,null,"zvsx01k_a507_s1vr_TY1V01","*='Specifieke informatie C'!$L$32","","C507 Huisartsen overig- S1 Verrichtingen- geaccepteerd","zvsx01k","a507","s1vr","TY1V01"]
[null,null,null,null,"zvsx01k_a507_vacc_TY0V01","*='Specifieke informatie C'!$K$33","","C507 Huisartsen overig- Vaccinaties- geaccepteerd","zvsx01k","a507","vacc","TY0V01"]
[null,null,null,null,"zvsx01k_a507_vacc_TY1V01","*='Specifieke informatie C'!$L$33","","C507 Huisartsen overig- Vaccinaties- geaccepteerd","zvsx01k","a507","vacc","TY1V01"]
[null,null,null,null,"zvsx01k_a507_psnt_TY0V01","*='Specifieke informatie C'!$K$34","","C507 Huisartsen overig- Passantentarieven- geaccepteerd","zvsx01k","a507","psnt","TY0V01"]
[null,null,null,null,"zvsx01k_a507_psnt_TY1V01","*='Specifieke informatie C'!$L$34","","C507 Huisartsen overig- Passantentarieven- geaccepteerd","zvsx01k","a507","psnt","TY1V01"]
[null,null,null,null,"zvsx01k_a507_vrlk_TY0V01","*='Specifieke informatie C'!$K$35","","C507 Huisartsen overig- verloskundige zorg- geaccepteerd","zvsx01k","a507","vrlk","TY0V01"]
[null,null,null,null,"zvsx01k_a507_vrlk_TY1V01","*='Specifieke informatie C'!$L$35","","C507 Huisartsen overig- verloskundige zorg- geaccepteerd","zvsx01k","a507","vrlk","TY1V01"]
[null,null,null,null,"zvsx01k_a510_dbca_TY0V01","*='Specifieke informatie C'!$K$40","","C510 MDZ- Diabetes type 2 en Cardiovasculair- geaccepteerd","zvsx01k","a510","dbca","TY0V01"]
[null,null,null,null,"zvsx01k_a510_dbca_TY1V01","*='Specifieke informatie C'!$L$40","","C510 MDZ- Diabetes type 2 en Cardiovasculair- geaccepteerd","zvsx01k","a510","dbca","TY1V01"]
[null,null,null,null,"zvsx01k_a510_astm_TY0V01","*='Specifieke informatie C'!$K$41","","C510 MDZ- COPD (vergoedingscomponent) en astma- geaccepteerd","zvsx01k","a510","astm","TY0V01"]
[null,null,null,null,"zvsx01k_a510_astm_TY1V01","*='Specifieke informatie C'!$L$41","","C510 MDZ- COPD (vergoedingscomponent) en astma- geaccepteerd","zvsx01k","a510","astm","TY1V01"]
[null,null,null,null,"zvsx01k_a510_infr_TY0V01","*='Specifieke informatie C'!$K$42","","C510 MDZ- Ondersteuning en infrastructuur- geaccepteerd","zvsx01k","a510","infr","TY0V01"]
[null,null,null,null,"zvsx01k_a510_infr_TY1V01","*='Specifieke informatie C'!$L$42","","C510 MDZ- Ondersteuning en infrastructuur- geaccepteerd","zvsx01k","a510","infr","TY0V01"]
[null,null,null,null,"zvsx01k_a510_srk_TY0V01","*='Specifieke informatie C'!$L$43","","C510 MDZ- stoppen met roken- geaccepteerd","zvsx01k","a510","srk","TY0V01"]
[null,null,null,null,"zvsx01k_a510_srk_TY1V01","*='Specifieke informatie C'!$K$43","","C510 MDZ- stoppen met roken- geaccepteerd","zvsx01k","a510","srk","TY0V01"]
[null,null,null,null,"zvsx01k_a515_rslt_TY0V01","*='Specifieke informatie C'!$K$54","","C515 Resultaatbeloning en zorgvernieuwing huisartsen- resultaatbeloning- geaccepteerd","zvsx01k","a515","rslt","TY0V01"]
[null,null,null,null,"zvsx01k_a515_rslt_TY1V01","*='Specifieke informatie C'!$L$54","","C515 Resultaatbeloning en zorgvernieuwing huisartsen- resultaatbeloning- geaccepteerd","zvsx01k","a515","rslt","TY1V01"]
[null,null,null,null,"zvsx01k_a515_vrnw_TY0V01","*='Specifieke informatie C'!$K$55","","C515 Resultaatbeloning en zorgvernieuwing huisartsen- zorgvernieuwing- geaccepteerd","zvsx01k","a515","vrnw","TY0V01"]
[null,null,null,null,"zvsx01k_a515_vrnw_TY1V01","*='Specifieke informatie C'!$L$55","","C515 Resultaatbeloning en zorgvernieuwing huisartsen- zorgvernieuwing- geaccepteerd","zvsx01k","a515","vrnw","TY1V01"]
[null,null,null,null,"zvsx01k_a516_rslt_TY0V01","*='Specifieke informatie C'!$K$60","","C516 Resultaatbeloning en zorgvernieuwing MDZ- resultaatbeloning- geaccepteerd","zvsx01k","a516","rslt","TY0V01"]
[null,null,null,null,"zvsx01k_a516_rslt_TY1V01","*='Specifieke informatie C'!$L$60","","C516 Resultaatbeloning en zorgvernieuwing MDZ- resultaatbeloning- geaccepteerd","zvsx01k","a516","rslt","TY1V01"]
[null,null,null,null,"zvsx01k_a516_vrnw_TY0V01","*='Specifieke informatie C'!$K$61","","C516 Resultaatbeloning en zorgvernieuwing MDZ- zorgvernieuwing- geaccepteerd","zvsx01k","a516","vrnw","TY0V01"]
[null,null,null,null,"zvsx01k_a516_vrnw_TY1V01","*='Specifieke informatie C'!$L$61","","C516 Resultaatbeloning en zorgvernieuwing MDZ- zorgvernieuwing- geaccepteerd","zvsx01k","a516","vrnw","TY1V01"]
[null,null,null,null,"zvsx02k_a520_genmidd_TY0V01","*='Specifieke informatie C'!$L$68","","C520 Farmaceutische hulp- Kosten geneesmiddelen- geaccepteerd","zvsx02k","a520",null,"TY0V01"]
[null,null,null,null,"zvsx02k_a520_trhndst_TY0V01","*='Specifieke informatie C'!$L$69","","C520 Farmaceutische hulp- Kosten i.v.m terhandstelling- geaccepteerd","zvsx02k","a520",null,"TY0V01"]
[null,null,null,null,"zvsx02k_a520_ovrigzp_TY0V01","*='Specifieke informatie C'!$L$70","","C520 Farmaceutische hulp- Kosten overige zorgprestaties- geaccepteerd","zvsx02k","a520",null,"TY0V01"]
[null,null,null,null,"zvsx02i_n520_genmidd_TY0V01","*='Specifieke informatie C'!$L$75","","C520 Farmaceutische hulp- Prestaties geneesmiddel-  (n) geteld","zvsx02i","n520",null,"TY0V01"]
[null,null,null,null,"zvsx02i_n520_ovrigzp_TY0V01","*='Specifieke informatie C'!$L$76","","C520 Farmaceutische hulp-  Overige zorgprestaties- (n) geteld","zvsx02i","n520",null,"TY0V01"]
[null,null,null,null,"zvsx05i_n580_geb_TY0V01","*='Specifieke informatie C'!$K$89","","C580 Verloskundige hulp door verloskundigen- (n) geteld","zvsx05i","n580","geb","TY0V01"]
[null,null,null,null,"zvsx05i_n580_geb_TY1V01","*='Specifieke informatie C'!$L$89","","C580 Verloskundige hulp door verloskundigen- (n) geteld","zvsx05i","n580","geb","TY1V01"]
[null,null,null,null,"zvsx06k_a545_m21_TY0V01","*='Specifieke informatie C'!$K$95","","C545 Kosten en honoraria specialisten, mondziekten kaakchirurgen- Implantaten- geaccepteerd","zvsx06k","a545","m21","TY0V01"]
[null,null,null,null,"zvsx06k_a545_m21_TY1V01","*='Specifieke informatie C'!$L$95","","C545 Kosten en honoraria specialisten, mondziekten kaakchirurgen- Implantaten- geaccepteerd","zvsx06k","a545","m21","TY1V01"]
[null,null,null,null,"zvsx06k_a545_m13_TY0V01","*='Specifieke informatie C'!$K$96","","C545 Kosten en honoraria specialisten, mondziekten kaakchirurgen- Overige activiteiten- geaccepteerd","zvsx06k","a545","m13","TY0V01"]
[null,null,null,null,"zvsx06k_a545_m13_TY1V01","*='Specifieke informatie C'!$L$96","","C545 Kosten en honoraria specialisten, mondziekten kaakchirurgen- Overige activiteiten- geaccepteerd","zvsx06k","a545","m13","TY1V01"]
[null,null,null,null,"zvsx06i_n545_m21_TY0V01","*='Specifieke informatie C'!$K$101","","C545 Kosten en honoraria specialisten, mondziekten kaakchirurgen- Implantaten- (n) geteld","zvsx06i","n545","m21","TY0V01"]
[null,null,null,null,"zvsx06i_n545_m21_TY1V01","*='Specifieke informatie C'!$L$101","","C545 Kosten en honoraria specialisten, mondziekten kaakchirurgen- Implantaten- (n) geteld","zvsx06i","n545","m21","TY1V01"]
[null,null,null,null,"zvsx06k_a610_d1l_TY0V01","*='Specifieke informatie C'!$I$106","","C610 Overige kosten ziekenhuiszorg en curatieve zorg- eerstelijnsdiagnostiek eerstelijnszorgaanbieders - huisartslab- geaccepteerd","zvsx06k","a610","d1l","TY0V01"]
[null,null,null,null,"zvsx06k_a610_d1l_TY1V01","*='Specifieke informatie C'!$K$106","","C610 Overige kosten ziekenhuiszorg en curatieve zorg- eerstelijnsdiagnostiek eerstelijnszorgaanbieders - huisartslab- geaccepteerd","zvsx06k","a610","d1l","TY1V01"]
[null,null,null,null,"zvsx06k_a610_d1l_TY2V01","*='Specifieke informatie C'!$L$106","","C610 Overige kosten ziekenhuiszorg en curatieve zorg- eerstelijnsdiagnostiek eerstelijnszorgaanbieders - huisartslab- geaccepteerd","zvsx06k","a610","d1l","TY2V01"]
[null,null,null,null,"zvsx06k_a610_trmb_TY0V01","*='Specifieke informatie C'!$I$107","","C610 Overige kosten ziekenhuiszorg en curatieve zorg- Trombosediensten- geaccepteerd","zvsx06k","a610","trmb","TY0V01"]
[null,null,null,null,"zvsx06k_a610_trmb_TY1V01","*='Specifieke informatie C'!$K$107","","C610 Overige kosten ziekenhuiszorg en curatieve zorg- Trombosediensten- geaccepteerd","zvsx06k","a610","trmb","TY1V01"]
[null,null,null,null,"zvsx06k_a610_trmb_TY2V01","*='Specifieke informatie C'!$L$107","","C610 Overige kosten ziekenhuiszorg en curatieve zorg- Trombosediensten- geaccepteerd","zvsx06k","a610","trmb","TY2V01"]
[null,null,null,null,"zvsx06k_a610_sknt_TY0V01","*='Specifieke informatie C'!$I$108","","C610 Overige kosten ziekenhuiszorg en curatieve zorg- SKION en NTS- geaccepteerd","zvsx06k","a610","sknt","TY0V01"]
[null,null,null,null,"zvsx06k_a610_sknt_TY1V01","*='Specifieke informatie C'!$K$108","","C610 Overige kosten ziekenhuiszorg en curatieve zorg- SKION en NTS- geaccepteerd","zvsx06k","a610","sknt","TY1V01"]
[null,null,null,null,"zvsx06k_a610_sknt_TY2V01","*='Specifieke informatie C'!$L$108","","C610 Overige kosten ziekenhuiszorg en curatieve zorg- SKION en NTS- geaccepteerd","zvsx06k","a610","sknt","TY2V01"]
[null,null,null,null,"zvsx06k_a611_az_TY0V01","*='Specifieke informatie C'!$I$115","","C611 Naar Instelling- Academische ziekenhuizen- geaccepteerd","zvsx06k","a611","az","TY0V01"]
[null,null,null,null,"zvsx06k_a611_az_TY1V01","*='Specifieke informatie C'!$K$115","","C611 Naar Instelling- Academische ziekenhuizen- geaccepteerd","zvsx06k","a611","az","TY1V01"]
[null,null,null,null,"zvsx06k_a611_az_TY2V01","*='Specifieke informatie C'!$L$115","","C611 Naar Instelling- Academische ziekenhuizen- geaccepteerd","zvsx06k","a611","az","TY2V01"]
[null,null,null,null,"zvsx06k_a611_sz_TY0V01","*='Specifieke informatie C'!$I$116","","C611 Naar Instelling- Algemene ziekenhuizen- geaccepteerd","zvsx06k","a611","sz","TY0V01"]
[null,null,null,null,"zvsx06k_a611_sz_TY1V01","*='Specifieke informatie C'!$K$116","","C611 Naar Instelling- Algemene ziekenhuizen- geaccepteerd","zvsx06k","a611","sz","TY1V01"]
[null,null,null,null,"zvsx06k_a611_sz_TY2V01","*='Specifieke informatie C'!$L$116","","C611 Naar Instelling- Algemene ziekenhuizen- geaccepteerd","zvsx06k","a611","sz","TY2V01"]
[null,null,null,null,"zvsx06k_a611_zb_TY0V01","*='Specifieke informatie C'!$I$117","","C611 Naar Instelling- Zelfstandige behandelcentra- geaccepteerd","zvsx06k","a611","zb","TY0V01"]
[null,null,null,null,"zvsx06k_a611_zb_TY1V01","*='Specifieke informatie C'!$K$117","","C611 Naar Instelling- Zelfstandige behandelcentra- geaccepteerd","zvsx06k","a611","zb","TY1V01"]
[null,null,null,null,"zvsx06k_a611_zb_TY2V01","*='Specifieke informatie C'!$L$117","","C611 Naar Instelling- Zelfstandige behandelcentra- geaccepteerd","zvsx06k","a611","zb","TY2V01"]
[null,null,null,null,"zvsx06k_a611_ov_TY0V01","*='Specifieke informatie C'!$I$118","","C611 Naar Instelling- Overige zorgaanbieders- geaccepteerd","zvsx06k","a611","ov","TY0V01"]
[null,null,null,null,"zvsx06k_a611_ov_TY1V01","*='Specifieke informatie C'!$K$118","","C611 Naar Instelling- Overige zorgaanbieders- geaccepteerd","zvsx06k","a611","ov","TY1V01"]
[null,null,null,null,"zvsx06k_a611_ov_TY2V01","*='Specifieke informatie C'!$L$118","","C611 Naar Instelling- Overige zorgaanbieders- geaccepteerd","zvsx06k","a611","ov","TY2V01"]
[null,null,null,null,"zvsx06k_a611_n01_TY0V01","*='Specifieke informatie C'!$J$131","","C611 Overige zorgproducten- Poliklinische bevalling zonder medische indicatie- geaccepteerd","zvsx06k","a611","n01","TY0V01"]
[null,null,null,null,"zvsx06k_a611_n01_TY1V01","*='Specifieke informatie C'!$K$131","","C611 Overige zorgproducten- Poliklinische bevalling zonder medische indicatie- geaccepteerd","zvsx06k","a611","n01","TY1V01"]
[null,null,null,null,"zvsx06k_a611_n03_TY0V01","*='Specifieke informatie C'!$J$132","","C611 Overige zorgproducten- Poliklinische bevalling op medische indicatie- geaccepteerd","zvsx06k","a611","n03","TY0V01"]
[null,null,null,null,"zvsx06k_a611_n03_TY1V01","*='Specifieke informatie C'!$K$132","","C611 Overige zorgproducten- Poliklinische bevalling op medische indicatie- geaccepteerd","zvsx06k","a611","n03","TY1V01"]
[null,null,null,null,"zvsx06k_a611_n02_TY0V01","*='Specifieke informatie C'!$J$133","","C611 Overige zorgproducten- Verplichte poliklinische bevalling zonder medische indicatie- geaccepteerd","zvsx06k","a611","n02","TY0V01"]
[null,null,null,null,"zvsx06k_a611_n02_TY1V01","*='Specifieke informatie C'!$K$133","","C611 Overige zorgproducten- Verplichte poliklinische bevalling zonder medische indicatie- geaccepteerd","zvsx06k","a611","n02","TY1V01"]
[null,null,null,null,"zvsx06k_a611_n32_TY0V01","*='Specifieke informatie C'!$J$134","","C611 Overige zorgproducten- Gezonde moeder- geaccepteerd","zvsx06k","a611","n32","TY0V01"]
[null,null,null,null,"zvsx06k_a611_n32_TY1V01","*='Specifieke informatie C'!$K$134","","C611 Overige zorgproducten- Gezonde moeder- geaccepteerd","zvsx06k","a611","n32","TY1V01"]
[null,null,null,null,"zvsx06k_a611_n31_TY0V01","*='Specifieke informatie C'!$J$135","","C611 Overige zorgproducten- Gezonde zuigeling- geaccepteerd","zvsx06k","a611","n31","TY0V01"]
[null,null,null,null,"zvsx06k_a611_n31_TY1V01","*='Specifieke informatie C'!$K$135","","C611 Overige zorgproducten- Gezonde zuigeling- geaccepteerd","zvsx06k","a611","n31","TY1V01"]
[null,null,null,null,"zvsx06k_a611_n51_TY0V01","*='Specifieke informatie C'!$J$136","","C611 Overige zorgproducten- MSVT- geaccepteerd","zvsx06k","a611","n51","TY0V01"]
[null,null,null,null,"zvsx06k_a611_n51_TY1V01","*='Specifieke informatie C'!$K$136","","C611 Overige zorgproducten- MSVT- geaccepteerd","zvsx06k","a611","n51","TY1V01"]
[null,null,null,null,"zvsx06k_a611_g61_TY0V01","*='Specifieke informatie C'!$J$137","","C611 Overige zorgproducten- Kosten stollingsfactoren- geaccepteerd","zvsx06k","a611","g61","TY0V01"]
[null,null,null,null,"zvsx06k_a611_g61_TY1V01","*='Specifieke informatie C'!$K$137","","C611 Overige zorgproducten- Kosten stollingsfactoren- geaccepteerd","zvsx06k","a611","g61","TY1V01"]
[null,null,null,null,"zvsx06k_a6121_az_TY0V01","*='Specifieke informatie C'!$I$142","","C612.1 Kosten add-ons dure geneesmiddelen naar instelling- Academische ziekenhuizen- geaccepteerd","zvsx06k","a6121","az","TY0V01"]
[null,null,null,null,"zvsx06k_a6121_az_TY1V01","*='Specifieke informatie C'!$K$142","","C612.1 Kosten add-ons dure geneesmiddelen naar instelling- Academische ziekenhuizen- geaccepteerd","zvsx06k","a6121","az","TY1V01"]
[null,null,null,null,"zvsx06k_a6121_az_TY2V01","*='Specifieke informatie C'!$L$142","","C612.1 Kosten add-ons dure geneesmiddelen naar instelling- Academische ziekenhuizen- geaccepteerd","zvsx06k","a6121","az","TY2V01"]
[null,null,null,null,"zvsx06k_a6121_sz_TY0V01","*='Specifieke informatie C'!$I$143","","C612.1 Kosten add-ons dure geneesmiddelen naar instelling- Algemene ziekenhuizen- geaccepteerd","zvsx06k","a6121","sz","TY0V01"]
[null,null,null,null,"zvsx06k_a6121_sz_TY1V01","*='Specifieke informatie C'!$K$143","","C612.1 Kosten add-ons dure geneesmiddelen naar instelling- Algemene ziekenhuizen- geaccepteerd","zvsx06k","a6121","sz","TY1V01"]
[null,null,null,null,"zvsx06k_a6121_sz_TY2V01","*='Specifieke informatie C'!$L$143","","C612.1 Kosten add-ons dure geneesmiddelen naar instelling- Algemene ziekenhuizen- geaccepteerd","zvsx06k","a6121","sz","TY2V01"]
[null,null,null,null,"zvsx06k_a6121_zb_TY0V01","*='Specifieke informatie C'!$I$144","","C612.1 Kosten add-ons dure geneesmiddelen naar instelling- Zelfstandige behandelcentra- geaccepteerd","zvsx06k","a6121","zb","TY0V01"]
[null,null,null,null,"zvsx06k_a6121_zb_TY1V01","*='Specifieke informatie C'!$K$144","","C612.1 Kosten add-ons dure geneesmiddelen naar instelling- Zelfstandige behandelcentra- geaccepteerd","zvsx06k","a6121","zb","TY1V01"]
[null,null,null,null,"zvsx06k_a6121_zb_TY2V01","*='Specifieke informatie C'!$L$144","","C612.1 Kosten add-ons dure geneesmiddelen naar instelling- Zelfstandige behandelcentra- geaccepteerd","zvsx06k","a6121","zb","TY2V01"]
[null,null,null,null,"zvsx06k_a6121_ov_TY0V01","*='Specifieke informatie C'!$I$145","","C612.1 Kosten add-ons dure geneesmiddelen naar instelling- Overige zorgaanbieders- geaccepteerd","zvsx06k","a6121","ov","TY0V01"]
[null,null,null,null,"zvsx06k_a6121_ov_TY1V01","*='Specifieke informatie C'!$K$145","","C612.1 Kosten add-ons dure geneesmiddelen naar instelling- Overige zorgaanbieders- geaccepteerd","zvsx06k","a6121","ov","TY1V01"]
[null,null,null,null,"zvsx06k_a6121_ov_TY2V01","*='Specifieke informatie C'!$L$145","","C612.1 Kosten add-ons dure geneesmiddelen naar instelling- Overige zorgaanbieders- geaccepteerd","zvsx06k","a6121","ov","TY2V01"]
[null,null,null,null,"zvsx06k_a6122_az_TY0V01","*='Specifieke informatie C'!$I$151","","C612.2 Kosten add-ons IC naar instelling- Academische ziekenhuizen- geaccepteerd","zvsx06k","a6122","az","TY0V01"]
[null,null,null,null,"zvsx06k_a6122_az_TY1V01","*='Specifieke informatie C'!$K$151","","C612.2 Kosten add-ons IC naar instelling- Academische ziekenhuizen- geaccepteerd","zvsx06k","a6122","az","TY1V01"]
[null,null,null,null,"zvsx06k_a6122_az_TY2V01","*='Specifieke informatie C'!$L$151","","C612.2 Kosten add-ons IC naar instelling- Academische ziekenhuizen- geaccepteerd","zvsx06k","a6122","az","TY2V01"]
[null,null,null,null,"zvsx06k_a6122_sz_TY0V01","*='Specifieke informatie C'!$I$152","","C612.2 Kosten add-ons IC naar instelling- Algemene ziekenhuizen- geaccepteerd","zvsx06k","a6122","sz","TY0V01"]
[null,null,null,null,"zvsx06k_a6122_sz_TY1V01","*='Specifieke informatie C'!$K$152","","C612.2 Kosten add-ons IC naar instelling- Algemene ziekenhuizen- geaccepteerd","zvsx06k","a6122","sz","TY1V01"]
[null,null,null,null,"zvsx06k_a6122_sz_TY2V01","*='Specifieke informatie C'!$L$152","","C612.2 Kosten add-ons IC naar instelling- Algemene ziekenhuizen- geaccepteerd","zvsx06k","a6122","sz","TY2V01"]
[null,null,null,null,"zvsx06k_a6122_zb_TY0V01","*='Specifieke informatie C'!$I$153","","C612.2 Kosten add-ons IC naar instelling- Zelfstandige behandelcentra- geaccepteerd","zvsx06k","a6122","zb","TY0V01"]
[null,null,null,null,"zvsx06k_a6122_zb_TY1V01","*='Specifieke informatie C'!$K$153","","C612.2 Kosten add-ons IC naar instelling- Zelfstandige behandelcentra- geaccepteerd","zvsx06k","a6122","zb","TY1V01"]
[null,null,null,null,"zvsx06k_a6122_zb_TY2V01","*='Specifieke informatie C'!$L$153","","C612.2 Kosten add-ons IC naar instelling- Zelfstandige behandelcentra- geaccepteerd","zvsx06k","a6122","zb","TY2V01"]
[null,null,null,null,"zvsx06k_a6122_ov_TY0V01","*='Specifieke informatie C'!$I$154","","C612.2 Kosten add-ons IC naar instelling- Overige zorgaanbieders- geaccepteerd","zvsx06k","a6122","ov","TY0V01"]
[null,null,null,null,"zvsx06k_a6122_ov_TY1V01","*='Specifieke informatie C'!$K$154","","C612.2 Kosten add-ons IC naar instelling- Overige zorgaanbieders- geaccepteerd","zvsx06k","a6122","ov","TY1V01"]
[null,null,null,null,"zvsx06k_a6122_ov_TY2V01","*='Specifieke informatie C'!$L$154","","C612.2 Kosten add-ons IC naar instelling- Overige zorgaanbieders- geaccepteerd","zvsx06k","a6122","ov","TY2V01"]
[null,null,null,null,"zvsx06k_a6131_az_TY0V01","*='Specifieke informatie C'!$I$170","","C613.1 Integrale kosten DBC-zorgproducten gereguleerde segment- Academische ziekenhuizen- geaccepteerd","zvsx06k","a6131","az","TY0V01"]
[null,null,null,null,"zvsx06k_a6131_az_TY1V01","*='Specifieke informatie C'!$K$170","","C613.1 Integrale kosten DBC-zorgproducten gereguleerde segment- Academische ziekenhuizen- geaccepteerd","zvsx06k","a6131","az","TY1V01"]
[null,null,null,null,"zvsx06k_a6131_az_TY2V01","*='Specifieke informatie C'!$L$170","","C613.1 Integrale kosten DBC-zorgproducten gereguleerde segment- Academische ziekenhuizen- geaccepteerd","zvsx06k","a6131","az","TY2V01"]
[null,null,null,null,"zvsx06k_a6131_sz_TY0V01","*='Specifieke informatie C'!$I$171","","C613.1 Integrale kosten DBC-zorgproducten gereguleerde segment- Algemene ziekenhuizen- geaccepteerd","zvsx06k","a6131","sz","TY0V01"]
[null,null,null,null,"zvsx06k_a6131_sz_TY1V01","*='Specifieke informatie C'!$K$171","","C613.1 Integrale kosten DBC-zorgproducten gereguleerde segment- Algemene ziekenhuizen- geaccepteerd","zvsx06k","a6131","sz","TY1V01"]
[null,null,null,null,"zvsx06k_a6131_sz_TY2V01","*='Specifieke informatie C'!$L$171","","C613.1 Integrale kosten DBC-zorgproducten gereguleerde segment- Algemene ziekenhuizen- geaccepteerd","zvsx06k","a6131","sz","TY2V01"]
[null,null,null,null,"zvsx06k_a6131_zb_TY0V01","*='Specifieke informatie C'!$I$172","","C613.1 Integrale kosten DBC-zorgproducten gereguleerde segment- Zelfstandige behandelcentra- geaccepteerd","zvsx06k","a6131","zb","TY0V01"]
[null,null,null,null,"zvsx06k_a6131_zb_TY1V01","*='Specifieke informatie C'!$K$172","","C613.1 Integrale kosten DBC-zorgproducten gereguleerde segment- Zelfstandige behandelcentra- geaccepteerd","zvsx06k","a6131","zb","TY1V01"]
[null,null,null,null,"zvsx06k_a6131_zb_TY2V01","*='Specifieke informatie C'!$L$172","","C613.1 Integrale kosten DBC-zorgproducten gereguleerde segment- Zelfstandige behandelcentra- geaccepteerd","zvsx06k","a6131","zb","TY2V01"]
[null,null,null,null,"zvsx06k_a6131_ov_TY0V01","*='Specifieke informatie C'!$I$173","","C613.1 Integrale kosten DBC-zorgproducten gereguleerde segment- Overige zorgaanbieders- geaccepteerd","zvsx06k","a6131","ov","TY0V01"]
[null,null,null,null,"zvsx06k_a6131_ov_TY1V01","*='Specifieke informatie C'!$K$173","","C613.1 Integrale kosten DBC-zorgproducten gereguleerde segment- Overige zorgaanbieders- geaccepteerd","zvsx06k","a6131","ov","TY1V01"]
[null,null,null,null,"zvsx06k_a6131_ov_TY2V01","*='Specifieke informatie C'!$L$173","","C613.1 Integrale kosten DBC-zorgproducten gereguleerde segment- Overige zorgaanbieders- geaccepteerd","zvsx06k","a6131","ov","TY2V01"]
[null,null,null,null,"zvsx06k_a6151_az_TY0V01","*='Specifieke informatie C'!$I$176","","C615.1 Integrale kosten DBC-zorgproduct vrije segment- Academische ziekenhuizen- geaccepteerd","zvsx06k","a6151","az","TY0V01"]
[null,null,null,null,"zvsx06k_a6151_az_TY1V01","*='Specifieke informatie C'!$K$176","","C615.1 Integrale kosten DBC-zorgproduct vrije segment- Academische ziekenhuizen- geaccepteerd","zvsx06k","a6151","az","TY1V01"]
[null,null,null,null,"zvsx06k_a6151_az_TY2V01","*='Specifieke informatie C'!$L$176","","C615.1 Integrale kosten DBC-zorgproduct vrije segment- Academische ziekenhuizen- geaccepteerd","zvsx06k","a6151","az","TY2V01"]
[null,null,null,null,"zvsx06k_a6151_sz_TY0V01","*='Specifieke informatie C'!$I$177","","C615.1 Integrale kosten DBC-zorgproduct vrije segment- Algemene ziekenhuizen- geaccepteerd","zvsx06k","a6151","sz","TY0V01"]
[null,null,null,null,"zvsx06k_a6151_sz_TY1V01","*='Specifieke informatie C'!$K$177","","C615.1 Integrale kosten DBC-zorgproduct vrije segment- Algemene ziekenhuizen- geaccepteerd","zvsx06k","a6151","sz","TY1V01"]
[null,null,null,null,"zvsx06k_a6151_sz_TY2V01","*='Specifieke informatie C'!$L$177","","C615.1 Integrale kosten DBC-zorgproduct vrije segment- Algemene ziekenhuizen- geaccepteerd","zvsx06k","a6151","sz","TY2V01"]
[null,null,null,null,"zvsx06k_a6151_zb_TY0V01","*='Specifieke informatie C'!$I$178","","C615.1 Integrale kosten DBC-zorgproduct vrije segment- Zelfstandige behandelcentra- geaccepteerd","zvsx06k","a6151","zb","TY0V01"]
[null,null,null,null,"zvsx06k_a6151_zb_TY1V01","*='Specifieke informatie C'!$K$178","","C615.1 Integrale kosten DBC-zorgproduct vrije segment- Zelfstandige behandelcentra- geaccepteerd","zvsx06k","a6151","zb","TY1V01"]
[null,null,null,null,"zvsx06k_a6151_zb_TY2V01","*='Specifieke informatie C'!$L$178","","C615.1 Integrale kosten DBC-zorgproduct vrije segment- Zelfstandige behandelcentra- geaccepteerd","zvsx06k","a6151","zb","TY2V01"]
[null,null,null,null,"zvsx06k_a6151_ov_TY0V01","*='Specifieke informatie C'!$I$179","","C615.1 Integrale kosten DBC-zorgproduct vrije segment- Overige zorgaanbieders- geaccepteerd","zvsx06k","a6151","ov","TY0V01"]
[null,null,null,null,"zvsx06k_a6151_ov_TY1V01","*='Specifieke informatie C'!$K$179","","C615.1 Integrale kosten DBC-zorgproduct vrije segment- Overige zorgaanbieders- geaccepteerd","zvsx06k","a6151","ov","TY1V01"]
[null,null,null,null,"zvsx06k_a6151_ov_TY2V01","*='Specifieke informatie C'!$L$179","","C615.1 Integrale kosten DBC-zorgproduct vrije segment- Overige zorgaanbieders- geaccepteerd","zvsx06k","a6151","ov","TY2V01"]
[null,null,null,null,"zvsx06k_c610_d1l_TY0V01","*='Specifieke informatie C'!$H$106","","C610 Overige kosten ziekenhuiszorg en curatieve zorg- eerstelijnsdiagnostiek eerstelijnszorgaanbieders - huisartslab- incl balans","zvsx06k","c610","d1l","TY0V01"]
[null,null,null,null,"zvsx06k_c610_d1l_TY1V01","*='Specifieke informatie C'!$J$106","","C610 Overige kosten ziekenhuiszorg en curatieve zorg- eerstelijnsdiagnostiek eerstelijnszorgaanbieders - huisartslab- incl balans","zvsx06k","c610","d1l","TY1V01"]
[null,null,null,null,"zvsx06k_c610_trmb_TY0V01","*='Specifieke informatie C'!$H$107","","C610 Overige kosten ziekenhuiszorg en curatieve zorg- Trombosediensten- incl balans","zvsx06k","c610","trmb","TY0V01"]
[null,null,null,null,"zvsx06k_c610_trmb_TY1V01","*='Specifieke informatie C'!$J$107","","C610 Overige kosten ziekenhuiszorg en curatieve zorg- Trombosediensten- incl balans","zvsx06k","c610","trmb","TY1V01"]
[null,null,null,null,"zvsx06k_c610_sknt_TY0V01","*='Specifieke informatie C'!$H$108","","C610 Overige kosten ziekenhuiszorg en curatieve zorg- SKION en NTS- incl balans","zvsx06k","c610","sknt","TY0V01"]
[null,null,null,null,"zvsx06k_c610_sknt_TY1V01","*='Specifieke informatie C'!$J$108","","C610 Overige kosten ziekenhuiszorg en curatieve zorg- SKION en NTS- incl balans","zvsx06k","c610","sknt","TY1V01"]
[null,null,null,null,"zvsx06k_c611_az_TY0V01","*='Specifieke informatie C'!$H$115","","C611 Naar Instelling- Academische ziekenhuizen- incl balans","zvsx06k","c611","az","TY0V01"]
[null,null,null,null,"zvsx06k_c611_az_TY1V01","*='Specifieke informatie C'!$J$115","","C611 Naar Instelling- Academische ziekenhuizen- incl balans","zvsx06k","c611","az","TY1V01"]
[null,null,null,null,"zvsx06k_c611_sz_TY0V01","*='Specifieke informatie C'!$H$116","","C611 Naar Instelling- Algemene ziekenhuizen- incl balans","zvsx06k","c611","sz","TY0V01"]
[null,null,null,null,"zvsx06k_c611_sz_TY1V01","*='Specifieke informatie C'!$J$116","","C611 Naar Instelling- Algemene ziekenhuizen- incl balans","zvsx06k","c611","sz","TY1V01"]
[null,null,null,null,"zvsx06k_c611_zb_TY0V01","*='Specifieke informatie C'!$H$117","","C611 Naar Instelling- Zelfstandige behandelcentra- incl balans","zvsx06k","c611","zb","TY0V01"]
[null,null,null,null,"zvsx06k_c611_zb_TY1V01","*='Specifieke informatie C'!$J$117","","C611 Naar Instelling- Zelfstandige behandelcentra- incl balans","zvsx06k","c611","zb","TY1V01"]
[null,null,null,null,"zvsx06k_c611_ov_TY0V01","*='Specifieke informatie C'!$H$118","","C611 Naar Instelling- Overige zorgaanbieders- incl balans","zvsx06k","c611","ov","TY0V01"]
[null,null,null,null,"zvsx06k_c611_ov_TY1V01","*='Specifieke informatie C'!$J$118","","C611 Naar Instelling- Overige zorgaanbieders- incl balans","zvsx06k","c611","ov","TY1V01"]
[null,null,null,null,"zvsx06k_c6121_az_TY0V01","*='Specifieke informatie C'!$H$142","","C612.1 Kosten add-ons dure geneesmiddelen naar instelling- Academische ziekenhuizen- incl balans","zvsx06k","c6121","az","TY0V01"]
[null,null,null,null,"zvsx06k_c6121_az_TY1V01","*='Specifieke informatie C'!$J$142","","C612.1 Kosten add-ons dure geneesmiddelen naar instelling- Academische ziekenhuizen- incl balans","zvsx06k","c6121","az","TY1V01"]
[null,null,null,null,"zvsx06k_c6121_sz_TY0V01","*='Specifieke informatie C'!$H$143","","C612.1 Kosten add-ons dure geneesmiddelen naar instelling- Algemene ziekenhuizen- incl balans","zvsx06k","c6121","sz","TY0V01"]
[null,null,null,null,"zvsx06k_c6121_sz_TY1V01","*='Specifieke informatie C'!$J$143","","C612.1 Kosten add-ons dure geneesmiddelen naar instelling- Algemene ziekenhuizen- incl balans","zvsx06k","c6121","sz","TY1V01"]
[null,null,null,null,"zvsx06k_c6121_zb_TY0V01","*='Specifieke informatie C'!$H$144","","C612.1 Kosten add-ons dure geneesmiddelen naar instelling- Zelfstandige behandelcentra- incl balans","zvsx06k","c6121","zb","TY0V01"]
[null,null,null,null,"zvsx06k_c6121_zb_TY1V01","*='Specifieke informatie C'!$J$144","","C612.1 Kosten add-ons dure geneesmiddelen naar instelling- Zelfstandige behandelcentra- incl balans","zvsx06k","c6121","zb","TY1V01"]
[null,null,null,null,"zvsx06k_c6121_ov_TY0V01","*='Specifieke informatie C'!$H$145","","C612.1 Kosten add-ons dure geneesmiddelen naar instelling- Overige zorgaanbieders- incl balans","zvsx06k","c6121","ov","TY0V01"]
[null,null,null,null,"zvsx06k_c6121_ov_TY1V01","*='Specifieke informatie C'!$J$145","","C612.1 Kosten add-ons dure geneesmiddelen naar instelling- Overige zorgaanbieders- incl balans","zvsx06k","c6121","ov","TY1V01"]
[null,null,null,null,"zvsx06k_c6122_az_TY0V01","*='Specifieke informatie C'!$H$151","","C612.2 Kosten add-ons IC naar instelling- Academische ziekenhuizen- incl balans","zvsx06k","c6122","az","TY0V01"]
[null,null,null,null,"zvsx06k_c6122_az_TY1V01","*='Specifieke informatie C'!$J$151","","C612.2 Kosten add-ons IC naar instelling- Academische ziekenhuizen- incl balans","zvsx06k","c6122","az","TY1V01"]
[null,null,null,null,"zvsx06k_c6122_sz_TY0V01","*='Specifieke informatie C'!$H$152","","C612.2 Kosten add-ons IC naar instelling- Algemene ziekenhuizen- incl balans","zvsx06k","c6122","sz","TY0V01"]
[null,null,null,null,"zvsx06k_c6122_sz_TY1V01","*='Specifieke informatie C'!$J$152","","C612.2 Kosten add-ons IC naar instelling- Algemene ziekenhuizen- incl balans","zvsx06k","c6122","sz","TY1V01"]
[null,null,null,null,"zvsx06k_c6122_zb_TY0V01","*='Specifieke informatie C'!$H$153","","C612.2 Kosten add-ons IC naar instelling- Zelfstandige behandelcentra- incl balans","zvsx06k","c6122","zb","TY0V01"]
[null,null,null,null,"zvsx06k_c6122_zb_TY1V01","*='Specifieke informatie C'!$J$153","","C612.2 Kosten add-ons IC naar instelling- Zelfstandige behandelcentra- incl balans","zvsx06k","c6122","zb","TY1V01"]
[null,null,null,null,"zvsx06k_c6122_ov_TY0V01","*='Specifieke informatie C'!$H$154","","C612.2 Kosten add-ons IC naar instelling- Overige zorgaanbieders- incl balans","zvsx06k","c6122","ov","TY0V01"]
[null,null,null,null,"zvsx06k_c6122_ov_TY1V01","*='Specifieke informatie C'!$J$154","","C612.2 Kosten add-ons IC naar instelling- Overige zorgaanbieders- incl balans","zvsx06k","c6122","ov","TY1V01"]
[null,null,null,null,"zvsx06k_c6131_az_TY0V01","*='Specifieke informatie C'!$H$170","","C613.1 Integrale kosten DBC-zorgproducten gereguleerde segment- Academische ziekenhuizen- incl balans","zvsx06k","c6131","az","TY0V01"]
[null,null,null,null,"zvsx06k_c6131_az_TY1V01","*='Specifieke informatie C'!$J$170","","C613.1 Integrale kosten DBC-zorgproducten gereguleerde segment- Academische ziekenhuizen- incl balans","zvsx06k","c6131","az","TY1V01"]
[null,null,null,null,"zvsx06k_c6131_sz_TY0V01","*='Specifieke informatie C'!$H$171","","C613.1 Integrale kosten DBC-zorgproducten gereguleerde segment- Algemene ziekenhuizen- incl balans","zvsx06k","c6131","sz","TY0V01"]
[null,null,null,null,"zvsx06k_c6131_sz_TY1V01","*='Specifieke informatie C'!$J$171","","C613.1 Integrale kosten DBC-zorgproducten gereguleerde segment- Algemene ziekenhuizen- incl balans","zvsx06k","c6131","sz","TY1V01"]
[null,null,null,null,"zvsx06k_c6131_zb_TY0V01","*='Specifieke informatie C'!$H$172","","C613.1 Integrale kosten DBC-zorgproducten gereguleerde segment- Zelfstandige behandelcentra- incl balans","zvsx06k","c6131","zb","TY0V01"]
[null,null,null,null,"zvsx06k_c6131_zb_TY1V01","*='Specifieke informatie C'!$J$172","","C613.1 Integrale kosten DBC-zorgproducten gereguleerde segment- Zelfstandige behandelcentra- incl balans","zvsx06k","c6131","zb","TY1V01"]
[null,null,null,null,"zvsx06k_c6131_ov_TY0V01","*='Specifieke informatie C'!$H$173","","C613.1 Integrale kosten DBC-zorgproducten gereguleerde segment- Overige zorgaanbieders- incl balans","zvsx06k","c6131","ov","TY0V01"]
[null,null,null,null,"zvsx06k_c6131_ov_TY1V01","*='Specifieke informatie C'!$J$173","","C613.1 Integrale kosten DBC-zorgproducten gereguleerde segment- Overige zorgaanbieders- incl balans","zvsx06k","c6131","ov","TY1V01"]
[null,null,null,null,"zvsx06k_c6151_az_TY0V01","*='Specifieke informatie C'!$H$176","","C615.1 Integrale kosten DBC-zorgproduct vrije segment- Academische ziekenhuizen- incl balans","zvsx06k","c6151","az","TY0V01"]
[null,null,null,null,"zvsx06k_c6151_az_TY1V01","*='Specifieke informatie C'!$J$176","","C615.1 Integrale kosten DBC-zorgproduct vrije segment- Academische ziekenhuizen- incl balans","zvsx06k","c6151","az","TY1V01"]
[null,null,null,null,"zvsx06k_c6151_sz_TY0V01","*='Specifieke informatie C'!$H$177","","C615.1 Integrale kosten DBC-zorgproduct vrije segment- Algemene ziekenhuizen- incl balans","zvsx06k","c6151","sz","TY0V01"]
[null,null,null,null,"zvsx06k_c6151_sz_TY1V01","*='Specifieke informatie C'!$J$177","","C615.1 Integrale kosten DBC-zorgproduct vrije segment- Algemene ziekenhuizen- incl balans","zvsx06k","c6151","sz","TY1V01"]
[null,null,null,null,"zvsx06k_c6151_zb_TY0V01","*='Specifieke informatie C'!$H$178","","C615.1 Integrale kosten DBC-zorgproduct vrije segment- Zelfstandige behandelcentra- incl balans","zvsx06k","c6151","zb","TY0V01"]
[null,null,null,null,"zvsx06k_c6151_zb_TY1V01","*='Specifieke informatie C'!$J$178","","C615.1 Integrale kosten DBC-zorgproduct vrije segment- Zelfstandige behandelcentra- incl balans","zvsx06k","c6151","zb","TY1V01"]
[null,null,null,null,"zvsx06k_c6151_ov_TY0V01","*='Specifieke informatie C'!$H$179","","C615.1 Integrale kosten DBC-zorgproduct vrije segment- Overige zorgaanbieders- incl balans","zvsx06k","c6151","ov","TY0V01"]
[null,null,null,null,"zvsx06k_c6151_ov_TY1V01","*='Specifieke informatie C'!$J$179","","C615.1 Integrale kosten DBC-zorgproduct vrije segment- Overige zorgaanbieders- incl balans","zvsx06k","c6151","ov","TY1V01"]
[null,null,null,null,"zvsx09k_a650_a1_TY0V01","*='Specifieke informatie C'!$K$186","","C650 Vervoer per ambulance/helikopter- Ambulance - spoed- geaccepteerd","zvsx09k","a650","a1","TY0V01"]
[null,null,null,null,"zvsx09k_a650_a1_TY1V01","*='Specifieke informatie C'!$L$186","","C650 Vervoer per ambulance/helikopter- Ambulance - spoed- geaccepteerd","zvsx09k","a650","a1","TY1V01"]
[null,null,null,null,"zvsx09k_a650_h1_TY0V01","*='Specifieke informatie C'!$K$187","","C650 Vervoer per ambulance/helikopter- Helikoptervluchten- geaccepteerd","zvsx09k","a650","h1","TY0V01"]
[null,null,null,null,"zvsx09k_a650_h1_TY1V01","*='Specifieke informatie C'!$L$187","","C650 Vervoer per ambulance/helikopter- Helikoptervluchten- geaccepteerd","zvsx09k","a650","h1","TY1V01"]
[null,null,null,null,"zvsx09i_n650_a2_TY0V01","*='Specifieke informatie C'!$K$192","","C650 Vervoer per ambulance/helikopter- Ambulance - spoed- (n) geteld","zvsx09i","n650","a2","TY0V01"]
[null,null,null,null,"zvsx09i_n650_a2_TY1V01","*='Specifieke informatie C'!$L$192","","C650 Vervoer per ambulance/helikopter- Ambulance - spoed- (n) geteld","zvsx09i","n650","a2","TY1V01"]
[null,null,null,null,"zvsx09i_n650_a3_TY0V01","*='Specifieke informatie C'!$K$193","","C650 Vervoer per ambulance/helikopter- Ambulance - besteld- (n) geteld","zvsx09i","n650","a3","TY0V01"]
[null,null,null,null,"zvsx09i_n650_a3_TY1V01","*='Specifieke informatie C'!$L$193","","C650 Vervoer per ambulance/helikopter- Ambulance - besteld- (n) geteld","zvsx09i","n650","a3","TY1V01"]
[null,null,null,null,"zvsx09i_n650_h1_TY0V01","*='Specifieke informatie C'!$K$194","","C650 Vervoer per ambulance/helikopter- Helikoptervluchten- (n) geteld","zvsx09i","n650","h1","TY0V01"]
[null,null,null,null,"zvsx09i_n650_h1_TY1V01","*='Specifieke informatie C'!$L$194","","C650 Vervoer per ambulance/helikopter- Helikoptervluchten- (n) geteld","zvsx09i","n650","h1","TY1V01"]
[null,null,null,null,"zvsx09k_a651_o01_TY0V01","*='Specifieke informatie C'!$K$206","","C651 Vervoer. Vervoermiddel en patiëntcategorie- Nierdialyse OV- geaccepteerd","zvsx09k","a651","o01","TY0V01"]
[null,null,null,null,"zvsx09k_a651_o01_TY1V01","*='Specifieke informatie C'!$L$206","","C651 Vervoer. Vervoermiddel en patiëntcategorie- Nierdialyse OV- geaccepteerd","zvsx09k","a651","o01","TY1V01"]
[null,null,null,null,"zvsx09k_a651_t01_TY0V01","*='Specifieke informatie C'!$K$207","","C651 Vervoer. Vervoermiddel en patiëntcategorie- Nierdialyse Taxi- geaccepteerd","zvsx09k","a651","t01","TY0V01"]
[null,null,null,null,"zvsx09k_a651_t01_TY1V01","*='Specifieke informatie C'!$L$207","","C651 Vervoer. Vervoermiddel en patiëntcategorie- Nierdialyse Taxi- geaccepteerd","zvsx09k","a651","t01","TY1V01"]
[null,null,null,null,"zvsx09k_a651_p01_TY0V01","*='Specifieke informatie C'!$K$208","","C651 Vervoer. Vervoermiddel en patiëntcategorie- Nierdialyse Eigen Auto- geaccepteerd","zvsx09k","a651","p01","TY0V01"]
[null,null,null,null,"zvsx09k_a651_p01_TY1V01","*='Specifieke informatie C'!$L$208","","C651 Vervoer. Vervoermiddel en patiëntcategorie- Nierdialyse Eigen Auto- geaccepteerd","zvsx09k","a651","p01","TY1V01"]
[null,null,null,null,"zvsx09k_a651_o02_TY0V01","*='Specifieke informatie C'!$K$209","","C651 Vervoer. Vervoermiddel en patiëntcategorie- chemo,radio OV- geaccepteerd","zvsx09k","a651","o02","TY0V01"]
[null,null,null,null,"zvsx09k_a651_o02_TY1V01","*='Specifieke informatie C'!$L$209","","C651 Vervoer. Vervoermiddel en patiëntcategorie- chemo,radio OV- geaccepteerd","zvsx09k","a651","o02","TY1V01"]
[null,null,null,null,"zvsx09k_a651_t02_TY0V01","*='Specifieke informatie C'!$K$210","","C651 Vervoer. Vervoermiddel en patiëntcategorie- chemo,radio Taxi- geaccepteerd","zvsx09k","a651","t02","TY0V01"]
[null,null,null,null,"zvsx09k_a651_t02_TY1V01","*='Specifieke informatie C'!$L$210","","C651 Vervoer. Vervoermiddel en patiëntcategorie- chemo,radio Taxi- geaccepteerd","zvsx09k","a651","t02","TY1V01"]
[null,null,null,null,"zvsx09k_a651_p02_TY0V01","*='Specifieke informatie C'!$K$211","","C651 Vervoer. Vervoermiddel en patiëntcategorie- chemo radio Eigen Auto- geaccepteerd","zvsx09k","a651","p02","TY0V01"]
[null,null,null,null,"zvsx09k_a651_p02_TY1V01","*='Specifieke informatie C'!$L$211","","C651 Vervoer. Vervoermiddel en patiëntcategorie- chemo radio Eigen Auto- geaccepteerd","zvsx09k","a651","p02","TY1V01"]
[null,null,null,null,"zvsx09k_a651_o03_TY0V01","*='Specifieke informatie C'!$K$212","","C651 Vervoer. Vervoermiddel en patiëntcategorie- rolstoelgebruikers OV- geaccepteerd","zvsx09k","a651","o03","TY0V01"]
[null,null,null,null,"zvsx09k_a651_o03_TY1V01","*='Specifieke informatie C'!$L$212","","C651 Vervoer. Vervoermiddel en patiëntcategorie- rolstoelgebruikers OV- geaccepteerd","zvsx09k","a651","o03","TY1V01"]
[null,null,null,null,"zvsx09k_a651_t03_TY0V01","*='Specifieke informatie C'!$K$213","","C651 Vervoer. Vervoermiddel en patiëntcategorie- rolstoelgebruikers Taxi- geaccepteerd","zvsx09k","a651","t03","TY0V01"]
[null,null,null,null,"zvsx09k_a651_t03_TY1V01","*='Specifieke informatie C'!$L$213","","C651 Vervoer. Vervoermiddel en patiëntcategorie- rolstoelgebruikers Taxi- geaccepteerd","zvsx09k","a651","t03","TY1V01"]
[null,null,null,null,"zvsx09k_a651_p03_TY0V01","*='Specifieke informatie C'!$K$214","","C651 Vervoer. Vervoermiddel en patiëntcategorie- rolstoelgebruikers Eigen Auto- geaccepteerd","zvsx09k","a651","p03","TY0V01"]
[null,null,null,null,"zvsx09k_a651_p03_TY1V01","*='Specifieke informatie C'!$L$214","","C651 Vervoer. Vervoermiddel en patiëntcategorie- rolstoelgebruikers Eigen Auto- geaccepteerd","zvsx09k","a651","p03","TY1V01"]
[null,null,null,null,"zvsx09k_a651_o04_TY0V01","*='Specifieke informatie C'!$K$215","","C651 Vervoer. Vervoermiddel en patiëntcategorie- Visueel beperkten OV- geaccepteerd","zvsx09k","a651","o04","TY0V01"]
[null,null,null,null,"zvsx09k_a651_o04_TY1V01","*='Specifieke informatie C'!$L$215","","C651 Vervoer. Vervoermiddel en patiëntcategorie- Visueel beperkten OV- geaccepteerd","zvsx09k","a651","o04","TY1V01"]
[null,null,null,null,"zvsx09k_a651_t04_TY0V01","*='Specifieke informatie C'!$K$216","","C651 Vervoer. Vervoermiddel en patiëntcategorie- Visueel beperkten Taxi- geaccepteerd","zvsx09k","a651","t04","TY0V01"]
[null,null,null,null,"zvsx09k_a651_t04_TY1V01","*='Specifieke informatie C'!$L$216","","C651 Vervoer. Vervoermiddel en patiëntcategorie- Visueel beperkten Taxi- geaccepteerd","zvsx09k","a651","t04","TY1V01"]
[null,null,null,null,"zvsx09k_a651_p04_TY0V01","*='Specifieke informatie C'!$K$217","","C651 Vervoer. Vervoermiddel en patiëntcategorie- Visueel beperkten Eigen Auto- geaccepteerd","zvsx09k","a651","p04","TY0V01"]
[null,null,null,null,"zvsx09k_a651_p04_TY1V01","*='Specifieke informatie C'!$L$217","","C651 Vervoer. Vervoermiddel en patiëntcategorie- Visueel beperkten Eigen Auto- geaccepteerd","zvsx09k","a651","p04","TY1V01"]
[null,null,null,null,"zvsx09k_a651_o05_TY0V01","*='Specifieke informatie C'!$K$218","","C651 Vervoer. Vervoermiddel en patiëntcategorie- Overige met toestemming OV- geaccepteerd","zvsx09k","a651","o05","TY0V01"]
[null,null,null,null,"zvsx09k_a651_o05_TY1V01","*='Specifieke informatie C'!$L$218","","C651 Vervoer. Vervoermiddel en patiëntcategorie- Overige met toestemming OV- geaccepteerd","zvsx09k","a651","o05","TY1V01"]
[null,null,null,null,"zvsx09k_a651_t05_TY0V01","*='Specifieke informatie C'!$K$219","","C651 Vervoer. Vervoermiddel en patiëntcategorie- Overige met toestemming Taxi- geaccepteerd","zvsx09k","a651","t05","TY0V01"]
[null,null,null,null,"zvsx09k_a651_t05_TY1V01","*='Specifieke informatie C'!$L$219","","C651 Vervoer. Vervoermiddel en patiëntcategorie- Overige met toestemming Taxi- geaccepteerd","zvsx09k","a651","t05","TY1V01"]
[null,null,null,null,"zvsx09k_a651_p05_TY0V01","*='Specifieke informatie C'!$K$220","","C651 Vervoer. Vervoermiddel en patiëntcategorie- Overige met toestemming Eigen Auto- geaccepteerd","zvsx09k","a651","p05","TY0V01"]
[null,null,null,null,"zvsx09k_a651_p05_TY1V01","*='Specifieke informatie C'!$L$220","","C651 Vervoer. Vervoermiddel en patiëntcategorie- Overige met toestemming Eigen Auto- geaccepteerd","zvsx09k","a651","p05","TY1V01"]
[null,null,null,null,"zvsx09k_a651_o06_TY0V01","*='Specifieke informatie C'!$K$221","","C651 Vervoer. Vervoermiddel en patiëntcategorie- Intensieve kindzorg OV- geaccepteerd","zvsx09k","a651","o06","TY0V01"]
[null,null,null,null,"zvsx09k_a651_o06_TY1V01","*='Specifieke informatie C'!$L$221","","C651 Vervoer. Vervoermiddel en patiëntcategorie- Intensieve kindzorg OV- geaccepteerd","zvsx09k","a651","o06","TY1V01"]
[null,null,null,null,"zvsx09k_a651_t06_TY0V01","*='Specifieke informatie C'!$K$222","","C651 Vervoer. Vervoermiddel en patiëntcategorie- Intensieve kindzorg Taxi- geaccepteerd","zvsx09k","a651","t06","TY0V01"]
[null,null,null,null,"zvsx09k_a651_t06_TY1V01","*='Specifieke informatie C'!$L$222","","C651 Vervoer. Vervoermiddel en patiëntcategorie- Intensieve kindzorg Taxi- geaccepteerd","zvsx09k","a651","t06","TY1V01"]
[null,null,null,null,"zvsx09k_a651_p06_TY0V01","*='Specifieke informatie C'!$K$223","","C651 Vervoer. Vervoermiddel en patiëntcategorie- Intensieve kindzorg Eigen Auto- geaccepteerd","zvsx09k","a651","p06","TY0V01"]
[null,null,null,null,"zvsx09k_a651_p06_TY1V01","*='Specifieke informatie C'!$L$223","","C651 Vervoer. Vervoermiddel en patiëntcategorie- Intensieve kindzorg Eigen Auto- geaccepteerd","zvsx09k","a651","p06","TY1V01"]
[null,null,null,null,"zvsx09k_a651_o07_TY0V01","*='Specifieke informatie C'!$K$224","","C651 Vervoer. Vervoermiddel en patiëntcategorie- Geriatrische revalidatiezorg OV- geaccepteerd","zvsx09k","a651","o07","TY0V01"]
[null,null,null,null,"zvsx09k_a651_o07_TY1V01","*='Specifieke informatie C'!$L$224","","C651 Vervoer. Vervoermiddel en patiëntcategorie- Geriatrische revalidatiezorg OV- geaccepteerd","zvsx09k","a651","o07","TY1V01"]
[null,null,null,null,"zvsx09k_a651_t07_TY0V01","*='Specifieke informatie C'!$K$225","","C651 Vervoer. Vervoermiddel en patiëntcategorie- Geriatrische revalidatiezorg Taxi- geaccepteerd","zvsx09k","a651","t07","TY0V01"]
[null,null,null,null,"zvsx09k_a651_t07_TY1V01","*='Specifieke informatie C'!$L$225","","C651 Vervoer. Vervoermiddel en patiëntcategorie- Geriatrische revalidatiezorg Taxi- geaccepteerd","zvsx09k","a651","t07","TY1V01"]
[null,null,null,null,"zvsx09k_a651_p07_TY0V01","*='Specifieke informatie C'!$K$226","","C651 Vervoer. Vervoermiddel en patiëntcategorie- Geriatrische revalidatiezorg Eigen Auto- geaccepteerd","zvsx09k","a651","p07","TY0V01"]
[null,null,null,null,"zvsx09k_a651_p07_TY1V01","*='Specifieke informatie C'!$L$226","","C651 Vervoer. Vervoermiddel en patiëntcategorie- Geriatrische revalidatiezorg Eigen Auto- geaccepteerd","zvsx09k","a651","p07","TY1V01"]
[null,null,null,null,"zvsx09k_a651_p08_TY0V01","*='Specifieke informatie C'!$K$227","","C651 Vervoer. Vervoermiddel en patiëntcategorie- Logeervergoeding- geaccepteerd","zvsx09k","a651","p08","TY0V01"]
[null,null,null,null,"zvsx09i_n651_p81_TY0V01","*='Specifieke informatie C'!$K$232","","C651 Vervoer. Vervoermiddel en patiëntcategorie - kosten hoger dan eigen bijdrage- (n) geteld","zvsx09i","n651","p81","TY0V01"]
[null,null,null,null,"zvsx09i_n651_p81_TY1V01","*='Specifieke informatie C'!$L$232","","C651 Vervoer. Vervoermiddel en patiëntcategorie - kosten hoger dan eigen bijdrage- (n) geteld","zvsx09i","n651","p81","TY1V01"]
[null,null,null,null,"zvsx11i_n670_g71_TY0V01","*='Specifieke informatie C'!$K$255","","C670 Geriatische revalidatiezorg- Totaal aantal DBC's geriatische revalidatiezorg- (n) geteld","zvsx11i","n670","g71","TY0V01"]
[null,null,null,null,"zvsx11i_n670_g71_TY1V01","*='Specifieke informatie C'!$L$255","","C670 Geriatische revalidatiezorg- Totaal aantal DBC's geriatische revalidatiezorg- (n) geteld","zvsx11i","n670","g71","TY1V01"]
[null,null,null,null,"zvsx12i_n680_uv1_TY0V01","*='Specifieke informatie C'!$K$261","","C680 Kraamzorg - verzekerden1. 00 t/m 23 uur- (n) geteld","zvsx12i","n680","uv1","TY0V01"]
[null,null,null,null,"zvsx12i_n680_uv1_TY1V01","*='Specifieke informatie C'!$L$261","","C680 Kraamzorg - verzekerden1. 00 t/m 23 uur- (n) geteld","zvsx12i","n680","uv1","TY1V01"]
[null,null,null,null,"zvsx12i_n680_uv2_TY0V01","*='Specifieke informatie C'!$K$262","","C680 Kraamzorg - verzekerden2. 24 t/m 31 uur- (n) geteld","zvsx12i","n680","uv2","TY0V01"]
[null,null,null,null,"zvsx12i_n680_uv2_TY1V01","*='Specifieke informatie C'!$L$262","","C680 Kraamzorg - verzekerden2. 24 t/m 31 uur- (n) geteld","zvsx12i","n680","uv2","TY1V01"]
[null,null,null,null,"zvsx12i_n680_uv3_TY0V01","*='Specifieke informatie C'!$K$263","","C680 Kraamzorg - verzekerden3. 32 t/m 39 uur- (n) geteld","zvsx12i","n680","uv3","TY0V01"]
[null,null,null,null,"zvsx12i_n680_uv3_TY1V01","*='Specifieke informatie C'!$L$263","","C680 Kraamzorg - verzekerden3. 32 t/m 39 uur- (n) geteld","zvsx12i","n680","uv3","TY1V01"]
[null,null,null,null,"zvsx12i_n680_uv4_TY0V01","*='Specifieke informatie C'!$K$264","","C680 Kraamzorg - verzekerden4. 40 t/m 47 uur- (n) geteld","zvsx12i","n680","uv4","TY0V01"]
[null,null,null,null,"zvsx12i_n680_uv4_TY1V01","*='Specifieke informatie C'!$L$264","","C680 Kraamzorg - verzekerden4. 40 t/m 47 uur- (n) geteld","zvsx12i","n680","uv4","TY1V01"]
[null,null,null,null,"zvsx12i_n680_uv5_TY0V01","*='Specifieke informatie C'!$K$265","","C680 Kraamzorg - verzekerden5. 48 t/m 55 uur- (n) geteld","zvsx12i","n680","uv5","TY0V01"]
[null,null,null,null,"zvsx12i_n680_uv5_TY1V01","*='Specifieke informatie C'!$L$265","","C680 Kraamzorg - verzekerden5. 48 t/m 55 uur- (n) geteld","zvsx12i","n680","uv5","TY1V01"]
[null,null,null,null,"zvsx12i_n680_uv6_TY0V01","*='Specifieke informatie C'!$K$266","","C680 Kraamzorg - verzekerden6. 56 t/m 63 uur- (n) geteld","zvsx12i","n680","uv6","TY0V01"]
[null,null,null,null,"zvsx12i_n680_uv6_TY1V01","*='Specifieke informatie C'!$L$266","","C680 Kraamzorg - verzekerden6. 56 t/m 63 uur- (n) geteld","zvsx12i","n680","uv6","TY1V01"]
[null,null,null,null,"zvsx12i_n680_uv7_TY0V01","*='Specifieke informatie C'!$K$267","","C680 Kraamzorg - verzekerden7. 64 t/m 71 uur- (n) geteld","zvsx12i","n680","uv7","TY0V01"]
[null,null,null,null,"zvsx12i_n680_uv7_TY1V01","*='Specifieke informatie C'!$L$267","","C680 Kraamzorg - verzekerden7. 64 t/m 71 uur- (n) geteld","zvsx12i","n680","uv7","TY1V01"]
[null,null,null,null,"zvsx12i_n680_uv8_TY0V01","*='Specifieke informatie C'!$K$268","","C680 Kraamzorg - verzekerden8. 72 t/m 80 uur- (n) geteld","zvsx12i","n680","uv8","TY0V01"]
[null,null,null,null,"zvsx12i_n680_uv8_TY1V01","*='Specifieke informatie C'!$L$268","","C680 Kraamzorg - verzekerden8. 72 t/m 80 uur- (n) geteld","zvsx12i","n680","uv8","TY1V01"]
[null,null,null,null,"zvsx12i_n680_uv9_TY0V01","*='Specifieke informatie C'!$K$269","","C680 Kraamzorg - verzekerden9. 81 uur of meer- (n) geteld","zvsx12i","n680","uv9","TY0V01"]
[null,null,null,null,"zvsx12i_n680_uv9_TY1V01","*='Specifieke informatie C'!$L$269","","C680 Kraamzorg - verzekerden9. 81 uur of meer- (n) geteld","zvsx12i","n680","uv9","TY1V01"]
[null,null,null,null,"zvsx12i_n680_uc1_TY0V01","*='Specifieke informatie C'!$K$274","","C680 Kraamzorg - aantal uren1. 00 t/m 23 uur- (n) geteld","zvsx12i","n680","uc1","TY0V01"]
[null,null,null,null,"zvsx12i_n680_uc1_TY1V01","*='Specifieke informatie C'!$L$274","","C680 Kraamzorg - aantal uren1. 00 t/m 23 uur- (n) geteld","zvsx12i","n680","uc1","TY1V01"]
[null,null,null,null,"zvsx12i_n680_uc2_TY0V01","*='Specifieke informatie C'!$K$275","","C680 Kraamzorg - aantal uren2. 24 t/m 31 uur- (n) geteld","zvsx12i","n680","uc2","TY0V01"]
[null,null,null,null,"zvsx12i_n680_uc2_TY1V01","*='Specifieke informatie C'!$L$275","","C680 Kraamzorg - aantal uren2. 24 t/m 31 uur- (n) geteld","zvsx12i","n680","uc2","TY1V01"]
[null,null,null,null,"zvsx12i_n680_uc3_TY0V01","*='Specifieke informatie C'!$K$276","","C680 Kraamzorg - aantal uren3. 32 t/m 39 uur- (n) geteld","zvsx12i","n680","uc3","TY0V01"]
[null,null,null,null,"zvsx12i_n680_uc3_TY1V01","*='Specifieke informatie C'!$L$276","","C680 Kraamzorg - aantal uren3. 32 t/m 39 uur- (n) geteld","zvsx12i","n680","uc3","TY1V01"]
[null,null,null,null,"zvsx12i_n680_uc4_TY0V01","*='Specifieke informatie C'!$K$277","","C680 Kraamzorg - aantal uren4. 40 t/m 47 uur- (n) geteld","zvsx12i","n680","uc4","TY0V01"]
[null,null,null,null,"zvsx12i_n680_uc4_TY1V01","*='Specifieke informatie C'!$L$277","","C680 Kraamzorg - aantal uren4. 40 t/m 47 uur- (n) geteld","zvsx12i","n680","uc4","TY1V01"]
[null,null,null,null,"zvsx12i_n680_uc5_TY0V01","*='Specifieke informatie C'!$K$278","","C680 Kraamzorg - aantal uren5. 48 t/m 55 uur- (n) geteld","zvsx12i","n680","uc5","TY0V01"]
[null,null,null,null,"zvsx12i_n680_uc5_TY1V01","*='Specifieke informatie C'!$L$278","","C680 Kraamzorg - aantal uren5. 48 t/m 55 uur- (n) geteld","zvsx12i","n680","uc5","TY1V01"]
[null,null,null,null,"zvsx12i_n680_uc6_TY0V01","*='Specifieke informatie C'!$K$279","","C680 Kraamzorg - aantal uren6. 56 t/m 63 uur- (n) geteld","zvsx12i","n680","uc6","TY0V01"]
[null,null,null,null,"zvsx12i_n680_uc6_TY1V01","*='Specifieke informatie C'!$L$279","","C680 Kraamzorg - aantal uren6. 56 t/m 63 uur- (n) geteld","zvsx12i","n680","uc6","TY1V01"]
[null,null,null,null,"zvsx12i_n680_uc7_TY0V01","*='Specifieke informatie C'!$K$280","","C680 Kraamzorg - aantal uren7. 64 t/m 71 uur- (n) geteld","zvsx12i","n680","uc7","TY0V01"]
[null,null,null,null,"zvsx12i_n680_uc7_TY1V01","*='Specifieke informatie C'!$L$280","","C680 Kraamzorg - aantal uren7. 64 t/m 71 uur- (n) geteld","zvsx12i","n680","uc7","TY1V01"]
[null,null,null,null,"zvsx12i_n680_uc8_TY0V01","*='Specifieke informatie C'!$K$281","","C680 Kraamzorg - aantal uren8. 72 t/m 80 uur- (n) geteld","zvsx12i","n680","uc8","TY0V01"]
[null,null,null,null,"zvsx12i_n680_uc8_TY1V01","*='Specifieke informatie C'!$L$281","","C680 Kraamzorg - aantal uren8. 72 t/m 80 uur- (n) geteld","zvsx12i","n680","uc8","TY1V01"]
[null,null,null,null,"zvsx12i_n680_uc9_TY0V01","*='Specifieke informatie C'!$K$282","","C680 Kraamzorg - aantal uren9. 81 uur of meer- (n) geteld","zvsx12i","n680","uc9","TY0V01"]
[null,null,null,null,"zvsx12i_n680_uc9_TY1V01","*='Specifieke informatie C'!$L$282","","C680 Kraamzorg - aantal uren9. 81 uur of meer- (n) geteld","zvsx12i","n680","uc9","TY1V01"]
[null,null,null,null,"zvsx13k_a700_n07_TY1V01","*='Specifieke informatie C'!$K$294","","C700 Overige Kosten- Integrale geboortezorg- geaccepteerd","zvsx13k","a700","n07","TY1V01"]
[null,null,null,null,"zvsx13k_a700_n07_TY2V01","*='Specifieke informatie C'!$L$294","","C700 Overige Kosten- Integrale geboortezorg- geaccepteerd","zvsx13k","a700","n07","TY2V01"]
[null,null,null,null,"zvsx13k_a700_g73_TY1V01","*='Specifieke informatie C'!$K$295","","C700 Overige Kosten- Kosten gecombineerde Leefstijl Interventie- geaccepteerd","zvsx13k","a700","g73","TY1V01"]
[null,null,null,null,"zvsx13k_a701_g21_TY0V01","*='Specifieke informatie C'!$K$300","","C701 Overige geneeskundige zorg- Kort- geaccepteerd","zvsx13k","a701","g21","TY0V01"]
[null,null,null,null,"zvsx13k_a701_g21_TY1V01","*='Specifieke informatie C'!$L$300","","C701 Overige geneeskundige zorg- Kort- geaccepteerd","zvsx13k","a701","g21","TY1V01"]
[null,null,null,null,"zvsx13k_a701_g22_TY0V01","*='Specifieke informatie C'!$K$301","","C701 Overige geneeskundige zorg- Huidtherapie- geaccepteerd","zvsx13k","a701","g22","TY0V01"]
[null,null,null,null,"zvsx13k_a701_g22_TY1V01","*='Specifieke informatie C'!$L$301","","C701 Overige geneeskundige zorg- Huidtherapie- geaccepteerd","zvsx13k","a701","g22","TY1V01"]
[null,null,null,null,"zvsx13k_a701_g23_TY0V01","*='Specifieke informatie C'!$K$302","","C701 Overige geneeskundige zorg- Orthoptie- geaccepteerd","zvsx13k","a701","g23","TY0V01"]
[null,null,null,null,"zvsx13k_a701_g23_TY1V01","*='Specifieke informatie C'!$L$302","","C701 Overige geneeskundige zorg- Orthoptie- geaccepteerd","zvsx13k","a701","g23","TY1V01"]
[null,null,null,null,"zvsx13k_a701_g24_TY0V01","*='Specifieke informatie C'!$K$303","","C701 Overige geneeskundige zorg- Optometrie- geaccepteerd","zvsx13k","a701","g24","TY0V01"]
[null,null,null,null,"zvsx13k_a701_g24_TY1V01","*='Specifieke informatie C'!$L$303","","C701 Overige geneeskundige zorg- Optometrie- geaccepteerd","zvsx13k","a701","g24","TY1V01"]
[null,null,null,null,"zvsx13k_a701_g25_TY0V01","*='Specifieke informatie C'!$K$304","","C701 Overige geneeskundige zorg- voetzorg bij Diabetes Mellitus type 2- geaccepteerd","zvsx13k","a701","g25","TY0V01"]
[null,null,null,null,"zvsx13k_a701_g25_TY1V01","*='Specifieke informatie C'!$L$304","","C701 Overige geneeskundige zorg- voetzorg bij Diabetes Mellitus type 2- geaccepteerd","zvsx13k","a701","g25","TY1V01"]
[null,null,null,null,"zvsx13k_a701_g26_TY0V01","*='Specifieke informatie C'!$K$305","","C701 Overige geneeskundige zorg- Koemelkallergietest (niet horend bij Multidisciplinaire Zorg)- geaccepteerd","zvsx13k","a701","g26","TY0V01"]
[null,null,null,null,"zvsx13k_a701_g26_TY1V01","*='Specifieke informatie C'!$L$305","","C701 Overige geneeskundige zorg- Koemelkallergietest (niet horend bij Multidisciplinaire Zorg)- geaccepteerd","zvsx13k","a701","g26","TY1V01"]
[null,null,null,null,"zvsx13k_a701_g27_TY0V01","*='Specifieke informatie C'!$K$306","","C701 Overige geneeskundige zorg- Regiefunctie complexe wondzorgt- geaccepteerd","zvsx13k","a701","g27","TY0V01"]
[null,null,null,null,"zvsx13k_a701_g27_TY1V01","*='Specifieke informatie C'!$L$306","","C701 Overige geneeskundige zorg- Regiefunctie complexe wondzorgt- geaccepteerd","zvsx13k","a701","g27","TY1V01"]
[null,null,null,null,"zvsx13k_a702_g01_TY0V01","*='Specifieke informatie C'!$K$311","","C702 Zintuiglijk gehandicapten- visuele beperking- geaccepteerd","zvsx13k","a702","g01","TY0V01"]
[null,null,null,null,"zvsx13k_a702_g01_TY1V01","*='Specifieke informatie C'!$L$311","","C702 Zintuiglijk gehandicapten- visuele beperking- geaccepteerd","zvsx13k","a702","g01","TY1V01"]
[null,null,null,null,"zvsx13k_a702_g02_TY0V01","*='Specifieke informatie C'!$K$312","","C702 Zintuiglijk gehandicapten- auditieve  en communicatieve beperking- geaccepteerd","zvsx13k","a702","g02","TY0V01"]
[null,null,null,null,"zvsx13k_a702_g02_TY1V01","*='Specifieke informatie C'!$L$312","","C702 Zintuiglijk gehandicapten- auditieve  en communicatieve beperking- geaccepteerd","zvsx13k","a702","g02","TY1V01"]
[null,null,null,null,"zvsx15i_a720g_u12_TY0V01","*='Specifieke informatie C'!$K$334","","C720 Grensoverschrijdende zorg- wonen in Nederland (op basis van contract- geaccepteerd","zvsx15i","a720g","u12","TY0V01"]
[null,null,null,null,"zvsx15i_a720g_u12_TY1V01","*='Specifieke informatie C'!$L$334","","C720 Grensoverschrijdende zorg- wonen in Nederland (op basis van contract- geaccepteerd","zvsx15i","a720g","u12","TY1V01"]
[null,null,null,null,"zvsx15i_a720g_u13_TY0V01","*='Specifieke informatie C'!$K$335","","C720 Grensoverschrijdende zorg- wonen in Nederland (niet op basis van contract)- geaccepteerd","zvsx15i","a720g","u13","TY0V01"]
[null,null,null,null,"zvsx15i_a720g_u13_TY1V01","*='Specifieke informatie C'!$L$335","","C720 Grensoverschrijdende zorg- wonen in Nederland (niet op basis van contract)- geaccepteerd","zvsx15i","a720g","u13","TY1V01"]
[null,null,null,null,"zvsx15i_a720g_u02_TY0V01","*='Specifieke informatie C'!$K$336","","C720 Grensoverschrijdende zorg- Zvw verzekerden die wonen in het buitenland- geaccepteerd","zvsx15i","a720g","u02","TY0V01"]
[null,null,null,null,"zvsx15i_a720g_u02_TY1V01","*='Specifieke informatie C'!$L$336","","C720 Grensoverschrijdende zorg- Zvw verzekerden die wonen in het buitenland- geaccepteerd","zvsx15i","a720g","u02","TY1V01"]
[null,null,null,null,"zvsx15i_n720g_u12_TY0V01","*='Specifieke informatie C'!$K$341",null,"C720 Grensoverschrijdende zorg- wonen in Nederland (op basis van contract)- geaccepteerd","zvsx15i","a720g","u12","TY0V01"]
[null,null,null,null,"zvsx15i_n720g_u12_TY1V01","*='Specifieke informatie C'!$L$341",null,"C720 Grensoverschrijdende zorg- wonen in Nederland (op basis van contract)- geaccepteerd","zvsx15i","a720g","u12","TY1V01"]
[null,null,null,null,"zvsx15i_n720g_u13_TY0V01","*='Specifieke informatie C'!$K$342",null,"C720 Grensoverschrijdende zorg- wonen in Nederland (niet op basis van contract)- geaccepteerd","zvsx15i","a720g","u13","TY0V01"]
[null,null,null,null,"zvsx15i_n720g_u13_TY1V01","*='Specifieke informatie C'!$L$342",null,"C720 Grensoverschrijdende zorg- wonen in Nederland (niet op basis van contract)- geaccepteerd","zvsx15i","a720g","u13","TY1V01"]
[null,null,null,null,"zvsx15i_n720g_u02_TY0V01","*='Specifieke informatie C'!$K$343",null,"C720 Grensoverschrijdende zorg- Zvw verzekerden die wonen in het buitenland- geaccepteerd","zvsx15i","a720g","u02","TY0V01"]
[null,null,null,null,"zvsx15i_n720g_u02_TY1V01","*='Specifieke informatie C'!$L$343",null,"C720 Grensoverschrijdende zorg- Zvw verzekerden die wonen in het buitenland- geaccepteerd","zvsx15i","a720g","u02","TY1V01"]
[null,null,null,null,"zvkx01_b503__TY0V01","*=Controleoverzicht!$K$32",null,"Huisartsen- bijz betalingen- balans","zvkx01","b503",null,"TY0V01"]
[null,null,null,null,"zvkx01_b503__TY1V01","*=Controleoverzicht!$L$32",null,"Huisartsen- bijz betalingen- balans","zvkx01","b503",null,"TY1V01"]
[null,null,null,null,"zvkx01_b504__TY0V01","*=Controleoverzicht!$K$33",null,"Huisartsen- bijz diensttijden- balans","zvkx01","b504",null,"TY0V01"]
[null,null,null,null,"zvkx01_b504__TY1V01","*=Controleoverzicht!$L$33",null,"Huisartsen- bijz diensttijden- balans","zvkx01","b504",null,"TY1V01"]
[null,null,null,null,"zvkx01_b505__TY0V01","*=Controleoverzicht!$K$34",null,"Huisartsen- Inschrijvingen- balans","zvkx01","b505",null,"TY0V01"]
[null,null,null,null,"zvkx01_b505__TY1V01","*=Controleoverzicht!$L$34",null,"Huisartsen- Inschrijvingen- balans","zvkx01","b505",null,"TY1V01"]
[null,null,null,null,"zvkx01_b506__TY0V01","*=Controleoverzicht!$K$35",null,"Huisartsen- Consult- balans","zvkx01","b506",null,"TY0V01"]
[null,null,null,null,"zvkx01_b506__TY1V01","*=Controleoverzicht!$L$35",null,"Huisartsen- Consult- balans","zvkx01","b506",null,"TY1V01"]
[null,null,null,null,"zvkx01_b507__TY0V01","*=Controleoverzicht!$K$36",null,"Huisartsen- Overige- balans","zvkx01","b507",null,"TY0V01"]
[null,null,null,null,"zvkx01_b507__TY1V01","*=Controleoverzicht!$L$36",null,"Huisartsen- Overige- balans","zvkx01","b507",null,"TY1V01"]
[null,null,null,null,"zvkx01_b510__TY0V01","*=Controleoverzicht!$K$37",null,"Huisartsen- MDZ- balans","zvkx01","b510",null,"TY0V01"]
[null,null,null,null,"zvkx01_b510__TY1V01","*=Controleoverzicht!$L$37",null,"Huisartsen- MDZ- balans","zvkx01","b510",null,"TY1V01"]
[null,null,null,null,"zvkx01_b515__TY0V01","*=Controleoverzicht!$K$38",null,"Huisartsen- Resultaatbel. huisartsen- balans","zvkx01","b515",null,"TY0V01"]
[null,null,null,null,"zvkx01_b515__TY1V01","*=Controleoverzicht!$L$38",null,"Huisartsen- Resultaatbel. huisartsen- balans","zvkx01","b515",null,"TY1V01"]
[null,null,null,null,"zvkx01_b516__TY0V01","*=Controleoverzicht!$K$39",null,"Huisartsen- Resultaatbel. MDZ- balans","zvkx01","b516",null,"TY0V01"]
[null,null,null,null,"zvkx01_b516__TY1V01","*=Controleoverzicht!$L$39",null,"Huisartsen- Resultaatbel. MDZ- balans","zvkx01","b516",null,"TY1V01"]
[null,null,null,null,"zvkx02_b520__TY0V01","*=Controleoverzicht!$K$40",null,"Farmaceutische hulp- balans","zvkx02","b520",null,"TY0V01"]
[null,null,null,null,"zvkx02_b520__TY1V01","*=Controleoverzicht!$L$40",null,"Farmaceutische hulp- balans","zvkx02","b520",null,"TY1V01"]
[null,null,null,null,"zvkx03_b530__TY0V01","*=Controleoverzicht!$K$41",null,"Verpleging en verzorging- balans","zvkx03","b530",null,"TY0V01"]
[null,null,null,null,"zvkx03_b530__TY1V01","*=Controleoverzicht!$L$41",null,"Verpleging en verzorging- balans","zvkx03","b530",null,"TY1V01"]
[null,null,null,null,"zvkx06_b545__TY0V01","*=Controleoverzicht!$K$42",null,"Medisch specialistische hulp- mondziekten en kaakchirurgie- balans","zvkx06","b545",null,"TY0V01"]
[null,null,null,null,"zvkx06_b545__TY1V01","*=Controleoverzicht!$L$42",null,"Medisch specialistische hulp- mondziekten en kaakchirurgie- balans","zvkx06","b545",null,"TY1V01"]
[null,null,null,null,"zvkx04_b5601__TY0V01","*=Controleoverzicht!$K$43",null,"Mondzorg- volwassen verzekerden- balans","zvkx04","b5601",null,"TY0V01"]
[null,null,null,null,"zvkx04_b5601__TY1V01","*=Controleoverzicht!$L$43",null,"Mondzorg- volwassen verzekerden- balans","zvkx04","b5601",null,"TY1V01"]
[null,null,null,null,"zvkx04_b5602__TY0V01","*=Controleoverzicht!$K$44",null,"Mondzorg- jeugdige verzekerden- balans","zvkx04","b5602",null,"TY0V01"]
[null,null,null,null,"zvkx04_b5602__TY1V01","*=Controleoverzicht!$L$44",null,"Mondzorg- jeugdige verzekerden- balans","zvkx04","b5602",null,"TY1V01"]
[null,null,null,null,"zvkx04_b561__TY0V01","*=Controleoverzicht!$K$45",null,"Mondzorg- gebitsprothesen- balans","zvkx04","b561",null,"TY0V01"]
[null,null,null,null,"zvkx04_b561__TY1V01","*=Controleoverzicht!$L$45",null,"Mondzorg- gebitsprothesen- balans","zvkx04","b561",null,"TY1V01"]
[null,null,null,null,"zvkx05_b580__TY0V01","*=Controleoverzicht!$K$46",null,"Verloskundige hulp- door verloskundigen- balans","zvkx05","b580",null,"TY0V01"]
[null,null,null,null,"zvkx05_b580__TY1V01","*=Controleoverzicht!$L$46",null,"Verloskundige hulp- door verloskundigen- balans","zvkx05","b580",null,"TY1V01"]
[null,null,null,null,"zvkx05_b582__TY0V01","*=Controleoverzicht!$K$47",null,"Verloskundige hulp- Intgrale geboortezorg- balans","zvkx05","b582",null,"TY0V01"]
[null,null,null,null,"zvkx06_b610__TY0V01","*=Controleoverzicht!$K$48",null,"Medisch specialistische hulp- Overige ziekenhuiszorg,curatief- balans","zvkx06","b610",null,"TY0V01"]
[null,null,null,null,"zvkx06_b610__TY1V01","*=Controleoverzicht!$L$48",null,"Medisch specialistische hulp- Overige ziekenhuiszorg,curatief- balans","zvkx06","b610",null,"TY1V01"]
[null,null,null,null,"zvkx06_b611__TY0V01","*=Controleoverzicht!$K$49",null,"Medisch specialistische hulp- Overige zorg- balans","zvkx06","b611",null,"TY0V01"]
[null,null,null,null,"zvkx06_b611__TY1V01","*=Controleoverzicht!$L$49",null,"Medisch specialistische hulp- Overige zorg- balans","zvkx06","b611",null,"TY1V01"]
[null,null,null,null,"zvkx06_b6121__TY0V01","*=Controleoverzicht!$K$58",null,"Medisch specialistische hulp- Dure geneesmiddelen- balans","zvkx06","b6121",null,"TY0V01"]
[null,null,null,null,"zvkx06_b6121__TY1V01","*=Controleoverzicht!$L$58",null,"Medisch specialistische hulp- Dure geneesmiddelen- balans","zvkx06","b6121",null,"TY1V01"]
[null,null,null,null,"zvkx06_b6122__TY0V01","*=Controleoverzicht!$K$59",null,"Medisch specialistische hulp- add-on-IC- balans","zvkx06","b6122",null,"TY0V01"]
[null,null,null,null,"zvkx06_b6122__TY1V01","*=Controleoverzicht!$L$59",null,"Medisch specialistische hulp- add-on-IC- balans","zvkx06","b6122",null,"TY1V01"]
[null,null,null,null,"zvkx06_b6131__TY0V01","*=Controleoverzicht!$K$60",null,"Medisch specialistische hulp- Integraal DBC-zorgproduct gereguleerd- balans","zvkx06","b6131",null,"TY0V01"]
[null,null,null,null,"zvkx06_b6131__TY1V01","*=Controleoverzicht!$L$60",null,"Medisch specialistische hulp- Integraal DBC-zorgproduct gereguleerd- balans","zvkx06","b6131",null,"TY1V01"]
[null,null,null,null,"zvkx06_b6151__TY0V01","*=Controleoverzicht!$K$61",null,"Medisch specialistische hulp- Integraal DBC-zorgproduct vrije segment- balans","zvkx06","b6151",null,"TY0V01"]
[null,null,null,null,"zvkx06_b6151__TY1V01","*=Controleoverzicht!$L$61",null,"Medisch specialistische hulp- Integraal DBC-zorgproduct vrije segment- balans","zvkx06","b6151",null,"TY1V01"]
[null,null,null,null,"zvkx06_b619__TY0V01","*=Controleoverzicht!$K$62",null,"Medisch specialistische hulp- honoraria extramuraal- balans","zvkx06","b619",null,"TY0V01"]
[null,null,null,null,"zvkx06_b619__TY1V01","*=Controleoverzicht!$L$62",null,"Medisch specialistische hulp- honoraria extramuraal- balans","zvkx06","b619",null,"TY1V01"]
[null,null,null,null,"zvkx07_b620__TY0V01","*=Controleoverzicht!$K$63",null,"Paramedische hulp- fysiotherapie- balans","zvkx07","b620",null,"TY0V01"]
[null,null,null,null,"zvkx07_b620__TY1V01","*=Controleoverzicht!$L$63",null,"Paramedische hulp- fysiotherapie- balans","zvkx07","b620",null,"TY1V01"]
[null,null,null,null,"zvkx07_b621__TY0V01","*=Controleoverzicht!$K$64",null,"Paramedische hulp- Mensendieck/Cesar- balans","zvkx07","b621",null,"TY0V01"]
[null,null,null,null,"zvkx07_b621__TY1V01","*=Controleoverzicht!$L$64",null,"Paramedische hulp- Mensendieck/Cesar- balans","zvkx07","b621",null,"TY1V01"]
[null,null,null,null,"zvkx07_b623__TY0V01","*=Controleoverzicht!$K$65",null,"Paramedische hulp- logopedie- balans","zvkx07","b623",null,"TY0V01"]
[null,null,null,null,"zvkx07_b623__TY1V01","*=Controleoverzicht!$L$65",null,"Paramedische hulp- logopedie- balans","zvkx07","b623",null,"TY1V01"]
[null,null,null,null,"zvkx07_b624__TY0V01","*=Controleoverzicht!$K$66",null,"Paramedische hulp- ergotherapie- balans","zvkx07","b624",null,"TY0V01"]
[null,null,null,null,"zvkx07_b624__TY1V01","*=Controleoverzicht!$L$66",null,"Paramedische hulp- ergotherapie- balans","zvkx07","b624",null,"TY1V01"]
[null,null,null,null,"zvkx07_b625__TY0V01","*=Controleoverzicht!$K$67",null,"Paramedische hulp- dieetadvisering- balans","zvkx07","b625",null,"TY0V01"]
[null,null,null,null,"zvkx07_b625__TY1V01","*=Controleoverzicht!$L$67",null,"Paramedische hulp- dieetadvisering- balans","zvkx07","b625",null,"TY1V01"]
[null,null,null,null,"zvkx07_b626__TY0V01","*=Controleoverzicht!$K$68",null,"Paramedische hulp- Gecombineerde Leefstijl Interventie- balans","zvkx07","b626",null,"TY0V01"]
[null,null,null,null,"zvkx08_b640__TY0V01","*=Controleoverzicht!$K$69",null,"Hulpmiddelen-- balans","zvkx08","b640",null,"TY0V01"]
[null,null,null,null,"zvkx08_b640__TY1V01","*=Controleoverzicht!$L$69",null,"Hulpmiddelen-- balans","zvkx08","b640",null,"TY1V01"]
[null,null,null,null,"zvkx09_b650__TY0V01","*=Controleoverzicht!$K$70",null,"Ziekenvervoer- ambulance/helicopter- balans","zvkx09","b650",null,"TY0V01"]
[null,null,null,null,"zvkx09_b650__TY1V01","*=Controleoverzicht!$L$70",null,"Ziekenvervoer- ambulance/helicopter- balans","zvkx09","b650",null,"TY1V01"]
[null,null,null,null,"zvkx09_b6501__TY0V01","*=Controleoverzicht!$K$71",null,"Ziekenvervoer- regionale ambulance- balans","zvkx09","b6501",null,"TY0V01"]
[null,null,null,null,"zvkx09_b6501__TY1V01","*=Controleoverzicht!$L$71",null,"Ziekenvervoer- regionale ambulance- balans","zvkx09","b6501",null,"TY1V01"]
[null,null,null,null,"zvkx09_b651__TY0V01","*=Controleoverzicht!$K$72",null,"Ziekenvervoer- ov, taxi en eigen auto- balans","zvkx09","b651",null,"TY0V01"]
[null,null,null,null,"zvkx09_b651__TY1V01","*=Controleoverzicht!$L$72",null,"Ziekenvervoer- ov, taxi en eigen auto- balans","zvkx09","b651",null,"TY1V01"]
[null,null,null,null,"zvkx10_b661__TY0V01","*=Controleoverzicht!$K$73",null,"Geneeskundige GGZ- GGZ met verblijf- balans","zvkx10","b661",null,"TY0V01"]
[null,null,null,null,"zvkx10_b661__TY1V01","*=Controleoverzicht!$L$73",null,"Geneeskundige GGZ- GGZ met verblijf- balans","zvkx10","b661",null,"TY1V01"]
[null,null,null,null,"zvkx10_b6611__TY0V01","*=Controleoverzicht!$K$74",null,"Geneeskundige GGZ- GGZ jaar 2 en 3- balans","zvkx10","b6611",null,"TY0V01"]
[null,null,null,null,"zvkx10_b6611__TY1V01","*=Controleoverzicht!$L$74",null,"Geneeskundige GGZ- GGZ jaar 2 en 3- balans","zvkx10","b6611",null,"TY1V01"]
[null,null,null,null,"zvkx10_b662__TY0V01","*=Controleoverzicht!$K$75",null,"Geneeskundige GGZ- GGZ zonder verblijf- balans","zvkx10","b662",null,"TY0V01"]
[null,null,null,null,"zvkx10_b662__TY1V01","*=Controleoverzicht!$L$75",null,"Geneeskundige GGZ- GGZ zonder verblijf- balans","zvkx10","b662",null,"TY1V01"]
[null,null,null,null,"zvkx10_b665__TY0V01","*=Controleoverzicht!$K$76",null,"Geneeskundige GGZ- basis GGZ- balans","zvkx10","b665",null,"TY0V01"]
[null,null,null,null,"zvkx10_b665__TY1V01","*=Controleoverzicht!$L$76",null,"Geneeskundige GGZ- basis GGZ- balans","zvkx10","b665",null,"TY1V01"]
[null,null,null,null,"zvkx11_b670__TY0V01","*=Controleoverzicht!$K$77",null,"Geriatische revalidatiezorg-- balans","zvkx11","b670",null,"TY0V01"]
[null,null,null,null,"zvkx11_b670__TY1V01","*=Controleoverzicht!$L$77",null,"Geriatische revalidatiezorg-- balans","zvkx11","b670",null,"TY1V01"]
[null,null,null,null,"zvkx11_b671__TY0V01","*=Controleoverzicht!$K$78",null,"Geriatische revalidatiezorg- Eerstelijnsverblijf- balans","zvkx11","b671",null,"TY0V01"]
[null,null,null,null,"zvkx11_b671__TY1V01","*=Controleoverzicht!$L$78",null,"Geriatische revalidatiezorg- Eerstelijnsverblijf- balans","zvkx11","b671",null,"TY1V01"]
[null,null,null,null,"zvkx11_b672__TY0V01","*=Controleoverzicht!$K$79",null,"Geriatische revalidatiezorg- GZSP- balans","zvkx11","b672",null,"TY0V01"]
[null,null,null,null,"zvkx12_b680__TY0V01","*=Controleoverzicht!$K$80",null,"Kraamzorg-- balans","zvkx12","b680",null,"TY0V01"]
[null,null,null,null,"zvkx12_b680__TY1V01","*=Controleoverzicht!$L$80",null,"Kraamzorg-- balans","zvkx12","b680",null,"TY1V01"]
[null,null,null,null,"zvkx13_b700__TY0V01","*=Controleoverzicht!$K$81",null,"Overige kosten-- balans","zvkx13","b700",null,"TY0V01"]
[null,null,null,null,"zvkx13_b700__TY1V01","*=Controleoverzicht!$L$81",null,"Overige kosten-- balans","zvkx13","b700",null,"TY1V01"]
[null,null,null,null,"zvkx13_b701__TY0V01","*=Controleoverzicht!$K$82",null,"Overige kosten- geneeskundige zorg- balans","zvkx13","b701",null,"TY0V01"]
[null,null,null,null,"zvkx13_b701__TY1V01","*=Controleoverzicht!$L$82",null,"Overige kosten- geneeskundige zorg- balans","zvkx13","b701",null,"TY1V01"]
[null,null,null,null,"zvkx13_b702__TY0V01","*=Controleoverzicht!$K$83",null,"Overige kosten- zintuiglijk gehandicapten- balans","zvkx13","b702",null,"TY0V01"]
[null,null,null,null,"zvkx13_b702__TY1V01","*=Controleoverzicht!$L$83",null,"Overige kosten- zintuiglijk gehandicapten- balans","zvkx13","b702",null,"TY1V01"]
[null,null,null,null,"zvkx15_b720__TY0V01","*=Controleoverzicht!$K$84",null,"Grensoverschrijdende zorg- via verzekeraar- balans","zvkx15","b720",null,"TY0V01"]
[null,null,null,null,"zvkx15_b720__TY1V01","*=Controleoverzicht!$L$85",null,"Grensoverschrijdende zorg- via verzekeraar- balans","zvkx15","b720",null,"TY1V01"]
[null,null,null,null,"zvkx15_b721__TY0V01","*=Controleoverzicht!$K$86",null,"Grensoverschrijdende zorg- via verbindingsorgaan- balans","zvkx15","b721",null,"TY0V01"]
[null,null,null,null,"zvkx15_b721__TY1V01","*=Controleoverzicht!$L$86",null,"Grensoverschrijdende zorg- via verbindingsorgaan- balans","zvkx15","b721",null,"TY1V01"]
[null,null,null,null,"zvkx16_b730__TY0V01","*=Controleoverzicht!$K$87",null,"Kwaliteitsgelden-- balans","zvkx16","b730",null,"TY0V01"]
[null,null,null,null,"zvkx16_b730__TY1V01","*=Controleoverzicht!$L$87",null,"Kwaliteitsgelden-- balans","zvkx16","b730",null,"TY1V01"]

{"sheet":"Parameters","index":13,"n_rows":37,"n_cols":3,"rows_kept":37,"cut":false,"hidden":true,"merged":[]}
[]
["Kwartaal:"]
["Jaar:",2021]
["Wet:","ZVW"]
["Document:",{"$f":"CONCATENATE(\"JS\",jaar_id,wet_id,\".\",kwartaal_id,revisie_id)","v":"JS2021ZVW.B"}]
["Revisie:","B"]
["Revisiedatum:","2022-01-01"]
["Versie:",{"$f":"CONCATENATE(document_id,)","v":"JS2021ZVW.B"}]
[]
[]
[]
["NUMMER_UO","NAAM_UO","FORMAT_UO1"]
["0000","KIES UW UZOVI-NUMMER",{"$f":"CONCATENATE(A13,\" \",B13)","v":"0000 KIES UW UZOVI-NUMMER"}]
["0101","UNIVÉ ZORG","0101 UNIVÉ ZORG"]
["0104","CENTRALE ZORGVERZEKERINGEN NZV N.V.","0104 CENTRALE ZORGVERZEKERINGEN NZV N.V."]
["0201","OHRA ZORGVERZEKERINGEN N.V.","0201 OHRA ZORGVERZEKERINGEN N.V."]
["0403","ASR ","0403 ASR "]
["0699","IZA","0699 IZA"]
["0736","UMC","0736 UMC"]
["3311","ZILVEREN KRUIS","3311 ZILVEREN KRUIS"]
["3313","INTERPOLIS","3313 INTERPOLIS"]
["3329","AVERO",{"$f":"CONCATENATE(A22,\" \",B22)","v":"3329 AVERO"}]
["3332","MENZIS","3332 MENZIS"]
["3333","ANDERZORG","3333 ANDERZORG"]
["3343","ONVZ",{"$f":"CONCATENATE(A25,\" \",B25)","v":"3343 ONVZ"}]
["3347","ENO",{"$f":"CONCATENATE(A26,\" \",B26)","v":"3347 ENO"}]
["3351","FBTO",{"$f":"CONCATENATE(A27,\" \",B27)","v":"3351 FBTO"}]
["3352","IPTIQ",{"$f":"CONCATENATE(A28,\" \",B28)","v":"3352 IPTIQ"}]
["3358","DE FRIESLAND",{"$f":"CONCATENATE(A29,\" \",B29)","v":"3358 DE FRIESLAND"}]
["3359","EUCARE INSURANCE PCC LTD","3359 EUCARE INSURANCE PCC LTD"]
["7029","DSW","7029 DSW"]
["7037","STAD HOLLAND","7037 STAD HOLLAND"]
["7053","OHRA ZORGVERZEKERINGEN N.V.","7053 OHRA ZORGVERZEKERINGEN N.V."]
["7085","ZORG EN ZEKERHEID","7085 ZORG EN ZEKERHEID"]
["7095","VGZ ZORGVERZEKERAAR","7095 VGZ ZORGVERZEKERAAR"]
["7119","CZ ZORGVERZEKERINGEN N.V.","7119 CZ ZORGVERZEKERINGEN N.V."]
["9015","VGZ VOOR DE ZORG",{"$f":"CONCATENATE(A37,\" \",B37)","v":"9015 VGZ VOOR DE ZORG"}]